Workbook

Sheet Title
C4: Финансовая модель
C5: инвестиционного проекта
C7: VEB_FMs
C8: ="Версия "&ut_Version -> Версия 1.0.0
C9: 2023-09-19
B11: Наименование проекта | C11: Проект 1 | D11: ut_Project_Name
B12: Инициатор проекта | C12: Инициатор 1 | D12: ut_Project_Initiator
B13: Местонахождение | C13: Российская Федерация | D13: ut_Project_Location
B15: Даты и периоды
B17: Дата начала модели | C17: 01.01.2020 | D17: ut_Date_Model_Start
B18: Дата окончания модели | C18: 31.12.2035 | D18: ut_Date_Model_End
B19: Количество месяцев в прогнозном периоде | C19: 12 | D19: ut_Months_in_Period
B20: Количество прогнозных периодов | C20: =COUNT(ut_Beginning_of_Period) -> 16 | D20: ut_Count
B21: Расчетное количество периодов | C21: =ROUND(((Title!C18-Title!C17)/((365+365+365+366)/4)*(12/Title!C19)),0) -> 16 | D21: ut_Count_Calc
B23: Период строительства
B24: с | C24: =DATE(YEAR(ut_Date_Model_Start),MONTH(ut_Date_Model_Start),DAY(ut_Date_Model_Start)) -> 2020-01-01
B25: по | C25: 2025-12-31 | D25: ut_Invest_EndDate
B27: Период запуска производства
B28: с | C28: =ut_Invest_EndDate+1 -> 2026-01-01
B29: по | D29: ut_RampUp_EndDate
B31: Количество лет деятельности проекта в постпрогнозном периоде
C32: 1000 | D32: ut_Post_Forecast
B34: Исторический период
B35: по | C35: 2020-12-31 | D35: ut_Historical_EndDate
B37: Валюта модели | C37: RUB | D37: ut_LCU
B38: Размерность финансовых показателей | C38: тыс. | D38: ut_Digits
C40: =ut_LCU -> RUB | D40: ut_LCU_alt
B43: Легенда
B45: Ячейки, доступные для редактирования
B46: xx | C46: - вводные параметры, выпадающие списки
B47: xx | C47: - обязательны к заполнению
B48: xx | C48: - предзаполненные, могут быть изменены
B49: xx | C49: - формулы, не рекомендуется изменять
B51: Ячейки, рассчитываемые автоматически
B52: xx | C52: - значения, устанавливаемые макросами | D52: защищены
B54: Прочие ячейки
B55: xx | C55: - период строительства/эксплуатации
B56: xx | C56: - исторический период
B58: xx | C58: - проверка наличия ошибки или корректности заполнения
B59: xx | C59: - проверка сходимости показателей

Sheet Inputs
H1: Номер периода | Q1: template | T1: =ut_Counter -> 1 | U1: 2 | V1: 3 | W1: 4 | X1: 5 | Y1: 6 | Z1: 7 | AA1: 8 | AB1: 9 | AC1: 10 | AD1: 11 | AE1: 12 | AF1: 13 | AG1: 14 | AH1: 15 | AI1: 16 | AJ1: ut_Counter
H2: Начало периода | T2: =ut_Beginning_of_Period -> 2020-01-01 | U2: 2021-01-01 | V2: 2022-01-01 | W2: 2023-01-01 | X2: 2024-01-01 | Y2: 2025-01-01 | Z2: 2026-01-01 | AA2: 2027-01-01 | AB2: 2028-01-01 | AC2: 2029-01-01 | AD2: 2030-01-01 | AE2: 2031-01-01 | AF2: 2032-01-01 | AG2: 2033-01-01 | AH2: 2034-01-01 | AI2: 2035-01-01 | AJ2: ut_Beginning_of_Period
H3: Окончание периода | T3: =ut_End_of_Period -> 2020-12-31 | U3: 2021-12-31 | V3: 2022-12-31 | W3: 2023-12-31 | X3: 2024-12-31 | Y3: 2025-12-31 | Z3: 2026-12-31 | AA3: 2027-12-31 | AB3: 2028-12-31 | AC3: 2029-12-31 | AD3: 2030-12-31 | AE3: 2031-12-31 | AF3: 2032-12-31 | AG3: 2033-12-31 | AH3: 2034-12-31 | AI3: 2035-12-31 | AJ3: ut_End_of_Period
H4: Период строительства | T4: =ut_Construction_Period -> 1 | U4: 1 | V4: 1 | W4: 1 | X4: 1 | Y4: 1 | Z4: 0 | AA4: 0 | AB4: 0 | AC4: 0 | AD4: 0 | AE4: 0 | AF4: 0 | AG4: 0 | AH4: 0 | AI4: 0 | AJ4: ut_Construction_Period
H5: Период запуска | T5: =ut_RampUp_Period -> 0 | U5: 0 | V5: 0 | W5: 0 | X5: 0 | Y5: 0 | Z5: 0 | AA5: 0 | AB5: 0 | AC5: 0 | AD5: 0 | AE5: 0 | AF5: 0 | AG5: 0 | AH5: 0 | AI5: 0 | AJ5: ut_RampUp_Period
H6: Операционный период | Q6: source | T6: =ut_Operation_Period -> 0 | U6: 0 | V6: 0 | W6: 0 | X6: 0 | Y6: 0 | Z6: 1 | AA6: 1 | AB6: 1 | AC6: 1 | AD6: 1 | AE6: 1 | AF6: 1 | AG6: 1 | AH6: 1 | AI6: 1 | AJ6: ut_Operation_Period
C7: Макроэкономические предпосылки
C9: Макро и иные предпосылки
C10: Наименование | D10: ед. | E10: ut_Inputs_Names | K10: ut_Inputs_list | AJ10: ut_Inputs_Data
B11: 1 | C11: ='Макро ВЭБ.РФ'!C41 -> Индекс потребительских цен, % в среднем за год | D11: 100+% | J11: Индекс потребительских цен, % в среднем за год | T11: ='Макро ВЭБ.РФ'!T42 -> 104.9 | U11: ='Макро ВЭБ.РФ'!U42 -> 108.39 | V11: ='Макро ВЭБ.РФ'!V42 -> 111.94 | W11: ='Макро ВЭБ.РФ'!W42 -> 106.2877139 | X11: ='Макро ВЭБ.РФ'!X42 -> 104.4735125 | Y11: ='Макро ВЭБ.РФ'!Y42 -> 104.101988 | Z11: ='Макро ВЭБ.РФ'!Z42 -> 104.1138843 | AA11: ='Макро ВЭБ.РФ'!AA42 -> 104.02261 | AB11: ='Макро ВЭБ.РФ'!AB42 -> 103.9151065 | AC11: ='Макро ВЭБ.РФ'!AC42 -> 103.7987291 | AD11: ='Макро ВЭБ.РФ'!AD42 -> 103.699952 | AE11: ='Макро ВЭБ.РФ'!AE42 -> 103.6613866 | AF11: ='Макро ВЭБ.РФ'!AF42 -> 103.5818383 | AG11: ='Макро ВЭБ.РФ'!AG42 -> 103.5492104 | AH11: ='Макро ВЭБ.РФ'!AH42 -> 103.4982712 | AI11: ='Макро ВЭБ.РФ'!AI42 -> 103.4512029
B12: =B11+1 -> 2 | C12: ='Макро ВЭБ.РФ'!C43 -> Индекс цен производителей в промышленности, в % в среднем за год | D12: 100+% | J12: Индекс цен производителей в промышленности, в % в среднем за год | T12: ='Макро ВЭБ.РФ'!T43 -> 97.7 | U12: ='Макро ВЭБ.РФ'!U43 -> 130.9 | V12: ='Макро ВЭБ.РФ'!V43 -> 110.9345506 | W12: ='Макро ВЭБ.РФ'!W43 -> 102.5136736 | X12: ='Макро ВЭБ.РФ'!X43 -> 108.7440914 | Y12: ='Макро ВЭБ.РФ'!Y43 -> 104.6594088 | Z12: ='Макро ВЭБ.РФ'!Z43 -> 104.0051851 | AA12: ='Макро ВЭБ.РФ'!AA43 -> 103.705816 | AB12: ='Макро ВЭБ.РФ'!AB43 -> 103.6270649 | AC12: ='Макро ВЭБ.РФ'!AC43 -> 103.5430414 | AD12: ='Макро ВЭБ.РФ'!AD43 -> 103.4903929 | AE12: ='Макро ВЭБ.РФ'!AE43 -> 103.413487 | AF12: ='Макро ВЭБ.РФ'!AF43 -> 103.3460116 | AG12: ='Макро ВЭБ.РФ'!AG43 -> 103.3176294 | AH12: ='Макро ВЭБ.РФ'!AH43 -> 103.2732732 | AI12: ='Макро ВЭБ.РФ'!AI43 -> 103.1100815
B13: 3 | C13: ='Макро ВЭБ.РФ'!C60 -> Электроэнергия | D13: 100+% | J13: Электроэнергия | T13: ='Макро ВЭБ.РФ'!T62 -> 106.0717475 | U13: ='Макро ВЭБ.РФ'!U62 -> 105.1445642 | V13: ='Макро ВЭБ.РФ'!V62 -> 109.2468144 | W13: ='Макро ВЭБ.РФ'!W62 -> 105.2074746 | X13: ='Макро ВЭБ.РФ'!X62 -> 103.3524257 | Y13: ='Макро ВЭБ.РФ'!Y62 -> 102.9769297 | Z13: ='Макро ВЭБ.РФ'!Z62 -> 102.7687486 | AA13: ='Макро ВЭБ.РФ'!AA62 -> 102.5225075 | AB13: ='Макро ВЭБ.РФ'!AB62 -> 102.688995 | AC13: ='Макро ВЭБ.РФ'!AC62 -> 104.1074711 | AD13: ='Макро ВЭБ.РФ'!AD62 -> 103.7362236 | AE13: ='Макро ВЭБ.РФ'!AE62 -> 103.6671862 | AF13: ='Макро ВЭБ.РФ'!AF62 -> 103.5692923 | AG13: ='Макро ВЭБ.РФ'!AG62 -> 103.4665326 | AH13: ='Макро ВЭБ.РФ'!AH62 -> 103.3939998 | AI13: ='Макро ВЭБ.РФ'!AI62 -> 103.313787
B14: 4 | C14: ='Макро ВЭБ.РФ'!C64 -> Тепловая энергия , % г/г | D14: 100+% | J14: Тепловая энергия , % г/г | T14: ='Макро ВЭБ.РФ'!T64 -> 104.3505626 | U14: ='Макро ВЭБ.РФ'!U64 -> 106.6882886 | V14: ='Макро ВЭБ.РФ'!V64 -> 112.027936 | W14: ='Макро ВЭБ.РФ'!W64 -> 108.5198019 | X14: ='Макро ВЭБ.РФ'!X64 -> 104.8422886 | Y14: ='Макро ВЭБ.РФ'!Y64 -> 105.2574086 | Z14: ='Макро ВЭБ.РФ'!Z64 -> 105.0181893 | AA14: ='Макро ВЭБ.РФ'!AA64 -> 104.8960219 | AB14: ='Макро ВЭБ.РФ'!AB64 -> 104.8138188 | AC14: ='Макро ВЭБ.РФ'!AC64 -> 104.7832708 | AD14: ='Макро ВЭБ.РФ'!AD64 -> 104.6440369 | AE14: ='Макро ВЭБ.РФ'!AE64 -> 104.5841546 | AF14: ='Макро ВЭБ.РФ'!AF64 -> 104.5024096 | AG14: ='Макро ВЭБ.РФ'!AG64 -> 104.4532065 | AH14: ='Макро ВЭБ.РФ'!AH64 -> 104.398625 | AI14: ='Макро ВЭБ.РФ'!AI64 -> 104.3730174
B15: 5 | C15: ='Макро ВЭБ.РФ'!C63 -> Железнодорожные перевозки грузов, % г/г | D15: 100+% | J15: Железнодорожные перевозки грузов, % г/г | T15: ='Макро ВЭБ.РФ'!T63 -> 103.5 | U15: ='Макро ВЭБ.РФ'!U63 -> 103.8 | V15: ='Макро ВЭБ.РФ'!V63 -> 103.7 | W15: ='Макро ВЭБ.РФ'!W63 -> 103.9 | X15: ='Макро ВЭБ.РФ'!X63 -> 104.4181992 | Y15: ='Макро ВЭБ.РФ'!Y63 -> 103.7367125 | Z15: ='Макро ВЭБ.РФ'!Z63 -> 103.6034204 | AA15: ='Макро ВЭБ.РФ'!AA63 -> 103.4601309 | AB15: ='Макро ВЭБ.РФ'!AB63 -> 103.3420227 | AC15: ='Макро ВЭБ.РФ'!AC63 -> 103.2515591 | AD15: ='Макро ВЭБ.РФ'!AD63 -> 103.1652371 | AE15: ='Макро ВЭБ.РФ'!AE63 -> 103.1515216 | AF15: ='Макро ВЭБ.РФ'!AF63 -> 103.0837883 | AG15: ='Макро ВЭБ.РФ'!AG63 -> 103.0547752 | AH15: ='Макро ВЭБ.РФ'!AH63 -> 103.0085623 | AI15: ='Макро ВЭБ.РФ'!AI63 -> 102.9970904
B16: 6 | C16: ='Макро ВЭБ.РФ'!C74 -> Индекс потребительских цен США, % дек. г/г | D16: 100+% | J16: Индекс потребительских цен США, % дек. г/г | T16: ='Макро ВЭБ.РФ'!T74 -> 1.4 | U16: ='Макро ВЭБ.РФ'!U74 -> 7 | V16: ='Макро ВЭБ.РФ'!V74 -> 6.5 | W16: ='Макро ВЭБ.РФ'!W74 -> 2.9 | X16: ='Макро ВЭБ.РФ'!X74 -> 2.7 | Y16: ='Макро ВЭБ.РФ'!Y74 -> 2.5 | Z16: ='Макро ВЭБ.РФ'!Z74 -> 1.9 | AA16: ='Макро ВЭБ.РФ'!AA74 -> 1.9 | AB16: ='Макро ВЭБ.РФ'!AB74 -> 1.9 | AC16: ='Макро ВЭБ.РФ'!AC74 -> 1.9 | AD16: ='Макро ВЭБ.РФ'!AD74 -> 1.9 | AE16: ='Макро ВЭБ.РФ'!AE74 -> 1.9 | AF16: ='Макро ВЭБ.РФ'!AF74 -> 1.9 | AG16: ='Макро ВЭБ.РФ'!AG74 -> 1.9 | AH16: ='Макро ВЭБ.РФ'!AH74 -> 1.9 | AI16: ='Макро ВЭБ.РФ'!AI74 -> 1.9
B17: 7 | C17: ИПЦ в модель | J17: ИПЦ в модель | T17: =T11/100 -> 1.049 | U17: =U11/100*T17 -> 1.1370111 | V17: =V11/100*U17 -> 1.272770225 | W17: 1.352798376 | X17: 1.41331598 | Y17: 1.471290032 | Z17: 1.531817202 | AA17: 1.593436235 | AB17: 1.65582096 | AC17: 1.718721113 | AD17: 1.782312969 | AE17: 1.847570337 | AF17: 1.913747319 | AG17: 1.981670239 | AH17: 2.050994438 | AI17: 2.121778417
B18: 8 | C18: ИЦП в модель | J18: ИЦП в модель | T18: =T12/100 -> 0.977 | U18: =U12/100*T18 -> 1.278893 | V18: =V12/100*U18 -> 1.418734202 | W18: 1.454396549 | X18: 1.581570313 | Y18: 1.655262139 | Z18: 1.721558452 | AA18: 1.785356241 | AB18: 1.85011227 | AC18: 1.915662515 | AD18: 1.982526664 | AE18: 2.050199954 | AF18: 2.118799882 | AG18: 2.189093809 | AH18: 2.260748831 | AI18: 2.331059962
B19: 9 | C19: Электроэнергия в модель | J19: Электроэнергия в модель | T19: 1.060717475 | U19: =U13/100*T19 -> 1.115286766 | V19: 1.218415263 | W19: 1.281863928 | X19: 1.324837463 | Y19: 1.364276943 | Z19: 1.402050341 | AA19: 1.437417166 | AB19: 1.476069242 | AC19: 1.53669836 | AD19: 1.594112846 | AE19: 1.652571933 | AF19: 1.711557056 | AG19: 1.77088874 | AH19: 1.830992701 | AI19: 1.8916679
B20: 10 | C20: Тепловая энергия в модель | J20: Тепловая энергия в модель | T20: 1.043505626 | U20: 1.113298293 | V20: 1.2472051 | W20: 1.353464503 | X20: 1.41900316 | Y20: 1.493605954 | Z20: 1.568557928 | AA20: 1.645354867 | AB20: 1.724559269 | AC20: 1.807049609 | AD20: 1.89096966 | AE20: 1.977654632 | AF20: 2.066696745 | AG20: 2.158731019 | AH20: 2.253685501 | AI20: 2.352239561
B21: 11 | C21: Жд перевозки в модель | J21: Жд перевозки в модель | T21: 1.035 | U21: 1.07433 | V21: 1.11408021 | W21: 1.157529338 | X21: 1.20867129 | Y21: 1.253835861 | Z21: 1.299016837 | AA21: 1.34396452 | AB21: 1.38888012 | AC21: 1.434040377 | AD21: 1.479431156 | AE21: 1.526055748 | AF21: 1.573116076 | AG21: 1.621171236 | AH21: 1.669945183 | AI21: 1.71999495
B22: 12 | C22: ИПЦ США в модель | J22: ИПЦ США в модель | T22: =T16/100+1 -> 1.014 | U22: =U16/100+1 -> 1.07 | V22: 1.065 | W22: 1.029 | X22: 1.027 | Y22: 1.025 | Z22: 1.019 | AA22: 1.019 | AB22: 1.019 | AC22: 1.019 | AD22: 1.019 | AE22: 1.019 | AF22: 1.019 | AG22: 1.019 | AH22: 1.019 | AI22: 1.019
B23: 13 | C23: ='Макро ВЭБ.РФ'!C22 -> Заработная плата | J23: Заработная плата | T23: ='Макро ВЭБ.РФ'!T24 -> 107.4290002 | U23: ='Макро ВЭБ.РФ'!U24 -> 111.4751487 | V23: ='Макро ВЭБ.РФ'!V24 -> 114.09125 | W23: ='Макро ВЭБ.РФ'!W24 -> 112.9023919 | X23: ='Макро ВЭБ.РФ'!X24 -> 109.8352427 | Y23: ='Макро ВЭБ.РФ'!Y24 -> 107.7922874 | Z23: ='Макро ВЭБ.РФ'!Z24 -> 107.2262374 | AA23: ='Макро ВЭБ.РФ'!AA24 -> 106.5228306 | AB23: ='Макро ВЭБ.РФ'!AB24 -> 105.8113778 | AC23: ='Макро ВЭБ.РФ'!AC24 -> 105.5634717 | AD23: ='Макро ВЭБ.РФ'!AD24 -> 105.5360219 | AE23: ='Макро ВЭБ.РФ'!AE24 -> 105.7755673 | AF23: ='Макро ВЭБ.РФ'!AF24 -> 104.8575245 | AG23: ='Макро ВЭБ.РФ'!AG24 -> 104.9207158 | AH23: ='Макро ВЭБ.РФ'!AH24 -> 104.499886 | AI23: ='Макро ВЭБ.РФ'!AI24 -> 104.4473773
B24: 14 | C24: Заработная плата в модель | J24: Заработная плата в модель | T24: =T23/100 -> 1.074290002 | U24: =U23/100 -> 1.114751487 | V24: 1.1409125 | W24: 1.129023919 | X24: 1.098352427 | Y24: 1.077922874 | Z24: 1.072262374 | AA24: 1.065228306 | AB24: 1.058113778 | AC24: 1.055634717 | AD24: 1.055360219 | AE24: 1.057755673 | AF24: 1.048575245 | AG24: 1.049207158 | AH24: 1.04499886 | AI24: 1.044473773
B25: 15 | C25: ='Макро ВЭБ.РФ'!C67 -> ключевая ставка ЦБ | J25: ключевая ставка ЦБ | T25: ='Макро ВЭБ.РФ'!T67 -> 4.25 | U25: ='Макро ВЭБ.РФ'!U67 -> 8.5 | V25: ='Макро ВЭБ.РФ'!V67 -> 7.5 | W25: ='Макро ВЭБ.РФ'!W67 -> 12 | X25: ='Макро ВЭБ.РФ'!X67 -> 10 | Y25: ='Макро ВЭБ.РФ'!Y67 -> 8 | Z25: ='Макро ВЭБ.РФ'!Z67 -> 6 | AA25: ='Макро ВЭБ.РФ'!AA67 -> 5 | AB25: ='Макро ВЭБ.РФ'!AB67 -> 5 | AC25: ='Макро ВЭБ.РФ'!AC67 -> 5 | AD25: ='Макро ВЭБ.РФ'!AD67 -> 5 | AE25: ='Макро ВЭБ.РФ'!AE67 -> 5 | AF25: ='Макро ВЭБ.РФ'!AF67 -> 5 | AG25: ='Макро ВЭБ.РФ'!AG67 -> 5 | AH25: ='Макро ВЭБ.РФ'!AH67 -> 5 | AI25: ='Макро ВЭБ.РФ'!AI67 -> 5
B26: 16
B27: 17
B28: 18
B29: 19
B30: 20
C33: Курсы валют
P34: =COUNTA(ut_Currency_list) -> 4 | AJ34: ut_Exchange_Rates
C35: =INDEX(ut_Currency_list,K35)&"/"&INDEX(ut_Currency_list,L35) -> RUB/RUB | D35: ut_Exchange_Rates_Headers | K35: 1 | L35: 1 | M35: =MATCH(ut_LCU,ut_Currency_list,0) -> 1 | P35: =COUNT(T41:AI45) -> 32 | S35: 1 | T35: 1 | U35: 1 | V35: 1 | W35: 1 | X35: 1 | Y35: 1 | Z35: 1 | AA35: 1 | AB35: 1 | AC35: 1 | AD35: 1 | AE35: 1 | AF35: 1 | AG35: 1 | AH35: 1 | AI35: 1
C36: USD/USD | K36: 2 | L36: 2 | S36: 1 | T36: 1 | U36: 1 | V36: 1 | W36: 1 | X36: 1 | Y36: 1 | Z36: 1 | AA36: 1 | AB36: 1 | AC36: 1 | AD36: 1 | AE36: 1 | AF36: 1 | AG36: 1 | AH36: 1 | AI36: 1
C37: EUR/EUR | K37: 3 | L37: 3 | P37: =MAX(ut_Counter) -> 16 | S37: 1 | T37: 1 | U37: 1 | V37: 1 | W37: 1 | X37: 1 | Y37: 1 | Z37: 1 | AA37: 1 | AB37: 1 | AC37: 1 | AD37: 1 | AE37: 1 | AF37: 1 | AG37: 1 | AH37: 1 | AI37: 1
C38: CHY/CHY | K38: 4 | L38: 4 | S38: 1 | T38: 1 | U38: 1 | V38: 1 | W38: 1 | X38: 1 | Y38: 1 | Z38: 1 | AA38: 1 | AB38: 1 | AC38: 1 | AD38: 1 | AE38: 1 | AF38: 1 | AG38: 1 | AH38: 1 | AI38: 1
C39: / | K39: 5 | L39: 5 | S39: 1 | T39: 1 | U39: 1 | V39: 1 | W39: 1 | X39: 1 | Y39: 1 | Z39: 1 | AA39: 1 | AB39: 1 | AC39: 1 | AD39: 1 | AE39: 1 | AF39: 1 | AG39: 1 | AH39: 1 | AI39: 1
C40: / | K40: 6 | L40: 6 | S40: 1 | T40: 1 | U40: 1 | V40: 1 | W40: 1 | X40: 1 | Y40: 1 | Z40: 1 | AA40: 1 | AB40: 1 | AC40: 1 | AD40: 1 | AE40: 1 | AF40: 1 | AG40: 1 | AH40: 1 | AI40: 1
C41: USD/RUB | K41: =IF(L41=1,2,1) -> 2 | L41: =M35 -> 1 | Q41: =(MAX(ut_Counter)>COUNT(T41:AI41))*(INDEX(ut_Currency_list,K41)<>"")*1 -> 0 | T41: ='Макро ВЭБ.РФ'!T49 -> 71.94220377 | U41: ='Макро ВЭБ.РФ'!U49 -> 73.645695 | V41: ='Макро ВЭБ.РФ'!V49 -> 67.45621134 | W41: ='Макро ВЭБ.РФ'!W49 -> 84.44093536 | X41: ='Макро ВЭБ.РФ'!X49 -> 89.43481909 | Y41: ='Макро ВЭБ.РФ'!Y49 -> 87.76526115 | Z41: ='Макро ВЭБ.РФ'!Z49 -> 86.69141722 | AA41: ='Макро ВЭБ.РФ'!AA49 -> 85.58939723 | AB41: ='Макро ВЭБ.РФ'!AB49 -> 85.91367914 | AC41: ='Макро ВЭБ.РФ'!AC49 -> 86.17382132 | AD41: ='Макро ВЭБ.РФ'!AD49 -> 86.43609991 | AE41: ='Макро ВЭБ.РФ'!AE49 -> 86.97042191 | AF41: ='Макро ВЭБ.РФ'!AF49 -> 87.52039205 | AG41: ='Макро ВЭБ.РФ'!AG49 -> 88.35436993 | AH41: ='Макро ВЭБ.РФ'!AH49 -> 89.16658355 | AI41: ='Макро ВЭБ.РФ'!AI49 -> 89.95855442
C42: EUR/RUB | K42: =IF((K41+1)=L42,(K41+2),(K41+1)) -> 3 | L42: =L41 -> 1 | Q42: =(MAX(ut_Counter)>COUNT(T42:AI42))*(INDEX(ut_Currency_list,K42)<>"")*1 -> 0 | T42: ='Макро ВЭБ.РФ'!T52 -> 82.40039447 | U42: ='Макро ВЭБ.РФ'!U52 -> 87.17276147 | V42: ='Макро ВЭБ.РФ'!V52 -> 72.60629372 | W42: ='Макро ВЭБ.РФ'!W52 -> 91.76828116 | X42: ='Макро ВЭБ.РФ'!X52 -> 97.33126123 | Y42: ='Макро ВЭБ.РФ'!Y52 -> 95.51054545 | Z42: ='Макро ВЭБ.РФ'!Z52 -> 94.34193479 | AA42: ='Макро ВЭБ.РФ'!AA52 -> 93.14266154 | AB42: ='Макро ВЭБ.РФ'!AB52 -> 93.49556132 | AC42: ='Макро ВЭБ.РФ'!AC52 -> 93.77866105 | AD42: ='Макро ВЭБ.РФ'!AD52 -> 94.06408573 | AE42: ='Макро ВЭБ.РФ'!AE52 -> 94.64556165 | AF42: ='Макро ВЭБ.РФ'!AF52 -> 95.24406665 | AG42: ='Макро ВЭБ.РФ'!AG52 -> 96.15164307 | AH42: ='Макро ВЭБ.РФ'!AH52 -> 97.03553455 | AI42: ='Макро ВЭБ.РФ'!AI52 -> 97.89739685
C43: CHY/RUB | K43: =IF((K42+1)=L43,(K42+2),(K42+1)) -> 4 | L43: =L42 -> 1 | Q43: =(MAX(ut_Counter)>COUNT(T43:AI43))*(INDEX(ut_Currency_list,K43)<>"")*1 -> 1
C44: /RUB | K44: =IF((K43+1)=L44,(K43+2),(K43+1)) -> 5 | L44: =L43 -> 1 | Q44: =(MAX(ut_Counter)>COUNT(T44:AI44))*(INDEX(ut_Currency_list,K44)<>"")*1 -> 0
C45: /RUB | K45: =IF((K44+1)=L45,(K44+2),(K44+1)) -> 6 | L45: =L44 -> 1 | Q45: =(MAX(ut_Counter)>COUNT(T45:AI45))*(INDEX(ut_Currency_list,K45)<>"")*1 -> 0
C46: RUB/USD | K46: =IF(L46=1,2,1) -> 1 | L46: =IF(M$35<>1,1,2) -> 2 | O46: =IFERROR(MATCH(K46,K$41:K$45,0),"rev") -> rev | P46: =MATCH(L46,K$41:K$45,0) -> 1 | S46: =IFERROR(IF($O46="rev",1/INDEX(S$41:S$45,$P46),INDEX(S$41:S$45,$O46)/INDEX(S$41:S$45,$P46)),0) -> 0 | T46: 0.01390004681 | U46: 0.01357852621 | V46: 0.01482443173 | W46: 0.01184259738 | X46: 0.01118132748 | Y46: 0.01139402979 | Z46: 0.01153516729 | AA46: 0.01168369018 | AB46: 0.01163958999 | AC46: =IFERROR(IF($O46="rev",1/INDEX(AC$41:AC$45,$P46),INDEX(AC$41:AC$45,$O46)/INDEX(AC$41:AC$45,$P46)),0) -> 0.01160445231 | AD46: 0.01156924018 | AE46: 0.011498162 | AF46: 0.0114259086 | AG46: 0.01131805932 | AH46: 0.01121496373 | AI46: 0.01111623021
C47: EUR/USD | K47: =IF((K46+1)=L47,(K46+2),(K46+1)) -> 3 | L47: =IF(M$35<>1,1,2) -> 2 | O47: 2 | P47: 1 | S47: 0 | T47: 1.14536934 | U47: 1.183677627 | V47: 1.076347045 | W47: 1.086774806 | X47: 1.088292705 | Y47: 1.08825 | Z47: 1.08825 | AA47: 1.08825 | AB47: 1.08825 | AC47: 1.08825 | AD47: 1.08825 | AE47: 1.08825 | AF47: 1.08825 | AG47: 1.08825 | AH47: 1.08825 | AI47: 1.08825
C48: CHY/USD | K48: =IF((K47+1)=L48,(K47+2),(K47+1)) -> 4 | L48: =IF(M$35<>1,1,2) -> 2 | O48: 3 | P48: 1 | S48: 0 | T48: 0 | U48: 0 | V48: 0 | W48: 0 | X48: 0 | Y48: 0 | Z48: 0 | AA48: 0 | AB48: 0 | AC48: 0 | AD48: 0 | AE48: 0 | AF48: 0 | AG48: 0 | AH48: 0 | AI48: 0
C49: /USD | K49: =IF((K48+1)=L49,(K48+2),(K48+1)) -> 5 | L49: =IF(M$35<>1,1,2) -> 2 | O49: 4 | P49: 1 | S49: 0 | T49: 0 | U49: 0 | V49: 0 | W49: 0 | X49: 0 | Y49: 0 | Z49: 0 | AA49: 0 | AB49: 0 | AC49: 0 | AD49: 0 | AE49: 0 | AF49: 0 | AG49: 0 | AH49: 0 | AI49: 0
C50: /USD | K50: =IF((K49+1)=L50,(K49+2),(K49+1)) -> 6 | L50: =IF(M$35<>1,1,2) -> 2 | O50: 5 | P50: 1 | S50: 0 | T50: 0 | U50: 0 | V50: 0 | W50: 0 | X50: 0 | Y50: 0 | Z50: 0 | AA50: 0 | AB50: 0 | AC50: 0 | AD50: 0 | AE50: 0 | AF50: 0 | AG50: 0 | AH50: 0 | AI50: 0
C51: RUB/EUR | K51: =IF(L51=1,2,1) -> 1 | L51: =IF((L46+1)=L$41,(L46+2),(L46+1)) -> 3 | O51: rev | P51: 2 | S51: 0 | T51: 0.01213586423 | U51: 0.01147147324 | V51: 0.0137729107 | W51: 0.01089701134 | X51: 0.01027419133 | Y51: 0.01047004805 | Z51: 0.01059974021 | AA51: 0.01073621887 | AB51: 0.01069569492 | AC51: 0.01066340667 | AD51: 0.01063105002 | AE51: 0.01056573581 | AF51: 0.01049934169 | AG51: 0.01040023829 | AH51: 0.01030550308 | AI51: 0.01021477621
C52: USD/EUR | K52: =IF((K51+1)=L52,(K51+2),(K51+1)) -> 2 | L52: 3 | O52: 1 | P52: 2 | S52: 0 | T52: 0.8730808175 | U52: 0.8448246191 | V52: 0.9290683753 | W52: 0.9201538297 | X52: 0.9188704427 | Y52: 0.9189065013 | Z52: 0.9189065013 | AA52: 0.9189065013 | AB52: 0.9189065013 | AC52: 0.9189065013 | AD52: 0.9189065013 | AE52: 0.9189065013 | AF52: 0.9189065013 | AG52: 0.9189065013 | AH52: 0.9189065013 | AI52: 0.9189065013
C53: CHY/EUR | K53: =IF((K52+1)=L53,(K52+2),(K52+1)) -> 4 | L53: 3 | O53: 3 | P53: 2 | S53: 0 | T53: 0 | U53: 0 | V53: 0 | W53: 0 | X53: 0 | Y53: 0 | Z53: 0 | AA53: 0 | AB53: 0 | AC53: 0 | AD53: 0 | AE53: 0 | AF53: 0 | AG53: 0 | AH53: 0 | AI53: 0
C54: /EUR | K54: =IF((K53+1)=L54,(K53+2),(K53+1)) -> 5 | L54: 3 | O54: 4 | P54: 2 | S54: 0 | T54: 0 | U54: 0 | V54: 0 | W54: 0 | X54: 0 | Y54: 0 | Z54: 0 | AA54: 0 | AB54: 0 | AC54: 0 | AD54: 0 | AE54: 0 | AF54: 0 | AG54: 0 | AH54: 0 | AI54: 0
C55: /EUR | K55: =IF((K54+1)=L55,(K54+2),(K54+1)) -> 6 | L55: 3 | O55: 5 | P55: 2 | S55: 0 | T55: 0 | U55: 0 | V55: 0 | W55: 0 | X55: 0 | Y55: 0 | Z55: 0 | AA55: 0 | AB55: 0 | AC55: 0 | AD55: 0 | AE55: 0 | AF55: 0 | AG55: 0 | AH55: 0 | AI55: 0
C56: RUB/CHY | K56: =IF(L56=1,2,1) -> 1 | L56: 4 | O56: rev | P56: 3 | S56: =IFERROR(IF($O56="rev",1/INDEX(S$41:S$45,$P56),INDEX(S$41:S$45,$O56)/INDEX(S$41:S$45,$P56)),0) -> 0 | T56: 0 | U56: 0 | V56: 0 | W56: 0 | X56: 0 | Y56: 0 | Z56: 0 | AA56: 0 | AB56: 0 | AC56: =IFERROR(IF($O56="rev",1/INDEX(AC$41:AC$45,$P56),INDEX(AC$41:AC$45,$O56)/INDEX(AC$41:AC$45,$P56)),0) -> 0 | AD56: 0 | AE56: 0 | AF56: 0 | AG56: 0 | AH56: 0 | AI56: 0
C57: USD/CHY | K57: =IF((K56+1)=L57,(K56+2),(K56+1)) -> 2 | L57: 4 | O57: 1 | P57: 3 | S57: 0 | T57: 0 | U57: 0 | V57: 0 | W57: 0 | X57: 0 | Y57: 0 | Z57: 0 | AA57: 0 | AB57: 0 | AC57: 0 | AD57: 0 | AE57: 0 | AF57: 0 | AG57: 0 | AH57: 0 | AI57: 0
C58: EUR/CHY | K58: =IF((K57+1)=L58,(K57+2),(K57+1)) -> 3 | L58: 4 | O58: 2 | P58: 3 | S58: 0 | T58: 0 | U58: 0 | V58: 0 | W58: 0 | X58: 0 | Y58: 0 | Z58: 0 | AA58: 0 | AB58: 0 | AC58: 0 | AD58: 0 | AE58: 0 | AF58: 0 | AG58: 0 | AH58: 0 | AI58: 0
C59: /CHY | K59: =IF((K58+1)=L59,(K58+2),(K58+1)) -> 5 | L59: 4 | O59: 4 | P59: 3 | S59: 0 | T59: 0 | U59: 0 | V59: 0 | W59: 0 | X59: 0 | Y59: 0 | Z59: 0 | AA59: 0 | AB59: 0 | AC59: 0 | AD59: 0 | AE59: 0 | AF59: 0 | AG59: 0 | AH59: 0 | AI59: 0
C60: /CHY | K60: =IF((K59+1)=L60,(K59+2),(K59+1)) -> 6 | L60: 4 | O60: 5 | P60: 3 | S60: 0 | T60: 0 | U60: 0 | V60: 0 | W60: 0 | X60: 0 | Y60: 0 | Z60: 0 | AA60: 0 | AB60: 0 | AC60: 0 | AD60: 0 | AE60: 0 | AF60: 0 | AG60: 0 | AH60: 0 | AI60: 0
C61: RUB/ | K61: =IF(L61=1,2,1) -> 1 | L61: 5 | O61: rev | P61: 4 | S61: 0 | T61: 0 | U61: 0 | V61: 0 | W61: 0 | X61: 0 | Y61: 0 | Z61: 0 | AA61: 0 | AB61: 0 | AC61: 0 | AD61: 0 | AE61: 0 | AF61: 0 | AG61: 0 | AH61: 0 | AI61: 0
C62: USD/ | K62: =IF((K61+1)=L62,(K61+2),(K61+1)) -> 2 | L62: 5 | O62: 1 | P62: 4 | S62: 0 | T62: 0 | U62: 0 | V62: 0 | W62: 0 | X62: 0 | Y62: 0 | Z62: 0 | AA62: 0 | AB62: 0 | AC62: 0 | AD62: 0 | AE62: 0 | AF62: 0 | AG62: 0 | AH62: 0 | AI62: 0
C63: EUR/ | K63: =IF((K62+1)=L63,(K62+2),(K62+1)) -> 3 | L63: 5 | O63: 2 | P63: 4 | S63: 0 | T63: 0 | U63: 0 | V63: 0 | W63: 0 | X63: 0 | Y63: 0 | Z63: 0 | AA63: 0 | AB63: 0 | AC63: 0 | AD63: 0 | AE63: 0 | AF63: 0 | AG63: 0 | AH63: 0 | AI63: 0
C64: CHY/ | K64: =IF((K63+1)=L64,(K63+2),(K63+1)) -> 4 | L64: 5 | O64: 3 | P64: 4 | S64: 0 | T64: 0 | U64: 0 | V64: 0 | W64: 0 | X64: 0 | Y64: 0 | Z64: 0 | AA64: 0 | AB64: 0 | AC64: 0 | AD64: 0 | AE64: 0 | AF64: 0 | AG64: 0 | AH64: 0 | AI64: 0
C65: / | K65: =IF((K64+1)=L65,(K64+2),(K64+1)) -> 6 | L65: 5 | O65: 5 | P65: 4 | S65: 0 | T65: 0 | U65: 0 | V65: 0 | W65: 0 | X65: 0 | Y65: 0 | Z65: 0 | AA65: 0 | AB65: 0 | AC65: 0 | AD65: 0 | AE65: 0 | AF65: 0 | AG65: 0 | AH65: 0 | AI65: 0
C66: RUB/ | K66: =IF(L66=1,2,1) -> 1 | L66: 6 | O66: rev | P66: 5 | S66: 0 | T66: 0 | U66: 0 | V66: 0 | W66: 0 | X66: 0 | Y66: 0 | Z66: 0 | AA66: 0 | AB66: 0 | AC66: 0 | AD66: 0 | AE66: 0 | AF66: 0 | AG66: 0 | AH66: 0 | AI66: 0
C67: USD/ | K67: =IF((K66+1)=L67,(K66+2),(K66+1)) -> 2 | L67: 6 | O67: 1 | P67: 5 | S67: 0 | T67: 0 | U67: 0 | V67: 0 | W67: 0 | X67: 0 | Y67: 0 | Z67: 0 | AA67: 0 | AB67: 0 | AC67: 0 | AD67: 0 | AE67: 0 | AF67: 0 | AG67: 0 | AH67: 0 | AI67: 0
C68: EUR/ | K68: =IF((K67+1)=L68,(K67+2),(K67+1)) -> 3 | L68: 6 | O68: 2 | P68: 5 | S68: 0 | T68: 0 | U68: 0 | V68: 0 | W68: 0 | X68: 0 | Y68: 0 | Z68: 0 | AA68: 0 | AB68: 0 | AC68: 0 | AD68: 0 | AE68: 0 | AF68: 0 | AG68: 0 | AH68: 0 | AI68: 0
C69: CHY/ | K69: =IF((K68+1)=L69,(K68+2),(K68+1)) -> 4 | L69: 6 | O69: 3 | P69: 5 | S69: 0 | T69: 0 | U69: 0 | V69: 0 | W69: 0 | X69: 0 | Y69: 0 | Z69: 0 | AA69: 0 | AB69: 0 | AC69: 0 | AD69: 0 | AE69: 0 | AF69: 0 | AG69: 0 | AH69: 0 | AI69: 0
C70: / | K70: =IF((K69+1)=L70,(K69+2),(K69+1)) -> 5 | L70: 6 | O70: 4 | P70: 5 | S70: 0 | T70: 0 | U70: 0 | V70: 0 | W70: 0 | X70: 0 | Y70: 0 | Z70: 0 | AA70: 0 | AB70: 0 | AC70: 0 | AD70: 0 | AE70: 0 | AF70: 0 | AG70: 0 | AH70: 0 | AI70: 0
C72: Капитальные затраты
C75: Капитальные затраты проекта
C77: Наименование | D77: валюта | E77: Срок полезного использования, лет | F77: ОС или НМА | G77: Облагается налогом на имущество? | H77: ut_CapEx_Dir | J77: ставка амортизации | T77: Графики финансирования -> | AJ77: ut_CapEx_Inputs
A78: =IF(COUNTIF(C78:G78,"="&"")>0,"!","") ->  | B78: =B77+1 -> 1 | C78: Проектирование | D78: RUB | E78: 10000 | F78: НМА | G78: нет | H78: =SUM(T78:AI78) -> 2100000 | J78: =IFERROR(1/E78*(ut_Months_in_Period/12),0) -> 0.0001 | K78: =IF(D78<>"",IFERROR(MATCH(CONCATENATE(D78,"/",ut_LCU),ut_Exchange_Rates_Headers,0),0),0) -> 1 | T78: 1200000 | U78: 900000
A79: =IF(COUNTIF(C79:G79,"="&"")>0,"!","") ->  | B79: 2 | C79: Строительство | D79: RUB | E79: 100 | F79: ОС | G79: да | H79: =SUM(T79:AI79) -> 8000000 | J79: 0.01 | K79: 1 | U79: 1500000 | V79: 1500000 | W79: 2000000 | X79: 3000000
A80: =IF(COUNTIF(C80:G80,"="&"")>0,"!","") ->  | B80: 3 | C80: Приобретение лицензий на производство | D80: USD | E80: 10000 | F80: НМА | G80: нет | H80: =SUM(T80:AI80) -> 65000 | J80: =IFERROR(1/E80*(ut_Months_in_Period/12),0) -> 0.0001 | K80: =IF(D80<>"",IFERROR(MATCH(CONCATENATE(D80,"/",ut_LCU),ut_Exchange_Rates_Headers,0),0),0) -> 7 | X80: 15000 | Y80: 50000
D82: Сумма | E82: в валюте модели | G82: =ut_Digits&ut_LCU -> тыс. RUB | H82: =SUM(T82:AI82) -> 15829785.34 | T82: =SUMIFS(T78:T81,$D$78:$D$81,INDEX(ut_Currency_list,1))*INDEX(ut_Exchange_Rates_calc,1,T$1)+SUMIFS(T78:T81,$D$78:$D$81,INDEX(ut_Currency_list,2))*INDEX(ut_Exchange_Rates_calc,2,T$1)+SUMIFS(T78:T81,$D$78:$D$81,INDEX(ut_Currency_list,3))*INDEX(ut_Exchange_Rates_calc,3,T$1)+SUMIFS(T78:T81,$D$78:$D$81,INDEX(ut_Currency_list,4))*INDEX(ut_Exchange_Rates_calc,4,T$1)+SUMIFS(T78:T81,$D$78:$D$81,INDEX(ut_Currency_list,5))*INDEX(ut_Exchange_Rates_calc,5,T$1)+SUMIFS(T78:T81,$D$78:$D$81,INDEX(ut_Currency_list,6))*INDEX(ut_Exchange_Rates_calc,6,T$1) -> 1200000 | U82: 2400000 | V82: 1500000 | W82: 2000000 | X82: 4341522.286 | Y82: 4388263.058 | Z82: 0 | AA82: 0 | AB82: 0 | AC82: 0 | AD82: 0 | AE82: 0 | AF82: 0 | AG82: 0 | AH82: 0 | AI82: 0
C85: Операционная деятельность
C88: Цены продуктов
C90: Внутренний рынок | D90: Единица объема | E90: валюта | F90: ставка НДС | G90: ut_Products_Dom_Dir | T90: Значения с НДС | AJ90: ut_SalesPrice_Dom_Inputs
A91: =IF(COUNTIF(C91:F91,"="&"")>0,"!","") ->  | B91: =B90+1 -> 1 | C91: Продукт 1 | D91: ед | E91: RUB | F91: 0.2 | T91: 295 | U91: =T91 -> 295 | V91: =U91 -> 295 | W91: 295 | X91: 295 | Y91: 295 | Z91: 295 | AA91: 295 | AB91: 295 | AC91: 295 | AD91: 295 | AE91: 295 | AF91: 295 | AG91: 295 | AH91: 295 | AI91: 295
A92: =IF(COUNTIF(C92:F92,"="&"")>0,"!","") ->  | B92: =B91+1 -> 2 | C92: Продукт 2 | D92: ед | E92: USD | F92: 0
C95: Внешний рынок | D95: Единица объема | E95: валюта | G95: ut_Products_Exp_Dir | AJ95: ut_SalesPrice_Exp_Inputs
A96: =IF(COUNTIF(C96:E96,"="&"")>0,"!","") ->  | B96: =B95+1 -> 1 | C96: =INDEX(ut_Products_Dom_Dir,B96,1) -> Продукт 1 | D96: =INDEX(ut_Products_Dom_Dir,B96,2) -> ед | E96: USD
A97: =IF(COUNTIF(C97:E97,"="&"")>0,"!","") ->  | B97: =B96+1 -> 2 | C97: =INDEX(ut_Products_Dom_Dir,B97,1) -> Продукт 2 | D97: =INDEX(ut_Products_Dom_Dir,B97,2) -> ед | E97: USD | T97: 43 | U97: =T97 -> 43 | V97: =U97 -> 43 | W97: 43 | X97: 43 | Y97: 43 | Z97: 43 | AA97: 43 | AB97: 43 | AC97: 43 | AD97: 43 | AE97: 43 | AF97: 43 | AG97: 43 | AH97: 43 | AI97: 43
C100: Объемы продаж
C102: Внутренний рынок | D102: Единица объема | AJ102: ut_SalesVolume_Dom_Inputs
B103: =B102+1 -> 1 | C103: =INDEX(ut_Products_Dom_Dir,B103,1) -> Продукт 1 | D103: =INDEX(ut_Products_Dom_Dir,B103,2) -> ед | T103: =2000*T6 -> 0 | U103: =2000*U6 -> 0 | V103: 0 | W103: 0 | X103: 0 | Y103: 0 | Z103: 2000 | AA103: 2000 | AB103: 2000 | AC103: 2000 | AD103: 2000 | AE103: 2000 | AF103: 2000 | AG103: 2000 | AH103: 2000 | AI103: 2000
B104: =B103+1 -> 2 | C104: =INDEX(ut_Products_Dom_Dir,B104,1) -> Продукт 2 | D104: =INDEX(ut_Products_Dom_Dir,B104,2) -> ед
C107: Внешний рынок | D107: Единица объема | AJ107: ut_SalesVolume_Exp_Inputs
B108: =B107+1 -> 1 | C108: =INDEX(ut_Products_Dom_Dir,B108,1) -> Продукт 1 | D108: =INDEX(ut_Products_Dom_Dir,B108,2) -> ед
B109: =B108+1 -> 2 | C109: =INDEX(ut_Products_Dom_Dir,B109,1) -> Продукт 2 | D109: =INDEX(ut_Products_Dom_Dir,B109,2) -> ед | T109: =1000*T6 -> 0 | U109: =1000*U6 -> 0 | V109: 0 | W109: 0 | X109: 0 | Y109: 0 | Z109: 1000 | AA109: 1000 | AB109: 1000 | AC109: 1000 | AD109: 1000 | AE109: 1000 | AF109: 1000 | AG109: 1000 | AH109: 1000 | AI109: 1000
C112: Операционные расходы
C114: Постоянные операционные расходы | G114: ut_FC_Dir
C115: Наименование | D115: Валюта расходов | E115: ставка НДС | F115: Статья расходов | T115: Значения с НДС | AJ115: ut_Fixed_Costs_Data
A116: =IF(AND(COUNTIF(C116:F116,"="&"")>0,C116<>""),"!","") ->  | B116: =B115+1 -> 1 | C116: Заработная плата (не включая соц. и страх взносы) | D116: RUB | E116: =0% -> 0 | F116: Производственные | T116: =ФОТ!H34/1000 -> 25560 | U116: =T116 -> 25560 | V116: =U116 -> 25560 | W116: 25560 | X116: 25560 | Y116: 25560 | Z116: 25560 | AA116: 25560 | AB116: 25560 | AC116: 25560 | AD116: 25560 | AE116: 25560 | AF116: 25560 | AG116: 25560 | AH116: 25560 | AI116: 25560
A117: =IF(AND(COUNTIF(C117:F117,"="&"")>0,C117<>""),"!","") ->  | B117: =B116+1 -> 2 | C117: Социальные страховые взносы | D117: RUB | E117: =0% -> 0 | F117: =F116 -> Производственные | T117: =T116*0.3 -> 7668 | U117: =U116*0.3 -> 7668 | V117: =V116*0.3 -> 7668 | W117: 7668 | X117: 7668 | Y117: 7668 | Z117: 7668 | AA117: 7668 | AB117: 7668 | AC117: 7668 | AD117: 7668 | AE117: 7668 | AF117: 7668 | AG117: 7668 | AH117: 7668 | AI117: 7668
B118: =B117+1 -> 3 | C118: Электроэнергия | D118: RUB | E118: 0.2 | F118: Производственные | X118: 3000 | Y118: =X118 -> 3000 | Z118: 3000 | AA118: 3000 | AB118: 3000 | AC118: 3000 | AD118: 3000 | AE118: 3000 | AF118: 3000 | AG118: 3000 | AH118: 3000 | AI118: 3000
B119: 4 | C119: Тепловая энергия | D119: RUB | E119: 0.2 | F119: Производственные | X119: 2000 | Y119: =X119 -> 2000 | Z119: 2000 | AA119: 2000 | AB119: 2000 | AC119: 2000 | AD119: 2000 | AE119: 2000 | AF119: 2000 | AG119: 2000 | AH119: 2000 | AI119: 2000
B120: 5
B121: 6
B122: 7
B123: 8
B124: 9
B125: 10
B126: 11
B127: 12
B128: 13
B129: 14
B130: 15
B131: 16
B132: 17
B133: 18
B134: 19
B135: 20
C139: Общие переменные раcходы для всех продуктов | H139: ut_VC_Dir
C140: Наименование | D140: Валюта расходов | E140: ставка НДС | F140: Статья расходов | G140: Драйвер | T140: Значения с НДС | AJ140: ut_VC_Common_Data
A141: =IF(AND(COUNTIF(C141:F141,"="&"")>0,C141<>""),"!","") ->  | B141: =B140+1 -> 1 | C141: Заработная плата (не включая соц. и страх взносы) | D141: RUB | E141: =0% -> 0 | F141: Производственные
A142: =IF(AND(COUNTIF(C142:F142,"="&"")>0,C142<>""),"!","") ->  | B142: =B141+1 -> 2 | C142: Социальные страховые взносы | D142: RUB | E142: =0% -> 0 | F142: =F141 -> Производственные | G142: =G141 -> 0
A143: =IF(AND(COUNTIF(C143:G143,"="&"")>0,C143<>""),"!","") ->  | B143: =B142+1 -> 3 | C143: Жд доставка | D143: RUB | E143: 0.2 | F143: Коммерческие | G143: % от выручки | T143: 0.03 | U143: =T143 -> 0.03 | V143: =U143 -> 0.03 | W143: 0.03 | X143: 0.03 | Y143: 0.03 | Z143: 0.03 | AA143: 0.03 | AB143: 0.03 | AC143: 0.03 | AD143: 0.03 | AE143: 0.03 | AF143: 0.03 | AG143: 0.03 | AH143: 0.03 | AI143: 0.03
B144: 4 | C144: Комиссии банков | D144: RUB | E144: 0 | F144: Коммерческие | G144: % от выручки | T144: 0.01 | U144: =T144 -> 0.01 | V144: =U144 -> 0.01 | W144: 0.01 | X144: 0.01 | Y144: 0.01 | Z144: 0.01 | AA144: 0.01 | AB144: 0.01 | AC144: 0.01 | AD144: 0.01 | AE144: 0.01 | AF144: 0.01 | AG144: 0.01 | AH144: 0.01 | AI144: 0.01
B145: 5
B146: 6
B147: 7
B148: 8
B149: 9
B150: 10
B151: 11
B152: 12
B153: 13
B154: 14
B155: 15
B156: 16
B157: 17
B158: 18
B159: 19
B160: 20
C163: Переменные расходы по продуктам | G163: ut_VC_Inputs_Names | H163: ut_VC_Numbers | AJ163: ut_VC_Inputs_Data
C166: =INDEX(ut_Products_Dom_Dir,H167,1) -> Продукт 1 | D166: валюта | E166: ставка НДС | F166: Статья расходов | T166: Значения с НДС
A167: =IF(AND(COUNTIF(C167:F167,"="&"")>0,C167<>""),"!","") ->  | B167: =B166+1 -> 1 | C167: Ресурсы | D167: RUB | E167: 0.2 | F167: Производственные | H167: =MAX(H$163:H166)+1 -> 1 | T167: 200 | U167: =T167 -> 200 | V167: =U167 -> 200 | W167: 200 | X167: 200 | Y167: 200 | Z167: 200 | AA167: 200 | AB167: 200 | AC167: 200 | AD167: 200 | AE167: 200 | AF167: 200 | AG167: 200 | AH167: 200 | AI167: 200
A168: =IF(AND(COUNTIF(C168:F168,"="&"")>0,C168<>""),"!","") ->  | B168: =B167+1 -> 2
B169: =B168+1 -> 3
B170: 4
B171: 5
B172: 6
T173: =IFERROR(T167/T91,0) -> 0.6779661017 | U173: 0.6779661017 | V173: 0.6779661017 | W173: 0.6779661017 | X173: 0.6779661017 | Y173: 0.6779661017 | Z173: 0.6779661017 | AA173: 0.6779661017 | AB173: 0.6779661017 | AC173: 0.6779661017 | AD173: 0.6779661017 | AE173: 0.6779661017 | AF173: 0.6779661017 | AG173: 0.6779661017 | AH173: 0.6779661017 | AI173: 0.6779661017
C176: =INDEX(ut_Products_Dom_Dir,H177,1) -> Продукт 2 | D176: валюта | E176: ставка НДС | F176: Статья расходов | T176: Значения с НДС
A177: =IF(AND(COUNTIF(C177:F177,"="&"")>0,C177<>""),"!","") ->  | B177: =B176+1 -> 1 | C177: Ресурсы | D177: RUB | E177: 0.2 | F177: Производственные | H177: =MAX(H$163:H176)+1 -> 2 | T177: 220 | U177: =T177 -> 220 | V177: =U177 -> 220 | W177: 220 | X177: 220 | Y177: 220 | Z177: 220 | AA177: 220 | AB177: 220 | AC177: 220 | AD177: 220 | AE177: 220 | AF177: 220 | AG177: 220 | AH177: 220 | AI177: 220
B178: =B177+1 -> 2
B179: =B178+1 -> 3
B180: 4
B181: 5
B182: 6
T183: =IFERROR(T177/T92,0) -> 0 | U183: 0 | V183: 0 | W183: 0 | X183: 0 | Y183: 0 | Z183: 0 | AA183: 0 | AB183: 0 | AC183: 0 | AD183: 0 | AE183: 0 | AF183: 0 | AG183: 0 | AH183: 0 | AI183: 0
C188: Внеоперационные доходы и расходы
C189: Наименование | D189: Валюта | E189: ставка НДС | F189: Доход или расход? | G189: ut_NonOpC_Dir | T189: Значения с НДС | AJ189: ut_NonOpC_Data
A190: =IF(AND(COUNTIF(C190:F190,"="&"")>0,C190<>""),"!","") ->  | B190: =B189+1 -> 1 | C190: Прочие расходы | D190: RUB | E190: 0.2 | F190: расход | T190: =10000*T6 -> 0 | U190: =10000*U6 -> 0 | V190: 0 | W190: 0 | X190: 0 | Y190: 0 | Z190: 10000 | AA190: 10000 | AB190: 10000 | AC190: 10000 | AD190: 10000 | AE190: 10000 | AF190: 10000 | AG190: 10000 | AH190: 10000 | AI190: 10000
B191: =B190+1 -> 2 | E191: 0.2
B192: =B191+1 -> 3 | E192: 0.2
B193: 4 | E193: 0.2
B194: 5 | E194: 0.2
B195: 6 | E195: 0.2
B196: 7 | E196: 0.2
B197: 8 | E197: 0.2
B198: 9 | E198: 0.2
B199: 10 | E199: 0.2
B200: 11 | E200: 0.2
B201: 12 | E201: 0.2
B202: 13 | E202: 0.2
B203: 14 | E203: 0.2
B204: 15 | E204: 0.2
B205: 16 | E205: 0.2
B206: 17 | E206: 0.2
B207: 18 | E207: 0.2
B208: 19 | E208: 0.2
B209: 20 | E209: 0.2
C213: Финансирование проекта
D215: Всего CapEx на инвестиционной фазе | E215: =H82 -> 15829785.34 | F215: =ut_Digits&ut_LCU -> тыс. RUB | H215: Потребность финансирования CapEx | T215: =MAX(T82-(T223+T233+T240),0) -> 0 | U215: 0 | V215: 0 | W215: 0 | X215: 0 | Y215: 0 | Z215: 0 | AA215: 0 | AB215: 0 | AC215: 0 | AD215: 0 | AE215: 0 | AF215: 0 | AG215: 0 | AH215: 0 | AI215: 0
D216: Доля собственных средств, % | E216: =IFERROR(H220/E215,0) -> 0.2400537921
C218: Собственный капитал
T219: Графики привлечения ->
C220: Привлечение капитала - инвесторы/акционеры | D220: =ut_Digits&ut_LCU -> тыс. RUB | F220: Дополнительный капитал | H220: =SUM(T220:AI220)+S220 -> 3800000 | T220: 600000 | U220: 1000000 | V220: 500000 | W220: 700000 | X220: 1000000
C221: Привлечение капитала - ВЭБ | D221: =ut_Digits&ut_LCU -> тыс. RUB | H221: =SUM(ut_Equity_Attraction_VEB)+S221 -> 0 | AJ221: ut_Equity_Attraction_VEB
C223: Привлечение капитала - всего | G223: =ut_Digits&ut_LCU -> тыс. RUB | H223: =SUM(ut_Equity_Attraction)+S223 -> 3800000 | S223: =SUM(S220:S221) -> 0 | T223: 600000 | U223: 1000000 | V223: 500000 | W223: 700000 | X223: 1000000 | Y223: 0 | Z223: 0 | AA223: 0 | AB223: 0 | AC223: 0 | AD223: 0 | AE223: 0 | AF223: 0 | AG223: 0 | AH223: 0 | AI223: 0 | AJ223: ut_Equity_Attraction
C226: Заемное финансирование | H226: ut_Debt_Dir
C227: Наименование | D227: валюта | E227: Кредитор | F227: % ставка | H227: сумма | T227: Графики выдачи -> | AJ227: ut_Debt_Input
A228: =IF(AND(COUNTIF(C228:F228,"="&"")>0,C228<>""),"!","") ->  | B228: =B227+1 -> 1 | C228: Кредит 1 | D228: RUB | E228: ВЭБ | F228: 0.14 | H228: =SUM(T228:AI228) -> 11500000 | T228: 500000 | U228: 1300000 | V228: 900000 | W228: 1200000 | X228: 3300000 | Y228: 4300000
G230: курсы валют | K230: row | AJ230: ut_Debt_FX_Input
G231: =IF(D228<>"",D228&"/"&ut_LCU,0) -> RUB/RUB | K231: =IFERROR(MATCH(G231,ut_Exchange_Rates_Headers,0),0) -> 1 | T231: =IFERROR(INDEX(ut_Exchange_Rates,$K231,ut_Counter),0) -> 1 | U231: 1 | V231: 1 | W231: 1 | X231: 1 | Y231: 1 | Z231: 1 | AA231: 1 | AB231: 1 | AC231: 1 | AD231: =IFERROR(INDEX(ut_Exchange_Rates,$K231,ut_Counter),0) -> 1 | AE231: 1 | AF231: 1 | AG231: 1 | AH231: 1 | AI231: 1
D233: Сумма | E233: в валюте модели | G233: =ut_Digits&ut_LCU -> тыс. RUB | H233: =SUM(T233:AI233) -> 11500000 | T233: =SUMPRODUCT(T228:T229,T231:T232) -> 500000 | U233: 1300000 | V233: 900000 | W233: 1200000 | X233: 3300000 | Y233: 4300000 | Z233: 0 | AA233: 0 | AB233: 0 | AC233: 0 | AD233: 0 | AE233: 0 | AF233: 0 | AG233: 0 | AH233: 0 | AI233: 0
C235: Субсидии и бюджентные инвестиции
T236: Графики получения ->
C237: Привлечение | D237: =ut_Digits&ut_LCU -> тыс. RUB | H237: =SUM(ut_Subsidies) -> 600000 | T237: 100000 | U237: 100000 | V237: 100000 | W237: 100000 | X237: 100000 | Y237: 100000 | AJ237: ut_Subsidies
C238: Иные прямые бюджетные инвестиции для создания проекта | D238: =ut_Digits&ut_LCU -> тыс. RUB | H238: =SUM(ut_Direct_Budget_Investments) -> 0 | AJ238: ut_Direct_Budget_Investments
D240: Сумма | E240: в валюте модели | G240: =ut_Digits&ut_LCU -> тыс. RUB | H240: =SUM(T240:AI240) -> 600000 | T240: =SUM(T237:T238) -> 100000 | U240: =SUM(U237:U238) -> 100000 | V240: 100000 | W240: 100000 | X240: 100000 | Y240: 100000 | Z240: 0 | AA240: 0 | AB240: 0 | AC240: 0 | AD240: 0 | AE240: 0 | AF240: 0 | AG240: 0 | AH240: 0 | AI240: 0
C243: Налоги
C245: Налог на имущество
C247: Ставка налога на имущество | D247: % | T247: 0.022 | U247: 0.022 | V247: 0.022 | W247: 0.022 | X247: 0.022 | Y247: 0.022 | Z247: 0.022 | AA247: 0.022 | AB247: 0.022 | AC247: 0.022 | AD247: 0.022 | AE247: 0.022 | AF247: 0.022 | AG247: 0.022 | AH247: 0.022 | AI247: 0.022 | AJ247: ut_Property_Tax_Rate_Inputs
C249: Налог на прибыль
C251: Ставка налога на прибыль | D251: % | T251: 0.2 | U251: 0.2 | V251: 0.2 | W251: 0.2 | X251: 0.2 | Y251: 0.2 | Z251: 0.2 | AA251: 0.2 | AB251: 0.2 | AC251: 0.2 | AD251: 0.2 | AE251: 0.2 | AF251: 0.2 | AG251: 0.2 | AH251: 0.2 | AI251: 0.2 | AJ251: ut_Profit_Tax_Rate_Inputs
C253: Отсрочка по уплате налога на прибыль (если предоставляется) | D253: периодов | T253: =1 -> 1 | U253: =1 -> 1 | V253: =1 -> 1 | W253: =1 -> 1 | X253: =1 -> 1 | Y253: =1 -> 1 | Z253: =1 -> 1 | AA253: =1 -> 1 | AB253: =1 -> 1 | AC253: =1 -> 1 | AD253: =1 -> 1 | AE253: =1 -> 1 | AF253: =1 -> 1 | AG253: =1 -> 1 | AH253: =1 -> 1 | AI253: =1 -> 1 | AJ253: ut_Profit_Tax_Delay_Inputs
C255: НДС
C257: Ставка по НДС по CapEx | E257: Механизм возврата НДС CapEx | F257: возмещение | T257: =20% -> 0.2 | U257: =20% -> 0.2 | V257: =20% -> 0.2 | W257: =20% -> 0.2 | X257: =20% -> 0.2 | Y257: =20% -> 0.2 | Z257: =20% -> 0.2 | AA257: =20% -> 0.2 | AB257: =20% -> 0.2 | AC257: =20% -> 0.2 | AD257: =20% -> 0.2 | AE257: =20% -> 0.2 | AF257: =20% -> 0.2 | AG257: =20% -> 0.2 | AH257: =20% -> 0.2 | AI257: =20% -> 0.2 | AJ257: ut_VAT_Rate_Inputs
... 25 more rows

Sheet Calculations
Q1: template | T1: =IF(ut_Historical_EndDate>=T$4,0,1) -> 0 | U1: 1 | V1: 1 | W1: 1 | X1: 1 | Y1: 1 | Z1: 1 | AA1: 1 | AB1: 1 | AC1: 1 | AD1: 1 | AE1: 1 | AF1: 1 | AG1: 1 | AH1: 1 | AI1: 1 | AJ1: ut_history_flag
T2: 1 | U2: =T2+1 -> 2 | V2: 3 | W2: 4 | X2: 5 | Y2: 6 | Z2: 7 | AA2: 8 | AB2: 9 | AC2: 10 | AD2: 11 | AE2: 12 | AF2: 13 | AG2: 14 | AH2: 15 | AI2: 16 | AJ2: ut_Counter
H3: Начало периода | S3: входящие данные | T3: =DATE(YEAR(ut_Date_Model_Start),MONTH(ut_Date_Model_Start),DAY(ut_Date_Model_Start)) -> 2020-01-01 | U3: =T4+1 -> 2021-01-01 | V3: 2022-01-01 | W3: 2023-01-01 | X3: 2024-01-01 | Y3: 2025-01-01 | Z3: 2026-01-01 | AA3: 2027-01-01 | AB3: 2028-01-01 | AC3: 2029-01-01 | AD3: 2030-01-01 | AE3: 2031-01-01 | AF3: 2032-01-01 | AG3: 2033-01-01 | AH3: 2034-01-01 | AI3: 2035-01-01 | AJ3: ut_Beginning_of_Period
H4: Окончание периода | S4: =T3-1 -> 2019-12-31 | T4: =EOMONTH(T3,(ut_Months_in_Period-1)-MOD((MONTH(T3)-1),ut_Months_in_Period)) -> 2020-12-31 | U4: =EOMONTH(U3,ut_Months_in_Period-1) -> 2021-12-31 | V4: 2022-12-31 | W4: 2023-12-31 | X4: 2024-12-31 | Y4: 2025-12-31 | Z4: 2026-12-31 | AA4: 2027-12-31 | AB4: 2028-12-31 | AC4: 2029-12-31 | AD4: 2030-12-31 | AE4: 2031-12-31 | AF4: 2032-12-31 | AG4: 2033-12-31 | AH4: 2034-12-31 | AI4: 2035-12-31 | AJ4: ut_End_of_Period
H5: Период строительства | T5: =(T3>=Title!$C$24)*(T4<=Title!$C$25)*1 -> 1 | U5: =(U3>=Title!$C$24)*(U4<=Title!$C$25)*1 -> 1 | V5: =(V3>=Title!$C$24)*(V4<=Title!$C$25)*1 -> 1 | W5: =(W3>=Title!$C$24)*(W4<=Title!$C$25)*1 -> 1 | X5: =(X3>=Title!$C$24)*(X4<=Title!$C$25)*1 -> 1 | Y5: =(Y3>=Title!$C$24)*(Y4<=Title!$C$25)*1 -> 1 | Z5: =(Z3>=Title!$C$24)*(Z4<=Title!$C$25)*1 -> 0 | AA5: =(AA3>=Title!$C$24)*(AA4<=Title!$C$25)*1 -> 0 | AB5: =(AB3>=Title!$C$24)*(AB4<=Title!$C$25)*1 -> 0 | AC5: =(AC3>=Title!$C$24)*(AC4<=Title!$C$25)*1 -> 0 | AD5: =(AD3>=Title!$C$24)*(AD4<=Title!$C$25)*1 -> 0 | AE5: =(AE3>=Title!$C$24)*(AE4<=Title!$C$25)*1 -> 0 | AF5: =(AF3>=Title!$C$24)*(AF4<=Title!$C$25)*1 -> 0 | AG5: =(AG3>=Title!$C$24)*(AG4<=Title!$C$25)*1 -> 0 | AH5: =(AH3>=Title!$C$24)*(AH4<=Title!$C$25)*1 -> 0 | AI5: =(AI3>=Title!$C$24)*(AI4<=Title!$C$25)*1 -> 0 | AJ5: ut_Construction_Period
H6: Период запуска | T6: =(T4>MAX(Title!$C$24,Title!$C$25))*(T4<=ut_RampUp_EndDate)*1 -> 0 | U6: =(U4>MAX(Title!$C$24,Title!$C$25))*(U4<=ut_RampUp_EndDate)*1 -> 0 | V6: =(V4>MAX(Title!$C$24,Title!$C$25))*(V4<=ut_RampUp_EndDate)*1 -> 0 | W6: =(W4>MAX(Title!$C$24,Title!$C$25))*(W4<=ut_RampUp_EndDate)*1 -> 0 | X6: =(X4>MAX(Title!$C$24,Title!$C$25))*(X4<=ut_RampUp_EndDate)*1 -> 0 | Y6: =(Y4>MAX(Title!$C$24,Title!$C$25))*(Y4<=ut_RampUp_EndDate)*1 -> 0 | Z6: =(Z4>MAX(Title!$C$24,Title!$C$25))*(Z4<=ut_RampUp_EndDate)*1 -> 0 | AA6: =(AA4>MAX(Title!$C$24,Title!$C$25))*(AA4<=ut_RampUp_EndDate)*1 -> 0 | AB6: =(AB4>MAX(Title!$C$24,Title!$C$25))*(AB4<=ut_RampUp_EndDate)*1 -> 0 | AC6: =(AC4>MAX(Title!$C$24,Title!$C$25))*(AC4<=ut_RampUp_EndDate)*1 -> 0 | AD6: =(AD4>MAX(Title!$C$24,Title!$C$25))*(AD4<=ut_RampUp_EndDate)*1 -> 0 | AE6: =(AE4>MAX(Title!$C$24,Title!$C$25))*(AE4<=ut_RampUp_EndDate)*1 -> 0 | AF6: =(AF4>MAX(Title!$C$24,Title!$C$25))*(AF4<=ut_RampUp_EndDate)*1 -> 0 | AG6: =(AG4>MAX(Title!$C$24,Title!$C$25))*(AG4<=ut_RampUp_EndDate)*1 -> 0 | AH6: =(AH4>MAX(Title!$C$24,Title!$C$25))*(AH4<=ut_RampUp_EndDate)*1 -> 0 | AI6: =(AI4>MAX(Title!$C$24,Title!$C$25))*(AI4<=ut_RampUp_EndDate)*1 -> 0 | AJ6: ut_RampUp_Period
H7: Операционный период | T7: =AND(T5<>1,T6<>1)*1 -> 0 | U7: 0 | V7: 0 | W7: 0 | X7: 0 | Y7: 0 | Z7: 1 | AA7: 1 | AB7: 1 | AC7: 1 | AD7: 1 | AE7: 1 | AF7: 1 | AG7: 1 | AH7: 1 | AI7: 1 | AJ7: ut_Operation_Period
C8: Операционные доходы
C10: Расчет выручки
C12: Выручка, без НДС
C13: Выручка на внутреннем рынке по продуктам | D13: валюта | E13: индикатор | F13: Ставка НДС | J13: fx rate | K13: row | L13: idx | AJ13: ut_Revenue_Dom_Inputs
B14: =B13+1 -> 1 | C14: =IFERROR(INDEX(ut_Products_Dom_Dir,$B14,1),0) -> Продукт 1 | D14: =IFERROR(INDEX(ut_Products_Dom_Dir,$B14,3),0) -> RUB | E14: ИЦП в модель | F14: =IFERROR(INDEX(ut_Products_Dom_Dir,$B14,4),0) -> 0.2 | H14: =IFERROR(IF(C14<>"",ut_Digits&D14,"укажите валюту в справочнике"),0) -> тыс. RUB | J14: =IF(C14<>"",D14&"/"&ut_LCU,0) -> RUB/RUB | K14: =IFERROR(MATCH(J14,ut_Exchange_Rates_Headers,0),0) -> 1 | L14: =IFERROR(MATCH(Calculations!E14,INDEX(ut_Inputs_Names,,1),0),"нет") -> 8 | T14: =INDEX(ut_SalesPrice_Dom_Inputs,$B14,T$2)*INDEX(ut_SalesVolume_Dom_Inputs,$B14,T$2)/(1+$F14)*IF($L14<>"нет",INDEX(ut_Inputs_Data,$L14,ut_Counter),1) -> 0 | U14: 0 | V14: 0 | W14: 0 | X14: 0 | Y14: 0 | Z14: 846432.9057 | AA14: 877800.1516 | AB14: 909638.5328 | AC14: 941867.403 | AD14: =INDEX(ut_SalesPrice_Dom_Inputs,$B14,AD$2)*INDEX(ut_SalesVolume_Dom_Inputs,$B14,AD$2)/(1+$F14)*IF($L14<>"нет",INDEX(ut_Inputs_Data,$L14,ut_Counter),1) -> 974742.2763 | AE14: 1008014.977 | AF14: 1041743.275 | AG14: 1076304.456 | AH14: 1111534.842 | AI14: 1146104.481
B15: =B14+1 -> 2 | C15: =IFERROR(INDEX(ut_Products_Dom_Dir,$B15,1),0) -> Продукт 2 | D15: =IFERROR(INDEX(ut_Products_Dom_Dir,$B15,3),0) -> USD | F15: =IFERROR(INDEX(ut_Products_Dom_Dir,$B15,4),0) -> 0 | H15: =IFERROR(IF(C15<>"",ut_Digits&D15,"укажите валюту в справочнике"),0) -> тыс. USD | J15: =IF(C15<>"",D15&"/"&ut_LCU,0) -> USD/RUB | K15: =IFERROR(MATCH(J15,ut_Exchange_Rates_Headers,0),0) -> 7 | L15: =IFERROR(MATCH(Calculations!E15,INDEX(ut_Inputs_Names,,1),0),"нет") -> нет | T15: 0 | U15: 0 | V15: 0 | W15: 0 | X15: 0 | Y15: 0 | Z15: 0 | AA15: 0 | AB15: 0 | AC15: 0 | AD15: 0 | AE15: 0 | AF15: 0 | AG15: 0 | AH15: 0 | AI15: 0
C17: Выручка на внутреннем рынке по продуктам | D17: валюта | E17: индикатор | F17: Ставка НДС | J17: fx rate | K17: row | L17: idx | AJ17: ut_Revenue_Exp_Inputs
B18: =B17+1 -> 1 | C18: =IFERROR(INDEX(ut_Products_Dom_Dir,$B18,1),0) -> Продукт 1 | D18: =IFERROR(INDEX(ut_Products_Exp_Dir,$B18,3),0) -> USD | F18: =IFERROR(INDEX(ut_Products_Exp_Dir,$B18,4),0) -> 0 | H18: =IFERROR(IF(C18<>"",ut_Digits&D18,"укажите валюту в справочнике"),0) -> тыс. USD | J18: =IF(C18<>"",D18&"/"&ut_LCU,0) -> USD/RUB | K18: =IFERROR(MATCH(J18,ut_Exchange_Rates_Headers,0),0) -> 7 | L18: =IFERROR(MATCH(Calculations!E18,INDEX(ut_Inputs_Names,,1),0),"нет") -> нет | T18: =INDEX(ut_SalesPrice_Exp_Inputs,$B14,T$2)*INDEX(ut_SalesVolume_Exp_Inputs,$B14,T$2)*IF($L18<>"нет",INDEX(ut_Inputs_Data,$L18,ut_Counter),1) -> 0 | U18: 0 | V18: 0 | W18: 0 | X18: 0 | Y18: 0 | Z18: 0 | AA18: 0 | AB18: 0 | AC18: 0 | AD18: 0 | AE18: 0 | AF18: 0 | AG18: 0 | AH18: 0 | AI18: 0
B19: =B18+1 -> 2 | C19: =IFERROR(INDEX(ut_Products_Dom_Dir,$B19,1),0) -> Продукт 2 | D19: =IFERROR(INDEX(ut_Products_Exp_Dir,$B19,3),0) -> USD | F19: =IFERROR(INDEX(ut_Products_Exp_Dir,$B19,4),0) -> 0 | H19: =IFERROR(IF(C19<>"",ut_Digits&D19,"укажите валюту в справочнике"),0) -> тыс. USD | J19: =IF(C19<>"",D19&"/"&ut_LCU,0) -> USD/RUB | K19: =IFERROR(MATCH(J19,ut_Exchange_Rates_Headers,0),0) -> 7 | L19: =IFERROR(MATCH(Calculations!E19,INDEX(ut_Inputs_Names,,1),0),"нет") -> нет | T19: =INDEX(ut_SalesPrice_Exp_Inputs,$B15,T$2)*INDEX(ut_SalesVolume_Exp_Inputs,$B15,T$2)*IF($L19<>"нет",INDEX(ut_Inputs_Data,$L19,ut_Counter),1) -> 0 | U19: 0 | V19: 0 | W19: 0 | X19: 0 | Y19: 0 | Z19: 43000 | AA19: 43000 | AB19: 43000 | AC19: 43000 | AD19: 43000 | AE19: 43000 | AF19: 43000 | AG19: 43000 | AH19: 43000 | AI19: 43000
C21: НДС в составе выручки | D21: валюта | AJ21: ut_Revenue_VAT_Inputs
B22: =B21+1 -> 1 | C22: =IFERROR(INDEX(ut_Products_Dom_Dir,$B22,1),0) -> Продукт 1 | D22: =IFERROR(INDEX(ut_Products_Dom_Dir,$B22,3),0) -> RUB | H22: =IFERROR(IF(C22<>"",ut_Digits&D22,"укажите валюту в справочнике"),0) -> тыс. RUB | T22: =T14*$F14 -> 0 | U22: 0 | V22: 0 | W22: 0 | X22: 0 | Y22: 0 | Z22: 169286.5811 | AA22: 175560.0303 | AB22: 181927.7066 | AC22: 188373.4806 | AD22: 194948.4553 | AE22: 201602.9955 | AF22: 208348.6551 | AG22: 215260.8912 | AH22: 222306.9684 | AI22: 229220.8963
B23: =B22+1 -> 2 | C23: =IFERROR(INDEX(ut_Products_Dom_Dir,$B23,1),0) -> Продукт 2 | D23: =IFERROR(INDEX(ut_Products_Dom_Dir,$B23,3),0) -> USD | H23: =IFERROR(IF(C23<>"",ut_Digits&D23,"укажите валюту в справочнике"),0) -> тыс. USD | T23: =T15*$F15 -> 0 | U23: 0 | V23: 0 | W23: 0 | X23: 0 | Y23: 0 | Z23: 0 | AA23: 0 | AB23: 0 | AC23: 0 | AD23: 0 | AE23: 0 | AF23: 0 | AG23: 0 | AH23: 0 | AI23: 0
C26: Детализация выручки
C27: валюты
B28: =B27+1 -> 1 | C28: =INDEX(ut_Currency_list,B28) -> RUB | G28: =IF(C28<>0,ut_Digits&C28,"") -> тыс. RUB | H28: =SUM(T28:AI28) -> 9934183.302 | T28: =SUMIFS(T$13:T$20,$H$13:$H$20,$G28) -> 0 | U28: 0 | V28: 0 | W28: 0 | X28: 0 | Y28: 0 | Z28: 846432.9057 | AA28: 877800.1516 | AB28: 909638.5328 | AC28: 941867.403 | AD28: =SUMIFS(AD$13:AD$20,$H$13:$H$20,$G28) -> 974742.2763 | AE28: 1008014.977 | AF28: 1041743.275 | AG28: 1076304.456 | AH28: 1111534.842 | AI28: 1146104.481
B29: 2 | C29: USD | G29: тыс. USD | H29: 430000 | T29: 0 | U29: 0 | V29: 0 | W29: 0 | X29: 0 | Y29: 0 | Z29: 43000 | AA29: 43000 | AB29: 43000 | AC29: 43000 | AD29: 43000 | AE29: 43000 | AF29: 43000 | AG29: 43000 | AH29: 43000 | AI29: 43000
B30: 3 | C30: EUR | G30: тыс. EUR | H30: 0 | T30: 0 | U30: 0 | V30: 0 | W30: 0 | X30: 0 | Y30: 0 | Z30: 0 | AA30: 0 | AB30: 0 | AC30: 0 | AD30: 0 | AE30: 0 | AF30: 0 | AG30: 0 | AH30: 0 | AI30: 0
B31: 4 | C31: CHY | G31: тыс. CHY | H31: 0 | T31: 0 | U31: 0 | V31: 0 | W31: 0 | X31: 0 | Y31: 0 | Z31: 0 | AA31: 0 | AB31: 0 | AC31: 0 | AD31: 0 | AE31: 0 | AF31: 0 | AG31: 0 | AH31: 0 | AI31: 0
B32: 5 | C32: 0 | H32: 0 | T32: 0 | U32: 0 | V32: 0 | W32: 0 | X32: 0 | Y32: 0 | Z32: 0 | AA32: 0 | AB32: 0 | AC32: 0 | AD32: 0 | AE32: 0 | AF32: 0 | AG32: 0 | AH32: 0 | AI32: 0
B33: 6 | C33: 0 | H33: 0 | T33: 0 | U33: 0 | V33: 0 | W33: 0 | X33: 0 | Y33: 0 | Z33: 0 | AA33: 0 | AB33: 0 | AC33: 0 | AD33: 0 | AE33: 0 | AF33: 0 | AG33: 0 | AH33: 0 | AI33: 0
AJ34: ut_Revenue_Total_Inputs
B35: =B34+1 -> 1 | C35: =IFERROR(INDEX(ut_Products_Dom_Dir,$B35,1),0) -> Продукт 1 | D35: без НДС | H35: =ut_Digits&ut_LCU -> тыс. RUB | T35: =IFERROR(INDEX(ut_Exchange_Rates,$K14,ut_Counter)*T14,0)+IFERROR(INDEX(ut_Exchange_Rates,$K18,ut_Counter)*T18,0) -> 0 | U35: 0 | V35: 0 | W35: 0 | X35: 0 | Y35: 0 | Z35: 846432.9057 | AA35: 877800.1516 | AB35: 909638.5328 | AC35: 941867.403 | AD35: 974742.2763 | AE35: 1008014.977 | AF35: 1041743.275 | AG35: 1076304.456 | AH35: 1111534.842 | AI35: 1146104.481
B36: =B35+1 -> 2 | C36: =IFERROR(INDEX(ut_Products_Dom_Dir,$B36,1),0) -> Продукт 2 | D36: без НДС | H36: =ut_Digits&ut_LCU -> тыс. RUB | T36: =IFERROR(INDEX(ut_Exchange_Rates,$K15,ut_Counter)*T15,0)+IFERROR(INDEX(ut_Exchange_Rates,$K19,ut_Counter)*T19,0) -> 0 | U36: 0 | V36: 0 | W36: 0 | X36: 0 | Y36: 0 | Z36: 3727730.941 | AA36: 3680344.081 | AB36: 3694288.203 | AC36: 3705474.317 | AD36: 3716752.296 | AE36: 3739728.142 | AF36: 3763376.858 | AG36: 3799237.907 | AH36: 3834163.093 | AI36: 3868217.84
C39: Итого выручка | D39: в валюте модели | G39: =ut_Digits&ut_LCU -> тыс. RUB | H39: =SUM(T39:AI39) -> 47463496.98 | T39: =SUM(T35:T37) -> 0 | U39: 0 | V39: 0 | W39: 0 | X39: 0 | Y39: 0 | Z39: 4574163.846 | AA39: 4558144.233 | AB39: 4603926.736 | AC39: 4647341.72 | AD39: 4691494.572 | AE39: 4747743.12 | AF39: 4805120.133 | AG39: 4875542.363 | AH39: 4945697.934 | AI39: 5014322.322 | AJ39: ut_Revenue
C43: Операционные расходы
C45: Постоянные расходы
D46: валюта | E46: индикатор | F46: статья расходов | J46: fx rate | K46: row | L46: idx | P46: VAT
B47: =B46+1 -> 1 | C47: =IFERROR(INDEX(ut_FC_Dir,B47,1),0) -> Заработная плата (не включая соц. и страх взносы) | D47: =IFERROR(INDEX(ut_FC_Dir,B47,2),0) -> RUB | E47: Заработная плата в модель | F47: =IFERROR(INDEX(ut_FC_Dir,B47,4),0) -> Производственные | H47: =ut_Digits&ut_LCU -> тыс. RUB | J47: =IF(C47<>0,D47&"/"&ut_LCU,0) -> RUB/RUB | K47: =IFERROR(MATCH(J47,ut_Exchange_Rates_Headers,0),0) -> 1 | L47: =IFERROR(MATCH(Calculations!E47,INDEX(ut_Inputs_Names,,1),0),"нет") -> 14 | P47: =IFERROR(INDEX(ut_FC_Dir,B47,3),0) -> 0 | T47: =IFERROR(INDEX(ut_Exchange_Rates,$K47,ut_Counter)*INDEX(ut_Fixed_Costs_Data,$B47,ut_Counter)/(1+$P47)*IF($L47<>"нет",INDEX(ut_Inputs_Data,$L47,ut_Counter),1),0) -> 27458.85244 | U47: 28493.04801 | V47: 29161.7235 | W47: 28857.85137 | X47: 28073.88804 | Y47: 27551.70865 | Z47: 27407.02627 | AA47: 27227.2355 | AB47: 27045.38816 | AC47: 26982.02337 | AD47: =IFERROR(INDEX(ut_Exchange_Rates,$K47,ut_Counter)*INDEX(ut_Fixed_Costs_Data,$B47,ut_Counter)/(1+$P47)*IF($L47<>"нет",INDEX(ut_Inputs_Data,$L47,ut_Counter),1),0) -> 26975.0072 | AE47: 27036.235 | AF47: 26801.58325 | AG47: 26817.73497 | AH47: 26710.17085 | AI47: 26696.74965
B48: 2 | C48: Социальные страховые взносы | D48: RUB | E48: Заработная плата в модель | F48: Производственные | H48: тыс. RUB | J48: RUB/RUB | K48: 1 | L48: =IFERROR(MATCH(Calculations!E48,INDEX(ut_Inputs_Names,,1),0),"нет") -> 14 | P48: 0 | T48: 8237.655732 | U48: 8547.914403 | V48: 8748.51705 | W48: 8657.355411 | X48: 8422.166413 | Y48: 8265.512596 | Z48: 8222.107881 | AA48: 8168.170651 | AB48: 8113.616447 | AC48: 8094.607011 | AD48: 8092.502159 | AE48: 8110.870499 | AF48: 8040.474975 | AG48: 8045.320491 | AH48: 8013.051255 | AI48: 8009.024895
B49: 3 | C49: Электроэнергия | D49: RUB | E49: Электроэнергия в модель | F49: Производственные | H49: тыс. RUB | J49: RUB/RUB | K49: 1 | L49: =IFERROR(MATCH(Calculations!E49,INDEX(ut_Inputs_Names,,1),0),"нет") -> 9 | P49: 0.2 | T49: 0 | U49: 0 | V49: 0 | W49: 0 | X49: 3312.093658 | Y49: 3410.692357 | Z49: 3505.125853 | AA49: 3593.542914 | AB49: 3690.173105 | AC49: 3841.7459 | AD49: 3985.282116 | AE49: 4131.429831 | AF49: 4278.89264 | AG49: 4427.221849 | AH49: 4577.481752 | AI49: 4729.169749
B50: 4 | C50: Тепловая энергия | D50: RUB | E50: Тепловая энергия в модель | F50: Производственные | H50: тыс. RUB | J50: RUB/RUB | K50: 1 | L50: =IFERROR(MATCH(Calculations!E50,INDEX(ut_Inputs_Names,,1),0),"нет") -> 10 | P50: 0.2 | T50: 0 | U50: 0 | V50: 0 | W50: 0 | X50: 2365.005267 | Y50: 2489.343257 | Z50: 2614.263213 | AA50: 2742.258111 | AB50: 2874.265449 | AC50: 3011.749349 | AD50: 3151.6161 | AE50: 3296.091053 | AF50: 3444.494575 | AG50: 3597.885031 | AH50: 3756.142502 | AI50: 3920.399268
B51: 5 | C51: 0 | D51: 0 | F51: 0 | H51: тыс. RUB | J51: 0 | K51: 0 | L51: =IFERROR(MATCH(Calculations!E51,INDEX(ut_Inputs_Names,,1),0),"нет") -> нет | P51: 0 | T51: 0 | U51: 0 | V51: 0 | W51: 0 | X51: 0 | Y51: 0 | Z51: 0 | AA51: 0 | AB51: 0 | AC51: 0 | AD51: 0 | AE51: 0 | AF51: 0 | AG51: 0 | AH51: 0 | AI51: 0
B52: 6 | C52: 0 | D52: 0 | F52: 0 | H52: тыс. RUB | J52: 0 | K52: 0 | L52: =IFERROR(MATCH(Calculations!E52,INDEX(ut_Inputs_Names,,1),0),"нет") -> нет | P52: 0 | T52: 0 | U52: 0 | V52: 0 | W52: 0 | X52: 0 | Y52: 0 | Z52: 0 | AA52: 0 | AB52: 0 | AC52: 0 | AD52: 0 | AE52: 0 | AF52: 0 | AG52: 0 | AH52: 0 | AI52: 0
B53: 7 | C53: 0 | D53: 0 | F53: 0 | H53: тыс. RUB | J53: 0 | K53: 0 | L53: =IFERROR(MATCH(Calculations!E53,INDEX(ut_Inputs_Names,,1),0),"нет") -> нет | P53: 0 | T53: 0 | U53: 0 | V53: 0 | W53: 0 | X53: 0 | Y53: 0 | Z53: 0 | AA53: 0 | AB53: 0 | AC53: 0 | AD53: 0 | AE53: 0 | AF53: 0 | AG53: 0 | AH53: 0 | AI53: 0
B54: 8 | C54: 0 | D54: 0 | F54: 0 | H54: тыс. RUB | J54: 0 | K54: 0 | L54: =IFERROR(MATCH(Calculations!E54,INDEX(ut_Inputs_Names,,1),0),"нет") -> нет | P54: 0 | T54: 0 | U54: 0 | V54: 0 | W54: 0 | X54: 0 | Y54: 0 | Z54: 0 | AA54: 0 | AB54: 0 | AC54: 0 | AD54: 0 | AE54: 0 | AF54: 0 | AG54: 0 | AH54: 0 | AI54: 0
B55: 9 | C55: 0 | D55: 0 | F55: 0 | H55: тыс. RUB | J55: 0 | K55: 0 | L55: =IFERROR(MATCH(Calculations!E55,INDEX(ut_Inputs_Names,,1),0),"нет") -> нет | P55: 0 | T55: 0 | U55: 0 | V55: 0 | W55: 0 | X55: 0 | Y55: 0 | Z55: 0 | AA55: 0 | AB55: 0 | AC55: 0 | AD55: 0 | AE55: 0 | AF55: 0 | AG55: 0 | AH55: 0 | AI55: 0
B56: 10 | C56: 0 | D56: 0 | F56: 0 | H56: тыс. RUB | J56: 0 | K56: 0 | L56: =IFERROR(MATCH(Calculations!E56,INDEX(ut_Inputs_Names,,1),0),"нет") -> нет | P56: 0 | T56: 0 | U56: 0 | V56: 0 | W56: 0 | X56: 0 | Y56: 0 | Z56: 0 | AA56: 0 | AB56: 0 | AC56: 0 | AD56: 0 | AE56: 0 | AF56: 0 | AG56: 0 | AH56: 0 | AI56: 0
B57: 11 | C57: 0 | D57: 0 | F57: 0 | H57: тыс. RUB | J57: 0 | K57: 0 | L57: =IFERROR(MATCH(Calculations!E57,INDEX(ut_Inputs_Names,,1),0),"нет") -> нет | P57: 0 | T57: =IFERROR(INDEX(ut_Exchange_Rates,$K57,ut_Counter)*INDEX(ut_Fixed_Costs_Data,$B57,ut_Counter)/(1+$P57)*IF($L57<>"нет",INDEX(ut_Inputs_Data,$L57,ut_Counter),1),0) -> 0 | U57: 0 | V57: 0 | W57: 0 | X57: 0 | Y57: 0 | Z57: 0 | AA57: 0 | AB57: 0 | AC57: 0 | AD57: =IFERROR(INDEX(ut_Exchange_Rates,$K57,ut_Counter)*INDEX(ut_Fixed_Costs_Data,$B57,ut_Counter)/(1+$P57)*IF($L57<>"нет",INDEX(ut_Inputs_Data,$L57,ut_Counter),1),0) -> 0 | AE57: 0 | AF57: 0 | AG57: 0 | AH57: 0 | AI57: 0
B58: 12 | C58: 0 | D58: 0 | F58: 0 | H58: тыс. RUB | J58: 0 | K58: 0 | L58: =IFERROR(MATCH(Calculations!E58,INDEX(ut_Inputs_Names,,1),0),"нет") -> нет | P58: 0 | T58: 0 | U58: 0 | V58: 0 | W58: 0 | X58: 0 | Y58: 0 | Z58: 0 | AA58: 0 | AB58: 0 | AC58: 0 | AD58: 0 | AE58: 0 | AF58: 0 | AG58: 0 | AH58: 0 | AI58: 0
B59: 13 | C59: 0 | D59: 0 | F59: 0 | H59: тыс. RUB | J59: 0 | K59: 0 | L59: =IFERROR(MATCH(Calculations!E59,INDEX(ut_Inputs_Names,,1),0),"нет") -> нет | P59: 0 | T59: 0 | U59: 0 | V59: 0 | W59: 0 | X59: 0 | Y59: 0 | Z59: 0 | AA59: 0 | AB59: 0 | AC59: 0 | AD59: 0 | AE59: 0 | AF59: 0 | AG59: 0 | AH59: 0 | AI59: 0
B60: 14 | C60: 0 | D60: 0 | F60: 0 | H60: тыс. RUB | J60: 0 | K60: 0 | L60: =IFERROR(MATCH(Calculations!E60,INDEX(ut_Inputs_Names,,1),0),"нет") -> нет | P60: 0 | T60: 0 | U60: 0 | V60: 0 | W60: 0 | X60: 0 | Y60: 0 | Z60: 0 | AA60: 0 | AB60: 0 | AC60: 0 | AD60: 0 | AE60: 0 | AF60: 0 | AG60: 0 | AH60: 0 | AI60: 0
B61: 15 | C61: 0 | D61: 0 | F61: 0 | H61: тыс. RUB | J61: 0 | K61: 0 | L61: =IFERROR(MATCH(Calculations!E61,INDEX(ut_Inputs_Names,,1),0),"нет") -> нет | P61: 0 | T61: 0 | U61: 0 | V61: 0 | W61: 0 | X61: 0 | Y61: 0 | Z61: 0 | AA61: 0 | AB61: 0 | AC61: 0 | AD61: 0 | AE61: 0 | AF61: 0 | AG61: 0 | AH61: 0 | AI61: 0
B62: 16 | C62: 0 | D62: 0 | F62: 0 | H62: тыс. RUB | J62: 0 | K62: 0 | L62: =IFERROR(MATCH(Calculations!E62,INDEX(ut_Inputs_Names,,1),0),"нет") -> нет | P62: 0 | T62: 0 | U62: 0 | V62: 0 | W62: 0 | X62: 0 | Y62: 0 | Z62: 0 | AA62: 0 | AB62: 0 | AC62: 0 | AD62: 0 | AE62: 0 | AF62: 0 | AG62: 0 | AH62: 0 | AI62: 0
B63: 17 | C63: 0 | D63: 0 | F63: 0 | H63: тыс. RUB | J63: 0 | K63: 0 | L63: =IFERROR(MATCH(Calculations!E63,INDEX(ut_Inputs_Names,,1),0),"нет") -> нет | P63: 0 | T63: 0 | U63: 0 | V63: 0 | W63: 0 | X63: 0 | Y63: 0 | Z63: 0 | AA63: 0 | AB63: 0 | AC63: 0 | AD63: 0 | AE63: 0 | AF63: 0 | AG63: 0 | AH63: 0 | AI63: 0
B64: 18 | C64: 0 | D64: 0 | F64: 0 | H64: тыс. RUB | J64: 0 | K64: 0 | L64: =IFERROR(MATCH(Calculations!E64,INDEX(ut_Inputs_Names,,1),0),"нет") -> нет | P64: 0 | T64: 0 | U64: 0 | V64: 0 | W64: 0 | X64: 0 | Y64: 0 | Z64: 0 | AA64: 0 | AB64: 0 | AC64: 0 | AD64: 0 | AE64: 0 | AF64: 0 | AG64: 0 | AH64: 0 | AI64: 0
B65: 19 | C65: 0 | D65: 0 | F65: 0 | H65: тыс. RUB | J65: 0 | K65: 0 | L65: =IFERROR(MATCH(Calculations!E65,INDEX(ut_Inputs_Names,,1),0),"нет") -> нет | P65: 0 | T65: 0 | U65: 0 | V65: 0 | W65: 0 | X65: 0 | Y65: 0 | Z65: 0 | AA65: 0 | AB65: 0 | AC65: 0 | AD65: 0 | AE65: 0 | AF65: 0 | AG65: 0 | AH65: 0 | AI65: 0
B66: 20 | C66: 0 | D66: 0 | F66: 0 | H66: тыс. RUB | J66: 0 | K66: 0 | L66: =IFERROR(MATCH(Calculations!E66,INDEX(ut_Inputs_Names,,1),0),"нет") -> нет | P66: 0 | T66: 0 | U66: 0 | V66: 0 | W66: 0 | X66: 0 | Y66: 0 | Z66: 0 | AA66: 0 | AB66: 0 | AC66: 0 | AD66: 0 | AE66: 0 | AF66: 0 | AG66: 0 | AH66: 0 | AI66: 0
C68: Итого постоянные расходы | D68: в валюте модели | E68: =ut_Digits&ut_LCU -> тыс. RUB | H68: =SUM(T68:AI68) -> 655831.459 | T68: =SUM(T47:T66) -> 35696.50817 | U68: 37040.96241 | V68: 37910.24055 | W68: 37515.20678 | X68: 42173.15338 | Y68: 41717.25686 | Z68: 41748.52322 | AA68: 41731.20718 | AB68: 41723.44316 | AC68: 41930.12563 | AD68: 42204.40757 | AE68: 42574.62638 | AF68: 42565.44544 | AG68: 42888.16234 | AH68: 43056.84636 | AI68: 43355.34356
C71: Переменные расходы (общие)
D72: валюта | E72: индикатор | F72: статья расходов | G72: драйвер | J72: fx rate | K72: row | L72: idx | M72: option | P72: VAT | AJ72: ut_VC_Ex_Rates
B73: =B72+1 -> 1 | C73: =IFERROR(INDEX(ut_VC_Dir,B73,1),0) -> Заработная плата (не включая соц. и страх взносы) | D73: =IFERROR(INDEX(ut_VC_Dir,B73,2),0) -> RUB | F73: =IFERROR(INDEX(ut_VC_Dir,B73,4),0) -> Производственные | G73: =IFERROR(INDEX(ut_VC_Dir,B73,5),0) -> 0 | H73: =ut_Digits&ut_LCU -> тыс. RUB | J73: =IF(C73<>0,D73&"/"&ut_LCU,0) -> RUB/RUB | K73: =IFERROR(MATCH(J73,ut_Exchange_Rates_Headers,0),0) -> 1 | L73: =IFERROR(MATCH(Calculations!E73,INDEX(ut_Inputs_Names,,1),0),"нет") -> нет | M73: =IFERROR(MATCH(G73,ut_VC_options,1),3) -> 3 | P73: =IFERROR(INDEX(ut_VC_Dir,B47,3),0) -> 0 | T73: =IFERROR(INDEX(ut_Exchange_Rates,$K73,T$2)*INDEX(ut_VC_Common_Data,$B73,T$2)/(1+$P73)*IF($L73<>"нет",INDEX(ut_Inputs_Data,$L73,ut_Counter),1)*CHOOSE($M73,ut_Revenue,SUMIFS(T$99:T$121,$C$99:$C$121,"Итого расходы"),1),0) -> 0 | U73: 0 | V73: 0 | W73: 0 | X73: 0 | Y73: 0 | Z73: 0 | AA73: 0 | AB73: 0 | AC73: 0 | AD73: =IFERROR(INDEX(ut_Exchange_Rates,$K73,AD$2)*INDEX(ut_VC_Common_Data,$B73,AD$2)/(1+$P73)*IF($L73<>"нет",INDEX(ut_Inputs_Data,$L73,ut_Counter),1)*CHOOSE($M73,ut_Revenue,SUMIFS(AD$99:AD$121,$C$99:$C$121,"Итого расходы"),1),0) -> 0 | AE73: 0 | AF73: 0 | AG73: 0 | AH73: 0 | AI73: 0
B74: 2 | C74: Социальные страховые взносы | D74: RUB | F74: Производственные | G74: 0 | H74: тыс. RUB | J74: RUB/RUB | K74: 1 | L74: =IFERROR(MATCH(Calculations!E74,INDEX(ut_Inputs_Names,,1),0),"нет") -> нет | M74: 3 | P74: 0 | T74: 0 | U74: 0 | V74: 0 | W74: 0 | X74: 0 | Y74: 0 | Z74: 0 | AA74: 0 | AB74: 0 | AC74: 0 | AD74: 0 | AE74: 0 | AF74: 0 | AG74: 0 | AH74: 0 | AI74: 0
B75: 3 | C75: Жд доставка | D75: RUB | E75: Жд перевозки в модель | F75: Коммерческие | G75: % от выручки | H75: тыс. RUB | J75: RUB/RUB | K75: 1 | L75: =IFERROR(MATCH(Calculations!E75,INDEX(ut_Inputs_Names,,1),0),"нет") -> 11 | M75: 1 | P75: 0.2 | T75: 0 | U75: 0 | V75: 0 | W75: 0 | X75: 0 | Y75: 0 | Z75: 148547.8963 | AA75: 153149.6031 | AB75: 159857.5579 | AC75: 166611.8918 | AD75: 173518.581 | AE75: 181133.017 | AF75: 188975.2933 | AG75: 197602.226 | AH75: 206476.1111 | AI75: 215615.2267
B76: 4 | C76: Комиссии банков | D76: RUB | F76: Коммерческие | G76: % от выручки | H76: тыс. RUB | J76: RUB/RUB | K76: 1 | L76: =IFERROR(MATCH(Calculations!E76,INDEX(ut_Inputs_Names,,1),0),"нет") -> нет | M76: 1 | P76: 0 | T76: 0 | U76: 0 | V76: 0 | W76: 0 | X76: 0 | Y76: 0 | Z76: 45741.63846 | AA76: 45581.44233 | AB76: 46039.26736 | AC76: 46473.4172 | AD76: 46914.94572 | AE76: 47477.4312 | AF76: 48051.20133 | AG76: 48755.42363 | AH76: 49456.97934 | AI76: 50143.22322
B77: 5 | C77: 0 | D77: 0 | F77: 0 | G77: 0 | H77: тыс. RUB | J77: 0 | K77: 0 | L77: =IFERROR(MATCH(Calculations!E77,INDEX(ut_Inputs_Names,,1),0),"нет") -> нет | M77: 3 | P77: 0 | T77: 0 | U77: 0 | V77: 0 | W77: 0 | X77: 0 | Y77: 0 | Z77: 0 | AA77: 0 | AB77: 0 | AC77: 0 | AD77: 0 | AE77: 0 | AF77: 0 | AG77: 0 | AH77: 0 | AI77: 0
B78: 6 | C78: 0 | D78: 0 | F78: 0 | G78: 0 | H78: тыс. RUB | J78: 0 | K78: 0 | L78: =IFERROR(MATCH(Calculations!E78,INDEX(ut_Inputs_Names,,1),0),"нет") -> нет | M78: 3 | P78: 0 | T78: 0 | U78: 0 | V78: 0 | W78: 0 | X78: 0 | Y78: 0 | Z78: 0 | AA78: 0 | AB78: 0 | AC78: 0 | AD78: 0 | AE78: 0 | AF78: 0 | AG78: 0 | AH78: 0 | AI78: 0
B79: 7 | C79: 0 | D79: 0 | F79: 0 | G79: 0 | H79: тыс. RUB | J79: 0 | K79: 0 | L79: =IFERROR(MATCH(Calculations!E79,INDEX(ut_Inputs_Names,,1),0),"нет") -> нет | M79: 3 | P79: 0 | T79: 0 | U79: 0 | V79: 0 | W79: 0 | X79: 0 | Y79: 0 | Z79: 0 | AA79: 0 | AB79: 0 | AC79: 0 | AD79: 0 | AE79: 0 | AF79: 0 | AG79: 0 | AH79: 0 | AI79: 0
B80: 8 | C80: 0 | D80: 0 | F80: 0 | G80: 0 | H80: тыс. RUB | J80: 0 | K80: 0 | L80: =IFERROR(MATCH(Calculations!E80,INDEX(ut_Inputs_Names,,1),0),"нет") -> нет | M80: 3 | P80: 0 | T80: 0 | U80: 0 | V80: 0 | W80: 0 | X80: 0 | Y80: 0 | Z80: 0 | AA80: 0 | AB80: 0 | AC80: 0 | AD80: 0 | AE80: 0 | AF80: 0 | AG80: 0 | AH80: 0 | AI80: 0
B81: 9 | C81: 0 | D81: 0 | F81: 0 | G81: 0 | H81: тыс. RUB | J81: 0 | K81: 0 | L81: =IFERROR(MATCH(Calculations!E81,INDEX(ut_Inputs_Names,,1),0),"нет") -> нет | M81: 3 | P81: 0 | T81: 0 | U81: 0 | V81: 0 | W81: 0 | X81: 0 | Y81: 0 | Z81: 0 | AA81: 0 | AB81: 0 | AC81: 0 | AD81: 0 | AE81: 0 | AF81: 0 | AG81: 0 | AH81: 0 | AI81: 0
B82: 10 | C82: 0 | D82: 0 | F82: 0 | G82: 0 | H82: тыс. RUB | J82: 0 | K82: 0 | L82: =IFERROR(MATCH(Calculations!E82,INDEX(ut_Inputs_Names,,1),0),"нет") -> нет | M82: 3 | P82: 0 | T82: 0 | U82: 0 | V82: 0 | W82: 0 | X82: 0 | Y82: 0 | Z82: 0 | AA82: 0 | AB82: 0 | AC82: 0 | AD82: 0 | AE82: 0 | AF82: 0 | AG82: 0 | AH82: 0 | AI82: 0
B83: 11 | C83: 0 | D83: 0 | F83: 0 | G83: 0 | H83: тыс. RUB | J83: 0 | K83: 0 | L83: =IFERROR(MATCH(Calculations!E83,INDEX(ut_Inputs_Names,,1),0),"нет") -> нет | M83: 3 | P83: 0 | T83: =IFERROR(INDEX(ut_Exchange_Rates,$K83,T$2)*INDEX(ut_VC_Common_Data,$B83,T$2)/(1+$P83)*IF($L83<>"нет",INDEX(ut_Inputs_Data,$L83,ut_Counter),1)*CHOOSE($M83,ut_Revenue,SUMIFS(T$99:T$121,$C$99:$C$121,"Итого расходы"),1),0) -> 0 | U83: 0 | V83: 0 | W83: 0 | X83: 0 | Y83: 0 | Z83: 0 | AA83: 0 | AB83: 0 | AC83: 0 | AD83: =IFERROR(INDEX(ut_Exchange_Rates,$K83,AD$2)*INDEX(ut_VC_Common_Data,$B83,AD$2)/(1+$P83)*IF($L83<>"нет",INDEX(ut_Inputs_Data,$L83,ut_Counter),1)*CHOOSE($M83,ut_Revenue,SUMIFS(AD$99:AD$121,$C$99:$C$121,"Итого расходы"),1),0) -> 0 | AE83: 0 | AF83: 0 | AG83: 0 | AH83: 0 | AI83: 0
B84: 12 | C84: 0 | D84: 0 | F84: 0 | G84: 0 | H84: тыс. RUB | J84: 0 | K84: 0 | L84: =IFERROR(MATCH(Calculations!E84,INDEX(ut_Inputs_Names,,1),0),"нет") -> нет | M84: 3 | P84: 0 | T84: 0 | U84: 0 | V84: 0 | W84: 0 | X84: 0 | Y84: 0 | Z84: 0 | AA84: 0 | AB84: 0 | AC84: 0 | AD84: 0 | AE84: 0 | AF84: 0 | AG84: 0 | AH84: 0 | AI84: 0
B85: 13 | C85: 0 | D85: 0 | F85: 0 | G85: 0 | H85: тыс. RUB | J85: 0 | K85: 0 | L85: =IFERROR(MATCH(Calculations!E85,INDEX(ut_Inputs_Names,,1),0),"нет") -> нет | M85: 3 | P85: 0 | T85: 0 | U85: 0 | V85: 0 | W85: 0 | X85: 0 | Y85: 0 | Z85: 0 | AA85: 0 | AB85: 0 | AC85: 0 | AD85: 0 | AE85: 0 | AF85: 0 | AG85: 0 | AH85: 0 | AI85: 0
B86: 14 | C86: 0 | D86: 0 | F86: 0 | G86: 0 | H86: тыс. RUB | J86: 0 | K86: 0 | L86: =IFERROR(MATCH(Calculations!E86,INDEX(ut_Inputs_Names,,1),0),"нет") -> нет | M86: 3 | P86: 0 | T86: 0 | U86: 0 | V86: 0 | W86: 0 | X86: 0 | Y86: 0 | Z86: 0 | AA86: 0 | AB86: 0 | AC86: 0 | AD86: 0 | AE86: 0 | AF86: 0 | AG86: 0 | AH86: 0 | AI86: 0
B87: 15 | C87: 0 | D87: 0 | F87: 0 | G87: 0 | H87: тыс. RUB | J87: 0 | K87: 0 | L87: =IFERROR(MATCH(Calculations!E87,INDEX(ut_Inputs_Names,,1),0),"нет") -> нет | M87: 3 | P87: 0 | T87: 0 | U87: 0 | V87: 0 | W87: 0 | X87: 0 | Y87: 0 | Z87: 0 | AA87: 0 | AB87: 0 | AC87: 0 | AD87: 0 | AE87: 0 | AF87: 0 | AG87: 0 | AH87: 0 | AI87: 0
B88: 16 | C88: 0 | D88: 0 | F88: 0 | G88: 0 | H88: тыс. RUB | J88: 0 | K88: 0 | L88: =IFERROR(MATCH(Calculations!E88,INDEX(ut_Inputs_Names,,1),0),"нет") -> нет | M88: 3 | P88: 0 | T88: 0 | U88: 0 | V88: 0 | W88: 0 | X88: 0 | Y88: 0 | Z88: 0 | AA88: 0 | AB88: 0 | AC88: 0 | AD88: 0 | AE88: 0 | AF88: 0 | AG88: 0 | AH88: 0 | AI88: 0
B89: 17 | C89: 0 | D89: 0 | F89: 0 | G89: 0 | H89: тыс. RUB | J89: 0 | K89: 0 | L89: =IFERROR(MATCH(Calculations!E89,INDEX(ut_Inputs_Names,,1),0),"нет") -> нет | M89: 3 | P89: 0 | T89: 0 | U89: 0 | V89: 0 | W89: 0 | X89: 0 | Y89: 0 | Z89: 0 | AA89: 0 | AB89: 0 | AC89: 0 | AD89: 0 | AE89: 0 | AF89: 0 | AG89: 0 | AH89: 0 | AI89: 0
B90: 18 | C90: 0 | D90: 0 | F90: 0 | G90: 0 | H90: тыс. RUB | J90: 0 | K90: 0 | L90: =IFERROR(MATCH(Calculations!E90,INDEX(ut_Inputs_Names,,1),0),"нет") -> нет | M90: 3 | P90: 0 | T90: 0 | U90: 0 | V90: 0 | W90: 0 | X90: 0 | Y90: 0 | Z90: 0 | AA90: 0 | AB90: 0 | AC90: 0 | AD90: 0 | AE90: 0 | AF90: 0 | AG90: 0 | AH90: 0 | AI90: 0
B91: 19 | C91: 0 | D91: 0 | F91: 0 | G91: 0 | H91: тыс. RUB | J91: 0 | K91: 0 | L91: =IFERROR(MATCH(Calculations!E91,INDEX(ut_Inputs_Names,,1),0),"нет") -> нет | M91: 3 | P91: 0 | T91: 0 | U91: 0 | V91: 0 | W91: 0 | X91: 0 | Y91: 0 | Z91: 0 | AA91: 0 | AB91: 0 | AC91: 0 | AD91: 0 | AE91: 0 | AF91: 0 | AG91: 0 | AH91: 0 | AI91: 0
B92: 20 | C92: 0 | D92: 0 | F92: 0 | G92: 0 | H92: тыс. RUB | J92: 0 | K92: 0 | L92: =IFERROR(MATCH(Calculations!E92,INDEX(ut_Inputs_Names,,1),0),"нет") -> нет | M92: 3 | P92: 0 | T92: 0 | U92: 0 | V92: 0 | W92: 0 | X92: 0 | Y92: 0 | Z92: 0 | AA92: 0 | AB92: 0 | AC92: 0 | AD92: 0 | AE92: 0 | AF92: 0 | AG92: 0 | AH92: 0 | AI92: 0
C94: Итого общие переменные расходы | D94: в валюте модели | G94: =ut_Digits&ut_LCU -> тыс. RUB | H94: =SUM(T94:AI94) -> 2266122.374 | T94: =SUM(T73:T92) -> 0 | U94: 0 | V94: 0 | W94: 0 | X94: 0 | Y94: 0 | Z94: 194289.5348 | AA94: 198731.0455 | AB94: 205896.8252 | AC94: 213085.309 | AD94: 220433.5267 | AE94: 228610.4482 | AF94: 237026.4946 | AG94: 246357.6497 | AH94: 255933.0904 | AI94: 265758.4499
C97: Граница переменных расходов по продуктам
C99: Переменные расходы - по продуктам | AJ99: ut_OPEX_VC_Data
C101: =IFERROR(INDEX(ut_Products_Dom_Dir,G101,1),0) -> Продукт 1 | E101: индикатор | G101: =MAX(G$99:G100)+1 -> 1 | J101: fx rate | K101: row | L101: idx | P101: VAT | S101: объем | T101: =INDEX(ut_SalesVolume_Dom_Inputs,$G101,ut_Counter)+INDEX(ut_SalesVolume_Exp_Inputs,$G101,ut_Counter) -> 0 | U101: 0 | V101: 0 | W101: 0 | X101: 0 | Y101: 0 | Z101: 2000 | AA101: 2000 | AB101: 2000 | AC101: 2000 | AD101: 2000 | AE101: 2000 | AF101: 2000 | AG101: 2000 | AH101: 2000 | AI101: 2000
B102: =B101+1 -> 1 | C102: =INDEX(ut_VC_Inputs_Names,3+B102+ut_OPEX_Block_Length*(G101-1),1) -> Ресурсы | D102: =INDEX(ut_VC_Inputs_Names,3+B102+ut_OPEX_Block_Length*(G101-1),2) -> RUB | E102: ИПЦ в модель | F102: =INDEX(ut_VC_Inputs_Names,3+B102+ut_OPEX_Block_Length*(G101-1),4) -> Производственные | H102: =ut_Digits&ut_LCU -> тыс. RUB | J102: =IF(AND(D102<>"",D102<>0),D102&"/"&ut_LCU,0) -> RUB/RUB | K102: =IFERROR(MATCH(J102,ut_Exchange_Rates_Headers,0),0) -> 1 | L102: =IFERROR(MATCH(Calculations!E102,INDEX(ut_Inputs_Names,,1),0),"нет") -> 7 | P102: =INDEX(ut_VC_Inputs_Names,3+B102+ut_OPEX_Block_Length*(G101-1),3) -> 0.2 | T102: =IFERROR(INDEX(ut_Exchange_Rates,$K102,ut_Counter)*IF($L102<>"нет",INDEX(ut_Inputs_Data,$L102,ut_Counter),1)*INDEX(ut_VC_Inputs_Data,3+$B102+ut_OPEX_Block_Length*($G101-1),ut_Counter)/(1+$P102)*T101,0) -> 0 | U102: =IFERROR(INDEX(ut_Exchange_Rates,$K102,ut_Counter)*IF($L102<>"нет",INDEX(ut_Inputs_Data,$L102,ut_Counter),1)*INDEX(ut_VC_Inputs_Data,3+$B102+ut_OPEX_Block_Length*($G101-1),ut_Counter)/(1+$P102)*U101,0) -> 0 | V102: 0 | W102: 0 | X102: 0 | Y102: 0 | Z102: =IFERROR(INDEX(ut_Exchange_Rates,$K102,ut_Counter)*IF($L102<>"нет",INDEX(ut_Inputs_Data,$L102,ut_Counter),1)*INDEX(ut_VC_Inputs_Data,3+$B102+ut_OPEX_Block_Length*($G101-1),ut_Counter)/(1+$P102)*Z101,0) -> 510605.7341 | AA102: 531145.4115 | AB102: 551940.3199 | AC102: 572907.0376 | AD102: 594104.323 | AE102: 615856.7791 | AF102: 637915.7731 | AG102: 660556.7463 | AH102: 683664.8125 | AI102: 707259.4722
B103: 2 | C103: =INDEX(ut_VC_Inputs_Names,3+B103+ut_OPEX_Block_Length*(G101-1),1) -> 0 | D103: =INDEX(ut_VC_Inputs_Names,3+B103+ut_OPEX_Block_Length*(G101-1),2) -> 0 | F103: =INDEX(ut_VC_Inputs_Names,3+B103+ut_OPEX_Block_Length*(G101-1),4) -> 0 | H103: тыс. RUB | J103: 0 | K103: 0 | L103: =IFERROR(MATCH(Calculations!E103,INDEX(ut_Inputs_Names,,1),0),"нет") -> нет | P103: =INDEX(ut_VC_Inputs_Names,3+B103+ut_OPEX_Block_Length*(G101-1),3) -> 0 | T103: =IFERROR(INDEX(ut_Exchange_Rates,$K103,ut_Counter)*IF($L103<>"нет",INDEX(ut_Inputs_Data,$L103,ut_Counter),1)*INDEX(ut_VC_Inputs_Data,3+$B103+ut_OPEX_Block_Length*($G101-1),ut_Counter)/(1+$P103)*T101,0) -> 0 | U103: 0 | V103: 0 | W103: 0 | X103: 0 | Y103: 0 | Z103: 0 | AA103: 0 | AB103: 0 | AC103: 0 | AD103: 0 | AE103: 0 | AF103: 0 | AG103: 0 | AH103: 0 | AI103: 0
B104: 3 | C104: =INDEX(ut_VC_Inputs_Names,3+B104+ut_OPEX_Block_Length*(G101-1),1) -> 0 | D104: =INDEX(ut_VC_Inputs_Names,3+B104+ut_OPEX_Block_Length*(G101-1),2) -> 0 | F104: =INDEX(ut_VC_Inputs_Names,3+B104+ut_OPEX_Block_Length*(G101-1),4) -> 0 | H104: тыс. RUB | J104: 0 | K104: 0 | L104: =IFERROR(MATCH(Calculations!E104,INDEX(ut_Inputs_Names,,1),0),"нет") -> нет | P104: =INDEX(ut_VC_Inputs_Names,3+B104+ut_OPEX_Block_Length*(G101-1),3) -> 0 | T104: =IFERROR(INDEX(ut_Exchange_Rates,$K104,ut_Counter)*IF($L104<>"нет",INDEX(ut_Inputs_Data,$L104,ut_Counter),1)*INDEX(ut_VC_Inputs_Data,3+$B104+ut_OPEX_Block_Length*($G101-1),ut_Counter)/(1+$P104)*T101,0) -> 0 | U104: 0 | V104: 0 | W104: 0 | X104: 0 | Y104: 0 | Z104: 0 | AA104: 0 | AB104: 0 | AC104: 0 | AD104: 0 | AE104: 0 | AF104: 0 | AG104: 0 | AH104: 0 | AI104: 0
B105: 4 | C105: =INDEX(ut_VC_Inputs_Names,3+B105+ut_OPEX_Block_Length*(G101-1),1) -> 0 | D105: =INDEX(ut_VC_Inputs_Names,3+B105+ut_OPEX_Block_Length*(G101-1),2) -> 0 | F105: =INDEX(ut_VC_Inputs_Names,3+B105+ut_OPEX_Block_Length*(G101-1),4) -> 0 | H105: тыс. RUB | J105: 0 | K105: 0 | L105: =IFERROR(MATCH(Calculations!E105,INDEX(ut_Inputs_Names,,1),0),"нет") -> нет | P105: =INDEX(ut_VC_Inputs_Names,3+B105+ut_OPEX_Block_Length*(G101-1),3) -> 0 | T105: =IFERROR(INDEX(ut_Exchange_Rates,$K105,ut_Counter)*IF($L105<>"нет",INDEX(ut_Inputs_Data,$L105,ut_Counter),1)*INDEX(ut_VC_Inputs_Data,3+$B105+ut_OPEX_Block_Length*($G101-1),ut_Counter)/(1+$P105)*T101,0) -> 0 | U105: 0 | V105: 0 | W105: 0 | X105: 0 | Y105: 0 | Z105: 0 | AA105: 0 | AB105: 0 | AC105: 0 | AD105: 0 | AE105: 0 | AF105: 0 | AG105: 0 | AH105: 0 | AI105: 0
B106: 5 | C106: =INDEX(ut_VC_Inputs_Names,3+B106+ut_OPEX_Block_Length*(G101-1),1) -> 0 | D106: =INDEX(ut_VC_Inputs_Names,3+B106+ut_OPEX_Block_Length*(G101-1),2) -> 0 | F106: =INDEX(ut_VC_Inputs_Names,3+B106+ut_OPEX_Block_Length*(G101-1),4) -> 0 | H106: тыс. RUB | J106: 0 | K106: 0 | L106: =IFERROR(MATCH(Calculations!E106,INDEX(ut_Inputs_Names,,1),0),"нет") -> нет | P106: =INDEX(ut_VC_Inputs_Names,3+B106+ut_OPEX_Block_Length*(G101-1),3) -> 0 | T106: =IFERROR(INDEX(ut_Exchange_Rates,$K106,ut_Counter)*IF($L106<>"нет",INDEX(ut_Inputs_Data,$L106,ut_Counter),1)*INDEX(ut_VC_Inputs_Data,3+$B106+ut_OPEX_Block_Length*($G101-1),ut_Counter)/(1+$P106)*T101,0) -> 0 | U106: 0 | V106: 0 | W106: 0 | X106: 0 | Y106: 0 | Z106: 0 | AA106: 0 | AB106: 0 | AC106: 0 | AD106: 0 | AE106: 0 | AF106: 0 | AG106: 0 | AH106: 0 | AI106: 0
B107: 6 | C107: =INDEX(ut_VC_Inputs_Names,3+B107+ut_OPEX_Block_Length*(G101-1),1) -> 0 | D107: =INDEX(ut_VC_Inputs_Names,3+B107+ut_OPEX_Block_Length*(G101-1),2) -> 0 | F107: =INDEX(ut_VC_Inputs_Names,3+B107+ut_OPEX_Block_Length*(G101-1),4) -> 0 | H107: тыс. RUB | J107: 0 | K107: 0 | L107: =IFERROR(MATCH(Calculations!E107,INDEX(ut_Inputs_Names,,1),0),"нет") -> нет | P107: =INDEX(ut_VC_Inputs_Names,3+B107+ut_OPEX_Block_Length*(G101-1),3) -> 0 | T107: =IFERROR(INDEX(ut_Exchange_Rates,$K107,ut_Counter)*IF($L107<>"нет",INDEX(ut_Inputs_Data,$L107,ut_Counter),1)*INDEX(ut_VC_Inputs_Data,3+$B107+ut_OPEX_Block_Length*($G101-1),ut_Counter)/(1+$P107)*T101,0) -> 0 | U107: 0 | V107: 0 | W107: 0 | X107: 0 | Y107: 0 | Z107: 0 | AA107: 0 | AB107: 0 | AC107: 0 | AD107: 0 | AE107: 0 | AF107: 0 | AG107: 0 | AH107: 0 | AI107: 0
C109: Итого расходы | D109: в валюте модели | G109: =ut_Digits&ut_LCU -> тыс. RUB | H109: =SUM(T109:AI109) -> 6065956.409 | T109: =SUM(T102:T107) -> 0 | U109: 0 | V109: 0 | W109: 0 | X109: 0 | Y109: 0 | Z109: 510605.7341 | AA109: 531145.4115 | AB109: 551940.3199 | AC109: 572907.0376 | AD109: 594104.323 | AE109: 615856.7791 | AF109: 637915.7731 | AG109: 660556.7463 | AH109: 683664.8125 | AI109: 707259.4722
C111: =IFERROR(INDEX(ut_Products_Dom_Dir,G111,1),0) -> Продукт 2 | E111: индикатор | G111: =MAX(G$99:G110)+1 -> 2 | J111: fx rate | K111: row | L111: idx | P111: VAT | S111: объем | T111: =INDEX(ut_SalesVolume_Dom_Inputs,$G111,ut_Counter)+INDEX(ut_SalesVolume_Exp_Inputs,$G111,ut_Counter) -> 0 | U111: 0 | V111: 0 | W111: 0 | X111: 0 | Y111: 0 | Z111: 1000 | AA111: 1000 | AB111: 1000 | AC111: 1000 | AD111: 1000 | AE111: 1000 | AF111: 1000 | AG111: 1000 | AH111: 1000 | AI111: 1000
B112: =B111+1 -> 1 | C112: =INDEX(ut_VC_Inputs_Names,3+B112+ut_OPEX_Block_Length*(G111-1),1) -> Ресурсы | D112: =INDEX(ut_VC_Inputs_Names,3+B112+ut_OPEX_Block_Length*(G111-1),2) -> RUB | E112: ИЦП в модель | F112: =INDEX(ut_VC_Inputs_Names,3+B112+ut_OPEX_Block_Length*(G111-1),4) -> Производственные | H112: =ut_Digits&ut_LCU -> тыс. RUB | J112: =IF(AND(D112<>"",D112<>0),D112&"/"&ut_LCU,0) -> RUB/RUB | K112: =IFERROR(MATCH(J112,ut_Exchange_Rates_Headers,0),0) -> 1 | L112: =IFERROR(MATCH(Calculations!E112,INDEX(ut_Inputs_Names,,1),0),"нет") -> 8 | P112: =INDEX(ut_VC_Inputs_Names,3+B112+ut_OPEX_Block_Length*(G111-1),3) -> 0.2 | T112: =IFERROR(INDEX(ut_Exchange_Rates,$K112,ut_Counter)*IF($L112<>"нет",INDEX(ut_Inputs_Data,$L112,ut_Counter),1)*INDEX(ut_VC_Inputs_Data,3+$B112+ut_OPEX_Block_Length*($G111-1),ut_Counter)/(1+$P112)*T111,0) -> 0 | U112: 0 | V112: 0 | W112: 0 | X112: 0 | Y112: 0 | Z112: 315619.0496 | AA112: 327315.3108 | AB112: 339187.2495 | AC112: 351204.7943 | AD112: 363463.2217 | AE112: 375869.9916 | AF112: 388446.645 | AG112: 401333.865 | AH112: 414470.619 | AI112: 427360.9931
B113: 2 | C113: =INDEX(ut_VC_Inputs_Names,3+B113+ut_OPEX_Block_Length*(G111-1),1) -> 0 | D113: =INDEX(ut_VC_Inputs_Names,3+B113+ut_OPEX_Block_Length*(G111-1),2) -> 0 | F113: =INDEX(ut_VC_Inputs_Names,3+B113+ut_OPEX_Block_Length*(G111-1),4) -> 0 | H113: тыс. RUB | J113: 0 | K113: 0 | L113: =IFERROR(MATCH(Calculations!E113,INDEX(ut_Inputs_Names,,1),0),"нет") -> нет | P113: =INDEX(ut_VC_Inputs_Names,3+B113+ut_OPEX_Block_Length*(G111-1),3) -> 0 | T113: =IFERROR(INDEX(ut_Exchange_Rates,$K113,ut_Counter)*IF($L113<>"нет",INDEX(ut_Inputs_Data,$L113,ut_Counter),1)*INDEX(ut_VC_Inputs_Data,3+$B113+ut_OPEX_Block_Length*($G111-1),ut_Counter)/(1+$P113)*T111,0) -> 0 | U113: 0 | V113: 0 | W113: 0 | X113: 0 | Y113: 0 | Z113: 0 | AA113: 0 | AB113: 0 | AC113: 0 | AD113: 0 | AE113: 0 | AF113: 0 | AG113: 0 | AH113: 0 | AI113: 0
B114: 3 | C114: =INDEX(ut_VC_Inputs_Names,3+B114+ut_OPEX_Block_Length*(G111-1),1) -> 0 | D114: =INDEX(ut_VC_Inputs_Names,3+B114+ut_OPEX_Block_Length*(G111-1),2) -> 0 | F114: =INDEX(ut_VC_Inputs_Names,3+B114+ut_OPEX_Block_Length*(G111-1),4) -> 0 | H114: тыс. RUB | J114: 0 | K114: 0 | L114: =IFERROR(MATCH(Calculations!E114,INDEX(ut_Inputs_Names,,1),0),"нет") -> нет | P114: =INDEX(ut_VC_Inputs_Names,3+B114+ut_OPEX_Block_Length*(G111-1),3) -> 0 | T114: =IFERROR(INDEX(ut_Exchange_Rates,$K114,ut_Counter)*IF($L114<>"нет",INDEX(ut_Inputs_Data,$L114,ut_Counter),1)*INDEX(ut_VC_Inputs_Data,3+$B114+ut_OPEX_Block_Length*($G111-1),ut_Counter)/(1+$P114)*T111,0) -> 0 | U114: 0 | V114: 0 | W114: 0 | X114: 0 | Y114: 0 | Z114: 0 | AA114: 0 | AB114: 0 | AC114: 0 | AD114: 0 | AE114: 0 | AF114: 0 | AG114: 0 | AH114: 0 | AI114: 0
B115: 4 | C115: =INDEX(ut_VC_Inputs_Names,3+B115+ut_OPEX_Block_Length*(G111-1),1) -> 0 | D115: =INDEX(ut_VC_Inputs_Names,3+B115+ut_OPEX_Block_Length*(G111-1),2) -> 0 | F115: =INDEX(ut_VC_Inputs_Names,3+B115+ut_OPEX_Block_Length*(G111-1),4) -> 0 | H115: тыс. RUB | J115: 0 | K115: 0 | L115: =IFERROR(MATCH(Calculations!E115,INDEX(ut_Inputs_Names,,1),0),"нет") -> нет | P115: =INDEX(ut_VC_Inputs_Names,3+B115+ut_OPEX_Block_Length*(G111-1),3) -> 0 | T115: =IFERROR(INDEX(ut_Exchange_Rates,$K115,ut_Counter)*IF($L115<>"нет",INDEX(ut_Inputs_Data,$L115,ut_Counter),1)*INDEX(ut_VC_Inputs_Data,3+$B115+ut_OPEX_Block_Length*($G111-1),ut_Counter)/(1+$P115)*T111,0) -> 0 | U115: 0 | V115: 0 | W115: 0 | X115: 0 | Y115: 0 | Z115: 0 | AA115: 0 | AB115: 0 | AC115: 0 | AD115: 0 | AE115: 0 | AF115: 0 | AG115: 0 | AH115: 0 | AI115: 0
B116: 5 | C116: =INDEX(ut_VC_Inputs_Names,3+B116+ut_OPEX_Block_Length*(G111-1),1) -> 0 | D116: =INDEX(ut_VC_Inputs_Names,3+B116+ut_OPEX_Block_Length*(G111-1),2) -> 0 | F116: =INDEX(ut_VC_Inputs_Names,3+B116+ut_OPEX_Block_Length*(G111-1),4) -> 0 | H116: тыс. RUB | J116: 0 | K116: 0 | L116: =IFERROR(MATCH(Calculations!E116,INDEX(ut_Inputs_Names,,1),0),"нет") -> нет | P116: =INDEX(ut_VC_Inputs_Names,3+B116+ut_OPEX_Block_Length*(G111-1),3) -> 0 | T116: =IFERROR(INDEX(ut_Exchange_Rates,$K116,ut_Counter)*IF($L116<>"нет",INDEX(ut_Inputs_Data,$L116,ut_Counter),1)*INDEX(ut_VC_Inputs_Data,3+$B116+ut_OPEX_Block_Length*($G111-1),ut_Counter)/(1+$P116)*T111,0) -> 0 | U116: 0 | V116: 0 | W116: 0 | X116: 0 | Y116: 0 | Z116: 0 | AA116: 0 | AB116: 0 | AC116: 0 | AD116: 0 | AE116: 0 | AF116: 0 | AG116: 0 | AH116: 0 | AI116: 0
B117: 6 | C117: =INDEX(ut_VC_Inputs_Names,3+B117+ut_OPEX_Block_Length*(G111-1),1) -> 0 | D117: =INDEX(ut_VC_Inputs_Names,3+B117+ut_OPEX_Block_Length*(G111-1),2) -> 0 | F117: =INDEX(ut_VC_Inputs_Names,3+B117+ut_OPEX_Block_Length*(G111-1),4) -> 0 | H117: тыс. RUB | J117: 0 | K117: 0 | L117: =IFERROR(MATCH(Calculations!E117,INDEX(ut_Inputs_Names,,1),0),"нет") -> нет | P117: =INDEX(ut_VC_Inputs_Names,3+B117+ut_OPEX_Block_Length*(G111-1),3) -> 0 | T117: =IFERROR(INDEX(ut_Exchange_Rates,$K117,ut_Counter)*IF($L117<>"нет",INDEX(ut_Inputs_Data,$L117,ut_Counter),1)*INDEX(ut_VC_Inputs_Data,3+$B117+ut_OPEX_Block_Length*($G111-1),ut_Counter)/(1+$P117)*T111,0) -> 0 | U117: 0 | V117: 0 | W117: 0 | X117: 0 | Y117: 0 | Z117: 0 | AA117: 0 | AB117: 0 | AC117: 0 | AD117: 0 | AE117: 0 | AF117: 0 | AG117: 0 | AH117: 0 | AI117: 0
C119: Итого расходы | D119: в валюте модели | G119: =ut_Digits&ut_LCU -> тыс. RUB | H119: =SUM(T119:AI119) -> 3704271.74 | T119: =SUM(T112:T117) -> 0 | U119: 0 | V119: 0 | W119: 0 | X119: 0 | Y119: 0 | Z119: 315619.0496 | AA119: 327315.3108 | AB119: 339187.2495 | AC119: 351204.7943 | AD119: 363463.2217 | AE119: 375869.9916 | AF119: 388446.645 | AG119: 401333.865 | AH119: 414470.619 | AI119: 427360.9931
C122: Внеоперационные доходы и расходы (кроме финансовых)
E124: индикатор | J124: fx rate | K124: row | L124: idx | M124: sign | P124: VAT
B125: =B124+1 -> 1 | C125: =IFERROR(INDEX(ut_NonOpC_Dir,B125,1),0) -> Прочие расходы | D125: =IFERROR(INDEX(ut_NonOpC_Dir,B125,2),0) -> RUB | E125: ИЦП в модель | F125: =IFERROR(INDEX(ut_NonOpC_Dir,B125,4),0) -> расход | H125: =ut_Digits&ut_LCU -> тыс. RUB | J125: =IF(AND(D125<>"",D125<>0),D125&"/"&ut_LCU,0) -> RUB/RUB | K125: =IFERROR(MATCH(J125,ut_Exchange_Rates_Headers,0),0) -> 1 | L125: =IFERROR(MATCH(Calculations!E125,INDEX(ut_Inputs_Names,,1),0),"нет") -> 8 | M125: =IF(F125="доход",1,IF(F125="расход",-1,0)) -> -1 | P125: =IFERROR(INDEX(ut_NonOpC_Dir,B125,3),0) -> 0.2 | T125: =IFERROR(INDEX(ut_Exchange_Rates,$K125,ut_Counter)*$M125*INDEX(ut_NonOpC_Data,$B125,ut_Counter)/(1+$P125)*IF($L125<>"нет",INDEX(ut_Inputs_Data,$L125,ut_Counter),1),0) -> 0 | U125: 0 | V125: 0 | W125: 0 | X125: 0 | Y125: 0 | Z125: -14346.32044 | AA125: -14877.96867 | AB125: -15417.60225 | AC125: -15963.85429 | AD125: =IFERROR(INDEX(ut_Exchange_Rates,$K125,ut_Counter)*$M125*INDEX(ut_NonOpC_Data,$B125,ut_Counter)/(1+$P125)*IF($L125<>"нет",INDEX(ut_Inputs_Data,$L125,ut_Counter),1),0) -> -16521.05553 | AE125: -17084.99962 | AF125: -17656.66568 | AG125: -18242.44841 | AH125: -18839.57359 | AI125: -19425.49969
B126: 2 | C126: 0 | D126: 0 | F126: 0 | H126: тыс. RUB | J126: 0 | K126: 0 | L126: =IFERROR(MATCH(Calculations!E126,INDEX(ut_Inputs_Names,,1),0),"нет") -> нет | M126: 0 | P126: 0.2 | T126: 0 | U126: 0 | V126: 0 | W126: 0 | X126: 0 | Y126: 0 | Z126: 0 | AA126: 0 | AB126: 0 | AC126: 0 | AD126: 0 | AE126: 0 | AF126: 0 | AG126: 0 | AH126: 0 | AI126: 0
B127: 3 | C127: 0 | D127: 0 | F127: 0 | H127: тыс. RUB | J127: 0 | K127: 0 | L127: =IFERROR(MATCH(Calculations!E127,INDEX(ut_Inputs_Names,,1),0),"нет") -> нет | M127: 0 | P127: 0.2 | T127: 0 | U127: 0 | V127: 0 | W127: 0 | X127: 0 | Y127: 0 | Z127: 0 | AA127: 0 | AB127: 0 | AC127: 0 | AD127: 0 | AE127: 0 | AF127: 0 | AG127: 0 | AH127: 0 | AI127: 0
B128: 4 | C128: 0 | D128: 0 | F128: 0 | H128: тыс. RUB | J128: 0 | K128: 0 | L128: =IFERROR(MATCH(Calculations!E128,INDEX(ut_Inputs_Names,,1),0),"нет") -> нет | M128: 0 | P128: 0.2 | T128: 0 | U128: 0 | V128: 0 | W128: 0 | X128: 0 | Y128: 0 | Z128: 0 | AA128: 0 | AB128: 0 | AC128: 0 | AD128: 0 | AE128: 0 | AF128: 0 | AG128: 0 | AH128: 0 | AI128: 0
B129: 5 | C129: 0 | D129: 0 | F129: 0 | H129: тыс. RUB | J129: 0 | K129: 0 | L129: =IFERROR(MATCH(Calculations!E129,INDEX(ut_Inputs_Names,,1),0),"нет") -> нет | M129: 0 | P129: 0.2 | T129: 0 | U129: 0 | V129: 0 | W129: 0 | X129: 0 | Y129: 0 | Z129: 0 | AA129: 0 | AB129: 0 | AC129: 0 | AD129: 0 | AE129: 0 | AF129: 0 | AG129: 0 | AH129: 0 | AI129: 0
B130: 6 | C130: 0 | D130: 0 | F130: 0 | H130: тыс. RUB | J130: 0 | K130: 0 | L130: =IFERROR(MATCH(Calculations!E130,INDEX(ut_Inputs_Names,,1),0),"нет") -> нет | M130: 0 | P130: 0.2 | T130: 0 | U130: 0 | V130: 0 | W130: 0 | X130: 0 | Y130: 0 | Z130: 0 | AA130: 0 | AB130: 0 | AC130: 0 | AD130: 0 | AE130: 0 | AF130: 0 | AG130: 0 | AH130: 0 | AI130: 0
B131: 7 | C131: 0 | D131: 0 | F131: 0 | H131: тыс. RUB | J131: 0 | K131: 0 | L131: =IFERROR(MATCH(Calculations!E131,INDEX(ut_Inputs_Names,,1),0),"нет") -> нет | M131: 0 | P131: 0.2 | T131: 0 | U131: 0 | V131: 0 | W131: 0 | X131: 0 | Y131: 0 | Z131: 0 | AA131: 0 | AB131: 0 | AC131: 0 | AD131: 0 | AE131: 0 | AF131: 0 | AG131: 0 | AH131: 0 | AI131: 0
B132: 8 | C132: 0 | D132: 0 | F132: 0 | H132: тыс. RUB | J132: 0 | K132: 0 | L132: =IFERROR(MATCH(Calculations!E132,INDEX(ut_Inputs_Names,,1),0),"нет") -> нет | M132: 0 | P132: 0.2 | T132: 0 | U132: 0 | V132: 0 | W132: 0 | X132: 0 | Y132: 0 | Z132: 0 | AA132: 0 | AB132: 0 | AC132: 0 | AD132: 0 | AE132: 0 | AF132: 0 | AG132: 0 | AH132: 0 | AI132: 0
B133: 9 | C133: 0 | D133: 0 | F133: 0 | H133: тыс. RUB | J133: 0 | K133: 0 | L133: =IFERROR(MATCH(Calculations!E133,INDEX(ut_Inputs_Names,,1),0),"нет") -> нет | M133: 0 | P133: 0.2 | T133: 0 | U133: 0 | V133: 0 | W133: 0 | X133: 0 | Y133: 0 | Z133: 0 | AA133: 0 | AB133: 0 | AC133: 0 | AD133: 0 | AE133: 0 | AF133: 0 | AG133: 0 | AH133: 0 | AI133: 0
B134: 10 | C134: 0 | D134: 0 | F134: 0 | H134: тыс. RUB | J134: 0 | K134: 0 | L134: =IFERROR(MATCH(Calculations!E134,INDEX(ut_Inputs_Names,,1),0),"нет") -> нет | M134: 0 | P134: 0.2 | T134: 0 | U134: 0 | V134: 0 | W134: 0 | X134: 0 | Y134: 0 | Z134: 0 | AA134: 0 | AB134: 0 | AC134: 0 | AD134: 0 | AE134: 0 | AF134: 0 | AG134: 0 | AH134: 0 | AI134: 0
B135: 11 | C135: 0 | D135: 0 | F135: 0 | H135: тыс. RUB | J135: 0 | K135: 0 | L135: =IFERROR(MATCH(Calculations!E135,INDEX(ut_Inputs_Names,,1),0),"нет") -> нет | M135: 0 | P135: 0.2 | T135: =IFERROR(INDEX(ut_Exchange_Rates,$K135,ut_Counter)*$M135*INDEX(ut_NonOpC_Data,$B135,ut_Counter)/(1+$P135)*IF($L135<>"нет",INDEX(ut_Inputs_Data,$L135,ut_Counter),1),0) -> 0 | U135: 0 | V135: 0 | W135: 0 | X135: 0 | Y135: 0 | Z135: 0 | AA135: 0 | AB135: 0 | AC135: 0 | AD135: =IFERROR(INDEX(ut_Exchange_Rates,$K135,ut_Counter)*$M135*INDEX(ut_NonOpC_Data,$B135,ut_Counter)/(1+$P135)*IF($L135<>"нет",INDEX(ut_Inputs_Data,$L135,ut_Counter),1),0) -> 0 | AE135: 0 | AF135: 0 | AG135: 0 | AH135: 0 | AI135: 0
B136: 12 | C136: 0 | D136: 0 | F136: 0 | H136: тыс. RUB | J136: 0 | K136: 0 | L136: =IFERROR(MATCH(Calculations!E136,INDEX(ut_Inputs_Names,,1),0),"нет") -> нет | M136: 0 | P136: 0.2 | T136: 0 | U136: 0 | V136: 0 | W136: 0 | X136: 0 | Y136: 0 | Z136: 0 | AA136: 0 | AB136: 0 | AC136: 0 | AD136: 0 | AE136: 0 | AF136: 0 | AG136: 0 | AH136: 0 | AI136: 0
B137: 13 | C137: 0 | D137: 0 | F137: 0 | H137: тыс. RUB | J137: 0 | K137: 0 | L137: =IFERROR(MATCH(Calculations!E137,INDEX(ut_Inputs_Names,,1),0),"нет") -> нет | M137: 0 | P137: 0.2 | T137: 0 | U137: 0 | V137: 0 | W137: 0 | X137: 0 | Y137: 0 | Z137: 0 | AA137: 0 | AB137: 0 | AC137: 0 | AD137: 0 | AE137: 0 | AF137: 0 | AG137: 0 | AH137: 0 | AI137: 0
B138: 14 | C138: 0 | D138: 0 | F138: 0 | H138: тыс. RUB | J138: 0 | K138: 0 | L138: =IFERROR(MATCH(Calculations!E138,INDEX(ut_Inputs_Names,,1),0),"нет") -> нет | M138: 0 | P138: 0.2 | T138: 0 | U138: 0 | V138: 0 | W138: 0 | X138: 0 | Y138: 0 | Z138: 0 | AA138: 0 | AB138: 0 | AC138: 0 | AD138: 0 | AE138: 0 | AF138: 0 | AG138: 0 | AH138: 0 | AI138: 0
B139: 15 | C139: 0 | D139: 0 | F139: 0 | H139: тыс. RUB | J139: 0 | K139: 0 | L139: =IFERROR(MATCH(Calculations!E139,INDEX(ut_Inputs_Names,,1),0),"нет") -> нет | M139: 0 | P139: 0.2 | T139: 0 | U139: 0 | V139: 0 | W139: 0 | X139: 0 | Y139: 0 | Z139: 0 | AA139: 0 | AB139: 0 | AC139: 0 | AD139: 0 | AE139: 0 | AF139: 0 | AG139: 0 | AH139: 0 | AI139: 0
B140: 16 | C140: 0 | D140: 0 | F140: 0 | H140: тыс. RUB | J140: 0 | K140: 0 | L140: =IFERROR(MATCH(Calculations!E140,INDEX(ut_Inputs_Names,,1),0),"нет") -> нет | M140: 0 | P140: 0.2 | T140: 0 | U140: 0 | V140: 0 | W140: 0 | X140: 0 | Y140: 0 | Z140: 0 | AA140: 0 | AB140: 0 | AC140: 0 | AD140: 0 | AE140: 0 | AF140: 0 | AG140: 0 | AH140: 0 | AI140: 0
B141: 17 | C141: 0 | D141: 0 | F141: 0 | H141: тыс. RUB | J141: 0 | K141: 0 | L141: =IFERROR(MATCH(Calculations!E141,INDEX(ut_Inputs_Names,,1),0),"нет") -> нет | M141: 0 | P141: 0.2 | T141: 0 | U141: 0 | V141: 0 | W141: 0 | X141: 0 | Y141: 0 | Z141: 0 | AA141: 0 | AB141: 0 | AC141: 0 | AD141: 0 | AE141: 0 | AF141: 0 | AG141: 0 | AH141: 0 | AI141: 0
B142: 18 | C142: 0 | D142: 0 | F142: 0 | H142: тыс. RUB | J142: 0 | K142: 0 | L142: =IFERROR(MATCH(Calculations!E142,INDEX(ut_Inputs_Names,,1),0),"нет") -> нет | M142: 0 | P142: 0.2 | T142: 0 | U142: 0 | V142: 0 | W142: 0 | X142: 0 | Y142: 0 | Z142: 0 | AA142: 0 | AB142: 0 | AC142: 0 | AD142: 0 | AE142: 0 | AF142: 0 | AG142: 0 | AH142: 0 | AI142: 0
B143: 19 | C143: 0 | D143: 0 | F143: 0 | H143: тыс. RUB | J143: 0 | K143: 0 | L143: =IFERROR(MATCH(Calculations!E143,INDEX(ut_Inputs_Names,,1),0),"нет") -> нет | M143: 0 | P143: 0.2 | T143: 0 | U143: 0 | V143: 0 | W143: 0 | X143: 0 | Y143: 0 | Z143: 0 | AA143: 0 | AB143: 0 | AC143: 0 | AD143: 0 | AE143: 0 | AF143: 0 | AG143: 0 | AH143: 0 | AI143: 0
B144: 20 | C144: 0 | D144: 0 | F144: 0 | H144: тыс. RUB | J144: 0 | K144: 0 | L144: =IFERROR(MATCH(Calculations!E144,INDEX(ut_Inputs_Names,,1),0),"нет") -> нет | M144: 0 | P144: 0.2 | T144: 0 | U144: 0 | V144: 0 | W144: 0 | X144: 0 | Y144: 0 | Z144: 0 | AA144: 0 | AB144: 0 | AC144: 0 | AD144: 0 | AE144: 0 | AF144: 0 | AG144: 0 | AH144: 0 | AI144: 0
C146: Итого доходы | D146: в валюте модели | G146: =ut_Digits&ut_LCU -> тыс. RUB | H146: =SUM(T146:AI146) -> 0 | T146: =SUMIFS(T$125:T$144,$M$125:$M$144,1) -> 0 | U146: 0 | V146: 0 | W146: 0 | X146: 0 | Y146: 0 | Z146: 0 | AA146: 0 | AB146: 0 | AC146: 0 | AD146: 0 | AE146: 0 | AF146: 0 | AG146: 0 | AH146: 0 | AI146: 0
C148: Итого расходы | D148: в валюте модели | G148: =ut_Digits&ut_LCU -> тыс. RUB | H148: =SUM(T148:AI148) -> -168375.9882 | T148: =SUMIFS(T$125:T$144,$M$125:$M$144,-1) -> 0 | U148: 0 | V148: 0 | W148: 0 | X148: 0 | Y148: 0 | Z148: -14346.32044 | AA148: -14877.96867 | AB148: -15417.60225 | AC148: -15963.85429 | AD148: -16521.05553 | AE148: -17084.99962 | AF148: -17656.66568 | AG148: -18242.44841 | AH148: -18839.57359 | AI148: -19425.49969
C150: Капитальные затраты
C152: Информация по группам основных средств и нематериальных активов
B153: =MAX($B152:B$152)+1 -> 1 | C153: =INDEX(ut_CapEx_Dir,B153,1) -> Проектирование | D153: =H156 -> 1750000 | E153: =INDEX(ut_CapEx_Dir,B153,2) -> RUB
J154: currency | K154: =IFERROR(MATCH(CONCATENATE(E153,"/",ut_LCU),ut_Exchange_Rates_Headers,0),0) -> 1 | L154: row | S154: курс валюты | T154: =IFERROR(INDEX(ut_Exchange_Rates,$K154,ut_Counter),0) -> 1 | U154: 1 | V154: 1 | W154: 1 | X154: 1 | Y154: 1 | Z154: 1 | AA154: 1 | AB154: 1 | AC154: 1 | AD154: 1 | AE154: 1 | AF154: 1 | AG154: 1 | AH154: 1 | AI154: 1
C155: Ставка НДС | T155: =ut_VAT_Rate_Inputs -> 0.2 | U155: 0.2 | V155: 0.2 | W155: 0.2 | X155: 0.2 | Y155: 0.2 | Z155: 0.2 | AA155: 0.2 | AB155: 0.2 | AC155: 0.2 | AD155: 0.2 | AE155: 0.2 | AF155: 0.2 | AG155: 0.2 | AH155: 0.2 | AI155: 0.2
C156: Финансирование капитальных затрат | D156: =ut_Digits&E153 -> тыс. RUB | E156: без НДС | H156: =SUM(T156:AI156)+S160 -> 1750000 | J156: graph | K156: =E153 -> RUB | M156: =CONCATENATE(K156,"/",ut_LCU) -> RUB/RUB | T156: =INDEX(ut_CapEx_Inputs,$B153,T$2)/(1+T155) -> 1000000 | U156: 750000 | V156: 0 | W156: 0 | X156: 0 | Y156: 0 | Z156: 0 | AA156: 0 | AB156: 0 | AC156: 0 | AD156: 0 | AE156: 0 | AF156: 0 | AG156: 0 | AH156: 0 | AI156: 0
C157: График строительства (освоение) | D157: =ut_Digits&E153 -> тыс. RUB | E157: без НДС | H157: =SUM(T157:AI157)+S160 -> 1750000 | J157: graph | T157: =T156 -> 1000000 | U157: 750000 | V157: 0 | W157: 0 | X157: 0 | Y157: 0 | Z157: 0 | AA157: 0 | AB157: 0 | AC157: 0 | AD157: 0 | AE157: 0 | AF157: 0 | AG157: 0 | AH157: 0 | AI157: 0
C158: Ввод в эксплуатацию | D158: =ut_Digits&E153 -> тыс. RUB | E158: без НДС | H158: =SUM(T158:AI158) -> 1750000 | J158: graph | T158: =SUM($T157:T157)*AND(T$5=0,S$5=1) -> 0 | U158: =SUM($T157:U157)*AND(U$5=0,T$5=1) -> 0 | V158: =SUM($T157:V157)*AND(V$5=0,U$5=1) -> 0 | W158: =SUM($T157:W157)*AND(W$5=0,V$5=1) -> 0 | X158: =SUM($T157:X157)*AND(X$5=0,W$5=1) -> 0 | Y158: =SUM($T157:Y157)*AND(Y$5=0,X$5=1) -> 0 | Z158: =SUM($T157:Z157)*AND(Z$5=0,Y$5=1) -> 1750000 | AA158: =SUM($T157:AA157)*AND(AA$5=0,Z$5=1) -> 0 | AB158: =SUM($T157:AB157)*AND(AB$5=0,AA$5=1) -> 0 | AC158: =SUM($T157:AC157)*AND(AC$5=0,AB$5=1) -> 0 | AD158: =SUM($T157:AD157)*AND(AD$5=0,AC$5=1) -> 0 | AE158: =SUM($T157:AE157)*AND(AE$5=0,AD$5=1) -> 0 | AF158: =(AE160+AF157)*(AF$5=0) -> 0 | AG158: 0 | AH158: 0 | AI158: 0
S159: входящие данные
C160: Незавершенное строительство, конец периода | D160: =ut_Digits&ut_LCU -> тыс. RUB | G160: ставка | S160: =0 -> 0 | T160: =S160+(T157-T158)*T154 -> 1000000 | U160: 1750000 | V160: 1750000 | W160: 1750000 | X160: 1750000 | Y160: 1750000 | Z160: 0 | AA160: 0 | AB160: 0 | AC160: 0 | AD160: 0 | AE160: 0 | AF160: 0 | AG160: 0 | AH160: 0 | AI160: 0
C161: Амортизация за период | D161: =ut_Digits&ut_LCU -> тыс. RUB | G161: 0 | H161: =SUM(T161:AI161) -> 0 | S161: =0 -> 0 | T161: =MIN(S164,$G161*SUMPRODUCT($T157:T157,$T154:T154)) -> 0 | U161: =MIN(T164,$G161*SUMPRODUCT($T157:U157,$T154:U154)) -> 0 | V161: =MIN(U164,$G161*SUMPRODUCT($T157:V157,$T154:V154)) -> 0 | W161: =MIN(V164,$G161*SUMPRODUCT($T157:W157,$T154:W154)) -> 0 | X161: =MIN(W164,$G161*SUMPRODUCT($T157:X157,$T154:X154)) -> 0 | Y161: =MIN(X164,$G161*SUMPRODUCT($T157:Y157,$T154:Y154)) -> 0 | Z161: =MIN(Y164,$G161*SUMPRODUCT($T157:Z157,$T154:Z154)) -> 0 | AA161: =MIN(Z164,$G161*SUMPRODUCT($T157:AA157,$T154:AA154)) -> 0 | AB161: =MIN(AA164,$G161*SUMPRODUCT($T157:AB157,$T154:AB154)) -> 0 | AC161: =MIN(AB164,$G161*SUMPRODUCT($T157:AC157,$T154:AC154)) -> 0 | AD161: =MIN(AC164,$G161*SUMPRODUCT($T157:AD157,$T154:AD154)) -> 0 | AE161: =MIN(AD164,$G161*SUMPRODUCT($T157:AE157,$T154:AE154)) -> 0 | AF161: =MIN(AE164,$G161*SUMPRODUCT($T157:AF157,$T154:AF154)) -> 0 | AG161: =MIN(AF164,$G161*SUMPRODUCT($T157:AG157,$T154:AG154)) -> 0 | AH161: =MIN(AG164,$G161*SUMPRODUCT($T157:AH157,$T154:AH154)) -> 0 | AI161: =MIN(AH164,$G161*SUMPRODUCT($T157:AI157,$T154:AI154)) -> 0
C162: Остаточная стоимость, конец периода | D162: =ut_Digits&ut_LCU -> тыс. RUB | S162: =0 -> 0 | T162: =S162+T158*T154-T161 -> 0 | U162: 0 | V162: 0 | W162: 0 | X162: 0 | Y162: 0 | Z162: 1750000 | AA162: 1750000 | AB162: 1750000 | AC162: 1750000 | AD162: 1750000 | AE162: 1750000 | AF162: 1750000 | AG162: 1750000 | AH162: 1750000 | AI162: 1750000
C163: Налоговая амортизация за период | D163: =ut_Digits&ut_LCU -> тыс. RUB | H163: =SUM(T163:AI163) -> 0 | K163: type | L163: property tax | S163: =0 -> 0 | T163: =T161 -> 0 | U163: 0 | V163: 0 | W163: 0 | X163: 0 | Y163: 0 | Z163: 0 | AA163: 0 | AB163: 0 | AC163: 0 | AD163: 0 | AE163: 0 | AF163: 0 | AG163: 0 | AH163: 0 | AI163: 0
C164: Налоговая остаточная стоимость, конец периода | D164: =ut_Digits&ut_LCU -> тыс. RUB | K164: =INDEX(ut_CapEx_Dir,B153,4) -> НМА | L164: =INDEX(ut_CapEx_Dir,B153,5) -> нет | S164: =0 -> 0 | T164: =T162 -> 0 | U164: 0 | V164: 0 | W164: 0 | X164: 0 | Y164: 0 | Z164: 1750000 | AA164: 1750000 | AB164: 1750000 | AC164: 1750000 | AD164: 1750000 | AE164: 1750000 | AF164: 1750000 | AG164: 1750000 | AH164: 1750000 | AI164: 1750000
G165: с НДС | H165: =SUM(T165:AI165) -> 2100000 | T165: =T156*(1+T155)*T154 -> 1200000 | U165: =U156*(1+U155)*U154 -> 900000 | V165: 0 | W165: 0 | X165: 0 | Y165: 0 | Z165: 0 | AA165: 0 | AB165: 0 | AC165: 0 | AD165: 0 | AE165: 0 | AF165: 0 | AG165: 0 | AH165: 0 | AI165: 0
G166: НДС | H166: =SUM(T166:AI166) -> 350000 | L166: VAT | T166: =T165-T156*T154 -> 200000 | U166: =U165-U156*U154 -> 150000 | V166: 0 | W166: 0 | X166: 0 | Y166: 0 | Z166: 0 | AA166: 0 | AB166: 0 | AC166: 0 | AD166: 0 | AE166: 0 | AF166: 0 | AG166: 0 | AH166: 0 | AI166: 0
G167: сальдо авансирования | L167: advance | T167: =(SUM($T157:T157)-SUM($T156:T156))*T154 -> 0 | U167: =(SUM($T157:U157)-SUM($T156:U156))*U154 -> 0 | V167: =(SUM($T157:V157)-SUM($T156:V156))*V154 -> 0 | W167: =(SUM($T157:W157)-SUM($T156:W156))*W154 -> 0 | X167: =(SUM($T157:X157)-SUM($T156:X156))*X154 -> 0 | Y167: =(SUM($T157:Y157)-SUM($T156:Y156))*Y154 -> 0 | Z167: =(SUM($T157:Z157)-SUM($T156:Z156))*Z154 -> 0 | AA167: =(SUM($T157:AA157)-SUM($T156:AA156))*AA154 -> 0 | AB167: =(SUM($T157:AB157)-SUM($T156:AB156))*AB154 -> 0 | AC167: =(SUM($T157:AC157)-SUM($T156:AC156))*AC154 -> 0 | AD167: =(SUM($T157:AD157)-SUM($T156:AD156))*AD154 -> 0 | AE167: =(SUM($T157:AE157)-SUM($T156:AE156))*AE154 -> 0 | AF167: =(SUM($T157:AF157)-SUM($T156:AF156))*AF154 -> 0 | AG167: =(SUM($T157:AG157)-SUM($T156:AG156))*AG154 -> 0 | AH167: =(SUM($T157:AH157)-SUM($T156:AH156))*AH154 -> 0 | AI167: =(SUM($T157:AI157)-SUM($T156:AI156))*AI154 -> 0
C169: Проверка согласованности остатков и потоков | F169: =SUM(T169:AI169) -> 0 | O169: =C169&"_"&J169&"_"&K169 -> Проверка согласованности остатков и потоков__ | Q169: =IF(SUM(S169:AI169)>ut_check_limit,1,0) -> 0 | S169: =ABS(SUM(T156:AI156)-SUM(T157:AI157)) -> 0 | T169: =ABS((T157-T158)*T154+S160-T160) + ABS(S162+T158*T154-T161-T162) -> 0 | U169: 0 | V169: 0 | W169: 0 | X169: 0 | Y169: 0 | Z169: 0 | AA169: 0 | AB169: 0 | AC169: 0 | AD169: 0 | AE169: 0 | AF169: 0 | AG169: 0 | AH169: 0 | AI169: 0
B171: =MAX($B$152:B170)+1 -> 2 | C171: =INDEX(ut_CapEx_Dir,B171,1) -> Строительство | D171: =H174 -> 6666666.667 | E171: =INDEX(ut_CapEx_Dir,B171,2) -> RUB
J172: currency | K172: =IFERROR(MATCH(CONCATENATE(E171,"/",ut_LCU),ut_Exchange_Rates_Headers,0),0) -> 1 | L172: row | S172: курс валюты | T172: =IFERROR(INDEX(ut_Exchange_Rates,$K172,ut_Counter),0) -> 1 | U172: 1 | V172: 1 | W172: 1 | X172: 1 | Y172: 1 | Z172: 1 | AA172: 1 | AB172: 1 | AC172: 1 | AD172: 1 | AE172: 1 | AF172: 1 | AG172: 1 | AH172: 1 | AI172: 1
C173: Ставка НДС | T173: =ut_VAT_Rate_Inputs -> 0.2 | U173: 0.2 | V173: 0.2 | W173: 0.2 | X173: 0.2 | Y173: 0.2 | Z173: 0.2 | AA173: 0.2 | AB173: 0.2 | AC173: 0.2 | AD173: 0.2 | AE173: 0.2 | AF173: 0.2 | AG173: 0.2 | AH173: 0.2 | AI173: 0.2
C174: Финансирование капитальных затрат | D174: =ut_Digits&E171 -> тыс. RUB | E174: без НДС | H174: =SUM(T174:AI174)+S178 -> 6666666.667 | J174: graph | K174: =E171 -> RUB | M174: =CONCATENATE(K174,"/",ut_LCU) -> RUB/RUB | T174: =INDEX(ut_CapEx_Inputs,$B171,T$2)/(1+T173) -> 0 | U174: 1250000 | V174: 1250000 | W174: 1666666.667 | X174: 2500000 | Y174: 0 | Z174: 0 | AA174: 0 | AB174: 0 | AC174: 0 | AD174: 0 | AE174: 0 | AF174: 0 | AG174: 0 | AH174: 0 | AI174: 0
C175: График строительства (освоение) | D175: =ut_Digits&E171 -> тыс. RUB | E175: без НДС | H175: =SUM(T175:AI175)+S178 -> 6666666.667 | J175: graph | T175: =T174 -> 0 | U175: 1250000 | V175: 1250000 | W175: 1666666.667 | X175: 2500000 | Y175: 0 | Z175: 0 | AA175: 0 | AB175: 0 | AC175: 0 | AD175: 0 | AE175: 0 | AF175: 0 | AG175: 0 | AH175: 0 | AI175: 0
C176: Ввод в эксплуатацию | D176: =ut_Digits&E171 -> тыс. RUB | E176: без НДС | H176: =SUM(T176:AI176) -> 6666666.667 | J176: graph | T176: =SUM($T175:T175)*AND(T$5=0,S$5=1) -> 0 | U176: =SUM($T175:U175)*AND(U$5=0,T$5=1) -> 0 | V176: =SUM($T175:V175)*AND(V$5=0,U$5=1) -> 0 | W176: =SUM($T175:W175)*AND(W$5=0,V$5=1) -> 0 | X176: =SUM($T175:X175)*AND(X$5=0,W$5=1) -> 0 | Y176: =SUM($T175:Y175)*AND(Y$5=0,X$5=1) -> 0 | Z176: =SUM($T175:Z175)*AND(Z$5=0,Y$5=1) -> 6666666.667 | AA176: =SUM($T175:AA175)*AND(AA$5=0,Z$5=1) -> 0 | AB176: =SUM($T175:AB175)*AND(AB$5=0,AA$5=1) -> 0 | AC176: =SUM($T175:AC175)*AND(AC$5=0,AB$5=1) -> 0 | AD176: =SUM($T175:AD175)*AND(AD$5=0,AC$5=1) -> 0 | AE176: =SUM($T175:AE175)*AND(AE$5=0,AD$5=1) -> 0 | AF176: =SUM($T175:AF175)*AND(AF$5=0,AE$5=1) -> 0 | AG176: =SUM($T175:AG175)*AND(AG$5=0,AF$5=1) -> 0 | AH176: =SUM($T175:AH175)*AND(AH$5=0,AG$5=1) -> 0 | AI176: =SUM($T175:AI175)*AND(AI$5=0,AH$5=1) -> 0
S177: входящие данные
C178: Незавершенное строительство, конец периода | D178: =ut_Digits&ut_LCU -> тыс. RUB | G178: ставка | S178: =0 -> 0 | T178: =S178+(T175-T176)*T172 -> 0 | U178: 1250000 | V178: 2500000 | W178: 4166666.667 | X178: 6666666.667 | Y178: 6666666.667 | Z178: 0 | AA178: 0 | AB178: 0 | AC178: 0 | AD178: 0 | AE178: 0 | AF178: 0 | AG178: 0 | AH178: 0 | AI178: 0
C179: Амортизация за период | D179: =ut_Digits&ut_LCU -> тыс. RUB | G179: =IFERROR(1/INDEX(ut_CapEx_Dir,B171,3),0) -> 0.01 | H179: =SUM(T179:AI179) -> 600000 | S179: =0 -> 0 | T179: =MIN(S182,$G179*SUMPRODUCT($T175:T175,$T172:T172)) -> 0 | U179: =MIN(T182,$G179*SUMPRODUCT($T175:U175,$T172:U172)) -> 0 | V179: =MIN(U182,$G179*SUMPRODUCT($T175:V175,$T172:V172)) -> 0 | W179: =MIN(V182,$G179*SUMPRODUCT($T175:W175,$T172:W172)) -> 0 | X179: =MIN(W182,$G179*SUMPRODUCT($T175:X175,$T172:X172)) -> 0 | Y179: =MIN(X182,$G179*SUMPRODUCT($T175:Y175,$T172:Y172)) -> 0 | Z179: =MIN(Y182,$G179*SUMPRODUCT($T175:Z175,$T172:Z172)) -> 0 | AA179: =MIN(Z182,$G179*SUMPRODUCT($T175:AA175,$T172:AA172)) -> 66666.66667 | AB179: =MIN(AA182,$G179*SUMPRODUCT($T175:AB175,$T172:AB172)) -> 66666.66667 | AC179: =MIN(AB182,$G179*SUMPRODUCT($T175:AC175,$T172:AC172)) -> 66666.66667 | AD179: =MIN(AC182,$G179*SUMPRODUCT($T175:AD175,$T172:AD172)) -> 66666.66667 | AE179: =MIN(AD182,$G179*SUMPRODUCT($T175:AE175,$T172:AE172)) -> 66666.66667 | AF179: =MIN(AE182,$G179*SUMPRODUCT($T175:AF175,$T172:AF172)) -> 66666.66667 | AG179: =MIN(AF182,$G179*SUMPRODUCT($T175:AG175,$T172:AG172)) -> 66666.66667 | AH179: =MIN(AG182,$G179*SUMPRODUCT($T175:AH175,$T172:AH172)) -> 66666.66667 | AI179: =MIN(AH182,$G179*SUMPRODUCT($T175:AI175,$T172:AI172)) -> 66666.66667
C180: Остаточная стоимость, конец периода | D180: =ut_Digits&ut_LCU -> тыс. RUB | S180: =0 -> 0 | T180: =S180+T176*T172-T179 -> 0 | U180: 0 | V180: 0 | W180: 0 | X180: 0 | Y180: 0 | Z180: 6666666.667 | AA180: 6600000 | AB180: 6533333.333 | AC180: 6466666.667 | AD180: 6400000 | AE180: 6333333.333 | AF180: 6266666.667 | AG180: 6200000 | AH180: 6133333.333 | AI180: 6066666.667
C181: Налоговая амортизация за период | D181: =ut_Digits&ut_LCU -> тыс. RUB | H181: =SUM(T181:AI181) -> 600000 | K181: type | L181: property tax | S181: =0 -> 0 | T181: =T179 -> 0 | U181: 0 | V181: 0 | W181: 0 | X181: 0 | Y181: 0 | Z181: 0 | AA181: 66666.66667 | AB181: 66666.66667 | AC181: 66666.66667 | AD181: 66666.66667 | AE181: 66666.66667 | AF181: 66666.66667 | AG181: 66666.66667 | AH181: 66666.66667 | AI181: 66666.66667
C182: Налоговая остаточная стоимость, конец периода | D182: =ut_Digits&ut_LCU -> тыс. RUB | K182: =INDEX(ut_CapEx_Dir,B171,4) -> ОС | L182: =INDEX(ut_CapEx_Dir,B171,5) -> да | S182: =0 -> 0 | T182: =T180 -> 0 | U182: 0 | V182: 0 | W182: 0 | X182: 0 | Y182: 0 | Z182: 6666666.667 | AA182: 6600000 | AB182: 6533333.333 | AC182: 6466666.667 | AD182: 6400000 | AE182: 6333333.333 | AF182: 6266666.667 | AG182: 6200000 | AH182: 6133333.333 | AI182: 6066666.667
G183: с НДС | H183: =SUM(T183:AI183) -> 8000000 | T183: =T174*(1+T173)*T172 -> 0 | U183: =U174*(1+U173)*U172 -> 1500000 | V183: 1500000 | W183: 2000000 | X183: 3000000 | Y183: 0 | Z183: 0 | AA183: 0 | AB183: 0 | AC183: 0 | AD183: 0 | AE183: 0 | AF183: 0 | AG183: 0 | AH183: 0 | AI183: 0
G184: НДС | H184: =SUM(T184:AI184) -> 1333333.333 | L184: VAT | T184: =T183-T174*T172 -> 0 | U184: =U183-U174*U172 -> 250000 | V184: =V183-V174*V172 -> 250000 | W184: =W183-W174*W172 -> 333333.3333 | X184: =X183-X174*X172 -> 500000 | Y184: =Y183-Y174*Y172 -> 0 | Z184: =Z183-Z174*Z172 -> 0 | AA184: =AA183-AA174*AA172 -> 0 | AB184: =AB183-AB174*AB172 -> 0 | AC184: =AC183-AC174*AC172 -> 0 | AD184: =AD183-AD174*AD172 -> 0 | AE184: =AE183-AE174*AE172 -> 0 | AF184: =AF183-AF174*AF172 -> 0 | AG184: =AG183-AG174*AG172 -> 0 | AH184: =AH183-AH174*AH172 -> 0 | AI184: =AI183-AI174*AI172 -> 0
G185: сальдо авансирования | L185: advance | T185: =(SUM($T175:T175)-SUM($T174:T174))*T172 -> 0 | U185: =(SUM($T175:U175)-SUM($T174:U174))*U172 -> 0 | V185: =(SUM($T175:V175)-SUM($T174:V174))*V172 -> 0 | W185: =(SUM($T175:W175)-SUM($T174:W174))*W172 -> 0 | X185: =(SUM($T175:X175)-SUM($T174:X174))*X172 -> 0 | Y185: =(SUM($T175:Y175)-SUM($T174:Y174))*Y172 -> 0 | Z185: =(SUM($T175:Z175)-SUM($T174:Z174))*Z172 -> 0 | AA185: =(SUM($T175:AA175)-SUM($T174:AA174))*AA172 -> 0 | AB185: =(SUM($T175:AB175)-SUM($T174:AB174))*AB172 -> 0 | AC185: =(SUM($T175:AC175)-SUM($T174:AC174))*AC172 -> 0 | AD185: =(SUM($T175:AD175)-SUM($T174:AD174))*AD172 -> 0 | AE185: =(SUM($T175:AE175)-SUM($T174:AE174))*AE172 -> 0 | AF185: =(SUM($T175:AF175)-SUM($T174:AF174))*AF172 -> 0 | AG185: =(SUM($T175:AG175)-SUM($T174:AG174))*AG172 -> 0 | AH185: =(SUM($T175:AH175)-SUM($T174:AH174))*AH172 -> 0 | AI185: =(SUM($T175:AI175)-SUM($T174:AI174))*AI172 -> 0
C187: Проверка согласованности остатков и потоков | F187: =SUM(T187:AI187) -> 0 | O187: =C187&"_"&J187&"_"&K187 -> Проверка согласованности остатков и потоков__ | Q187: =IF(SUM(S187:AI187)>ut_check_limit,1,0) -> 0 | S187: =ABS(SUM(T174:AI174)-SUM(T175:AI175)) -> 0 | T187: =ABS((T175-T176)*T172+S178-T178) + ABS(S180+T176*T172-T179-T180) -> 0 | U187: 0 | V187: 0 | W187: 0 | X187: 0 | Y187: 0 | Z187: 0 | AA187: 0 | AB187: 0 | AC187: 0 | AD187: 0 | AE187: 0 | AF187: 0 | AG187: 0 | AH187: 0 | AI187: 0
B189: =MAX($B$152:B188)+1 -> 3 | C189: =INDEX(ut_CapEx_Dir,B189,1) -> Приобретение лицензий на производство | D189: =H192 -> 65000 | E189: =INDEX(ut_CapEx_Dir,B189,2) -> USD
J190: currency | K190: =IFERROR(MATCH(CONCATENATE(E189,"/",ut_LCU),ut_Exchange_Rates_Headers,0),0) -> 7 | L190: row | S190: курс валюты | T190: =IFERROR(INDEX(ut_Exchange_Rates,$K190,ut_Counter),0) -> 71.94220377 | U190: 73.645695 | V190: 67.45621134 | W190: 84.44093536 | X190: 89.43481909 | Y190: 87.76526115 | Z190: 86.69141722 | AA190: 85.58939723 | AB190: 85.91367914 | AC190: 86.17382132 | AD190: 86.43609991 | AE190: 86.97042191 | AF190: 87.52039205 | AG190: 88.35436993 | AH190: 89.16658355 | AI190: 89.95855442
C191: Ставка НДС | T191: =0 -> 0 | U191: =0 -> 0 | V191: =0 -> 0 | W191: =0 -> 0 | X191: =0 -> 0 | Y191: =0 -> 0 | Z191: =0 -> 0 | AA191: =0 -> 0 | AB191: =0 -> 0 | AC191: =0 -> 0 | AD191: =0 -> 0 | AE191: =0 -> 0 | AF191: =0 -> 0 | AG191: =0 -> 0 | AH191: =0 -> 0 | AI191: =0 -> 0
C192: Финансирование капитальных затрат | D192: =ut_Digits&E189 -> тыс. USD | E192: без НДС | H192: =SUM(T192:AI192)+S196 -> 65000 | J192: graph | K192: =E189 -> USD | M192: =CONCATENATE(K192,"/",ut_LCU) -> USD/RUB | T192: =INDEX(ut_CapEx_Inputs,$B189,T$2)/(1+T191) -> 0 | U192: 0 | V192: 0 | W192: 0 | X192: 15000 | Y192: 50000 | Z192: 0 | AA192: 0 | AB192: 0 | AC192: 0 | AD192: 0 | AE192: 0 | AF192: 0 | AG192: 0 | AH192: 0 | AI192: 0
C193: График строительства (освоение) | D193: =ut_Digits&E189 -> тыс. USD | E193: без НДС | H193: =SUM(T193:AI193)+S196 -> 65000 | J193: graph | T193: =T192 -> 0 | U193: 0 | V193: 0 | W193: 0 | X193: 15000 | Y193: 50000 | Z193: 0 | AA193: 0 | AB193: 0 | AC193: 0 | AD193: 0 | AE193: 0 | AF193: 0 | AG193: 0 | AH193: 0 | AI193: 0
C194: Ввод в эксплуатацию | D194: =ut_Digits&E189 -> тыс. USD | E194: без НДС | H194: =SUM(T194:AI194) -> 65000 | J194: graph | T194: =SUM($T193:T193)*AND(T$5=0,S$5=1) -> 0 | U194: =SUM($T193:U193)*AND(U$5=0,T$5=1) -> 0 | V194: =SUM($T193:V193)*AND(V$5=0,U$5=1) -> 0 | W194: =SUM($T193:W193)*AND(W$5=0,V$5=1) -> 0 | X194: =SUM($T193:X193)*AND(X$5=0,W$5=1) -> 0 | Y194: =SUM($T193:Y193)*AND(Y$5=0,X$5=1) -> 0 | Z194: =SUM($T193:Z193)*AND(Z$5=0,Y$5=1) -> 65000 | AA194: =SUM($T193:AA193)*AND(AA$5=0,Z$5=1) -> 0 | AB194: =SUM($T193:AB193)*AND(AB$5=0,AA$5=1) -> 0 | AC194: =SUM($T193:AC193)*AND(AC$5=0,AB$5=1) -> 0 | AD194: =SUM($T193:AD193)*AND(AD$5=0,AC$5=1) -> 0 | AE194: =SUM($T193:AE193)*AND(AE$5=0,AD$5=1) -> 0 | AF194: =SUM($T193:AF193)*AND(AF$5=0,AE$5=1) -> 0 | AG194: =SUM($T193:AG193)*AND(AG$5=0,AF$5=1) -> 0 | AH194: =SUM($T193:AH193)*AND(AH$5=0,AG$5=1) -> 0 | AI194: =SUM($T193:AI193)*AND(AI$5=0,AH$5=1) -> 0
S195: входящие данные
C196: Незавершенное строительство, конец периода | D196: =ut_Digits&ut_LCU -> тыс. RUB | G196: ставка | S196: =0 -> 0 | T196: =S196+(T193-T194)*T190 -> 0 | U196: =T196+(U193-U194)*U190 -> 0 | V196: =U196+(V193-V194)*V190 -> 0 | W196: =V196+(W193-W194)*W190 -> 0 | X196: =W196+(X193-X194)*X190 -> 1341522.286 | Y196: =X196+(Y193-Y194)*Y190 -> 5729785.344 | Z196: =Y196+(Z193-Z194)*Z190 -> 94843.22476 | AA196: =Z196+(AA193-AA194)*AA190 -> 94843.22476 | AB196: =AA196+(AB193-AB194)*AB190 -> 94843.22476 | AC196: =AB196+(AC193-AC194)*AC190 -> 94843.22476 | AD196: =AC196+(AD193-AD194)*AD190 -> 94843.22476 | AE196: =AD196+(AE193-AE194)*AE190 -> 94843.22476 | AF196: =AE196+(AF193-AF194)*AF190 -> 94843.22476 | AG196: =AF196+(AG193-AG194)*AG190 -> 94843.22476 | AH196: =AG196+(AH193-AH194)*AH190 -> 94843.22476 | AI196: =AH196+(AI193-AI194)*AI190 -> 94843.22476
C197: Амортизация за период | D197: =ut_Digits&ut_LCU -> тыс. RUB | G197: 0 | H197: =SUM(T197:AI197) -> 0 | S197: =0 -> 0 | T197: =MIN(S200,$G197*SUMPRODUCT($T193:T193,$T190:T190)) -> 0 | U197: =MIN(T200,$G197*SUMPRODUCT($T193:U193,$T190:U190)) -> 0 | V197: =MIN(U200,$G197*SUMPRODUCT($T193:V193,$T190:V190)) -> 0 | W197: =MIN(V200,$G197*SUMPRODUCT($T193:W193,$T190:W190)) -> 0 | X197: =MIN(W200,$G197*SUMPRODUCT($T193:X193,$T190:X190)) -> 0 | Y197: =MIN(X200,$G197*SUMPRODUCT($T193:Y193,$T190:Y190)) -> 0 | Z197: =MIN(Y200,$G197*SUMPRODUCT($T193:Z193,$T190:Z190)) -> 0 | AA197: =MIN(Z200,$G197*SUMPRODUCT($T193:AA193,$T190:AA190)) -> 0 | AB197: =MIN(AA200,$G197*SUMPRODUCT($T193:AB193,$T190:AB190)) -> 0 | AC197: =MIN(AB200,$G197*SUMPRODUCT($T193:AC193,$T190:AC190)) -> 0 | AD197: =MIN(AC200,$G197*SUMPRODUCT($T193:AD193,$T190:AD190)) -> 0 | AE197: =MIN(AD200,$G197*SUMPRODUCT($T193:AE193,$T190:AE190)) -> 0 | AF197: =MIN(AE200,$G197*SUMPRODUCT($T193:AF193,$T190:AF190)) -> 0 | AG197: =MIN(AF200,$G197*SUMPRODUCT($T193:AG193,$T190:AG190)) -> 0 | AH197: =MIN(AG200,$G197*SUMPRODUCT($T193:AH193,$T190:AH190)) -> 0 | AI197: =MIN(AH200,$G197*SUMPRODUCT($T193:AI193,$T190:AI190)) -> 0
C198: Остаточная стоимость, конец периода | D198: =ut_Digits&ut_LCU -> тыс. RUB | S198: =0 -> 0 | T198: =S198+T194*T190-T197 -> 0 | U198: =T198+U194*U190-U197 -> 0 | V198: =U198+V194*V190-V197 -> 0 | W198: =V198+W194*W190-W197 -> 0 | X198: =W198+X194*X190-X197 -> 0 | Y198: =X198+Y194*Y190-Y197 -> 0 | Z198: =Y198+Z194*Z190-Z197 -> 5634942.119 | AA198: =Z198+AA194*AA190-AA197 -> 5634942.119 | AB198: =AA198+AB194*AB190-AB197 -> 5634942.119 | AC198: =AB198+AC194*AC190-AC197 -> 5634942.119 | AD198: =AC198+AD194*AD190-AD197 -> 5634942.119 | AE198: =AD198+AE194*AE190-AE197 -> 5634942.119 | AF198: =AE198+AF194*AF190-AF197 -> 5634942.119 | AG198: =AF198+AG194*AG190-AG197 -> 5634942.119 | AH198: =AG198+AH194*AH190-AH197 -> 5634942.119 | AI198: =AH198+AI194*AI190-AI197 -> 5634942.119
C199: Налоговая амортизация за период | D199: =ut_Digits&ut_LCU -> тыс. RUB | H199: =SUM(T199:AI199) -> 0 | K199: type | L199: property tax | S199: =0 -> 0 | T199: =T197 -> 0 | U199: 0 | V199: 0 | W199: 0 | X199: 0 | Y199: 0 | Z199: 0 | AA199: 0 | AB199: 0 | AC199: 0 | AD199: 0 | AE199: 0 | AF199: 0 | AG199: 0 | AH199: 0 | AI199: 0
C200: Налоговая остаточная стоимость, конец периода | D200: =ut_Digits&ut_LCU -> тыс. RUB | K200: =INDEX(ut_CapEx_Dir,B189,4) -> НМА | L200: =INDEX(ut_CapEx_Dir,B189,5) -> нет | S200: =0 -> 0 | T200: =T198 -> 0 | U200: 0 | V200: 0 | W200: 0 | X200: 0 | Y200: 0 | Z200: 5634942.119 | AA200: 5634942.119 | AB200: 5634942.119 | AC200: 5634942.119 | AD200: 5634942.119 | AE200: 5634942.119 | AF200: 5634942.119 | AG200: 5634942.119 | AH200: 5634942.119 | AI200: 5634942.119
G201: с НДС | H201: =SUM(T201:AI201) -> 5729785.344 | T201: =T192*(1+T191)*T190 -> 0 | U201: =U192*(1+U191)*U190 -> 0 | V201: 0 | W201: 0 | X201: 1341522.286 | Y201: 4388263.058 | Z201: 0 | AA201: 0 | AB201: 0 | AC201: 0 | AD201: 0 | AE201: 0 | AF201: 0 | AG201: 0 | AH201: 0 | AI201: 0
G202: НДС | H202: =SUM(T202:AI202) -> 0 | L202: VAT | T202: =T201-T192*T190 -> 0 | U202: =U201-U192*U190 -> 0 | V202: 0 | W202: 0 | X202: 0 | Y202: 0 | Z202: 0 | AA202: 0 | AB202: 0 | AC202: 0 | AD202: 0 | AE202: 0 | AF202: 0 | AG202: 0 | AH202: 0 | AI202: 0
G203: сальдо авансирования | L203: advance | T203: =(SUM($T193:T193)-SUM($T192:T192))*T190 -> 0 | U203: =(SUM($T193:U193)-SUM($T192:U192))*U190 -> 0 | V203: =(SUM($T193:V193)-SUM($T192:V192))*V190 -> 0 | W203: =(SUM($T193:W193)-SUM($T192:W192))*W190 -> 0 | X203: =(SUM($T193:X193)-SUM($T192:X192))*X190 -> 0 | Y203: =(SUM($T193:Y193)-SUM($T192:Y192))*Y190 -> 0 | Z203: =(SUM($T193:Z193)-SUM($T192:Z192))*Z190 -> 0 | AA203: =(SUM($T193:AA193)-SUM($T192:AA192))*AA190 -> 0 | AB203: =(SUM($T193:AB193)-SUM($T192:AB192))*AB190 -> 0 | AC203: =(SUM($T193:AC193)-SUM($T192:AC192))*AC190 -> 0 | AD203: =(SUM($T193:AD193)-SUM($T192:AD192))*AD190 -> 0 | AE203: =(SUM($T193:AE193)-SUM($T192:AE192))*AE190 -> 0 | AF203: =(SUM($T193:AF193)-SUM($T192:AF192))*AF190 -> 0 | AG203: =(SUM($T193:AG193)-SUM($T192:AG192))*AG190 -> 0 | AH203: =(SUM($T193:AH193)-SUM($T192:AH192))*AH190 -> 0 | AI203: =(SUM($T193:AI193)-SUM($T192:AI192))*AI190 -> 0
C205: Проверка согласованности остатков и потоков | F205: =SUM(T205:AI205) -> 0 | O205: =C205&"_"&J205&"_"&K205 -> Проверка согласованности остатков и потоков__ | Q205: =IF(SUM(S205:AI205)>ut_check_limit,1,0) -> 0 | S205: =ABS(SUM(T192:AI192)-SUM(T193:AI193)) -> 0 | T205: =ABS((T193-T194)*T190+S196-T196) + ABS(S198+T194*T190-T197-T198) -> 0 | U205: =ABS((U193-U194)*U190+T196-U196) + ABS(T198+U194*U190-U197-U198) -> 0 | V205: =ABS((V193-V194)*V190+U196-V196) + ABS(U198+V194*V190-V197-V198) -> 0 | W205: =ABS((W193-W194)*W190+V196-W196) + ABS(V198+W194*W190-W197-W198) -> 0 | X205: =ABS((X193-X194)*X190+W196-X196) + ABS(W198+X194*X190-X197-X198) -> 0 | Y205: =ABS((Y193-Y194)*Y190+X196-Y196) + ABS(X198+Y194*Y190-Y197-Y198) -> 0 | Z205: =ABS((Z193-Z194)*Z190+Y196-Z196) + ABS(Y198+Z194*Z190-Z197-Z198) -> 0 | AA205: =ABS((AA193-AA194)*AA190+Z196-AA196) + ABS(Z198+AA194*AA190-AA197-AA198) -> 0 | AB205: =ABS((AB193-AB194)*AB190+AA196-AB196) + ABS(AA198+AB194*AB190-AB197-AB198) -> 0 | AC205: =ABS((AC193-AC194)*AC190+AB196-AC196) + ABS(AB198+AC194*AC190-AC197-AC198) -> 0 | AD205: =ABS((AD193-AD194)*AD190+AC196-AD196) + ABS(AC198+AD194*AD190-AD197-AD198) -> 0 | AE205: =ABS((AE193-AE194)*AE190+AD196-AE196) + ABS(AD198+AE194*AE190-AE197-AE198) -> 0 | AF205: =ABS((AF193-AF194)*AF190+AE196-AF196) + ABS(AE198+AF194*AF190-AF197-AF198) -> 0 | AG205: =ABS((AG193-AG194)*AG190+AF196-AG196) + ABS(AF198+AG194*AG190-AG197-AG198) -> 0 | AH205: =ABS((AH193-AH194)*AH190+AG196-AH196) + ABS(AG198+AH194*AH190-AH197-AH198) -> 0 | AI205: =ABS((AI193-AI194)*AI190+AH196-AI196) + ABS(AH198+AI194*AI190-AI197-AI198) -> 0
C209: Граница блоков по группам капитальных затрат
C210: Проверка согласованности остатков и потоков | F210: =SUM(T210:AI210) -> 0 | O210: =C210&"_"&J210&"_"&K210 -> Проверка согласованности остатков и потоков__ | Q210: =IF(SUM(S210:AI210)>ut_check_limit,1,0) -> 0 | S210: =SUMIFS(S153:S208,$C$153:$C$208,$C$210)*Service!S95 -> 0 | T210: =SUMIFS(T153:T208,$C$153:$C$208,$C$210)*Service!T95 -> 0 | U210: =SUMIFS(U153:U208,$C$153:$C$208,$C$210)*Service!U95 -> 0 | V210: =SUMIFS(V153:V208,$C$153:$C$208,$C$210)*Service!V95 -> 0 | W210: =SUMIFS(W153:W208,$C$153:$C$208,$C$210)*Service!W95 -> 0 | X210: =SUMIFS(X153:X208,$C$153:$C$208,$C$210)*Service!X95 -> 0 | Y210: =SUMIFS(Y153:Y208,$C$153:$C$208,$C$210)*Service!Y95 -> 0 | Z210: =SUMIFS(Z153:Z208,$C$153:$C$208,$C$210)*Service!Z95 -> 0 | AA210: =SUMIFS(AA153:AA208,$C$153:$C$208,$C$210)*Service!AA95 -> 0 | AB210: =SUMIFS(AB153:AB208,$C$153:$C$208,$C$210)*Service!AB95 -> 0 | AC210: =SUMIFS(AC153:AC208,$C$153:$C$208,$C$210)*Service!AC95 -> 0 | AD210: =SUMIFS(AD153:AD208,$C$153:$C$208,$C$210)*Service!AD95 -> 0 | AE210: =SUMIFS(AE153:AE208,$C$153:$C$208,$C$210)*Service!AE95 -> 0 | AF210: =SUMIFS(AF153:AF208,$C$153:$C$208,$C$210)*Service!AF95 -> 0 | AG210: =SUMIFS(AG153:AG208,$C$153:$C$208,$C$210)*Service!AG95 -> 0 | AH210: =SUMIFS(AH153:AH208,$C$153:$C$208,$C$210)*Service!AH95 -> 0 | AI210: =SUMIFS(AI153:AI208,$C$153:$C$208,$C$210)*Service!AI95 -> 0
C212: Капитализированные расходы, проценты и комиссии
E213: учтены в OpEx? | F213: облагаются НДС? | T213: без НДС
C214: Капитализированные расходы - операционные расходы | D214: =ut_Digits&ut_LCU -> тыс. RUB | E214: да | F214: да | G214: ut_Maintenance_Capex_settings | H214: =MAX(T214:AI214) -> 0 | J214: =(E214="нет")*1 -> 0 | M214: =(F214="да")*1 -> 1 | AJ214: ut_Capitalized_Expenses
C215: Капитализированные расходы - финансовые расходы | D215: тыс. RUB | H215: =MAX(T215:AI215) -> 0
C216: Капитализированные расходы - всего | D216: тыс. RUB | H216: =SUM(T216:AI216) -> 0 | T216: =SUM(T214:T215) -> 0 | U216: 0 | V216: 0 | W216: 0 | X216: 0 | Y216: 0 | Z216: 0 | AA216: 0 | AB216: 0 | AC216: 0 | AD216: 0 | AE216: 0 | AF216: 0 | AG216: 0 | AH216: 0 | AI216: 0
C217: Капитализированные расходы - незавершенное строительство | D217: тыс. RUB | E217: на конец периода | AJ217: ut_CIP_Capitalized
C218: Капитализированные расходы - амортизация | D218: тыс. RUB | E218: со знаком плюс | H218: =SUM(T218:AI218) -> 0 | AJ218: ut_Deprication_Capitalized
C219: Капитализированные расходы - баланс основных средств | D219: тыс. RUB | E219: на конец периода | T219: =S219+T216 -> 0 | U219: =T219+U216 -> 0 | V219: 0 | W219: 0 | X219: 0 | Y219: 0 | Z219: 0 | AA219: 0 | AB219: 0 | AC219: 0 | AD219: 0 | AE219: 0 | AF219: 0 | AG219: 0 | AH219: 0 | AI219: 0 | AJ219: ut_Balance_Capitalized
C221: Проверка согласованности остатков и потоков по капитализированным расходам | F221: =SUM(T221:AI221) -> 0 | O221: =C221&"_"&J221&"_"&K221 -> Проверка согласованности остатков и потоков по капитализированным расходам__ | Q221: =IF(SUM(S221:AI221)>ut_check_limit,1,0) -> 0 | T221: =ABS((S217+S219)+T216-T217-T219+T218)*Service!T95 -> 0 | U221: =ABS((T217+T219)+U216-(U217+U219+U218))*Service!U95 -> 0 | V221: =ABS((U217+U219)+V216-(V217+V219+V218))*Service!V95 -> 0 | W221: =ABS((V217+V219)+W216-(W217+W219+W218))*Service!W95 -> 0 | X221: =ABS((W217+W219)+X216-(X217+X219+X218))*Service!X95 -> 0 | Y221: =ABS((X217+X219)+Y216-(Y217+Y219+Y218))*Service!Y95 -> 0 | Z221: =ABS((Y217+Y219)+Z216-(Z217+Z219+Z218))*Service!Z95 -> 0 | AA221: =ABS((Z217+Z219)+AA216-(AA217+AA219+AA218))*Service!AA95 -> 0 | AB221: =ABS((AA217+AA219)+AB216-(AB217+AB219+AB218))*Service!AB95 -> 0 | AC221: =ABS((AB217+AB219)+AC216-(AC217+AC219+AC218))*Service!AC95 -> 0 | AD221: =ABS((AC217+AC219)+AD216-(AD217+AD219+AD218))*Service!AD95 -> 0 | AE221: =ABS((AD217+AD219)+AE216-(AE217+AE219+AE218))*Service!AE95 -> 0 | AF221: =ABS((AE217+AE219)+AF216-(AF217+AF219+AF218))*Service!AF95 -> 0 | AG221: =ABS((AF217+AF219)+AG216-(AG217+AG219+AG218))*Service!AG95 -> 0 | AH221: =ABS((AG217+AG219)+AH216-(AH217+AH219+AH218))*Service!AH95 -> 0 | AI221: =ABS((AH217+AH219)+AI216-(AI217+AI219+AI218))*Service!AI95 -> 0
C223: Капитальные ремонты по группам основных средств в основной валюте модели
E224: капитализируются? | F224: облагаются НДС? | G224: ut_Maintenance_Capex_Names | T224: без НДС | AJ224: ut_Maintenance_Capex
B225: =B224+1 -> 1 | C225: =IFERROR(INDEX(ut_CapEx_Dir,B225,1),0) -> Проектирование | D225: =ut_Digits&ut_LCU -> тыс. RUB | E225: да | F225: да | H225: =SUM(T225:AI225) -> 0 | J225: =(E225="да")*1 -> 1 | K225: =K224+1 -> 1 | M225: =(F225="да")*1 -> 1 | T225: =0 -> 0 | U225: =0 -> 0 | V225: =0 -> 0 | W225: =0 -> 0 | X225: =0 -> 0 | Y225: =0 -> 0 | Z225: =0 -> 0 | AA225: =0 -> 0 | AB225: =0 -> 0 | AC225: =0 -> 0 | AD225: =0 -> 0 | AE225: =0 -> 0 | AF225: =0 -> 0 | AG225: =0 -> 0 | AH225: =0 -> 0 | AI225: =0 -> 0
B226: =B225+1 -> 2 | C226: =IFERROR(INDEX(ut_CapEx_Dir,B226,1),0) -> Строительство | D226: тыс. RUB | E226: да | F226: да | H226: =SUM(T226:AI226) -> 70000 | J226: =(E226="да")*1 -> 1 | K226: =K225+1 -> 2 | M226: =(F226="да")*1 -> 1 | T226: =0 -> 0 | U226: =0 -> 0 | V226: =0 -> 0 | W226: =0 -> 0 | X226: =0 -> 0 | Y226: =0 -> 0 | Z226: =0 -> 0 | AA226: =0 -> 0 | AB226: =0 -> 0 | AC226: 10000 | AD226: =AC226 -> 10000 | AE226: =AD226 -> 10000 | AF226: 10000 | AG226: 10000 | AH226: 10000 | AI226: 10000
B227: =B226+1 -> 3 | C227: =IFERROR(INDEX(ut_CapEx_Dir,B227,1),0) -> Приобретение лицензий на производство | D227: тыс. RUB | E227: нет | F227: да | H227: =SUM(T227:AI227) -> 0 | J227: =(E227="да")*1 -> 0 | K227: =K226+1 -> 3 | M227: =(F227="да")*1 -> 1 | T227: =0 -> 0 | U227: =0 -> 0 | V227: =0 -> 0 | W227: =0 -> 0 | X227: =0 -> 0 | Y227: =0 -> 0 | Z227: =0 -> 0 | AA227: =0 -> 0 | AB227: =0 -> 0 | AC227: =0 -> 0 | AD227: =0 -> 0 | AE227: =0 -> 0 | AF227: =0 -> 0 | AG227: =0 -> 0 | AH227: =0 -> 0 | AI227: =0 -> 0
C229: Капитальные ремонты - незавершенное строительство | D229: =ut_Digits&ut_LCU -> тыс. RUB | H229: =SUM(T229:AI229) -> 0 | T229: =0 -> 0 | U229: =0 -> 0 | V229: =0 -> 0 | W229: =0 -> 0 | X229: =0 -> 0 | Y229: =0 -> 0 | Z229: =0 -> 0 | AA229: =0 -> 0 | AB229: =0 -> 0 | AC229: =0 -> 0 | AD229: =0 -> 0 | AE229: =0 -> 0 | AF229: =0 -> 0 | AG229: =0 -> 0 | AH229: =0 -> 0 | AI229: =0 -> 0 | AJ229: ut_Maintenance_Capex_BS
C230: Капитальные ремонты - амортизация | D230: =ut_Digits&ut_LCU -> тыс. RUB | E230: =1/5 -> 0.2 | G230: Со знаком плюс | H230: =SUM(T230:AI230) -> 36000 | AA230: =SUM(W225:Z226)*$E230 -> 0 | AB230: 0 | AC230: 0 | AD230: 2000 | AE230: 4000 | AF230: 6000 | AG230: 8000 | AH230: 8000 | AI230: 8000
C231: Капитальные ремонты - баланс основных средств | D231: =ut_Digits&ut_LCU -> тыс. RUB | H231: =SUM(T231:AI231) -> 176000 | T231: =S231+IFERROR(SUMPRODUCT(T225:T226,$J225:$J226),0)-T230 -> 0 | U231: 0 | V231: 0 | W231: 0 | X231: 0 | Y231: 0 | Z231: 0 | AA231: 0 | AB231: 0 | AC231: 10000 | AD231: =AC231+IFERROR(SUMPRODUCT(AD225:AD226,$J225:$J226),0)-AD230 -> 18000 | AE231: =AD231+IFERROR(SUMPRODUCT(AE225:AE226,$J225:$J226),0)-AE230 -> 24000 | AF231: 28000 | AG231: 30000 | AH231: 32000 | AI231: 34000
G232: Прочие внеоборотные активы | H232: =ut_Digits&ut_LCU -> тыс. RUB | T232: =S232+SUMIFS(T225:T226,$J225:$J226,0) -> 0 | U232: 0 | V232: 0 | W232: 0 | X232: 0 | Y232: 0 | Z232: 0 | AA232: 0 | AB232: 0 | AC232: 0 | AD232: 0 | AE232: 0 | AF232: 0 | AG232: 0 | AH232: 0 | AI232: 0
C234: Проверка согласованности остатков и потоков по капитальным ремонтам | F234: =SUM(T234:AI234) -> 0 | O234: =C234&"_"&J234&"_"&K234 -> Проверка согласованности остатков и потоков по капитальным ремонтам__ | Q234: =IF(SUM(S234:AI234)>ut_check_limit,1,0) -> 0 | T234: =IFERROR((1-1*(SUMPRODUCT(T225:T225,$J225:$J225)<=SUM(T229:T231))),(1-1*(T225*$J225)<=SUM(T229:T231)))*Service!T95 -> 0 | U234: =IFERROR((1-1*(SUMPRODUCT(U225:U225,$J225:$J225)<=SUM(U229:U231))),(1-1*(U225*$J225)<=SUM(U229:U231)))*Service!U95 -> 0 | V234: =IFERROR((1-1*(SUMPRODUCT(V225:V225,$J225:$J225)<=SUM(V229:V231))),(1-1*(V225*$J225)<=SUM(V229:V231)))*Service!V95 -> 0 | W234: =IFERROR((1-1*(SUMPRODUCT(W225:W225,$J225:$J225)<=SUM(W229:W231))),(1-1*(W225*$J225)<=SUM(W229:W231)))*Service!W95 -> 0 | X234: =IFERROR((1-1*(SUMPRODUCT(X225:X225,$J225:$J225)<=SUM(X229:X231))),(1-1*(X225*$J225)<=SUM(X229:X231)))*Service!X95 -> 0 | Y234: =IFERROR((1-1*(SUMPRODUCT(Y225:Y225,$J225:$J225)<=SUM(Y229:Y231))),(1-1*(Y225*$J225)<=SUM(Y229:Y231)))*Service!Y95 -> 0 | Z234: =IFERROR((1-1*(SUMPRODUCT(Z225:Z225,$J225:$J225)<=SUM(Z229:Z231))),(1-1*(Z225*$J225)<=SUM(Z229:Z231)))*Service!Z95 -> 0 | AA234: =IFERROR((1-1*(SUMPRODUCT(AA225:AA225,$J225:$J225)<=SUM(AA229:AA231))),(1-1*(AA225*$J225)<=SUM(AA229:AA231)))*Service!AA95 -> 0 | AB234: =IFERROR((1-1*(SUMPRODUCT(AB225:AB225,$J225:$J225)<=SUM(AB229:AB231))),(1-1*(AB225*$J225)<=SUM(AB229:AB231)))*Service!AB95 -> 0 | AC234: =IFERROR((1-1*(SUMPRODUCT(AC225:AC225,$J225:$J225)<=SUM(AC229:AC231))),(1-1*(AC225*$J225)<=SUM(AC229:AC231)))*Service!AC95 -> 0 | AD234: =IFERROR((1-1*(SUMPRODUCT(AD225:AD225,$J225:$J225)<=SUM(AD229:AD231))),(1-1*(AD225*$J225)<=SUM(AD229:AD231)))*Service!AD95 -> 0 | AE234: =IFERROR((1-1*(SUMPRODUCT(AE225:AE225,$J225:$J225)<=SUM(AE229:AE231))),(1-1*(AE225*$J225)<=SUM(AE229:AE231)))*Service!AE95 -> 0 | AF234: =IFERROR((1-1*(SUMPRODUCT(AF225:AF225,$J225:$J225)<=SUM(AF229:AF231))),(1-1*(AF225*$J225)<=SUM(AF229:AF231)))*Service!AF95 -> 0 | AG234: =IFERROR((1-1*(SUMPRODUCT(AG225:AG225,$J225:$J225)<=SUM(AG229:AG231))),(1-1*(AG225*$J225)<=SUM(AG229:AG231)))*Service!AG95 -> 0 | AH234: =IFERROR((1-1*(SUMPRODUCT(AH225:AH225,$J225:$J225)<=SUM(AH229:AH231))),(1-1*(AH225*$J225)<=SUM(AH229:AH231)))*Service!AH95 -> 0 | AI234: =IFERROR((1-1*(SUMPRODUCT(AI225:AI225,$J225:$J225)<=SUM(AI229:AI231))),(1-1*(AI225*$J225)<=SUM(AI229:AI231)))*Service!AI95 -> 0
C236: Финансирование
G238: CFADS | H238: =ut_Digits&ut_LCU -> тыс. RUB | T238: =IF((ut_OpCF+ut_InvCF+ut_Equity_Attraction+Inputs!T233+ut_Subsidies+ut_Direct_Budget_Investments)>0,(ut_OpCF+ut_InvCF+ut_Equity_Attraction+Inputs!T233+ut_Subsidies+ut_Direct_Budget_Investments),0)*T$1 -> 0 | U238: =IF((ut_OpCF+ut_InvCF+ut_Equity_Attraction+Inputs!U233+ut_Subsidies+ut_Direct_Budget_Investments)>0,(ut_OpCF+ut_InvCF+ut_Equity_Attraction+Inputs!U233+ut_Subsidies+ut_Direct_Budget_Investments),0)*U$1 -> 0 | V238: =IF((ut_OpCF+ut_InvCF+ut_Equity_Attraction+Inputs!V233+ut_Subsidies+ut_Direct_Budget_Investments)>0,(ut_OpCF+ut_InvCF+ut_Equity_Attraction+Inputs!V233+ut_Subsidies+ut_Direct_Budget_Investments),0)*V$1 -> 0 | W238: =IF((ut_OpCF+ut_InvCF+ut_Equity_Attraction+Inputs!W233+ut_Subsidies+ut_Direct_Budget_Investments)>0,(ut_OpCF+ut_InvCF+ut_Equity_Attraction+Inputs!W233+ut_Subsidies+ut_Direct_Budget_Investments),0)*W$1 -> 0 | X238: =IF((ut_OpCF+ut_InvCF+ut_Equity_Attraction+Inputs!X233+ut_Subsidies+ut_Direct_Budget_Investments)>0,(ut_OpCF+ut_InvCF+ut_Equity_Attraction+Inputs!X233+ut_Subsidies+ut_Direct_Budget_Investments),0)*X$1 -> 3152.181777 | Y238: =IF((ut_OpCF+ut_InvCF+ut_Equity_Attraction+Inputs!Y233+ut_Subsidies+ut_Direct_Budget_Investments)>0,(ut_OpCF+ut_InvCF+ut_Equity_Attraction+Inputs!Y233+ut_Subsidies+ut_Direct_Budget_Investments),0)*Y$1 -> 0 | Z238: =IF((ut_OpCF+ut_InvCF+ut_Equity_Attraction+Inputs!Z233+ut_Subsidies+ut_Direct_Budget_Investments)>0,(ut_OpCF+ut_InvCF+ut_Equity_Attraction+Inputs!Z233+ut_Subsidies+ut_Direct_Budget_Investments),0)*Z$1 -> 4542441.686 | AA238: =IF((ut_OpCF+ut_InvCF+ut_Equity_Attraction+Inputs!AA233+ut_Subsidies+ut_Direct_Budget_Investments)>0,(ut_OpCF+ut_InvCF+ut_Equity_Attraction+Inputs!AA233+ut_Subsidies+ut_Direct_Budget_Investments),0)*AA$1 -> 2829282.548 | AB238: =IF((ut_OpCF+ut_InvCF+ut_Equity_Attraction+Inputs!AB233+ut_Subsidies+ut_Direct_Budget_Investments)>0,(ut_OpCF+ut_InvCF+ut_Equity_Attraction+Inputs!AB233+ut_Subsidies+ut_Direct_Budget_Investments),0)*AB$1 -> 3000325.64 | AC238: =IF((ut_OpCF+ut_InvCF+ut_Equity_Attraction+Inputs!AC233+ut_Subsidies+ut_Direct_Budget_Investments)>0,(ut_OpCF+ut_InvCF+ut_Equity_Attraction+Inputs!AC233+ut_Subsidies+ut_Direct_Budget_Investments),0)*AC$1 -> 2977518.697 | AD238: =IF((ut_OpCF+ut_InvCF+ut_Equity_Attraction+Inputs!AD233+ut_Subsidies+ut_Direct_Budget_Investments)>0,(ut_OpCF+ut_InvCF+ut_Equity_Attraction+Inputs!AD233+ut_Subsidies+ut_Direct_Budget_Investments),0)*AD$1 -> 2981005.624 | AE238: =IF((ut_OpCF+ut_InvCF+ut_Equity_Attraction+Inputs!AE233+ut_Subsidies+ut_Direct_Budget_Investments)>0,(ut_OpCF+ut_InvCF+ut_Equity_Attraction+Inputs!AE233+ut_Subsidies+ut_Direct_Budget_Investments),0)*AE$1 -> 2752830.354 | AF238: =IF((ut_OpCF+ut_InvCF+ut_Equity_Attraction+Inputs!AF233+ut_Subsidies+ut_Direct_Budget_Investments)>0,(ut_OpCF+ut_InvCF+ut_Equity_Attraction+Inputs!AF233+ut_Subsidies+ut_Direct_Budget_Investments),0)*AF$1 -> 2726218.952 | AG238: =IF((ut_OpCF+ut_InvCF+ut_Equity_Attraction+Inputs!AG233+ut_Subsidies+ut_Direct_Budget_Investments)>0,(ut_OpCF+ut_InvCF+ut_Equity_Attraction+Inputs!AG233+ut_Subsidies+ut_Direct_Budget_Investments),0)*AG$1 -> 2707322.873 | AH238: =IF((ut_OpCF+ut_InvCF+ut_Equity_Attraction+Inputs!AH233+ut_Subsidies+ut_Direct_Budget_Investments)>0,(ut_OpCF+ut_InvCF+ut_Equity_Attraction+Inputs!AH233+ut_Subsidies+ut_Direct_Budget_Investments),0)*AH$1 -> 2693426.138 | AI238: =IF((ut_OpCF+ut_InvCF+ut_Equity_Attraction+Inputs!AI233+ut_Subsidies+ut_Direct_Budget_Investments)>0,(ut_OpCF+ut_InvCF+ut_Equity_Attraction+Inputs!AI233+ut_Subsidies+ut_Direct_Budget_Investments),0)*AI$1 -> 2697566.911
G239: CFADS + остаток денежных средств на начало периода | H239: =ut_Digits&ut_LCU -> тыс. RUB | T239: =IF(('BS, PL, CF+RM'!S73+(ut_OpCF+ut_InvCF+ut_Equity_Attraction+Inputs!T233+ut_Subsidies+ut_Direct_Budget_Investments))>0,('BS, PL, CF+RM'!S73+(ut_OpCF+ut_InvCF+ut_Equity_Attraction+Inputs!T233+ut_Subsidies+ut_Direct_Budget_Investments)),0)*T$1 -> 0 | U239: =IF(('BS, PL, CF+RM'!T73+(ut_OpCF+ut_InvCF+ut_Equity_Attraction+Inputs!U233+ut_Subsidies+ut_Direct_Budget_Investments))>0,('BS, PL, CF+RM'!T73+(ut_OpCF+ut_InvCF+ut_Equity_Attraction+Inputs!U233+ut_Subsidies+ut_Direct_Budget_Investments)),0)*U$1 -> 0 | V239: =IF(('BS, PL, CF+RM'!U73+(ut_OpCF+ut_InvCF+ut_Equity_Attraction+Inputs!V233+ut_Subsidies+ut_Direct_Budget_Investments))>0,('BS, PL, CF+RM'!U73+(ut_OpCF+ut_InvCF+ut_Equity_Attraction+Inputs!V233+ut_Subsidies+ut_Direct_Budget_Investments)),0)*V$1 -> 0 | W239: =IF(('BS, PL, CF+RM'!V73+(ut_OpCF+ut_InvCF+ut_Equity_Attraction+Inputs!W233+ut_Subsidies+ut_Direct_Budget_Investments))>0,('BS, PL, CF+RM'!V73+(ut_OpCF+ut_InvCF+ut_Equity_Attraction+Inputs!W233+ut_Subsidies+ut_Direct_Budget_Investments)),0)*W$1 -> 0 | X239: =IF(('BS, PL, CF+RM'!W73+(ut_OpCF+ut_InvCF+ut_Equity_Attraction+Inputs!X233+ut_Subsidies+ut_Direct_Budget_Investments))>0,('BS, PL, CF+RM'!W73+(ut_OpCF+ut_InvCF+ut_Equity_Attraction+Inputs!X233+ut_Subsidies+ut_Direct_Budget_Investments)),0)*X$1 -> 3179.023105 | Y239: =IF(('BS, PL, CF+RM'!X73+(ut_OpCF+ut_InvCF+ut_Equity_Attraction+Inputs!Y233+ut_Subsidies+ut_Direct_Budget_Investments))>0,('BS, PL, CF+RM'!X73+(ut_OpCF+ut_InvCF+ut_Equity_Attraction+Inputs!Y233+ut_Subsidies+ut_Direct_Budget_Investments)),0)*Y$1 -> 0 | Z239: =IF(('BS, PL, CF+RM'!Y73+(ut_OpCF+ut_InvCF+ut_Equity_Attraction+Inputs!Z233+ut_Subsidies+ut_Direct_Budget_Investments))>0,('BS, PL, CF+RM'!Y73+(ut_OpCF+ut_InvCF+ut_Equity_Attraction+Inputs!Z233+ut_Subsidies+ut_Direct_Budget_Investments)),0)*Z$1 -> 4543435.995 | AA239: =IF(('BS, PL, CF+RM'!Z73+(ut_OpCF+ut_InvCF+ut_Equity_Attraction+Inputs!AA233+ut_Subsidies+ut_Direct_Budget_Investments))>0,('BS, PL, CF+RM'!Z73+(ut_OpCF+ut_InvCF+ut_Equity_Attraction+Inputs!AA233+ut_Subsidies+ut_Direct_Budget_Investments)),0)*AA$1 -> 3593980.276 | AB239: =IF(('BS, PL, CF+RM'!AA73+(ut_OpCF+ut_InvCF+ut_Equity_Attraction+Inputs!AB233+ut_Subsidies+ut_Direct_Budget_Investments))>0,('BS, PL, CF+RM'!AA73+(ut_OpCF+ut_InvCF+ut_Equity_Attraction+Inputs!AB233+ut_Subsidies+ut_Direct_Budget_Investments)),0)*AB$1 -> 3473654.906 | AC239: =IF(('BS, PL, CF+RM'!AB73+(ut_OpCF+ut_InvCF+ut_Equity_Attraction+Inputs!AC233+ut_Subsidies+ut_Direct_Budget_Investments))>0,('BS, PL, CF+RM'!AB73+(ut_OpCF+ut_InvCF+ut_Equity_Attraction+Inputs!AC233+ut_Subsidies+ut_Direct_Budget_Investments)),0)*AC$1 -> 3479941.47 | AD239: =IF(('BS, PL, CF+RM'!AC73+(ut_OpCF+ut_InvCF+ut_Equity_Attraction+Inputs!AD233+ut_Subsidies+ut_Direct_Budget_Investments))>0,('BS, PL, CF+RM'!AC73+(ut_OpCF+ut_InvCF+ut_Equity_Attraction+Inputs!AD233+ut_Subsidies+ut_Direct_Budget_Investments)),0)*AD$1 -> 3479774.909 | AE239: =IF(('BS, PL, CF+RM'!AD73+(ut_OpCF+ut_InvCF+ut_Equity_Attraction+Inputs!AE233+ut_Subsidies+ut_Direct_Budget_Investments))>0,('BS, PL, CF+RM'!AD73+(ut_OpCF+ut_InvCF+ut_Equity_Attraction+Inputs!AE233+ut_Subsidies+ut_Direct_Budget_Investments)),0)*AE$1 -> 3255229.862 | AF239: =IF(('BS, PL, CF+RM'!AE73+(ut_OpCF+ut_InvCF+ut_Equity_Attraction+Inputs!AF233+ut_Subsidies+ut_Direct_Budget_Investments))>0,('BS, PL, CF+RM'!AE73+(ut_OpCF+ut_InvCF+ut_Equity_Attraction+Inputs!AF233+ut_Subsidies+ut_Direct_Budget_Investments)),0)*AF$1 -> 3191047.541 | AG239: =IF(('BS, PL, CF+RM'!AF73+(ut_OpCF+ut_InvCF+ut_Equity_Attraction+Inputs!AG233+ut_Subsidies+ut_Direct_Budget_Investments))>0,('BS, PL, CF+RM'!AF73+(ut_OpCF+ut_InvCF+ut_Equity_Attraction+Inputs!AG233+ut_Subsidies+ut_Direct_Budget_Investments)),0)*AG$1 -> 3168609.419 | AH239: =IF(('BS, PL, CF+RM'!AG73+(ut_OpCF+ut_InvCF+ut_Equity_Attraction+Inputs!AH233+ut_Subsidies+ut_Direct_Budget_Investments))>0,('BS, PL, CF+RM'!AG73+(ut_OpCF+ut_InvCF+ut_Equity_Attraction+Inputs!AH233+ut_Subsidies+ut_Direct_Budget_Investments)),0)*AH$1 -> 4169386.479 | AI239: =IF(('BS, PL, CF+RM'!AH73+(ut_OpCF+ut_InvCF+ut_Equity_Attraction+Inputs!AI233+ut_Subsidies+ut_Direct_Budget_Investments))>0,('BS, PL, CF+RM'!AH73+(ut_OpCF+ut_InvCF+ut_Equity_Attraction+Inputs!AI233+ut_Subsidies+ut_Direct_Budget_Investments)),0)*AI$1 -> 5390993.049
D241: ut_Debt_Name_2 | F241: ut_Debt_Parameters | J241: ut_Debt_Name | O241: ut_Debt_Index
C242: Долговое финансирование - информация по отдельным кредитам | AJ242: ut_Debt_Data
B243: =MAX($B242:B$242)+1 -> 1 | C243: =INDEX(ut_Debt_Dir,B243,1)&" - "&INDEX(ut_Debt_Dir,B243,3) -> Кредит 1 - ВЭБ | D243: =H261 -> 11500000 | E243: =ut_Digits&M249 -> тыс. RUB
G244: CFADS с учетом предыдущих погашений | H244: =ut_Digits&ut_LCU -> тыс. RUB | N244: =IF(F250="да","ref","") ->  | T244: =IF((T$238-SUMIFS(T$241:T243,$F$241:$F243,"Выплата процентов*")-SUMIFS(T$241:T243,$F$241:$F243,"Погашение долга*")-SUMIFS(T$241:T243,$F$241:$F243,"Оплата комиссий*"))>0,(T$238-SUMIFS(T$241:T243,$F$241:$F243,"Выплата процентов*")-SUMIFS(T$241:T243,$F$241:$F243,"Погашение долга*")-SUMIFS(T$241:T243,$F$241:$F243,"Оплата комиссий*")),0)*T$1 -> 0 | U244: =IF((U$238-SUMIFS(U$241:U243,$F$241:$F243,"Выплата процентов*")-SUMIFS(U$241:U243,$F$241:$F243,"Погашение долга*")-SUMIFS(U$241:U243,$F$241:$F243,"Оплата комиссий*"))>0,(U$238-SUMIFS(U$241:U243,$F$241:$F243,"Выплата процентов*")-SUMIFS(U$241:U243,$F$241:$F243,"Погашение долга*")-SUMIFS(U$241:U243,$F$241:$F243,"Оплата комиссий*")),0)*U$1 -> 0 | V244: =IF((V$238-SUMIFS(V$241:V243,$F$241:$F243,"Выплата процентов*")-SUMIFS(V$241:V243,$F$241:$F243,"Погашение долга*")-SUMIFS(V$241:V243,$F$241:$F243,"Оплата комиссий*"))>0,(V$238-SUMIFS(V$241:V243,$F$241:$F243,"Выплата процентов*")-SUMIFS(V$241:V243,$F$241:$F243,"Погашение долга*")-SUMIFS(V$241:V243,$F$241:$F243,"Оплата комиссий*")),0)*V$1 -> 0 | W244: =IF((W$238-SUMIFS(W$241:W243,$F$241:$F243,"Выплата процентов*")-SUMIFS(W$241:W243,$F$241:$F243,"Погашение долга*")-SUMIFS(W$241:W243,$F$241:$F243,"Оплата комиссий*"))>0,(W$238-SUMIFS(W$241:W243,$F$241:$F243,"Выплата процентов*")-SUMIFS(W$241:W243,$F$241:$F243,"Погашение долга*")-SUMIFS(W$241:W243,$F$241:$F243,"Оплата комиссий*")),0)*W$1 -> 0 | X244: =IF((X$238-SUMIFS(X$241:X243,$F$241:$F243,"Выплата процентов*")-SUMIFS(X$241:X243,$F$241:$F243,"Погашение долга*")-SUMIFS(X$241:X243,$F$241:$F243,"Оплата комиссий*"))>0,(X$238-SUMIFS(X$241:X243,$F$241:$F243,"Выплата процентов*")-SUMIFS(X$241:X243,$F$241:$F243,"Погашение долга*")-SUMIFS(X$241:X243,$F$241:$F243,"Оплата комиссий*")),0)*X$1 -> 3152.181777 | Y244: =IF((Y$238-SUMIFS(Y$241:Y243,$F$241:$F243,"Выплата процентов*")-SUMIFS(Y$241:Y243,$F$241:$F243,"Погашение долга*")-SUMIFS(Y$241:Y243,$F$241:$F243,"Оплата комиссий*"))>0,(Y$238-SUMIFS(Y$241:Y243,$F$241:$F243,"Выплата процентов*")-SUMIFS(Y$241:Y243,$F$241:$F243,"Погашение долга*")-SUMIFS(Y$241:Y243,$F$241:$F243,"Оплата комиссий*")),0)*Y$1 -> 0 | Z244: =IF((Z$238-SUMIFS(Z$241:Z243,$F$241:$F243,"Выплата процентов*")-SUMIFS(Z$241:Z243,$F$241:$F243,"Погашение долга*")-SUMIFS(Z$241:Z243,$F$241:$F243,"Оплата комиссий*"))>0,(Z$238-SUMIFS(Z$241:Z243,$F$241:$F243,"Выплата процентов*")-SUMIFS(Z$241:Z243,$F$241:$F243,"Погашение долга*")-SUMIFS(Z$241:Z243,$F$241:$F243,"Оплата комиссий*")),0)*Z$1 -> 4542441.686 | AA244: =IF((AA$238-SUMIFS(AA$241:AA243,$F$241:$F243,"Выплата процентов*")-SUMIFS(AA$241:AA243,$F$241:$F243,"Погашение долга*")-SUMIFS(AA$241:AA243,$F$241:$F243,"Оплата комиссий*"))>0,(AA$238-SUMIFS(AA$241:AA243,$F$241:$F243,"Выплата процентов*")-SUMIFS(AA$241:AA243,$F$241:$F243,"Погашение долга*")-SUMIFS(AA$241:AA243,$F$241:$F243,"Оплата комиссий*")),0)*AA$1 -> 2829282.548 | AB244: =IF((AB$238-SUMIFS(AB$241:AB243,$F$241:$F243,"Выплата процентов*")-SUMIFS(AB$241:AB243,$F$241:$F243,"Погашение долга*")-SUMIFS(AB$241:AB243,$F$241:$F243,"Оплата комиссий*"))>0,(AB$238-SUMIFS(AB$241:AB243,$F$241:$F243,"Выплата процентов*")-SUMIFS(AB$241:AB243,$F$241:$F243,"Погашение долга*")-SUMIFS(AB$241:AB243,$F$241:$F243,"Оплата комиссий*")),0)*AB$1 -> 3000325.64 | AC244: =IF((AC$238-SUMIFS(AC$241:AC243,$F$241:$F243,"Выплата процентов*")-SUMIFS(AC$241:AC243,$F$241:$F243,"Погашение долга*")-SUMIFS(AC$241:AC243,$F$241:$F243,"Оплата комиссий*"))>0,(AC$238-SUMIFS(AC$241:AC243,$F$241:$F243,"Выплата процентов*")-SUMIFS(AC$241:AC243,$F$241:$F243,"Погашение долга*")-SUMIFS(AC$241:AC243,$F$241:$F243,"Оплата комиссий*")),0)*AC$1 -> 2977518.697 | AD244: =IF((AD$238-SUMIFS(AD$241:AD243,$F$241:$F243,"Выплата процентов*")-SUMIFS(AD$241:AD243,$F$241:$F243,"Погашение долга*")-SUMIFS(AD$241:AD243,$F$241:$F243,"Оплата комиссий*"))>0,(AD$238-SUMIFS(AD$241:AD243,$F$241:$F243,"Выплата процентов*")-SUMIFS(AD$241:AD243,$F$241:$F243,"Погашение долга*")-SUMIFS(AD$241:AD243,$F$241:$F243,"Оплата комиссий*")),0)*AD$1 -> 2981005.624 | AE244: =IF((AE$238-SUMIFS(AE$241:AE243,$F$241:$F243,"Выплата процентов*")-SUMIFS(AE$241:AE243,$F$241:$F243,"Погашение долга*")-SUMIFS(AE$241:AE243,$F$241:$F243,"Оплата комиссий*"))>0,(AE$238-SUMIFS(AE$241:AE243,$F$241:$F243,"Выплата процентов*")-SUMIFS(AE$241:AE243,$F$241:$F243,"Погашение долга*")-SUMIFS(AE$241:AE243,$F$241:$F243,"Оплата комиссий*")),0)*AE$1 -> 2752830.354 | AF244: =IF((AF$238-SUMIFS(AF$241:AF243,$F$241:$F243,"Выплата процентов*")-SUMIFS(AF$241:AF243,$F$241:$F243,"Погашение долга*")-SUMIFS(AF$241:AF243,$F$241:$F243,"Оплата комиссий*"))>0,(AF$238-SUMIFS(AF$241:AF243,$F$241:$F243,"Выплата процентов*")-SUMIFS(AF$241:AF243,$F$241:$F243,"Погашение долга*")-SUMIFS(AF$241:AF243,$F$241:$F243,"Оплата комиссий*")),0)*AF$1 -> 2726218.952 | AG244: =IF((AG$238-SUMIFS(AG$241:AG243,$F$241:$F243,"Выплата процентов*")-SUMIFS(AG$241:AG243,$F$241:$F243,"Погашение долга*")-SUMIFS(AG$241:AG243,$F$241:$F243,"Оплата комиссий*"))>0,(AG$238-SUMIFS(AG$241:AG243,$F$241:$F243,"Выплата процентов*")-SUMIFS(AG$241:AG243,$F$241:$F243,"Погашение долга*")-SUMIFS(AG$241:AG243,$F$241:$F243,"Оплата комиссий*")),0)*AG$1 -> 2707322.873 | AH244: =IF((AH$238-SUMIFS(AH$241:AH243,$F$241:$F243,"Выплата процентов*")-SUMIFS(AH$241:AH243,$F$241:$F243,"Погашение долга*")-SUMIFS(AH$241:AH243,$F$241:$F243,"Оплата комиссий*"))>0,(AH$238-SUMIFS(AH$241:AH243,$F$241:$F243,"Выплата процентов*")-SUMIFS(AH$241:AH243,$F$241:$F243,"Погашение долга*")-SUMIFS(AH$241:AH243,$F$241:$F243,"Оплата комиссий*")),0)*AH$1 -> 2693426.138 | AI244: =IF((AI$238-SUMIFS(AI$241:AI243,$F$241:$F243,"Выплата процентов*")-SUMIFS(AI$241:AI243,$F$241:$F243,"Погашение долга*")-SUMIFS(AI$241:AI243,$F$241:$F243,"Оплата комиссий*"))>0,(AI$238-SUMIFS(AI$241:AI243,$F$241:$F243,"Выплата процентов*")-SUMIFS(AI$241:AI243,$F$241:$F243,"Погашение долга*")-SUMIFS(AI$241:AI243,$F$241:$F243,"Оплата комиссий*")),0)*AI$1 -> 2697566.911
G245: CFADS + остаток денежных средств на начало периода | H245: =ut_Digits&ut_LCU -> тыс. RUB | T245: =IF((T$239-SUMIFS(T$241:T244,$F$241:$F244,"Выплата процентов*")-SUMIFS(T$241:T244,$F$241:$F244,"Погашение долга*")-SUMIFS(T$241:T244,$F$241:$F244,"Оплата комиссий*"))>0,(T$239-SUMIFS(T$241:T244,$F$241:$F244,"Выплата процентов*")-SUMIFS(T$241:T244,$F$241:$F244,"Погашение долга*")-SUMIFS(T$241:T244,$F$241:$F244,"Оплата комиссий*")),0)*T$1 -> 0 | U245: =IF((U$239-SUMIFS(U$241:U244,$F$241:$F244,"Выплата процентов*")-SUMIFS(U$241:U244,$F$241:$F244,"Погашение долга*")-SUMIFS(U$241:U244,$F$241:$F244,"Оплата комиссий*"))>0,(U$239-SUMIFS(U$241:U244,$F$241:$F244,"Выплата процентов*")-SUMIFS(U$241:U244,$F$241:$F244,"Погашение долга*")-SUMIFS(U$241:U244,$F$241:$F244,"Оплата комиссий*")),0)*U$1 -> 0 | V245: =IF((V$239-SUMIFS(V$241:V244,$F$241:$F244,"Выплата процентов*")-SUMIFS(V$241:V244,$F$241:$F244,"Погашение долга*")-SUMIFS(V$241:V244,$F$241:$F244,"Оплата комиссий*"))>0,(V$239-SUMIFS(V$241:V244,$F$241:$F244,"Выплата процентов*")-SUMIFS(V$241:V244,$F$241:$F244,"Погашение долга*")-SUMIFS(V$241:V244,$F$241:$F244,"Оплата комиссий*")),0)*V$1 -> 0 | W245: =IF((W$239-SUMIFS(W$241:W244,$F$241:$F244,"Выплата процентов*")-SUMIFS(W$241:W244,$F$241:$F244,"Погашение долга*")-SUMIFS(W$241:W244,$F$241:$F244,"Оплата комиссий*"))>0,(W$239-SUMIFS(W$241:W244,$F$241:$F244,"Выплата процентов*")-SUMIFS(W$241:W244,$F$241:$F244,"Погашение долга*")-SUMIFS(W$241:W244,$F$241:$F244,"Оплата комиссий*")),0)*W$1 -> 0 | X245: =IF((X$239-SUMIFS(X$241:X244,$F$241:$F244,"Выплата процентов*")-SUMIFS(X$241:X244,$F$241:$F244,"Погашение долга*")-SUMIFS(X$241:X244,$F$241:$F244,"Оплата комиссий*"))>0,(X$239-SUMIFS(X$241:X244,$F$241:$F244,"Выплата процентов*")-SUMIFS(X$241:X244,$F$241:$F244,"Погашение долга*")-SUMIFS(X$241:X244,$F$241:$F244,"Оплата комиссий*")),0)*X$1 -> 3179.023105 | Y245: =IF((Y$239-SUMIFS(Y$241:Y244,$F$241:$F244,"Выплата процентов*")-SUMIFS(Y$241:Y244,$F$241:$F244,"Погашение долга*")-SUMIFS(Y$241:Y244,$F$241:$F244,"Оплата комиссий*"))>0,(Y$239-SUMIFS(Y$241:Y244,$F$241:$F244,"Выплата процентов*")-SUMIFS(Y$241:Y244,$F$241:$F244,"Погашение долга*")-SUMIFS(Y$241:Y244,$F$241:$F244,"Оплата комиссий*")),0)*Y$1 -> 0 | Z245: =IF((Z$239-SUMIFS(Z$241:Z244,$F$241:$F244,"Выплата процентов*")-SUMIFS(Z$241:Z244,$F$241:$F244,"Погашение долга*")-SUMIFS(Z$241:Z244,$F$241:$F244,"Оплата комиссий*"))>0,(Z$239-SUMIFS(Z$241:Z244,$F$241:$F244,"Выплата процентов*")-SUMIFS(Z$241:Z244,$F$241:$F244,"Погашение долга*")-SUMIFS(Z$241:Z244,$F$241:$F244,"Оплата комиссий*")),0)*Z$1 -> 4543435.995 | AA245: =IF((AA$239-SUMIFS(AA$241:AA244,$F$241:$F244,"Выплата процентов*")-SUMIFS(AA$241:AA244,$F$241:$F244,"Погашение долга*")-SUMIFS(AA$241:AA244,$F$241:$F244,"Оплата комиссий*"))>0,(AA$239-SUMIFS(AA$241:AA244,$F$241:$F244,"Выплата процентов*")-SUMIFS(AA$241:AA244,$F$241:$F244,"Погашение долга*")-SUMIFS(AA$241:AA244,$F$241:$F244,"Оплата комиссий*")),0)*AA$1 -> 3593980.276 | AB245: =IF((AB$239-SUMIFS(AB$241:AB244,$F$241:$F244,"Выплата процентов*")-SUMIFS(AB$241:AB244,$F$241:$F244,"Погашение долга*")-SUMIFS(AB$241:AB244,$F$241:$F244,"Оплата комиссий*"))>0,(AB$239-SUMIFS(AB$241:AB244,$F$241:$F244,"Выплата процентов*")-SUMIFS(AB$241:AB244,$F$241:$F244,"Погашение долга*")-SUMIFS(AB$241:AB244,$F$241:$F244,"Оплата комиссий*")),0)*AB$1 -> 3473654.906 | AC245: =IF((AC$239-SUMIFS(AC$241:AC244,$F$241:$F244,"Выплата процентов*")-SUMIFS(AC$241:AC244,$F$241:$F244,"Погашение долга*")-SUMIFS(AC$241:AC244,$F$241:$F244,"Оплата комиссий*"))>0,(AC$239-SUMIFS(AC$241:AC244,$F$241:$F244,"Выплата процентов*")-SUMIFS(AC$241:AC244,$F$241:$F244,"Погашение долга*")-SUMIFS(AC$241:AC244,$F$241:$F244,"Оплата комиссий*")),0)*AC$1 -> 3479941.47 | AD245: =IF((AD$239-SUMIFS(AD$241:AD244,$F$241:$F244,"Выплата процентов*")-SUMIFS(AD$241:AD244,$F$241:$F244,"Погашение долга*")-SUMIFS(AD$241:AD244,$F$241:$F244,"Оплата комиссий*"))>0,(AD$239-SUMIFS(AD$241:AD244,$F$241:$F244,"Выплата процентов*")-SUMIFS(AD$241:AD244,$F$241:$F244,"Погашение долга*")-SUMIFS(AD$241:AD244,$F$241:$F244,"Оплата комиссий*")),0)*AD$1 -> 3479774.909 | AE245: =IF((AE$239-SUMIFS(AE$241:AE244,$F$241:$F244,"Выплата процентов*")-SUMIFS(AE$241:AE244,$F$241:$F244,"Погашение долга*")-SUMIFS(AE$241:AE244,$F$241:$F244,"Оплата комиссий*"))>0,(AE$239-SUMIFS(AE$241:AE244,$F$241:$F244,"Выплата процентов*")-SUMIFS(AE$241:AE244,$F$241:$F244,"Погашение долга*")-SUMIFS(AE$241:AE244,$F$241:$F244,"Оплата комиссий*")),0)*AE$1 -> 3255229.862 | AF245: =IF((AF$239-SUMIFS(AF$241:AF244,$F$241:$F244,"Выплата процентов*")-SUMIFS(AF$241:AF244,$F$241:$F244,"Погашение долга*")-SUMIFS(AF$241:AF244,$F$241:$F244,"Оплата комиссий*"))>0,(AF$239-SUMIFS(AF$241:AF244,$F$241:$F244,"Выплата процентов*")-SUMIFS(AF$241:AF244,$F$241:$F244,"Погашение долга*")-SUMIFS(AF$241:AF244,$F$241:$F244,"Оплата комиссий*")),0)*AF$1 -> 3191047.541 | AG245: =IF((AG$239-SUMIFS(AG$241:AG244,$F$241:$F244,"Выплата процентов*")-SUMIFS(AG$241:AG244,$F$241:$F244,"Погашение долга*")-SUMIFS(AG$241:AG244,$F$241:$F244,"Оплата комиссий*"))>0,(AG$239-SUMIFS(AG$241:AG244,$F$241:$F244,"Выплата процентов*")-SUMIFS(AG$241:AG244,$F$241:$F244,"Погашение долга*")-SUMIFS(AG$241:AG244,$F$241:$F244,"Оплата комиссий*")),0)*AG$1 -> 3168609.419 | AH245: =IF((AH$239-SUMIFS(AH$241:AH244,$F$241:$F244,"Выплата процентов*")-SUMIFS(AH$241:AH244,$F$241:$F244,"Погашение долга*")-SUMIFS(AH$241:AH244,$F$241:$F244,"Оплата комиссий*"))>0,(AH$239-SUMIFS(AH$241:AH244,$F$241:$F244,"Выплата процентов*")-SUMIFS(AH$241:AH244,$F$241:$F244,"Погашение долга*")-SUMIFS(AH$241:AH244,$F$241:$F244,"Оплата комиссий*")),0)*AH$1 -> 4169386.479 | AI245: =IF((AI$239-SUMIFS(AI$241:AI244,$F$241:$F244,"Выплата процентов*")-SUMIFS(AI$241:AI244,$F$241:$F244,"Погашение долга*")-SUMIFS(AI$241:AI244,$F$241:$F244,"Оплата комиссий*"))>0,(AI$239-SUMIFS(AI$241:AI244,$F$241:$F244,"Выплата процентов*")-SUMIFS(AI$241:AI244,$F$241:$F244,"Погашение долга*")-SUMIFS(AI$241:AI244,$F$241:$F244,"Оплата комиссий*")),0)*AI$1 -> 5390993.049
G246: CFADS после выплаты % и комиссий | H246: =ut_Digits&ut_LCU -> тыс. RUB | T246: =(T244-T273-T272)*((T244-T273-T272)>0)*T$1 -> 0 | U246: =(U244-U273-U272)*((U244-U273-U272)>0)*U$1 -> 0 | V246: 0 | W246: 0 | X246: 0 | Y246: 0 | Z246: 3423686.044 | AA246: 970015.7015 | AB246: 1200812.607 | AC246: 1178275.464 | AD246: 2378150.237 | AE246: 2337390.604 | AF246: 2506676.816 | AG246: 2648686.562 | AH246: 2693426.138 | AI246: 2697566.911
... 248 more rows

Sheet BS, PL, CF+RM
H1: Номер периода | Q1: template | T1: =ut_Counter -> 1 | U1: 2 | V1: 3 | W1: 4 | X1: 5 | Y1: 6 | Z1: 7 | AA1: 8 | AB1: 9 | AC1: 10 | AD1: 11 | AE1: 12 | AF1: 13 | AG1: 14 | AH1: 15 | AI1: 16 | AJ1: ut_Counter
H2: Начало периода | T2: =ut_Beginning_of_Period -> 2020-01-01 | U2: 2021-01-01 | V2: 2022-01-01 | W2: 2023-01-01 | X2: 2024-01-01 | Y2: 2025-01-01 | Z2: 2026-01-01 | AA2: 2027-01-01 | AB2: 2028-01-01 | AC2: 2029-01-01 | AD2: 2030-01-01 | AE2: 2031-01-01 | AF2: 2032-01-01 | AG2: 2033-01-01 | AH2: 2034-01-01 | AI2: 2035-01-01 | AJ2: ut_Beginning_of_Period
H3: Окончание периода | T3: =ut_End_of_Period -> 2020-12-31 | U3: 2021-12-31 | V3: 2022-12-31 | W3: 2023-12-31 | X3: 2024-12-31 | Y3: 2025-12-31 | Z3: 2026-12-31 | AA3: 2027-12-31 | AB3: 2028-12-31 | AC3: 2029-12-31 | AD3: 2030-12-31 | AE3: 2031-12-31 | AF3: 2032-12-31 | AG3: 2033-12-31 | AH3: 2034-12-31 | AI3: 2035-12-31 | AJ3: ut_End_of_Period
H4: Период строительства | T4: =ut_Construction_Period -> 1 | U4: 1 | V4: 1 | W4: 1 | X4: 1 | Y4: 1 | Z4: 0 | AA4: 0 | AB4: 0 | AC4: 0 | AD4: 0 | AE4: 0 | AF4: 0 | AG4: 0 | AH4: 0 | AI4: 0 | AJ4: ut_Construction_Period
H5: Период запуска | T5: =ut_RampUp_Period -> 0 | U5: 0 | V5: 0 | W5: 0 | X5: 0 | Y5: 0 | Z5: 0 | AA5: 0 | AB5: 0 | AC5: 0 | AD5: 0 | AE5: 0 | AF5: 0 | AG5: 0 | AH5: 0 | AI5: 0 | AJ5: ut_RampUp_Period
H6: Операционный период | Q6: source | T6: =ut_Operation_Period -> 0 | U6: 0 | V6: 0 | W6: 0 | X6: 0 | Y6: 0 | Z6: 1 | AA6: 1 | AB6: 1 | AC6: 1 | AD6: 1 | AE6: 1 | AF6: 1 | AG6: 1 | AH6: 1 | AI6: 1 | AJ6: ut_Operation_Period
C7: CF
C9: OpCF | D9: =ut_Digits&ut_LCU -> тыс. RUB | H9: =SUM(ut_OpCF) -> 28003184.55 | T9: =T38 -> -35696.50817 | U9: -49701.66078 | V9: -49982.04807 | W9: =W38 -> -49573.15867 | X9: -55325.53181 | Y9: -53142.63331 | Z9: 2859108.353 | AA9: 2829282.548 | AB9: 3000325.64 | AC9: 2989518.697 | AD9: 2991005.624 | AE9: 2762830.354 | AF9: 2736218.952 | AG9: 2717322.873 | AH9: 2703426.138 | AI9: 2707566.911 | AJ9: ut_OpCF
C10: Операционные доходы | D10: =ut_Digits&ut_LCU -> тыс. RUB | E10: без НДС | H10: =SUM(T10:AI10) -> 47463496.98 | I10: + | T10: =SUM(T11:T13) -> 0 | U10: =SUM(U11:U13) -> 0 | V10: 0 | W10: =SUM(W11:W13) -> 0 | X10: 0 | Y10: 0 | Z10: 4574163.846 | AA10: 4558144.233 | AB10: 4603926.736 | AC10: 4647341.72 | AD10: 4691494.572 | AE10: 4747743.12 | AF10: 4805120.133 | AG10: 4875542.363 | AH10: 4945697.934 | AI10: 5014322.322 | AJ10: ut_Revenue_Total_CF
B11: =B10+1 -> 1 | C11: =INDEX(ut_Products_Dom_Dir,$B11,1) -> Продукт 1 | D11: =ut_Digits&ut_LCU -> тыс. RUB | E11: без НДС | H11: =SUM(T11:AI11) -> 9934183.302 | T11: =INDEX(ut_Revenue_Total_Inputs,$B11,T$1) -> 0 | U11: 0 | V11: 0 | W11: 0 | X11: 0 | Y11: 0 | Z11: 846432.9057 | AA11: 877800.1516 | AB11: 909638.5328 | AC11: 941867.403 | AD11: =INDEX(ut_Revenue_Total_Inputs,$B11,AD$1) -> 974742.2763 | AE11: 1008014.977 | AF11: 1041743.275 | AG11: 1076304.456 | AH11: 1111534.842 | AI11: 1146104.481
B12: =B11+1 -> 2 | C12: =INDEX(ut_Products_Dom_Dir,$B12,1) -> Продукт 2 | D12: =ut_Digits&ut_LCU -> тыс. RUB | E12: без НДС | H12: =SUM(T12:AI12) -> 37529313.68 | T12: 0 | U12: 0 | V12: 0 | W12: 0 | X12: 0 | Y12: 0 | Z12: 3727730.941 | AA12: 3680344.081 | AB12: 3694288.203 | AC12: 3705474.317 | AD12: 3716752.296 | AE12: 3739728.142 | AF12: 3763376.858 | AG12: 3799237.907 | AH12: 3834163.093 | AI12: 3868217.84
C15: НДС полученный в составе опер доходов | D15: =ut_Digits&ut_LCU -> тыс. RUB | H15: =SUM(T15:AI15) -> 1986836.66 | T15: =ut_Revenue_VAT -> 0 | U15: 0 | V15: 0 | W15: 0 | X15: 0 | Y15: 0 | Z15: 169286.5811 | AA15: 175560.0303 | AB15: 181927.7066 | AC15: 188373.4806 | AD15: 194948.4553 | AE15: 201602.9955 | AF15: 208348.6551 | AG15: 215260.8912 | AH15: 222306.9684 | AI15: 229220.8963
C16: Внереализационные доходы | D16: =ut_Digits&ut_LCU -> тыс. RUB | E16: без НДС | H16: =SUM(T16:AI16) -> 0 | T16: =ut_Other_Income -> 0 | U16: 0 | V16: 0 | W16: 0 | X16: 0 | Y16: 0 | Z16: 0 | AA16: 0 | AB16: 0 | AC16: 0 | AD16: 0 | AE16: 0 | AF16: 0 | AG16: 0 | AH16: 0 | AI16: 0
C17: НДС полученный в составе внеопер доходов | D17: =ut_Digits&ut_LCU -> тыс. RUB | T17: =ut_NonOpC_Income_VAT -> 0 | U17: 0 | V17: 0 | W17: 0 | X17: 0 | Y17: 0 | Z17: 0 | AA17: 0 | AB17: 0 | AC17: 0 | AD17: 0 | AE17: 0 | AF17: 0 | AG17: 0 | AH17: 0 | AI17: 0
C18: НДС OpEx - возмещение | D18: =ut_Digits&ut_LCU -> тыс. RUB | H18: =SUM(T18:AI18) -> 0 | T18: =ut_OpEx_VAT_receive -> 0 | U18: 0 | V18: 0 | W18: 0 | X18: 0 | Y18: 0 | Z18: 0 | AA18: 0 | AB18: 0 | AC18: 0 | AD18: 0 | AE18: 0 | AF18: 0 | AG18: 0 | AH18: 0 | AI18: 0
C19: Сальдо оборотного капитала | D19: =ut_Digits&ut_LCU -> тыс. RUB | F19: on | H19: =SUM(T19:AI19) -> -501661.9125 | T19: =ut_NWC_delta*($F19="on") -> 0 | U19: 0 | V19: 0 | W19: 0 | X19: 0 | Y19: 0 | Z19: -457820.5471 | AA19: 1619.335201 | AB19: -4561.680982 | AC19: -4326.390554 | AD19: -4403.668479 | AE19: -5607.12422 | AF19: -5719.554387 | AG19: -7022.882733 | AH19: -6995.268437 | AI19: -6824.130838
C21: Операционные расходы | D21: =ut_Digits&ut_LCU -> тыс. RUB | E21: без НДС | H21: =SUM(T21:AI21) -> -14096720.65 | I21: - | T21: =SUM(T22:T30) -> -35696.50817 | U21: =SUM(U22:U30) -> -37040.96241 | V21: -37910.24055 | W21: =SUM(W22:W30) -> -37515.20678 | X21: -42173.15338 | Y21: -41717.25686 | Z21: -1208929.508 | AA21: -1244122.975 | AB21: -1282481.171 | AC21: -1321613.933 | AD21: -1361401.479 | AE21: -1402773.179 | AF21: -1444437.025 | AG21: -1488196.423 | AH21: -1532762.702 | AI21: -1577948.925
C22: =Calculations!C322 -> Постоянные операционные расходы | D22: =ut_Digits&ut_LCU -> тыс. RUB | E22: без НДС | H22: =SUM(T22:AI22) -> -655831.459 | T22: =-Calculations!T322 -> -35696.50817 | U22: =-Calculations!U322 -> -37040.96241 | V22: =-Calculations!V322 -> -37910.24055 | W22: =-Calculations!W322 -> -37515.20678 | X22: =-Calculations!X322 -> -42173.15338 | Y22: =-Calculations!Y322 -> -41717.25686 | Z22: =-Calculations!Z322 -> -41748.52322 | AA22: =-Calculations!AA322 -> -41731.20718 | AB22: =-Calculations!AB322 -> -41723.44316 | AC22: =-Calculations!AC322 -> -41930.12563 | AD22: =-Calculations!AD322 -> -42204.40757 | AE22: =-Calculations!AE322 -> -42574.62638 | AF22: =-Calculations!AF322 -> -42565.44544 | AG22: =-Calculations!AG322 -> -42888.16234 | AH22: =-Calculations!AH322 -> -43056.84636 | AI22: =-Calculations!AI322 -> -43355.34356
C23: =Calculations!C323 -> Переменные (общие операционные расходы) | D23: =ut_Digits&ut_LCU -> тыс. RUB | E23: без НДС | H23: =SUM(T23:AI23) -> -2266122.374 | T23: =-Calculations!T323 -> 0 | U23: =-Calculations!U323 -> 0 | V23: =-Calculations!V323 -> 0 | W23: =-Calculations!W323 -> 0 | X23: =-Calculations!X323 -> 0 | Y23: =-Calculations!Y323 -> 0 | Z23: =-Calculations!Z323 -> -194289.5348 | AA23: =-Calculations!AA323 -> -198731.0455 | AB23: =-Calculations!AB323 -> -205896.8252 | AC23: =-Calculations!AC323 -> -213085.309 | AD23: =-Calculations!AD323 -> -220433.5267 | AE23: =-Calculations!AE323 -> -228610.4482 | AF23: =-Calculations!AF323 -> -237026.4946 | AG23: =-Calculations!AG323 -> -246357.6497 | AH23: =-Calculations!AH323 -> -255933.0904 | AI23: =-Calculations!AI323 -> -265758.4499
AJ24: ut_OPEX_VC_CF
B25: =B24+1 -> 1 | C25: =Calculations!C325 -> Переменные расходы на Продукт 1 | D25: =ut_Digits&ut_LCU -> тыс. RUB | E25: без НДС | H25: =SUM(T25:AI25) -> -6065956.409 | T25: =-INDEX(ut_OPEX_VC_Calc,$B25,T$1) -> 0 | U25: 0 | V25: 0 | W25: 0 | X25: 0 | Y25: 0 | Z25: -510605.7341 | AA25: -531145.4115 | AB25: -551940.3199 | AC25: -572907.0376 | AD25: =-INDEX(ut_OPEX_VC_Calc,$B25,AD$1) -> -594104.323 | AE25: -615856.7791 | AF25: -637915.7731 | AG25: -660556.7463 | AH25: -683664.8125 | AI25: -707259.4722
B26: =B25+1 -> 2 | C26: =Calculations!C326 -> Переменные расходы на Продукт 2 | D26: =ut_Digits&ut_LCU -> тыс. RUB | E26: без НДС | H26: =SUM(T26:AI26) -> -3704271.74 | T26: 0 | U26: 0 | V26: 0 | W26: 0 | X26: 0 | Y26: 0 | Z26: -315619.0496 | AA26: -327315.3108 | AB26: -339187.2495 | AC26: -351204.7943 | AD26: -363463.2217 | AE26: -375869.9916 | AF26: -388446.645 | AG26: -401333.865 | AH26: -414470.619 | AI26: -427360.9931
C28: =Calculations!C331 -> Налог на имущество | D28: =ut_Digits&ut_LCU -> тыс. RUB | H28: =SUM(T28:AI28) -> -1404538.667 | T28: =-ut_Property_Tax -> 0 | U28: 0 | V28: 0 | W28: 0 | X28: 0 | Y28: 0 | Z28: -146666.6667 | AA28: -145200 | AB28: -143733.3333 | AC28: -142486.6667 | AD28: -141196 | AE28: -139861.3333 | AF28: -138482.6667 | AG28: -137060 | AH28: -135637.3333 | AI28: -134214.6667
C30: Прочие (капитализируемые) операционные расходы | D30: =ut_Digits&ut_LCU -> тыс. RUB | E30: без НДС | H30: =SUM(T30:AI30) -> 0 | T30: =-Calculations!T334 -> 0 | U30: =-Calculations!U334 -> 0 | V30: =-Calculations!V334 -> 0 | W30: =-Calculations!W334 -> 0 | X30: =-Calculations!X334 -> 0 | Y30: =-Calculations!Y334 -> 0 | Z30: =-Calculations!Z334 -> 0 | AA30: =-Calculations!AA334 -> 0 | AB30: =-Calculations!AB334 -> 0 | AC30: =-Calculations!AC334 -> 0 | AD30: =-Calculations!AD334 -> 0 | AE30: =-Calculations!AE334 -> 0 | AF30: =-Calculations!AF334 -> 0 | AG30: =-Calculations!AG334 -> 0 | AH30: =-Calculations!AH334 -> 0 | AI30: =-Calculations!AI334 -> 0
C33: НДС уплаченный в составе опер расходов | D33: =ut_Digits&ut_LCU -> тыс. RUB | F33: + капитализируемые | H33: =SUM(T33:AI33) -> -2329292.384 | T33: =-ut_OpEx_VAT -> 0 | U33: 0 | V33: 0 | W33: 0 | X33: -1135.419785 | Y33: -1180.007123 | Z33: -196178.4138 | AA33: -203589.2253 | AB33: -211509.9132 | AC33: -219515.4438 | AD33: -227644.6048 | AE33: -236057.4617 | AF33: -244612.2197 | AG33: -253503.5888 | AH33: -262589.0334 | AI33: -271777.0522
C34: НДС уплаченный в составе внеопер расходов | D34: =ut_Digits&ut_LCU -> тыс. RUB | T34: =-ut_NonOpC_Expenses_VAT -> 0 | U34: 0 | V34: 0 | W34: 0 | X34: 0 | Y34: 0 | Z34: 2869.264087 | AA34: 2975.593734 | AB34: 3083.52045 | AC34: 3192.770858 | AD34: 3304.211106 | AE34: 3416.999923 | AF34: 3531.333137 | AG34: 3648.489682 | AH34: 3767.914718 | AI34: 3885.099937
C35: НДС (фактическая оплата) | D35: =ut_Digits&ut_LCU -> тыс. RUB | H35: =SUM(T35:AI35) -> 0 | T35: =-ut_VAT_to_pay -> 0 | U35: 0 | V35: 0 | W35: 0 | X35: 0 | Y35: 0 | Z35: 0 | AA35: 0 | AB35: 0 | AC35: 0 | AD35: 0 | AE35: 0 | AF35: 0 | AG35: 0 | AH35: 0 | AI35: 0
C36: Внереализационные расходы | D36: =ut_Digits&ut_LCU -> тыс. RUB | E36: без НДС | H36: =SUM(T36:AI36) -> -168375.9882 | T36: =ut_Other_Expenses -> 0 | U36: 0 | V36: 0 | W36: 0 | X36: 0 | Y36: 0 | Z36: -14346.32044 | AA36: -14877.96867 | AB36: -15417.60225 | AC36: -15963.85429 | AD36: -16521.05553 | AE36: -17084.99962 | AF36: -17656.66568 | AG36: -18242.44841 | AH36: -18839.57359 | AI36: -19425.49969
C37: Налог на прибыль | D37: =ut_Digits&ut_LCU -> тыс. RUB | H37: =SUM(T37:AI37) -> -4384773.355 | T37: =ut_Profit_Tax_CF -> 0 | U37: -12660.69837 | V37: -12071.80752 | W37: -12057.95189 | X37: -12016.95864 | Y37: -10245.36932 | Z37: -9936.548627 | AA37: -446426.4749 | AB37: -274641.9552 | AC37: -287969.6525 | AD37: -288770.8066 | AE37: -528409.9968 | AF37: -568355.705 | AG37: -610163.5281 | AH37: -647160.1027 | AI37: -663885.7985
G38: OpCF | H38: =SUM(T38:AI38) -> 28003184.55 | T38: =SUM(T10,T15:T19,T21,T33:T37) -> -35696.50817 | U38: =SUM(U10,U15:U19,U21,U33:U37) -> -49701.66078 | V38: -49982.04807 | W38: -49573.15867 | X38: -55325.53181 | Y38: -53142.63331 | Z38: 2859108.353 | AA38: 2829282.548 | AB38: 3000325.64 | AC38: =SUM(AC10,AC15:AC19,AC21,AC33:AC37) -> 2989518.697 | AD38: =SUM(AD10,AD15:AD19,AD21,AD33:AD37) -> 2991005.624 | AE38: =SUM(AE10,AE15:AE19,AE21,AE33:AE37) -> 2762830.354 | AF38: =SUM(AF10,AF15:AF19,AF21,AF33:AF37) -> 2736218.952 | AG38: =SUM(AG10,AG15:AG19,AG21,AG33:AG37) -> 2717322.873 | AH38: =SUM(AH10,AH15:AH19,AH21,AH33:AH37) -> 2703426.138 | AI38: =SUM(AI10,AI15:AI19,AI21,AI33:AI37) -> 2707566.911
C40: InvCF | D40: =ut_Digits&ut_LCU -> тыс. RUB | H40: =SUM(ut_InvCF) -> -14218452.01 | T40: =T45 -> -1200000 | U40: -2400000 | V40: -1500000 | W40: =W45 -> -2000000 | X40: -4341522.286 | Y40: -4388263.058 | Z40: 1683333.333 | AA40: 0 | AB40: 0 | AC40: -12000 | AD40: -10000 | AE40: -10000 | AF40: -10000 | AG40: -10000 | AH40: -10000 | AI40: -10000 | AJ40: ut_InvCF
C41: Капитальные затраты | D41: =ut_Digits&ut_LCU -> тыс. RUB | E41: без НДС | H41: =SUM(T41:AI41) -> -14216452.01 | I41: - | T41: =-ut_CapEx -> -1000000 | U41: -2000000 | V41: -1250000 | W41: -1666666.667 | X41: -3841522.286 | Y41: -4388263.058 | Z41: 0 | AA41: 0 | AB41: 0 | AC41: -10000 | AD41: -10000 | AE41: -10000 | AF41: -10000 | AG41: -10000 | AH41: -10000 | AI41: -10000
C42: НДС уплаченный в CapEx | D42: =ut_Digits&ut_LCU -> тыс. RUB | H42: =SUM(T42:AI42) -> -1697333.333 | T42: =-ut_CapEx_VAT -> -200000 | U42: -400000 | V42: -250000 | W42: -333333.3333 | X42: -500000 | Y42: 0 | Z42: 0 | AA42: 0 | AB42: 0 | AC42: -2000 | AD42: -2000 | AE42: -2000 | AF42: -2000 | AG42: -2000 | AH42: -2000 | AI42: -2000
C44: НДС CapEx - возмещение | D44: =ut_Digits&ut_LCU -> тыс. RUB | H44: =SUM(T44:AI44) -> 1695333.333 | I44: + | T44: =ut_CapEx_VAT_receive -> 0 | U44: 0 | V44: 0 | W44: 0 | X44: 0 | Y44: 0 | Z44: 1683333.333 | AA44: 0 | AB44: 0 | AC44: 0 | AD44: 2000 | AE44: 2000 | AF44: 2000 | AG44: 2000 | AH44: 2000 | AI44: 2000
G45: InvCF | H45: =SUM(T45:AI45) -> -14218452.01 | S45: =SUM(S41:S44) -> 0 | T45: -1200000 | U45: -2400000 | V45: -1500000 | W45: =SUM(W41:W44) -> -2000000 | X45: -4341522.286 | Y45: -4388263.058 | Z45: 1683333.333 | AA45: 0 | AB45: 0 | AC45: -12000 | AD45: -10000 | AE45: -10000 | AF45: -10000 | AG45: -10000 | AH45: -10000 | AI45: -10000
C47: FinCF | D47: =ut_Digits&ut_LCU -> тыс. RUB | H47: =SUM(ut_FinCF) -> -3282752.338 | T47: =T71 -> 1199000 | U47: 2452400 | V47: 1550200 | W47: =W71 -> 2049600 | X47: 4396900 | Y47: 4442400 | Z47: -3777743.959 | AA47: -2355953.282 | AB47: -2497902.867 | AC47: -2478749.412 | AD47: -2478606.116 | AE47: -2288001.765 | AF47: -2264932.406 | AG47: -1231362.531 | AH47: 0 | AI47: 0 | AJ47: ut_FinCF
C48: Привлечение заемного финансирования | D48: =ut_Digits&ut_LCU -> тыс. RUB | H48: =SUM(T48:AI48) -> 11500000 | I48: + | T48: =ut_Total_Debt_Attraction -> 500000 | U48: 1300000 | V48: 900000 | W48: 1200000 | X48: 3300000 | Y48: 4300000 | Z48: 0 | AA48: 0 | AB48: 0 | AC48: 0 | AD48: 0 | AE48: 0 | AF48: 0 | AG48: 0 | AH48: 0 | AI48: 0
C49: ВЭБ.РФ | D49: =ut_Digits&ut_LCU -> тыс. RUB | H49: =SUM(T49:AI49) -> 11500000 | T49: =ut_VEB_Debt_Attraction -> 500000 | U49: 1300000 | V49: 900000 | W49: 1200000 | X49: 3300000 | Y49: 4300000 | Z49: 0 | AA49: 0 | AB49: 0 | AC49: 0 | AD49: 0 | AE49: 0 | AF49: 0 | AG49: 0 | AH49: 0 | AI49: 0
C50: Прочие кредиторы | D50: =ut_Digits&ut_LCU -> тыс. RUB | H50: =SUM(T50:AI50) -> 0 | T50: =ut_Other_Debt_Attraction -> 0 | U50: =ut_Other_Debt_Attraction -> 0 | V50: 0 | W50: 0 | X50: 0 | Y50: 0 | Z50: 0 | AA50: 0 | AB50: 0 | AC50: 0 | AD50: 0 | AE50: 0 | AF50: 0 | AG50: 0 | AH50: 0 | AI50: 0
C52: Вложения в капитал | D52: =ut_Digits&ut_LCU -> тыс. RUB | H52: =SUM(T52:AI52) -> 3800000 | T52: =ut_Equity_Attraction -> 600000 | U52: 1000000 | V52: 500000 | W52: 700000 | X52: 1000000 | Y52: 0 | Z52: 0 | AA52: 0 | AB52: 0 | AC52: 0 | AD52: 0 | AE52: 0 | AF52: 0 | AG52: 0 | AH52: 0 | AI52: 0
C53: ВЭБ.РФ | D53: =ut_Digits&ut_LCU -> тыс. RUB | H53: =SUM(T53:AI53) -> 0 | T53: =ut_Equity_Attraction_VEB -> 0 | U53: 0 | V53: 0 | W53: 0 | X53: 0 | Y53: 0 | Z53: 0 | AA53: 0 | AB53: 0 | AC53: 0 | AD53: 0 | AE53: 0 | AF53: 0 | AG53: 0 | AH53: 0 | AI53: 0
C54: Прочие инвесторы | D54: =ut_Digits&ut_LCU -> тыс. RUB | H54: =SUM(T54:AI54) -> 3800000 | T54: =T52-T53 -> 600000 | U54: =U52-U53 -> 1000000 | V54: 500000 | W54: =W52-W53 -> 700000 | X54: 1000000 | Y54: 0 | Z54: 0 | AA54: 0 | AB54: 0 | AC54: 0 | AD54: 0 | AE54: 0 | AF54: 0 | AG54: 0 | AH54: 0 | AI54: 0
C56: Субсидии, гранты | D56: =ut_Digits&ut_LCU -> тыс. RUB | H56: =SUM(T56:AI56) -> 600000 | T56: =ut_Subsidies+ut_Direct_Budget_Investments -> 100000 | U56: 100000 | V56: 100000 | W56: 100000 | X56: 100000 | Y56: 100000 | Z56: 0 | AA56: 0 | AB56: 0 | AC56: 0 | AD56: 0 | AE56: 0 | AF56: 0 | AG56: 0 | AH56: 0 | AI56: 0
C58: Сальдо прочих финансовых потоков | D58: =ut_Digits&ut_LCU -> тыс. RUB | H58: =SUM(T58:AI58) -> 213500 | T58: =ut_Other_Fin_Flows -> 0 | U58: 55000 | V58: 52000 | W58: 52000 | X58: 3500 | Y58: 51000 | Z58: 0 | AA58: 0 | AB58: 0 | AC58: 0 | AD58: 0 | AE58: 0 | AF58: 0 | AG58: 0 | AH58: 0 | AI58: 0
C60: Погашение основного долга | D60: =ut_Digits&ut_LCU -> тыс. RUB | H60: =SUM(T60:AI60) -> -11500000 | I60: - | T60: =-ut_Total_Debt_Repayment -> 0 | U60: 0 | V60: 0 | W60: 0 | X60: 0 | Y60: 0 | Z60: -2658988.316 | AA60: -496686.4358 | AB60: -698389.8336 | AC60: -679506.1798 | AD60: -1875750.729 | AE60: -1872562.015 | AF60: -2045390.27 | AG60: -1172726.22 | AH60: 0 | AI60: 0
C61: ВЭБ.РФ | D61: =ut_Digits&ut_LCU -> тыс. RUB | H61: =SUM(T61:AI61) -> -11500000 | T61: =-ut_VEB_Debt_Repayment -> 0 | U61: 0 | V61: 0 | W61: 0 | X61: 0 | Y61: 0 | Z61: -2658988.316 | AA61: -496686.4358 | AB61: -698389.8336 | AC61: -679506.1798 | AD61: -1875750.729 | AE61: -1872562.015 | AF61: -2045390.27 | AG61: -1172726.22 | AH61: 0 | AI61: 0
C62: Прочие кредиторы | D62: =ut_Digits&ut_LCU -> тыс. RUB | H62: =SUM(T62:AI62) -> 0 | T62: =-ut_Other_Debt_Repayment -> 0 | U62: 0 | V62: 0 | W62: 0 | X62: 0 | Y62: 0 | Z62: 0 | AA62: 0 | AB62: 0 | AC62: 0 | AD62: 0 | AE62: 0 | AF62: 0 | AG62: 0 | AH62: 0 | AI62: 0
C64: Погашение % | D64: =ut_Digits&ut_LCU -> тыс. RUB | H64: =SUM(T64:AI64) -> -7873252.338 | T64: =-ut_Total_Interest_Repayment -> 0 | U64: 0 | V64: 0 | W64: 0 | X64: 0 | Y64: 0 | Z64: -1118755.643 | AA64: -1859266.847 | AB64: -1799513.033 | AC64: -1799243.232 | AD64: -602855.387 | AE64: -415439.7498 | AF64: -219542.1355 | AG64: -58636.31101 | AH64: 0 | AI64: 0
C65: ВЭБ.РФ | D65: =ut_Digits&ut_LCU -> тыс. RUB | H65: =SUM(T65:AI65) -> -7873252.338 | T65: =-ut_VEB_Interest_Repayment -> 0 | U65: 0 | V65: 0 | W65: 0 | X65: 0 | Y65: 0 | Z65: -1118755.643 | AA65: -1859266.847 | AB65: -1799513.033 | AC65: -1799243.232 | AD65: -602855.387 | AE65: -415439.7498 | AF65: -219542.1355 | AG65: -58636.31101 | AH65: 0 | AI65: 0
C66: Прочие кредиторы | D66: =ut_Digits&ut_LCU -> тыс. RUB | H66: =SUM(T66:AI66) -> 0 | T66: =-ut_Other_Interest_Repayment -> 0 | U66: 0 | V66: 0 | W66: 0 | X66: 0 | Y66: 0 | Z66: 0 | AA66: 0 | AB66: 0 | AC66: 0 | AD66: 0 | AE66: 0 | AF66: 0 | AG66: 0 | AH66: 0 | AI66: 0
C68: Погашение комиссий | D68: =ut_Digits&ut_LCU -> тыс. RUB | H68: =SUM(T68:AI68) -> -23000 | T68: =-ut_Total_Fees_Repayment -> -1000 | U68: -2600 | V68: -1800 | W68: -2400 | X68: -6600 | Y68: -8600 | Z68: 0 | AA68: 0 | AB68: 0 | AC68: 0 | AD68: 0 | AE68: 0 | AF68: 0 | AG68: 0 | AH68: 0 | AI68: 0
C69: Дивиденды | D69: =ut_Digits&ut_LCU -> тыс. RUB | H69: =SUM(T69:AI69) -> 0 | T69: =-ut_Dividends -> 0 | U69: 0 | V69: 0 | W69: 0 | X69: 0 | Y69: 0 | Z69: 0 | AA69: 0 | AB69: 0 | AC69: 0 | AD69: 0 | AE69: 0 | AF69: 0 | AG69: 0 | AH69: 0 | AI69: 0
C70: Выкуп акций / долей участников у ВЭБ.РФ | D70: =ut_Digits&ut_LCU -> тыс. RUB | H70: =SUM(T70:AI70) -> 0 | T70: =-ut_Buyout_VEB -> 0 | U70: 0 | V70: 0 | W70: 0 | X70: 0 | Y70: 0 | Z70: 0 | AA70: 0 | AB70: 0 | AC70: 0 | AD70: 0 | AE70: 0 | AF70: 0 | AG70: 0 | AH70: 0 | AI70: 0
G71: FinCF | H71: =SUM(T71:AI71) -> -3282752.338 | T71: =T48+T52+T56+T58+T60+T64+SUM(T68:T70) -> 1199000 | U71: =U48+U52+U56+U58+U60+U64+SUM(U68:U70) -> 2452400 | V71: 1550200 | W71: =W48+W52+W56+W58+W60+W64+SUM(W68:W70) -> 2049600 | X71: 4396900 | Y71: 4442400 | Z71: -3777743.959 | AA71: -2355953.282 | AB71: -2497902.867 | AC71: -2478749.412 | AD71: -2478606.116 | AE71: -2288001.765 | AF71: -2264932.406 | AG71: -1231362.531 | AH71: 0 | AI71: 0
C73: NetCF | D73: =ut_Digits&ut_LCU -> тыс. RUB | H73: =SUM(ut_NetCF) -> 10538676.71 | S73: =S9+S40+S47 -> 0 | T73: =IF(ut_history_flag=0,0,T9+T40+T47) -> 0 | U73: 2698.339221 | V73: 217.9519327 | W73: 26.84132773 | X73: 52.1817773 | Y73: 994.3089776 | Z73: 764697.7278 | AA73: 473329.2657 | AB73: 502422.7733 | AC73: 498769.2845 | AD73: 502399.5083 | AE73: 464828.5889 | AF73: 461286.5462 | AG73: 1475960.341 | AH73: 2693426.138 | AI73: 2697566.911 | AJ73: ut_NetCF
S75: входящий cash
C76: Cash eop | G76: Остаток на конец периода | H76: =INDEX(ut_net_cash_eop,1,MAX(ut_Counter)) -> 10538676.71 | T76: =S76+T73 -> 0 | U76: =T76+U73 -> 2698.339221 | V76: 2916.291154 | W76: 2943.132482 | X76: 2995.314259 | Y76: 3989.623237 | Z76: 768687.3511 | AA76: 1242016.617 | AB76: 1744439.39 | AC76: 2243208.675 | AD76: 2745608.183 | AE76: 3210436.772 | AF76: 3671723.318 | AG76: 5147683.659 | AH76: 7841109.797 | AI76: 10538676.71 | AJ76: ut_net_cash_eop
F78: привлечение балансирующего финансирования | H78: =SUM(ut_Deficit) -> 0 | T78: =-ROUND(T76,4)*(T76<0) -> 0 | U78: =-ROUND(U76,4)*(U76<0) -> 0 | V78: 0 | W78: 0 | X78: 0 | Y78: 0 | Z78: 0 | AA78: 0 | AB78: 0 | AC78: 0 | AD78: 0 | AE78: 0 | AF78: 0 | AG78: 0 | AH78: 0 | AI78: 0 | AJ78: ut_Deficit
F79: погашение балансирующего финансирования | H79: =SUM(ut_Deficit) -> 0 | T79: =ROUND(IF(AND(S80>0,T76>0),MIN(T76,S80+T78),0),4) -> 0 | U79: 0 | V79: 0 | W79: 0 | X79: 0 | Y79: 0 | Z79: 0 | AA79: =ROUND(IF(AND(Z80>0,AA76>0),MIN(AA76,Z80+AA78),0),4) -> 0 | AB79: =ROUND(IF(AND(AA80>0,AB76>0),MIN(AB76,AA80+AB78),0),4) -> 0 | AC79: =ROUND(IF(AND(AB80>0,AC76>0),MIN(AC76,AB80+AC78),0),4) -> 0 | AD79: =ROUND(IF(AND(AC80>0,AD76>0),MIN(AD76,AC80+AD78),0),4) -> 0 | AE79: =ROUND(IF(AND(AD80>0,AE76>0),MIN(AE76,AD80+AE78),0),4) -> 0 | AF79: =ROUND(IF(AND(AE80>0,AF76>0),MIN(AF76,AE80+AF78),0),4) -> 0 | AG79: =ROUND(IF(AND(AF80>0,AG76>0),MIN(AG76,AF80+AG78),0),4) -> 0 | AH79: =ROUND(IF(AND(AG80>0,AH76>0),MIN(AH76,AG80+AH78),0),4) -> 0 | AI79: =ROUND(IF(AND(AH80>0,AI76>0),MIN(AI76,AH80+AI78),0),4) -> 0
F80: остаток балансирующего финансирования | H80: =MAX(T80:AI80) -> 0 | S80: =0 -> 0 | T80: =S80+T78-T79 -> 0 | U80: 0 | V80: 0 | W80: 0 | X80: 0 | Y80: 0 | Z80: 0 | AA80: =Z80+AA78-AA79 -> 0 | AB80: =AA80+AB78-AB79 -> 0 | AC80: =AB80+AC78-AC79 -> 0 | AD80: =AC80+AD78-AD79 -> 0 | AE80: =AD80+AE78-AE79 -> 0 | AF80: =AE80+AF78-AF79 -> 0 | AG80: =AF80+AG78-AG79 -> 0 | AH80: =AG80+AH78-AH79 -> 0 | AI80: =AH80+AI78-AI79 -> 0
F82: на инвестиционной фазе | H82: =MAX(T82:AI82) -> 0 | T82: =T80*T4 -> 0 | U82: 0 | V82: 0 | W82: 0 | X82: 0 | Y82: 0 | Z82: 0 | AA82: 0 | AB82: 0 | AC82: 0 | AD82: 0 | AE82: 0 | AF82: 0 | AG82: 0 | AH82: 0 | AI82: 0
F83: на фазе запуска | H83: =MAX(T83:AI83)-H82 -> 0 | T83: =T80*T5 -> 0 | U83: 0 | V83: 0 | W83: 0 | X83: 0 | Y83: 0 | Z83: 0 | AA83: 0 | AB83: 0 | AC83: 0 | AD83: 0 | AE83: 0 | AF83: 0 | AG83: 0 | AH83: 0 | AI83: 0
F84: на операционной фазе | H84: =MAX(T84:AI84)-SUM(H82:H83) -> 0 | T84: =T80*T6 -> 0 | U84: 0 | V84: 0 | W84: 0 | X84: 0 | Y84: 0 | Z84: 0 | AA84: 0 | AB84: 0 | AC84: 0 | AD84: 0 | AE84: 0 | AF84: 0 | AG84: 0 | AH84: 0 | AI84: 0
C86: BS и PL
C88: Баланс
C90: Внеоборотные активы | D90: =ut_Digits&ut_LCU -> тыс. RUB | T90: =SUM(T91:T96) -> 1000000 | U90: 3000000 | V90: 4250000 | W90: 5916666.667 | X90: =SUM(X91:X96) -> 9758188.953 | Y90: 14146452.01 | Z90: 14146452.01 | AA90: 14079785.34 | AB90: 14013118.68 | AC90: 13956452.01 | AD90: 13897785.34 | AE90: 13837118.68 | AF90: 13774452.01 | AG90: 13709785.34 | AH90: 13645118.68 | AI90: 13580452.01 | AJ90: ut_NonCurrent_Assets_Balance
C91: Нематериальные активы | D91: тыс. RUB | T91: =+SUMIFS(Calculations!T153:T210,ut_Capex_Names,"Налоговая остаточная стоимость, конец периода",ut_Capex_Index,"НМА") -> 0 | U91: =+SUMIFS(Calculations!U153:U210,ut_Capex_Names,"Налоговая остаточная стоимость, конец периода",ut_Capex_Index,"НМА") -> 0 | V91: =+SUMIFS(Calculations!V153:V210,ut_Capex_Names,"Налоговая остаточная стоимость, конец периода",ut_Capex_Index,"НМА") -> 0 | W91: =+SUMIFS(Calculations!W153:W210,ut_Capex_Names,"Налоговая остаточная стоимость, конец периода",ut_Capex_Index,"НМА") -> 0 | X91: =+SUMIFS(Calculations!X153:X210,ut_Capex_Names,"Налоговая остаточная стоимость, конец периода",ut_Capex_Index,"НМА") -> 0 | Y91: =+SUMIFS(Calculations!Y153:Y210,ut_Capex_Names,"Налоговая остаточная стоимость, конец периода",ut_Capex_Index,"НМА") -> 0 | Z91: =+SUMIFS(Calculations!Z153:Z210,ut_Capex_Names,"Налоговая остаточная стоимость, конец периода",ut_Capex_Index,"НМА") -> 7384942.119 | AA91: =+SUMIFS(Calculations!AA153:AA210,ut_Capex_Names,"Налоговая остаточная стоимость, конец периода",ut_Capex_Index,"НМА") -> 7384942.119 | AB91: =+SUMIFS(Calculations!AB153:AB210,ut_Capex_Names,"Налоговая остаточная стоимость, конец периода",ut_Capex_Index,"НМА") -> 7384942.119 | AC91: =+SUMIFS(Calculations!AC153:AC210,ut_Capex_Names,"Налоговая остаточная стоимость, конец периода",ut_Capex_Index,"НМА") -> 7384942.119 | AD91: =+SUMIFS(Calculations!AD153:AD210,ut_Capex_Names,"Налоговая остаточная стоимость, конец периода",ut_Capex_Index,"НМА") -> 7384942.119 | AE91: =+SUMIFS(Calculations!AE153:AE210,ut_Capex_Names,"Налоговая остаточная стоимость, конец периода",ut_Capex_Index,"НМА") -> 7384942.119 | AF91: =+SUMIFS(Calculations!AF153:AF210,ut_Capex_Names,"Налоговая остаточная стоимость, конец периода",ut_Capex_Index,"НМА") -> 7384942.119 | AG91: =+SUMIFS(Calculations!AG153:AG210,ut_Capex_Names,"Налоговая остаточная стоимость, конец периода",ut_Capex_Index,"НМА") -> 7384942.119 | AH91: =+SUMIFS(Calculations!AH153:AH210,ut_Capex_Names,"Налоговая остаточная стоимость, конец периода",ut_Capex_Index,"НМА") -> 7384942.119 | AI91: =+SUMIFS(Calculations!AI153:AI210,ut_Capex_Names,"Налоговая остаточная стоимость, конец периода",ut_Capex_Index,"НМА") -> 7384942.119 | AJ91: ut_Intangible_Assets_Balance
C92: Основные средства | D92: тыс. RUB | T92: =+SUMIFS(Calculations!T153:T210,ut_Capex_Names,"Налоговая остаточная стоимость, конец периода",ut_Capex_Index,"ОС")+Calculations!T219+Calculations!T231 -> 0 | U92: =+SUMIFS(Calculations!U153:U210,ut_Capex_Names,"Налоговая остаточная стоимость, конец периода",ut_Capex_Index,"ОС")+Calculations!U219+Calculations!U231 -> 0 | V92: =+SUMIFS(Calculations!V153:V210,ut_Capex_Names,"Налоговая остаточная стоимость, конец периода",ut_Capex_Index,"ОС")+Calculations!V219+Calculations!V231 -> 0 | W92: =+SUMIFS(Calculations!W153:W210,ut_Capex_Names,"Налоговая остаточная стоимость, конец периода",ut_Capex_Index,"ОС")+Calculations!W219+Calculations!W231 -> 0 | X92: =+SUMIFS(Calculations!X153:X210,ut_Capex_Names,"Налоговая остаточная стоимость, конец периода",ut_Capex_Index,"ОС")+Calculations!X219+Calculations!X231 -> 0 | Y92: =+SUMIFS(Calculations!Y153:Y210,ut_Capex_Names,"Налоговая остаточная стоимость, конец периода",ut_Capex_Index,"ОС")+Calculations!Y219+Calculations!Y231 -> 0 | Z92: =+SUMIFS(Calculations!Z153:Z210,ut_Capex_Names,"Налоговая остаточная стоимость, конец периода",ut_Capex_Index,"ОС")+Calculations!Z219+Calculations!Z231 -> 6666666.667 | AA92: =+SUMIFS(Calculations!AA153:AA210,ut_Capex_Names,"Налоговая остаточная стоимость, конец периода",ut_Capex_Index,"ОС")+Calculations!AA219+Calculations!AA231 -> 6600000 | AB92: =+SUMIFS(Calculations!AB153:AB210,ut_Capex_Names,"Налоговая остаточная стоимость, конец периода",ut_Capex_Index,"ОС")+Calculations!AB219+Calculations!AB231 -> 6533333.333 | AC92: =+SUMIFS(Calculations!AC153:AC210,ut_Capex_Names,"Налоговая остаточная стоимость, конец периода",ut_Capex_Index,"ОС")+Calculations!AC219+Calculations!AC231 -> 6476666.667 | AD92: =+SUMIFS(Calculations!AD153:AD210,ut_Capex_Names,"Налоговая остаточная стоимость, конец периода",ut_Capex_Index,"ОС")+Calculations!AD219+Calculations!AD231 -> 6418000 | AE92: =+SUMIFS(Calculations!AE153:AE210,ut_Capex_Names,"Налоговая остаточная стоимость, конец периода",ut_Capex_Index,"ОС")+Calculations!AE219+Calculations!AE231 -> 6357333.333 | AF92: =+SUMIFS(Calculations!AF153:AF210,ut_Capex_Names,"Налоговая остаточная стоимость, конец периода",ut_Capex_Index,"ОС")+Calculations!AF219+Calculations!AF231 -> 6294666.667 | AG92: =+SUMIFS(Calculations!AG153:AG210,ut_Capex_Names,"Налоговая остаточная стоимость, конец периода",ut_Capex_Index,"ОС")+Calculations!AG219+Calculations!AG231 -> 6230000 | AH92: =+SUMIFS(Calculations!AH153:AH210,ut_Capex_Names,"Налоговая остаточная стоимость, конец периода",ut_Capex_Index,"ОС")+Calculations!AH219+Calculations!AH231 -> 6165333.333 | AI92: =+SUMIFS(Calculations!AI153:AI210,ut_Capex_Names,"Налоговая остаточная стоимость, конец периода",ut_Capex_Index,"ОС")+Calculations!AI219+Calculations!AI231 -> 6100666.667 | AJ92: ut_Assets_Balance
C93: Незавершенное строительство | D93: тыс. RUB | T93: =SUMIFS(Calculations!T153:T210,ut_Capex_Names,"Незавершенное строительство, конец периода")+Calculations!T217+Calculations!T229 -> 1000000 | U93: =SUMIFS(Calculations!U153:U210,ut_Capex_Names,"Незавершенное строительство, конец периода")+Calculations!U217+Calculations!U229 -> 3000000 | V93: =SUMIFS(Calculations!V153:V210,ut_Capex_Names,"Незавершенное строительство, конец периода")+Calculations!V217+Calculations!V229 -> 4250000 | W93: =SUMIFS(Calculations!W153:W210,ut_Capex_Names,"Незавершенное строительство, конец периода")+Calculations!W217+Calculations!W229 -> 5916666.667 | X93: =SUMIFS(Calculations!X153:X210,ut_Capex_Names,"Незавершенное строительство, конец периода")+Calculations!X217+Calculations!X229 -> 9758188.953 | Y93: =SUMIFS(Calculations!Y153:Y210,ut_Capex_Names,"Незавершенное строительство, конец периода")+Calculations!Y217+Calculations!Y229 -> 14146452.01 | Z93: =SUMIFS(Calculations!Z153:Z210,ut_Capex_Names,"Незавершенное строительство, конец периода")+Calculations!Z217+Calculations!Z229 -> 94843.22476 | AA93: =SUMIFS(Calculations!AA153:AA210,ut_Capex_Names,"Незавершенное строительство, конец периода")+Calculations!AA217+Calculations!AA229 -> 94843.22476 | AB93: =SUMIFS(Calculations!AB153:AB210,ut_Capex_Names,"Незавершенное строительство, конец периода")+Calculations!AB217+Calculations!AB229 -> 94843.22476 | AC93: =SUMIFS(Calculations!AC153:AC210,ut_Capex_Names,"Незавершенное строительство, конец периода")+Calculations!AC217+Calculations!AC229 -> 94843.22476 | AD93: =SUMIFS(Calculations!AD153:AD210,ut_Capex_Names,"Незавершенное строительство, конец периода")+Calculations!AD217+Calculations!AD229 -> 94843.22476 | AE93: =SUMIFS(Calculations!AE153:AE210,ut_Capex_Names,"Незавершенное строительство, конец периода")+Calculations!AE217+Calculations!AE229 -> 94843.22476 | AF93: =SUMIFS(Calculations!AF153:AF210,ut_Capex_Names,"Незавершенное строительство, конец периода")+Calculations!AF217+Calculations!AF229 -> 94843.22476 | AG93: =SUMIFS(Calculations!AG153:AG210,ut_Capex_Names,"Незавершенное строительство, конец периода")+Calculations!AG217+Calculations!AG229 -> 94843.22476 | AH93: =SUMIFS(Calculations!AH153:AH210,ut_Capex_Names,"Незавершенное строительство, конец периода")+Calculations!AH217+Calculations!AH229 -> 94843.22476 | AI93: =SUMIFS(Calculations!AI153:AI210,ut_Capex_Names,"Незавершенное строительство, конец периода")+Calculations!AI217+Calculations!AI229 -> 94843.22476 | AJ93: ut_CIP_Balance
C94: Долгосрочные финансовые вложения | D94: тыс. RUB | T94: =ut_Fin_Assets_Eq_Balance -> 0 | U94: 0 | V94: 0 | W94: 0 | X94: 0 | Y94: 0 | Z94: 0 | AA94: 0 | AB94: 0 | AC94: 0 | AD94: 0 | AE94: 0 | AF94: 0 | AG94: 0 | AH94: 0 | AI94: 0 | AJ94: ut_LT_Fin_Assets_Balance
C95: Отложенные налоговые активы | D95: тыс. RUB | T95: =-T178 -> 0 | U95: =-U178 -> 0 | V95: 0 | W95: 0 | X95: =-X178 -> 0 | Y95: 0 | Z95: 0 | AA95: 0 | AB95: 0 | AC95: 0 | AD95: 0 | AE95: 0 | AF95: 0 | AG95: 0 | AH95: 0 | AI95: 0 | AJ95: ut_Deferred_Tax_Asset_Balance
C96: Прочие внеоборотные активы | D96: тыс. RUB | F96: ремонты | T96: =Calculations!T232 -> 0 | U96: =Calculations!U232 -> 0 | V96: =Calculations!V232 -> 0 | W96: =Calculations!W232 -> 0 | X96: =Calculations!X232 -> 0 | Y96: =Calculations!Y232 -> 0 | Z96: =Calculations!Z232 -> 0 | AA96: =Calculations!AA232 -> 0 | AB96: =Calculations!AB232 -> 0 | AC96: =Calculations!AC232 -> 0 | AD96: =Calculations!AD232 -> 0 | AE96: =Calculations!AE232 -> 0 | AF96: =Calculations!AF232 -> 0 | AG96: =Calculations!AG232 -> 0 | AH96: =Calculations!AH232 -> 0 | AI96: =Calculations!AI232 -> 0 | AJ96: ut_Other_Noncurrent_Assets_Balance
C97: Оборотные активы | D97: тыс. RUB | T97: =SUM(T98:T105) -> 223125 | U97: =SUM(U98:U105) -> 781073.3392 | V97: 1312541.291 | W97: 2206901.466 | X97: =SUM(X98:X105) -> 3540589.067 | Y97: 4758263.383 | Z97: 4486715.85 | AA97: 3989926.57 | AB97: 3529943.08 | AC97: 3000959.8 | AD97: 3543846.057 | AE97: 4052151.082 | AF97: 4558816.544 | AG97: 6083499.614 | AH97: 8827684.135 | AI97: 11578043.24 | AJ97: ut_Current_Assets_Balance
C98: Запасы | D98: тыс. RUB | T98: =Inputs!T274 -> 0 | U98: =Inputs!U274 -> 0 | V98: =Inputs!V274 -> 0 | W98: =Inputs!W274 -> 0 | X98: =Inputs!X274 -> 0 | Y98: =Inputs!Y274 -> 0 | Z98: =Inputs!Z274 -> 99146.97405 | AA98: =Inputs!AA274 -> 103015.2867 | AB98: =Inputs!AB274 -> 106935.3083 | AC98: =Inputs!AC274 -> 110893.4198 | AD98: =Inputs!AD274 -> 114908.1054 | AE98: =Inputs!AE274 -> 119007.2125 | AF98: =Inputs!AF274 -> 123163.4902 | AG98: =Inputs!AG274 -> 127426.8734 | AH98: =Inputs!AH274 -> 131776.2518 | AI98: =Inputs!AI274 -> 136154.4558 | AJ98: ut_Inventory_Balance
C99: Незавершенное производство | D99: тыс. RUB | T99: =Inputs!T275 -> 0 | U99: =Inputs!U275 -> 0 | V99: =Inputs!V275 -> 0 | W99: =Inputs!W275 -> 0 | X99: =Inputs!X275 -> 0 | Y99: =Inputs!Y275 -> 0 | Z99: =Inputs!Z275 -> 49573.48702 | AA99: =Inputs!AA275 -> 51507.64334 | AB99: =Inputs!AB275 -> 53467.65417 | AC99: =Inputs!AC275 -> 55446.70992 | AD99: =Inputs!AD275 -> 57454.05268 | AE99: =Inputs!AE275 -> 59503.60624 | AF99: =Inputs!AF275 -> 61581.74509 | AG99: =Inputs!AG275 -> 63713.43668 | AH99: =Inputs!AH275 -> 65888.12589 | AI99: =Inputs!AI275 -> 68077.22792 | AJ99: ut_Stocks
C100: Дебиторская задолженность покупателей и заказчиков | D100: тыс. RUB | T100: =Inputs!T276 -> 0 | U100: =Inputs!U276 -> 0 | V100: =Inputs!V276 -> 0 | W100: =Inputs!W276 -> 0 | X100: =Inputs!X276 -> 0 | Y100: =Inputs!Y276 -> 0 | Z100: =Inputs!Z276 -> 474345.0427 | AA100: =Inputs!AA276 -> 473370.4263 | AB100: =Inputs!AB276 -> 478585.4442 | AC100: =Inputs!AC276 -> 483571.52 | AD100: =Inputs!AD276 -> 488644.3028 | AE100: =Inputs!AE276 -> 494934.6115 | AF100: =Inputs!AF276 -> 501346.8788 | AG100: =Inputs!AG276 -> 509080.3254 | AH100: =Inputs!AH276 -> 516800.4903 | AI100: =Inputs!AI276 -> 524354.3218 | AJ100: ut_TradeReceivables_Balance
C101: Инвестиционные авансы | D101: тыс. RUB | T101: =-SUMIFS(INDEX(ut_Capex_Data,,T$1),ut_Capex_Index2,"advance",INDEX(ut_Capex_Data,,T$1),"<"&0) -> 0 | U101: 0 | V101: 0 | W101: 0 | X101: 0 | Y101: 0 | Z101: 0 | AA101: 0 | AB101: 0 | AC101: 0 | AD101: 0 | AE101: 0 | AF101: 0 | AG101: 0 | AH101: 0 | AI101: 0 | AJ101: ut_Investment_Advances_Balance
C102: НДС к возмещению из бюджета | D102: тыс. RUB | T102: =ut_VAT_to_balance -> 200000 | U102: 600000 | V102: 850000 | W102: 1183333.333 | X102: 1684468.753 | Y102: 1685648.76 | Z102: 26337.9955 | AA102: 51391.59674 | AB102: 77890.2829 | AC102: 107839.4752 | AD102: 137231.4137 | AE102: 168268.88 | AF102: 201001.1115 | AG102: 235595.3194 | AH102: 272109.4697 | AI102: 310780.5256 | AJ102: ut_VAT_Receivable_Balance
C103: Краткосрочные финансовые вложения | D103: тыс. RUB | T103: =0 -> 0 | U103: =0 -> 0 | V103: =0 -> 0 | W103: =0 -> 0 | X103: =0 -> 0 | Y103: =0 -> 0 | Z103: =0 -> 0 | AA103: =0 -> 0 | AB103: =0 -> 0 | AC103: =0 -> 0 | AD103: =0 -> 0 | AE103: =0 -> 0 | AF103: =0 -> 0 | AG103: =0 -> 0 | AH103: =0 -> 0 | AI103: =0 -> 0 | AJ103: ut_ST_Fin_Assets_Balance
C104: Денежные средства и их эквиваленты | D104: тыс. RUB | T104: =T76 -> 0 | U104: 2698.339221 | V104: 2916.291154 | W104: 2943.132482 | X104: =X76 -> 2995.314259 | Y104: 3989.623237 | Z104: 768687.3511 | AA104: 1242016.617 | AB104: 1744439.39 | AC104: 2243208.675 | AD104: 2745608.183 | AE104: 3210436.772 | AF104: 3671723.318 | AG104: 5147683.659 | AH104: 7841109.797 | AI104: 10538676.71 | AJ104: ut_Cash_Balance
C105: Прочие оборотные активы | D105: тыс. RUB | F105: балансирует задолженность по % | T105: =T117 -> 23125 | U105: =U117 -> 178375 | V105: 459625 | W105: 1020625 | X105: =X117 -> 1853125 | Y105: 3068625 | Z105: 3068625 | AA105: 2068625 | AB105: 1068625 | AC105: 0 | AD105: 0 | AE105: 0 | AF105: 0 | AG105: 0 | AH105: 0 | AI105: 0 | AJ105: ut_Other_Current_Assets_Balance
C106: ИТОГО АКТИВЫ | D106: тыс. RUB | T106: =SUM(T97,T90) -> 1223125 | U106: 3781073.339 | V106: 5562541.291 | W106: 8123568.132 | X106: =SUM(X97,X90) -> 13298778.02 | Y106: 18904715.39 | Z106: 18633167.86 | AA106: 18069711.91 | AB106: 17543061.76 | AC106: 16957411.81 | AD106: 17441631.4 | AE106: 17889269.76 | AF106: 18333268.55 | AG106: 19793284.96 | AH106: 22472802.81 | AI106: 25158495.25 | AJ106: ut_Total_Assets
C108: Капитал | D108: =ut_Digits&ut_LCU -> тыс. RUB | T108: =SUM(T109:T110) -> 650642.7935 | U108: 1753930.024 | V108: 2354161.831 | W108: 3154229.666 | X108: =SUM(X109:X110) -> 4198711.143 | Y108: 4289457.337 | Z108: 6075163.237 | AA108: 7173731.058 | AB108: 8325609.668 | AC108: 9480692.894 | AD108: 11594332.88 | AE108: 13867755.7 | AF108: 16308409.81 | AG108: 18897050.23 | AH108: 21552593.42 | AI108: 24226418.4 | AJ108: ut_Shareholders_Equity_Balance
C109: Акционерный, резервный и добавочный капитал | D109: тыс. RUB | T109: =SUM(Inputs!$T223:'Inputs'!T223)+SUM(Calculations!$T297:T297)+SUM(Calculations!$T301:T301)-SUM(Calculations!$T313:T313) -> 600000 | U109: =SUM(Inputs!$T223:'Inputs'!U223)+SUM(Calculations!$T297:U297)+SUM(Calculations!$T301:U301)-SUM(Calculations!$T313:U313) -> 1655000 | V109: =SUM(Inputs!$T223:'Inputs'!V223)+SUM(Calculations!$T297:V297)+SUM(Calculations!$T301:V301)-SUM(Calculations!$T313:V313) -> 2207000 | W109: =SUM(Inputs!$T223:'Inputs'!W223)+SUM(Calculations!$T297:W297)+SUM(Calculations!$T301:W301)-SUM(Calculations!$T313:W313) -> 2959000 | X109: =SUM(Inputs!$T223:'Inputs'!X223)+SUM(Calculations!$T297:X297)+SUM(Calculations!$T301:X301)-SUM(Calculations!$T313:X313) -> 3962500 | Y109: =SUM(Inputs!$T223:'Inputs'!Y223)+SUM(Calculations!$T297:Y297)+SUM(Calculations!$T301:Y301)-SUM(Calculations!$T313:Y313) -> 4013500 | Z109: =SUM(Inputs!$T223:'Inputs'!Z223)+SUM(Calculations!$T297:Z297)+SUM(Calculations!$T301:Z301)-SUM(Calculations!$T313:Z313) -> 4013500 | AA109: =SUM(Inputs!$T223:'Inputs'!AA223)+SUM(Calculations!$T297:AA297)+SUM(Calculations!$T301:AA301)-SUM(Calculations!$T313:AA313) -> 4013500 | AB109: =SUM(Inputs!$T223:'Inputs'!AB223)+SUM(Calculations!$T297:AB297)+SUM(Calculations!$T301:AB301)-SUM(Calculations!$T313:AB313) -> 4013500 | AC109: =SUM(Inputs!$T223:'Inputs'!AC223)+SUM(Calculations!$T297:AC297)+SUM(Calculations!$T301:AC301)-SUM(Calculations!$T313:AC313) -> 4013500 | AD109: =SUM(Inputs!$T223:'Inputs'!AD223)+SUM(Calculations!$T297:AD297)+SUM(Calculations!$T301:AD301)-SUM(Calculations!$T313:AD313) -> 4013500 | AE109: =SUM(Inputs!$T223:'Inputs'!AE223)+SUM(Calculations!$T297:AE297)+SUM(Calculations!$T301:AE301)-SUM(Calculations!$T313:AE313) -> 4013500 | AF109: =SUM(Inputs!$T223:'Inputs'!AF223)+SUM(Calculations!$T297:AF297)+SUM(Calculations!$T301:AF301)-SUM(Calculations!$T313:AF313) -> 4013500 | AG109: =SUM(Inputs!$T223:'Inputs'!AG223)+SUM(Calculations!$T297:AG297)+SUM(Calculations!$T301:AG301)-SUM(Calculations!$T313:AG313) -> 4013500 | AH109: =SUM(Inputs!$T223:'Inputs'!AH223)+SUM(Calculations!$T297:AH297)+SUM(Calculations!$T301:AH301)-SUM(Calculations!$T313:AH313) -> 4013500 | AI109: =SUM(Inputs!$T223:'Inputs'!AI223)+SUM(Calculations!$T297:AI297)+SUM(Calculations!$T301:AI301)-SUM(Calculations!$T313:AI313) -> 4013500 | AJ109: ut_Equity_Balance
C110: Нераспределенная прибыль | D110: тыс. RUB | T110: =S110+T190+T179 -> 50642.79346 | U110: =T110+U190+U179 -> 98930.02353 | V110: 147161.8311 | W110: 195229.6657 | X110: 236211.143 | Y110: 275957.3375 | Z110: 2061663.237 | AA110: 3160231.058 | AB110: 4312109.668 | AC110: 5467192.894 | AD110: 7580832.882 | AE110: 9854255.702 | AF110: 12294909.81 | AG110: 14883550.23 | AH110: 17539093.42 | AI110: 20212918.4 | AJ110: ut_Retained_Earnings_Balance
C111: Долгосрочные обязательства | D111: тыс. RUB | T111: =SUM(T112:T114) -> 512660.6984 | U111: 1812071.808 | V111: 2712057.952 | W111: 3912016.959 | X111: =SUM(X112:X114) -> 7210245.369 | Y111: 11509936.55 | Z111: 9287438.159 | AA111: 8618967.203 | AB111: 7933905.067 | AC111: 7255200.041 | AD111: 5619088.503 | AE111: 3786472.195 | AF111: 1782889.748 | AG111: 647160.1027 | AH111: 663885.7985 | AI111: 668456.246 | AJ111: ut_NonCurrent_Liabilities_Balance
C112: Долгосрочные кредиты и займы | D112: тыс. RUB | T112: =SUM(T199:T200) -> 500000 | U112: 1800000 | V112: 2700000 | W112: 3900000 | X112: 7200000 | Y112: 11500000 | Z112: 8841011.684 | AA112: 8344325.248 | AB112: 7645935.415 | AC112: 6966429.235 | AD112: 5090678.506 | AE112: 3218116.49 | AF112: 1172726.22 | AG112: 0 | AH112: 0 | AI112: 0 | AJ112: ut_LT_Debt_Balance
C113: Отложенные налоговые обязательства | D113: тыс. RUB | T113: =T187 -> 12660.69837 | U113: =U187 -> 12071.80752 | V113: 12057.95189 | W113: 12016.95864 | X113: =X187 -> 10245.36932 | Y113: 9936.548627 | Z113: 446426.4749 | AA113: 274641.9552 | AB113: 287969.6525 | AC113: 288770.8066 | AD113: 528409.9968 | AE113: 568355.705 | AF113: 610163.5281 | AG113: 647160.1027 | AH113: 663885.7985 | AI113: 668456.246 | AJ113: ut_Deferred_Tax_Liability_Balance
C114: Прочие долгосрочные обязательства | D114: тыс. RUB | F114: балансирует капитализируемые расходы | T114: =ut_CIP_Capitalized+ut_Balance_Capitalized -> 0 | U114: 0 | V114: 0 | W114: 0 | X114: 0 | Y114: 0 | Z114: 0 | AA114: 0 | AB114: 0 | AC114: 0 | AD114: 0 | AE114: 0 | AF114: 0 | AG114: 0 | AH114: 0 | AI114: 0 | AJ114: ut_LT_Other_Liabilities_Balance
C115: Краткосрочные обязательства | D115: тыс. RUB | T115: =SUM(T116:T122) -> 59821.50817 | U115: 215071.5082 | V115: 496321.5082 | W115: 1057321.508 | X115: =SUM(X116:X122) -> 1889821.508 | Y115: 3105321.508 | Z115: 3270566.465 | AA115: 2277013.653 | AB115: 1283547.022 | AC115: 221518.8746 | AD115: 228210.0171 | AE115: 235041.8623 | AF115: 241968.9918 | AG115: 249074.6304 | AH115: 256323.5945 | AI115: 263620.6012 | AJ115: ut_Current_Liabilities_Balance
C116: Краткосрочные кредиты и займы | D116: тыс. RUB | F116: always null | T116: =0 -> 0 | U116: =0 -> 0 | V116: =0 -> 0 | W116: =0 -> 0 | X116: =0 -> 0 | Y116: =0 -> 0 | Z116: =0 -> 0 | AA116: =0 -> 0 | AB116: =0 -> 0 | AC116: =0 -> 0 | AD116: =0 -> 0 | AE116: =0 -> 0 | AF116: =0 -> 0 | AG116: =0 -> 0 | AH116: =0 -> 0 | AI116: =0 -> 0 | AJ116: ut_ST_Debt_Balance
C117: Задолженность по процентам | D117: тыс. RUB | T117: =SUMIFS(INDEX(ut_Debt_Data,,T$1),ut_Debt_Name_2,"Задолженность по выплате процентов на конец периода - валюта модели") -> 23125 | U117: 178375 | V117: 459625 | W117: 1020625 | X117: 1853125 | Y117: 3068625 | Z117: 3068625 | AA117: 2068625 | AB117: 1068625 | AC117: 0 | AD117: 0 | AE117: 0 | AF117: 0 | AG117: 0 | AH117: 0 | AI117: 0 | AJ117: ut_Interest_Balance
C118: Задолженность участникам по выплате дивидендов | D118: тыс. RUB | T118: =0 -> 0 | U118: =0 -> 0 | V118: =0 -> 0 | W118: =0 -> 0 | X118: =0 -> 0 | Y118: =0 -> 0 | Z118: =0 -> 0 | AA118: =0 -> 0 | AB118: =0 -> 0 | AC118: =0 -> 0 | AD118: =0 -> 0 | AE118: =0 -> 0 | AF118: =0 -> 0 | AG118: =0 -> 0 | AH118: =0 -> 0 | AI118: =0 -> 0 | AJ118: ut_Unpaid_Dividends
C119: Текущая задолженность перед поставщиками и подрядчиками | D119: тыс. RUB | T119: =Inputs!T281 -> 0 | U119: =Inputs!U281 -> 0 | V119: =Inputs!V281 -> 0 | W119: =Inputs!W281 -> 0 | X119: =Inputs!X281 -> 0 | Y119: =Inputs!Y281 -> 0 | Z119: =Inputs!Z281 -> 165244.9567 | AA119: =Inputs!AA281 -> 171692.1445 | AB119: =Inputs!AB281 -> 178225.5139 | AC119: =Inputs!AC281 -> 184822.3664 | AD119: =Inputs!AD281 -> 191513.5089 | AE119: =Inputs!AE281 -> 198345.3541 | AF119: =Inputs!AF281 -> 205272.4836 | AG119: =Inputs!AG281 -> 212378.1223 | AH119: =Inputs!AH281 -> 219627.0863 | AI119: =Inputs!AI281 -> 226924.0931 | AJ119: ut_TradePayables_Balance
C120: Инвестиционная кредиторская задолженность | D120: тыс. RUB | T120: =SUMIFS(INDEX(ut_Capex_Data,,T$1),ut_Capex_Index2,"advance",INDEX(ut_Capex_Data,,T$1),">"&0) -> 0 | U120: 0 | V120: 0 | W120: 0 | X120: 0 | Y120: 0 | Z120: 0 | AA120: 0 | AB120: 0 | AC120: 0 | AD120: 0 | AE120: 0 | AF120: 0 | AG120: 0 | AH120: 0 | AI120: 0 | AJ120: ut_Investment_Payables_Balance
C121: НДС к уплате в бюджет | D121: тыс. RUB | T121: =Calculations!T525 -> 0 | U121: =Calculations!U525 -> 0 | V121: =Calculations!V525 -> 0 | W121: =Calculations!W525 -> 0 | X121: =Calculations!X525 -> 0 | Y121: =Calculations!Y525 -> 0 | Z121: =Calculations!Z525 -> 0 | AA121: =Calculations!AA525 -> 0 | AB121: =Calculations!AB525 -> 0 | AC121: =Calculations!AC525 -> 0 | AD121: =Calculations!AD525 -> 0 | AE121: =Calculations!AE525 -> 0 | AF121: =Calculations!AF525 -> 0 | AG121: =Calculations!AG525 -> 0 | AH121: =Calculations!AH525 -> 0 | AI121: =Calculations!AI525 -> 0 | AJ121: ut_VAT_Payable_Balance
C122: Прочие краткосрочные обязательства | D122: тыс. RUB | T122: =-T154-T163 -> 36696.50817 | U122: =T122 -> 36696.50817 | V122: =U122 -> 36696.50817 | W122: 36696.50817 | X122: 36696.50817 | Y122: 36696.50817 | Z122: 36696.50817 | AA122: 36696.50817 | AB122: 36696.50817 | AC122: 36696.50817 | AD122: 36696.50817 | AE122: 36696.50817 | AF122: 36696.50817 | AG122: 36696.50817 | AH122: 36696.50817 | AI122: 36696.50817 | AJ122: ut_ST_Liabilities_Balance
C123: ИТОГО КАПИТАЛ И ОБЯЗАТЕЛЬСТВА | D123: тыс. RUB | T123: =SUM(T108,T111,T115) -> 1223125 | U123: =SUM(U108,U111,U115) -> 3781073.339 | V123: 5562541.291 | W123: 8123568.132 | X123: =SUM(X108,X111,X115) -> 13298778.02 | Y123: 18904715.39 | Z123: =SUM(Z108,Z111,Z115) -> 18633167.86 | AA123: 18069711.91 | AB123: 17543061.76 | AC123: 16957411.81 | AD123: 17441631.4 | AE123: 17889269.76 | AF123: 18333268.55 | AG123: =SUM(AG108,AG111,AG115) -> 19793284.96 | AH123: 22472802.81 | AI123: 25158495.25 | AJ123: ut_Total_Equity_Liabilities
C125: Проверка | E125: =MAX(T125:AI125) -> 3.725290298e-09 | T125: =ABS(T106-T123)*Service!T95 -> 2.328306437e-10 | U125: =ABS(U106-U123)*Service!U95 -> 4.656612873e-10 | V125: =ABS(V106-V123)*Service!V95 -> 9.313225746e-10 | W125: =ABS(W106-W123)*Service!W95 -> 0 | X125: =ABS(X106-X123)*Service!X95 -> 1.862645149e-09 | Y125: =ABS(Y106-Y123)*Service!Y95 -> 0 | Z125: =ABS(Z106-Z123)*Service!Z95 -> 3.725290298e-09 | AA125: =ABS(AA106-AA123)*Service!AA95 -> 3.725290298e-09 | AB125: =ABS(AB106-AB123)*Service!AB95 -> 0 | AC125: =ABS(AC106-AC123)*Service!AC95 -> 0 | AD125: =ABS(AD106-AD123)*Service!AD95 -> 0 | AE125: =ABS(AE106-AE123)*Service!AE95 -> 0 | AF125: =ABS(AF106-AF123)*Service!AF95 -> 0 | AG125: =ABS(AG106-AG123)*Service!AG95 -> 3.725290298e-09 | AH125: =ABS(AH106-AH123)*Service!AH95 -> 0 | AI125: =ABS(AI106-AI123)*Service!AI95 -> 3.725290298e-09
C127: Показатели, используемые для корректировки Debt / Net Debt
D128: =ut_Digits&ut_LCU -> тыс. RUB
D129: =ut_Digits&ut_LCU -> тыс. RUB
D130: =ut_Digits&ut_LCU -> тыс. RUB
S131: =SUM(S128:S130) -> 0 | T131: 0 | U131: 0 | V131: 0 | W131: 0 | X131: 0 | Y131: 0 | Z131: 0 | AA131: 0 | AB131: =SUM(AB128:AB130) -> 0 | AC131: 0 | AD131: 0 | AE131: 0 | AF131: 0 | AG131: 0 | AH131: 0 | AI131: 0
C134: Отчет о финансовых результатах
C136: Выручка | D136: =ut_Digits&ut_LCU -> тыс. RUB | T136: =ut_Revenue -> 0 | U136: 0 | V136: 0 | W136: 0 | X136: 0 | Y136: 0 | Z136: 4574163.846 | AA136: 4558144.233 | AB136: 4603926.736 | AC136: 4647341.72 | AD136: 4691494.572 | AE136: 4747743.12 | AF136: 4805120.133 | AG136: 4875542.363 | AH136: 4945697.934 | AI136: 5014322.322 | AJ136: ut_Revenue_PL
C138: Производственные расходы (без амортизации) | D138: =ut_Digits&ut_LCU -> тыс. RUB | T138: =-ut_COGS -> -35696.50817 | U138: -37040.96241 | V138: -37910.24055 | W138: -37515.20678 | X138: -42173.15338 | Y138: -41717.25686 | Z138: -867973.3069 | AA138: -900191.9295 | AB138: -932851.0126 | AC138: -966041.9576 | AD138: -999771.9522 | AE138: -1034301.397 | AF138: -1068927.864 | AG138: -1104778.774 | AH138: -1141192.278 | AI138: -1177975.809 | AJ138: ut_COGS_PL
C140: Валовая прибыль | D140: =ut_Digits&ut_LCU -> тыс. RUB | T140: =T136+T138 -> -35696.50817 | U140: -37040.96241 | V140: -37910.24055 | W140: -37515.20678 | X140: =X136+X138 -> -42173.15338 | Y140: -41717.25686 | Z140: 3706190.539 | AA140: 3657952.303 | AB140: 3671075.723 | AC140: 3681299.762 | AD140: 3691722.62 | AE140: 3713441.723 | AF140: 3736192.27 | AG140: 3770763.589 | AH140: 3804505.657 | AI140: 3836346.513 | AJ140: ut_Gross_Revenue
C142: Коммерческие расходы | D142: =ut_Digits&ut_LCU -> тыс. RUB | T142: =-ut_S_Exp -> 0 | U142: 0 | V142: 0 | W142: 0 | X142: 0 | Y142: 0 | Z142: -194289.5348 | AA142: -198731.0455 | AB142: -205896.8252 | AC142: -213085.309 | AD142: -220433.5267 | AE142: -228610.4482 | AF142: -237026.4946 | AG142: -246357.6497 | AH142: -255933.0904 | AI142: -265758.4499 | AJ142: ut_S_Exp_PL
C143: Управленческие и административные расходы | D143: =ut_Digits&ut_LCU -> тыс. RUB | T143: =-ut_GA_Exp -> 0 | U143: 0 | V143: 0 | W143: 0 | X143: 0 | Y143: 0 | Z143: 0 | AA143: 0 | AB143: 0 | AC143: 0 | AD143: 0 | AE143: 0 | AF143: 0 | AG143: 0 | AH143: 0 | AI143: 0 | AJ143: ut_GA_Exp_PL
C144: Налоги, акцизы, сборы | D144: =ut_Digits&ut_LCU -> тыс. RUB | T144: =-ut_Taxes -> 0 | U144: 0 | V144: 0 | W144: 0 | X144: 0 | Y144: 0 | Z144: -146666.6667 | AA144: -145200 | AB144: -143733.3333 | AC144: -142486.6667 | AD144: -141196 | AE144: -139861.3333 | AF144: -138482.6667 | AG144: -137060 | AH144: -135637.3333 | AI144: -134214.6667 | AJ144: ut_Taxes_PL
C145: Прочие операционные доходы и расходы | D145: =ut_Digits&ut_LCU -> тыс. RUB | T145: =-ut_Other_Exp -> 0 | U145: 0 | V145: 0 | W145: 0 | X145: 0 | Y145: 0 | Z145: 0 | AA145: 0 | AB145: 0 | AC145: 0 | AD145: 0 | AE145: 0 | AF145: 0 | AG145: 0 | AH145: 0 | AI145: 0 | AJ145: ut_Other_Exp_PL
C147: Показатели, используемые для корректировки EBITDA
C148: Прибыль / убыток от обесценения активов | D148: =ut_Digits&ut_LCU -> тыс. RUB | AJ148: Impairment
D149: =ut_Digits&ut_LCU -> тыс. RUB
D150: =ut_Digits&ut_LCU -> тыс. RUB
D151: =ut_Digits&ut_LCU -> тыс. RUB | AK151: ut_FinExp_PL
T152: =SUM(T148:T151) -> 0 | U152: 0 | V152: 0 | W152: 0 | X152: =SUM(X148:X151) -> 0 | Y152: 0 | Z152: 0 | AA152: 0 | AB152: 0 | AC152: 0 | AD152: 0 | AE152: 0 | AF152: 0 | AG152: 0 | AH152: 0 | AI152: 0 | AJ152: ut_EBITDA_corrs
C154: EBITDA | D154: =ut_Digits&ut_LCU -> тыс. RUB | T154: =T140+SUM(T142:T145)+T152 -> -35696.50817 | U154: -37040.96241 | V154: -37910.24055 | W154: -37515.20678 | X154: =X140+SUM(X142:X145)+X152 -> -42173.15338 | Y154: -41717.25686 | Z154: 3365234.338 | AA154: 3314021.258 | AB154: 3321445.565 | AC154: 3325727.786 | AD154: 3330093.093 | AE154: 3344969.941 | AF154: 3360683.109 | AG154: 3387345.94 | AH154: 3412935.233 | AI154: 3436373.396 | AJ154: ut_EBITDA
C156: Амортизация | D156: =ut_Digits&ut_LCU -> тыс. RUB | T156: =-ut_Depreciation_PL -> 0 | U156: 0 | V156: 0 | W156: 0 | X156: 0 | Y156: 0 | Z156: 0 | AA156: -66666.66667 | AB156: -66666.66667 | AC156: -66666.66667 | AD156: -68666.66667 | AE156: -70666.66667 | AF156: -72666.66667 | AG156: -74666.66667 | AH156: -74666.66667 | AI156: -74666.66667 | AJ156: ut_Depreciation_PL
C158: EBIT | D158: =ut_Digits&ut_LCU -> тыс. RUB | T158: =T154+T156 -> -35696.50817 | U158: -37040.96241 | V158: -37910.24055 | W158: -37515.20678 | X158: =X154+X156 -> -42173.15338 | Y158: -41717.25686 | Z158: 3365234.338 | AA158: 3247354.591 | AB158: 3254778.898 | AC158: 3259061.12 | AD158: 3261426.427 | AE158: 3274303.274 | AF158: 3288016.442 | AG158: 3312679.273 | AH158: 3338268.566 | AI158: 3361706.73 | AJ158: ut_EBIT
C160: Проценты к получению | D160: =ut_Digits&ut_LCU -> тыс. RUB | T160: =ut_Fin_Assets_Eq_Interest -> 0 | U160: 0 | V160: 0 | W160: 0 | X160: 0 | Y160: 0 | Z160: 0 | AA160: 0 | AB160: 0 | AC160: 0 | AD160: 0 | AE160: 0 | AF160: 0 | AG160: 0 | AH160: 0 | AI160: 0 | AJ160: ut_Income_Interest_PL
C161: Проценты к уплате по кредитам | D161: тыс. RUB | T161: =-ut_Total_Interest_Repayment -> 0 | U161: 0 | V161: 0 | W161: 0 | X161: 0 | Y161: 0 | Z161: -1118755.643 | AA161: -1859266.847 | AB161: -1799513.033 | AC161: -1799243.232 | AD161: -602855.387 | AE161: -415439.7498 | AF161: -219542.1355 | AG161: -58636.31101 | AH161: 0 | AI161: 0 | AJ161: ut_Outcome_Interest_PL
C162: Прочие финансовые доходы / расходы | D162: тыс. RUB | AJ162: ut_Other_Fin_Inc_PL
C163: Банковские комиссии | D163: тыс. RUB | T163: =-ut_Total_Fees_Repayment -> -1000 | U163: -2600 | V163: -1800 | W163: -2400 | X163: -6600 | Y163: -8600 | Z163: 0 | AA163: 0 | AB163: 0 | AC163: 0 | AD163: 0 | AE163: 0 | AF163: 0 | AG163: 0 | AH163: 0 | AI163: 0 | AJ163: ut_Comissions_PL
C164: Курсовые разницы | D164: тыс. RUB | T164: =0 -> 0 | U164: =0 -> 0 | V164: =0 -> 0 | W164: =0 -> 0 | X164: =0 -> 0 | Y164: =0 -> 0 | Z164: =0 -> 0 | AA164: =0 -> 0 | AB164: =0 -> 0 | AC164: =0 -> 0 | AD164: =0 -> 0 | AE164: =0 -> 0 | AF164: =0 -> 0 | AG164: =0 -> 0 | AH164: =0 -> 0 | AI164: =0 -> 0 | AJ164: ut_Fx_Differences_PL
C165: Субсидии | D165: тыс. RUB | T165: =ut_Subsidies -> 100000 | U165: 100000 | V165: 100000 | W165: 100000 | X165: 100000 | Y165: 100000 | Z165: 0 | AA165: 0 | AB165: 0 | AC165: 0 | AD165: 0 | AE165: 0 | AF165: 0 | AG165: 0 | AH165: 0 | AI165: 0 | AJ165: ut_Subsidies_PL
C166: Прочие доходы | D166: тыс. RUB | T166: =ut_Other_Income -> 0 | U166: 0 | V166: 0 | W166: 0 | X166: 0 | Y166: 0 | Z166: 0 | AA166: 0 | AB166: 0 | AC166: 0 | AD166: 0 | AE166: 0 | AF166: 0 | AG166: 0 | AH166: 0 | AI166: 0 | AJ166: ut_Other_Income
C167: Прочие расходы | D167: тыс. RUB | T167: =ut_Other_Expenses -> 0 | U167: 0 | V167: 0 | W167: 0 | X167: 0 | Y167: 0 | Z167: -14346.32044 | AA167: -14877.96867 | AB167: -15417.60225 | AC167: -15963.85429 | AD167: -16521.05553 | AE167: -17084.99962 | AF167: -17656.66568 | AG167: -18242.44841 | AH167: -18839.57359 | AI167: -19425.49969 | AJ167: ut_Other_Expenses
C169: Прибыль до налогообложения | D169: =ut_Digits&ut_LCU -> тыс. RUB | T169: =T158+SUM(T160:T167) -> 63303.49183 | U169: 60359.03759 | V169: 60289.75945 | W169: 60084.79322 | X169: =X158+SUM(X160:X167) -> 51226.84662 | Y169: 49682.74314 | Z169: 2232132.375 | AA169: 1373209.776 | AB169: 1439848.262 | AC169: 1443854.033 | AD169: 2642049.984 | AE169: 2841778.525 | AF169: 3050817.641 | AG169: 3235800.514 | AH169: 3319428.993 | AI169: 3342281.23 | AJ169: ut_PBT
G171: Налоговый убыток | H171: bop | T171: =-S174 -> 0 | U171: =T174 -> 0 | V171: =U174 -> 0 | W171: 0 | X171: =W174 -> 0 | Y171: 0 | Z171: 0 | AA171: 0 | AB171: 0 | AC171: 0 | AD171: 0 | AE171: 0 | AF171: 0 | AG171: 0 | AH171: 0 | AI171: 0
H172: + in period | T172: =T169*(T169<0) -> 0 | U172: =U169*(U169<0) -> 0 | V172: 0 | W172: =W169*(W169<0) -> 0 | X172: =X169*(X169<0) -> 0 | Y172: 0 | Z172: 0 | AA172: 0 | AB172: 0 | AC172: 0 | AD172: 0 | AE172: 0 | AF172: 0 | AG172: 0 | AH172: 0 | AI172: 0
H173: - in period | T173: =T169*(T169>0) -> 63303.49183 | U173: =U169*(U169>0) -> 60359.03759 | V173: 60289.75945 | W173: =W169*(W169>0) -> 60084.79322 | X173: =X169*(X169>0) -> 51226.84662 | Y173: 49682.74314 | Z173: 2232132.375 | AA173: 1373209.776 | AB173: 1439848.262 | AC173: 1443854.033 | AD173: 2642049.984 | AE173: 2841778.525 | AF173: 3050817.641 | AG173: 3235800.514 | AH173: 3319428.993 | AI173: 3342281.23
H174: eop | T174: =IF((T171+T172+T173)<0,(T171+T172+T173),0) -> 0 | U174: =IF((U171+U172+U173)<0,(U171+U172+U173),0) -> 0 | V174: 0 | W174: 0 | X174: =IF((X171+X172+X173)<0,(X171+X172+X173),0) -> 0 | Y174: 0 | Z174: 0 | AA174: 0 | AB174: 0 | AC174: 0 | AD174: 0 | AE174: 0 | AF174: 0 | AG174: 0 | AH174: 0 | AI174: 0
G175: База начисления налога на прибыль | T175: =IF(T174<>0,0,SUM(T171:T173)) -> 63303.49183 | U175: =IF(U174<>0,0,SUM(U171:U173)) -> 60359.03759 | V175: 60289.75945 | W175: 60084.79322 | X175: =IF(X174<>0,0,SUM(X171:X173)) -> 51226.84662 | Y175: 49682.74314 | Z175: 2232132.375 | AA175: 1373209.776 | AB175: 1439848.262 | AC175: 1443854.033 | AD175: 2642049.984 | AE175: 2841778.525 | AF175: 3050817.641 | AG175: 3235800.514 | AH175: 3319428.993 | AI175: 3342281.23
H176: ОНА in period | T176: =(T172*ut_Profit_Tax_Rate_Inputs)*(T172<0) -> 0 | U176: 0 | V176: 0 | W176: 0 | X176: 0 | Y176: 0 | Z176: 0 | AA176: 0 | AB176: 0 | AC176: 0 | AD176: 0 | AE176: 0 | AF176: 0 | AG176: 0 | AH176: 0 | AI176: 0
H177: ОНА used | T177: =MIN(T173*ut_Profit_Tax_Rate_Inputs,-S178) -> 0 | U177: 0 | V177: 0 | W177: 0 | X177: 0 | Y177: 0 | Z177: 0 | AA177: 0 | AB177: 0 | AC177: 0 | AD177: 0 | AE177: 0 | AF177: 0 | AG177: 0 | AH177: 0 | AI177: 0
H178: ОНА eop | T178: =S178+T176+T177 -> 0 | U178: =T178+U176+U177 -> 0 | V178: 0 | W178: 0 | X178: =W178+X176+X177 -> 0 | Y178: =X178+Y176+Y177 -> 0 | Z178: =Y178+Z176+Z177 -> 0 | AA178: =Z178+AA176+AA177 -> 0 | AB178: =AA178+AB176+AB177 -> 0 | AC178: =AB178+AC176+AC177 -> 0 | AD178: =AC178+AD176+AD177 -> 0 | AE178: =AD178+AE176+AE177 -> 0 | AF178: =AE178+AF176+AF177 -> 0 | AG178: =AF178+AG176+AG177 -> 0 | AH178: =AG178+AH176+AH177 -> 0 | AI178: =AH178+AI176+AI177 -> 0
C179: Изменение ОНА / ОНО | T179: =S178-T178 -> 0 | U179: =T178-U178 -> 0 | V179: 0 | W179: 0 | X179: =W178-X178 -> 0 | Y179: =X178-Y178 -> 0 | Z179: =Y178-Z178 -> 0 | AA179: =Z178-AA178 -> 0 | AB179: =AA178-AB178 -> 0 | AC179: =AB178-AC178 -> 0 | AD179: =AC178-AD178 -> 0 | AE179: =AD178-AE178 -> 0 | AF179: =AE178-AF178 -> 0 | AG179: =AF178-AG178 -> 0 | AH179: =AG178-AH178 -> 0 | AI179: =AH178-AI178 -> 0 | AJ179: ut_Tax_Provisions_Delta_PL
C181: Налог на прибыль | D181: =ut_Digits&ut_LCU -> тыс. RUB | E181: расчет | H181: начисленный | T181: =-(T175*ut_Profit_Tax_Rate_Inputs)*(T175>0) -> -12660.69837 | U181: -12071.80752 | V181: -12057.95189 | W181: -12016.95864 | X181: -10245.36932 | Y181: -9936.548627 | Z181: -446426.4749 | AA181: -274641.9552 | AB181: -287969.6525 | AC181: -288770.8066 | AD181: -528409.9968 | AE181: -568355.705 | AF181: -610163.5281 | AG181: -647160.1027 | AH181: -663885.7985 | AI181: -668456.246 | AJ181: ut_Profit_Tax_Calc
C182: Налог на прибыль | D182: =ut_Digits&ut_LCU -> тыс. RUB | E182: вручную, со знаком минус
C184: Налог на прибыль | D184: =ut_Digits&ut_LCU -> тыс. RUB | E184: итог | T184: =IF(T182<>0,T182,T181) -> -12660.69837 | U184: =IF(U182<>0,U182,U181) -> -12071.80752 | V184: -12057.95189 | W184: -12016.95864 | X184: =IF(X182<>0,X182,X181) -> -10245.36932 | Y184: -9936.548627 | Z184: -446426.4749 | AA184: -274641.9552 | AB184: -287969.6525 | AC184: -288770.8066 | AD184: -528409.9968 | AE184: -568355.705 | AF184: -610163.5281 | AG184: -647160.1027 | AH184: -663885.7985 | AI184: -668456.246 | AJ184: ut_Current_ProfitTax
G185: Фактическая оплата
H186: период уплаты налога на прибыль | T186: =ut_Counter+ut_Profit_Tax_Delay_Inputs -> 2 | U186: 3 | V186: 4 | W186: 5 | X186: 6 | Y186: 7 | Z186: 8 | AA186: 9 | AB186: 10 | AC186: 11 | AD186: 12 | AE186: 13 | AF186: 14 | AG186: 15 | AH186: 16 | AI186: 17 | AJ186: ut_Profit_Tax_Periods
H187: ОНО | T187: =-T184+T188 -> 12660.69837 | U187: =T187-U184+U188 -> 12071.80752 | V187: =U187-V184+V188 -> 12057.95189 | W187: 12016.95864 | X187: =W187-X184+X188 -> 10245.36932 | Y187: =X187-Y184+Y188 -> 9936.548627 | Z187: =Y187-Z184+Z188 -> 446426.4749 | AA187: =Z187-AA184+AA188 -> 274641.9552 | AB187: =AA187-AB184+AB188 -> 287969.6525 | AC187: =AB187-AC184+AC188 -> 288770.8066 | AD187: =AC187-AD184+AD188 -> 528409.9968 | AE187: =AD187-AE184+AE188 -> 568355.705 | AF187: =AE187-AF184+AF188 -> 610163.5281 | AG187: =AF187-AG184+AG188 -> 647160.1027 | AH187: =AG187-AH184+AH188 -> 663885.7985 | AI187: =AH187-AI184+AI188 -> 668456.246
H188: оплата в CF | T188: =SUMIFS(ut_Current_ProfitTax,ut_Profit_Tax_Periods,ut_Counter) -> 0 | U188: =SUMIFS(ut_Profit_Tax_Calc,ut_Profit_Tax_Periods,ut_Counter) -> -12660.69837 | V188: -12071.80752 | W188: -12057.95189 | X188: -12016.95864 | Y188: -10245.36932 | Z188: -9936.548627 | AA188: -446426.4749 | AB188: -274641.9552 | AC188: -287969.6525 | AD188: -288770.8066 | AE188: -528409.9968 | AF188: -568355.705 | AG188: -610163.5281 | AH188: -647160.1027 | AI188: -663885.7985 | AJ188: ut_Profit_Tax_CF
C190: Чистая прибыль | D190: =ut_Digits&ut_LCU -> тыс. RUB | T190: =T169+T184 -> 50642.79346 | U190: =U169+U184 -> 48287.23007 | V190: =V169+V184 -> 48231.80756 | W190: =W169+W184 -> 48067.83457 | X190: =X169+X184 -> 40981.4773 | Y190: 39746.19451 | Z190: 1785705.9 | AA190: 1098567.821 | AB190: 1151878.61 | AC190: 1155083.226 | AD190: 2113639.987 | AE190: 2273422.82 | AF190: 2440654.113 | AG190: 2588640.411 | AH190: 2655543.194 | AI190: 2673824.984 | AJ190: ut_Net_Income
C194: Debt service indicators
C196: Настройки субординации долга
C198: Наименование кредита | D198: Валюта | E198: Кредитор | H198: Тип субординации | J198: номер | K198: subord_types | M198: строка | AJ198: ut_rm_balance_eop
C199: =IFERROR(INDEX(ut_Debt_Dir,J199,1),0) -> Кредит 1 | D199: =IFERROR(INDEX(ut_Debt_Dir,J199,2),0) -> RUB | E199: =IFERROR(INDEX(ut_Debt_Dir,J199,3),0) -> ВЭБ | H199: учитывается в IS/DS | J199: =IFERROR(J198+1,1) -> 1 | K199: =IFERROR(MATCH(H199,ut_Subord_types,0),1) -> 1 | M199: =IFERROR(MATCH(J199,ut_Finance_Numbers,0)+23,1) -> 24 | N199: долг | T199: =INDEX(ut_Debt_Data,$M199,T$1) -> 500000 | U199: 1800000 | V199: 2700000 | W199: 3900000 | X199: 7200000 | Y199: 11500000 | Z199: 8841011.684 | AA199: 8344325.248 | AB199: 7645935.415 | AC199: 6966429.235 | AD199: =INDEX(ut_Debt_Data,$M199,AD$1) -> 5090678.506 | AE199: 3218116.49 | AF199: 1172726.22 | AG199: 0 | AH199: 0 | AI199: 0
H201: погашение % | AJ201: ut_rm_interest_repayment
C202: =C199 -> Кредит 1 | D202: =D199 -> RUB | E202: =E199 -> ВЭБ | H202: =H199 -> учитывается в IS/DS | J202: =J199 -> 1 | K202: =IFERROR(MATCH(H202,ut_Subord_types,0),1) -> 1 | M202: =IFERROR(MATCH(J202,ut_Finance_Numbers,0)+30,1) -> 31 | T202: =INDEX(ut_Debt_Data,$M202,T$1) -> 0 | U202: 0 | V202: 0 | W202: 0 | X202: 0 | Y202: 0 | Z202: 1118755.643 | AA202: 1859266.847 | AB202: 1799513.033 | AC202: 1799243.232 | AD202: =INDEX(ut_Debt_Data,$M202,AD$1) -> 602855.387 | AE202: 415439.7498 | AF202: 219542.1355 | AG202: 58636.31101 | AH202: 0 | AI202: 0
H204: погашение долга | AJ204: ut_rm_debt_repayment
C205: =C199 -> Кредит 1 | D205: =D199 -> RUB | E205: =E199 -> ВЭБ | H205: =H199 -> учитывается в IS/DS | J205: =J199 -> 1 | K205: =IFERROR(MATCH(H205,ut_Subord_types,0),1) -> 1 | M205: =IFERROR(MATCH(J205,ut_Finance_Numbers,0)+32,1) -> 33 | T205: =INDEX(ut_Debt_Data,$M205,T$1) -> 0 | U205: 0 | V205: 0 | W205: 0 | X205: 0 | Y205: 0 | Z205: 2658988.316 | AA205: 496686.4358 | AB205: 698389.8336 | AC205: 679506.1798 | AD205: =INDEX(ut_Debt_Data,$M205,AD$1) -> 1875750.729 | AE205: 1872562.015 | AF205: 2045390.27 | AG205: 1172726.22 | AH205: 0 | AI205: 0
H207: привлечение долга | AJ207: ut_rm_debt_attraction
C208: =C199 -> Кредит 1 | D208: =D199 -> RUB | E208: =E199 -> ВЭБ | H208: =H199 -> учитывается в IS/DS | J208: =J199 -> 1 | K208: =IFERROR(MATCH(H208,ut_Subord_types,0),1) -> 1 | M208: =IFERROR(MATCH(J208,ut_Finance_Numbers,0)+31,1) -> 32 | T208: =INDEX(ut_Debt_Data,$M208,T$1) -> 500000 | U208: 1300000 | V208: 900000 | W208: 1200000 | X208: 3300000 | Y208: 4300000 | Z208: 0 | AA208: 0 | AB208: 0 | AC208: 0 | AD208: =INDEX(ut_Debt_Data,$M208,AD$1) -> 0 | AE208: 0 | AF208: 0 | AG208: 0 | AH208: 0 | AI208: 0
C213: Расчет в размерности модели
C215: EBIT | T215: =ut_EBIT_PL -> -35696.50817 | U215: -37040.96241 | V215: -37910.24055 | W215: -37515.20678 | X215: -42173.15338 | Y215: -41717.25686 | Z215: 3365234.338 | AA215: 3247354.591 | AB215: 3254778.898 | AC215: 3259061.12 | AD215: 3261426.427 | AE215: 3274303.274 | AF215: 3288016.442 | AG215: 3312679.273 | AH215: 3338268.566 | AI215: 3361706.73
C216: EBITDA | T216: =ut_EBITDA_PL -> -35696.50817 | U216: -37040.96241 | V216: -37910.24055 | W216: -37515.20678 | X216: -42173.15338 | Y216: -41717.25686 | Z216: 3365234.338 | AA216: 3314021.258 | AB216: 3321445.565 | AC216: 3325727.786 | AD216: 3330093.093 | AE216: 3344969.941 | AF216: 3360683.109 | AG216: 3387345.94 | AH216: 3412935.233 | AI216: 3436373.396
C218: Debt | T218: =SUMIFS(T199:T200,$K199:$K200,1) -> 500000 | U218: 1800000 | V218: 2700000 | W218: 3900000 | X218: 7200000 | Y218: 11500000 | Z218: 8841011.684 | AA218: 8344325.248 | AB218: 7645935.415 | AC218: 6966429.235 | AD218: 5090678.506 | AE218: 3218116.49 | AF218: 1172726.22 | AG218: 0 | AH218: 0 | AI218: 0 | AJ218: DB_Debt
C219: Debt (VEB) | T219: =SUMIFS(T199:T200,$K199:$K200,1,$E199:$E200,"ВЭБ") -> 500000 | U219: 1800000 | V219: 2700000 | W219: 3900000 | X219: 7200000 | Y219: 11500000 | Z219: 8841011.684 | AA219: 8344325.248 | AB219: 7645935.415 | AC219: 6966429.235 | AD219: 5090678.506 | AE219: 3218116.49 | AF219: 1172726.22 | AG219: 0 | AH219: 0 | AI219: 0
C220: Debt (others) | T220: =T218-T219 -> 0 | U220: =U218-U219 -> 0 | V220: 0 | W220: 0 | X220: 0 | Y220: 0 | Z220: 0 | AA220: =AA218-AA219 -> 0 | AB220: 0 | AC220: 0 | AD220: 0 | AE220: 0 | AF220: 0 | AG220: 0 | AH220: 0 | AI220: 0
C221: Debt (balancing) | T221: =T80 -> 0 | U221: 0 | V221: 0 | W221: 0 | X221: 0 | Y221: 0 | Z221: 0 | AA221: 0 | AB221: 0 | AC221: 0 | AD221: 0 | AE221: 0 | AF221: 0 | AG221: 0 | AH221: 0 | AI221: 0
C222: Debt (с учетом балансирующего финансирования) | T222: =T218+T221 -> 500000 | U222: =U218+U221 -> 1800000 | V222: 2700000 | W222: 3900000 | X222: 7200000 | Y222: 11500000 | Z222: 8841011.684 | AA222: =AA218+AA221 -> 8344325.248 | AB222: 7645935.415 | AC222: 6966429.235 | AD222: 5090678.506 | AE222: 3218116.49 | AF222: 1172726.22 | AG222: 0 | AH222: 0 | AI222: 0
C223: Net debt | T223: =(T218-T76)*((T218-T76)>0) -> 500000 | U223: 1797301.661 | V223: 2697083.709 | W223: 3897056.868 | X223: 7197004.686 | Y223: 11496010.38 | Z223: 8072324.333 | AA223: 7102308.631 | AB223: 5901496.025 | AC223: 4723220.56 | AD223: 2345070.323 | AE223: 7679.718668 | AF223: 0 | AG223: 0 | AH223: 0 | AI223: 0 | AJ223: DB_Net_Debt
C225: Debt / EBITDA | T225: =ROUND(IFERROR(T218/T216,0),3)*(T$6) -> 0 | U225: 0 | V225: 0 | W225: 0 | X225: 0 | Y225: 0 | Z225: 2.627 | AA225: 2.518 | AB225: 2.302 | AC225: 2.095 | AD225: 1.529 | AE225: 0.962 | AF225: 0.349 | AG225: 0 | AH225: 0 | AI225: 0 | AJ225: DB_st_D_EBITDA
C226: Debt / EBITDA (с учетом балансирующего финансирования) | T226: =ROUND(IFERROR(T222/T216,0),3)*(T$6) -> 0 | U226: 0 | V226: 0 | W226: 0 | X226: 0 | Y226: 0 | Z226: 2.627 | AA226: 2.518 | AB226: 2.302 | AC226: 2.095 | AD226: 1.529 | AE226: 0.962 | AF226: 0.349 | AG226: 0 | AH226: 0 | AI226: 0
C227: Net debt / EBITDA | T227: =ROUND(IFERROR(T223/T216,0),3)*(T$6) -> 0 | U227: 0 | V227: 0 | W227: 0 | X227: 0 | Y227: 0 | Z227: 2.399 | AA227: 2.143 | AB227: 1.777 | AC227: 1.42 | AD227: 0.704 | AE227: 0.002 | AF227: 0 | AG227: 0 | AH227: 0 | AI227: 0 | AJ227: DB_st_Net_D_EBITDA
C229: Debt / Revenue | T229: =ROUND(IFERROR(T218/ut_Revenue,0),5) -> 0 | U229: 0 | V229: 0 | W229: 0 | X229: 0 | Y229: 0 | Z229: 1.93281 | AA229: =ROUND(IFERROR(AA218/ut_Revenue,0),5) -> 1.83064 | AB229: 1.66074 | AC229: 1.49901 | AD229: 1.08509 | AE229: 0.67782 | AF229: 0.24406 | AG229: 0 | AH229: 0 | AI229: 0
C230: Net debt / Revenue | T230: =ROUND(IFERROR(T223/ut_Revenue,0),5) -> 0 | U230: 0 | V230: 0 | W230: 0 | X230: 0 | Y230: 0 | Z230: 1.76477 | AA230: =ROUND(IFERROR(AA223/ut_Revenue,0),5) -> 1.55816 | AB230: 1.28184 | AC230: 1.01633 | AD230: 0.49986 | AE230: 0.00162 | AF230: 0 | AG230: 0 | AH230: 0 | AI230: 0
C232: EBITDA / Interest | T232: =ROUND(IFERROR(T216/ROUND(SUMIFS(T202:T203,$K202:$K203,1),2),0),5)*(T$4=0) -> 0 | U232: 0 | V232: 0 | W232: 0 | X232: 0 | Y232: 0 | Z232: 3.00802 | AA232: 1.78243 | AB232: 1.84575 | AC232: 1.8484 | AD232: 5.52387 | AE232: 8.05164 | AF232: 15.30769 | AG232: 57.76874 | AH232: 0 | AI232: 0
C233: EBITDA / FinExp | T233: =IFERROR(ROUND(T216/ROUND(-SUM(INDEX(ut_FinExp_PL,,T$1)),2),2),0)*(T$4=0) -> 0 | U233: 0 | V233: 0 | W233: 0 | X233: 0 | Y233: 0 | Z233: 3.01 | AA233: 1.78 | AB233: 1.85 | AC233: 1.85 | AD233: 5.52 | AE233: 8.05 | AF233: 15.31 | AG233: 57.77 | AH233: 0 | AI233: 0
C235: Interest service | H235: =SUM(T235:AI235) -> 7873252.338 | T235: =ROUND(SUMIFS(T202:T203,$K202:$K203,1),4) -> 0 | U235: 0 | V235: 0 | W235: 0 | X235: 0 | Y235: 0 | Z235: 1118755.643 | AA235: 1859266.847 | AB235: 1799513.033 | AC235: 1799243.232 | AD235: 602855.387 | AE235: 415439.7498 | AF235: 219542.1355 | AG235: 58636.311 | AH235: 0 | AI235: 0 | AJ235: DB_Interest_service
C236: Debt service | D236: IS incl. | H236: =SUM(T236:AI236) -> 19373252.34 | T236: =ROUND(T235+SUMIFS(T205:T206,$K205:$K206,1),4) -> 0 | U236: 0 | V236: 0 | W236: 0 | X236: 0 | Y236: 0 | Z236: 3777743.959 | AA236: 2355953.282 | AB236: 2497902.867 | AC236: 2478749.412 | AD236: 2478606.116 | AE236: 2288001.765 | AF236: 2264932.406 | AG236: 1231362.531 | AH236: 0 | AI236: 0 | AJ236: DB_Debt_service
C238: CFADS | H238: =SUM(T238:AI238) -> 18955929.05 | T238: =ROUND(T9+T40+T56+T52+T58-T70-T69-T68+SUMIFS(T208:T209,$K208:$K209,2),5)*(Service!T23=0) -> 0 | U238: =ROUND(U9+U40+U56+U52+U58-U70-U69-U68+SUMIFS(U208:U209,$K208:$K209,2),5)*(Service!U23=0) -> -1292101.661 | V238: =ROUND(V9+V40+V56+V52+V58-V70-V69-V68+SUMIFS(V208:V209,$K208:$K209,2),5)*(Service!V23=0) -> -896182.0481 | W238: =ROUND(W9+W40+W56+W52+W58-W70-W69-W68+SUMIFS(W208:W209,$K208:$K209,2),5)*(Service!W23=0) -> -1195173.159 | X238: =ROUND(X9+X40+X56+X52+X58-X70-X69-X68+SUMIFS(X208:X209,$K208:$K209,2),5)*(Service!X23=0) -> -3286747.818 | Y238: =ROUND(Y9+Y40+Y56+Y52+Y58-Y70-Y69-Y68+SUMIFS(Y208:Y209,$K208:$K209,2),5)*(Service!Y23=0) -> -4281805.691 | Z238: =ROUND(Z9+Z40+Z56+Z52+Z58-Z70-Z69-Z68+SUMIFS(Z208:Z209,$K208:$K209,2),5)*(Service!Z23=0) -> 4542441.686 | AA238: =ROUND(AA9+AA40+AA56+AA52+AA58-AA70-AA69-AA68+SUMIFS(AA208:AA209,$K208:$K209,2),5)*(Service!AA23=0) -> 2829282.548 | AB238: =ROUND(AB9+AB40+AB56+AB52+AB58-AB70-AB69-AB68+SUMIFS(AB208:AB209,$K208:$K209,2),5)*(Service!AB23=0) -> 3000325.64 | AC238: =ROUND(AC9+AC40+AC56+AC52+AC58-AC70-AC69-AC68+SUMIFS(AC208:AC209,$K208:$K209,2),5)*(Service!AC23=0) -> 2977518.697 | AD238: =ROUND(AD9+AD40+AD56+AD52+AD58-AD70-AD69-AD68+SUMIFS(AD208:AD209,$K208:$K209,2),5)*(Service!AD23=0) -> 2981005.624 | AE238: =ROUND(AE9+AE40+AE56+AE52+AE58-AE70-AE69-AE68+SUMIFS(AE208:AE209,$K208:$K209,2),5)*(Service!AE23=0) -> 2752830.354 | AF238: =ROUND(AF9+AF40+AF56+AF52+AF58-AF70-AF69-AF68+SUMIFS(AF208:AF209,$K208:$K209,2),5)*(Service!AF23=0) -> 2726218.952 | AG238: =ROUND(AG9+AG40+AG56+AG52+AG58-AG70-AG69-AG68+SUMIFS(AG208:AG209,$K208:$K209,2),5)*(Service!AG23=0) -> 2707322.873 | AH238: =ROUND(AH9+AH40+AH56+AH52+AH58-AH70-AH69-AH68+SUMIFS(AH208:AH209,$K208:$K209,2),5)*(Service!AH23=0) -> 2693426.138 | AI238: =ROUND(AI9+AI40+AI56+AI52+AI58-AI70-AI69-AI68+SUMIFS(AI208:AI209,$K208:$K209,2),5)*(Service!AI23=0) -> 2697566.911 | AJ238: ut_CFADS
C239: CFADS с учетом дофинансирования | H239: =SUM(T239:AI239) -> 18955929.05 | T239: =ROUND(T238+T78,5) -> 0 | U239: -1292101.661 | V239: -896182.0481 | W239: -1195173.159 | X239: -3286747.818 | Y239: -4281805.691 | Z239: 4542441.686 | AA239: 2829282.548 | AB239: 3000325.64 | AC239: 2977518.697 | AD239: 2981005.624 | AE239: 2752830.354 | AF239: 2726218.952 | AG239: 2707322.873 | AH239: 2693426.138 | AI239: 2697566.911
C240: CFADS включая остаток денежных средств | H240: =SUM(T240:AI240) -> 47586385.51 | T240: =ROUND(T238+S76,5) -> 0 | U240: =ROUND(U238+T76,5) -> -1292101.661 | V240: -893483.7089 | W240: -1192256.868 | X240: -3283804.686 | Y240: -4278810.377 | Z240: 4546431.31 | AA240: 3597969.899 | AB240: 4242342.257 | AC240: 4721958.087 | AD240: 5224214.299 | AE240: 5498438.537 | AF240: 5936655.724 | AG240: 6379046.191 | AH240: 7841109.797 | AI240: 10538676.71
C242: DSCR (без дофинансирования) | T242: =IFERROR(T238/T236,0)*(T236>T235)*(T$4=0)*(T238>0) -> 0 | U242: 0 | V242: 0 | W242: 0 | X242: 0 | Y242: 0 | Z242: 1.202421799 | AA242: 1.200907747 | AB242: 1.201137834 | AC242: 1.201218115 | AD242: 1.202694371 | AE242: 1.203159192 | AF242: 1.203664597 | AG242: 2.198639965 | AH242: 0 | AI242: 0 | AJ242: ut_DSCR
C243: DSCR wavg (исторический) | T243: =IFERROR(SUMPRODUCT($T236:T236,$T242:T242)/SUMIF($T242:T242,"<>"&0,$T236:T236),0)*(T$4=0) -> 0 | U243: =IFERROR(SUMPRODUCT($T236:U236,$T242:U242)/SUMIF($T242:U242,"<>"&0,$T236:U236),0)*(U$4=0) -> 0 | V243: =IFERROR(SUMPRODUCT($T236:V236,$T242:V242)/SUMIF($T242:V242,"<>"&0,$T236:V236),0)*(V$4=0) -> 0 | W243: =IFERROR(SUMPRODUCT($T236:W236,$T242:W242)/SUMIF($T242:W242,"<>"&0,$T236:W236),0)*(W$4=0) -> 0 | X243: =IFERROR(SUMPRODUCT($T236:X236,$T242:X242)/SUMIF($T242:X242,"<>"&0,$T236:X236),0)*(X$4=0) -> 0 | Y243: =IFERROR(SUMPRODUCT($T236:Y236,$T242:Y242)/SUMIF($T242:Y242,"<>"&0,$T236:Y236),0)*(Y$4=0) -> 0 | Z243: =IFERROR(SUMPRODUCT($T236:Z236,$T242:Z242)/SUMIF($T242:Z242,"<>"&0,$T236:Z236),0)*(Z$4=0) -> 1.202421799 | AA243: =IFERROR(SUMPRODUCT($T236:AA236,$T242:AA242)/SUMIF($T242:AA242,"<>"&0,$T236:AA236),0)*(AA$4=0) -> 1.201840251 | AB243: =IFERROR(SUMPRODUCT($T236:AB236,$T242:AB242)/SUMIF($T242:AB242,"<>"&0,$T236:AB236),0)*(AB$4=0) -> 1.201636979 | AC243: =IFERROR(SUMPRODUCT($T236:AC236,$T242:AC242)/SUMIF($T242:AC242,"<>"&0,$T236:AC236),0)*(AC$4=0) -> 1.201543529 | AD243: =IFERROR(SUMPRODUCT($T236:AD236,$T242:AD242)/SUMIF($T242:AD242,"<>"&0,$T236:AD236),0)*(AD$4=0) -> 1.201753441 | AE243: =IFERROR(SUMPRODUCT($T236:AE236,$T242:AE242)/SUMIF($T242:AE242,"<>"&0,$T236:AE236),0)*(AE$4=0) -> 1.201956021 | AF243: =IFERROR(SUMPRODUCT($T236:AF236,$T242:AF242)/SUMIF($T242:AF242,"<>"&0,$T236:AF236),0)*(AF$4=0) -> 1.202169329 | AG243: =IFERROR(SUMPRODUCT($T236:AG236,$T242:AG242)/SUMIF($T242:AG242,"<>"&0,$T236:AG236),0)*(AG$4=0) -> 1.265504932 | AH243: =IFERROR(SUMPRODUCT($T236:AH236,$T242:AH242)/SUMIF($T242:AH242,"<>"&0,$T236:AH236),0)*(AH$4=0) -> 1.265504932 | AI243: =IFERROR(SUMPRODUCT($T236:AI236,$T242:AI242)/SUMIF($T242:AI242,"<>"&0,$T236:AI236),0)*(AI$4=0) -> 1.265504932
C244: DSCR wavg (ожидаемый) | S244: =T244 -> 1.265504932 | T244: =IFERROR(SUMPRODUCT(T236:$AI236,T242:$AI242)/SUMIF(T242:$AI242,"<>"&0,T236:$AI236),0) -> 1.265504932 | U244: =IFERROR(SUMPRODUCT(U236:$AI236,U242:$AI242)/SUMIF(U242:$AI242,"<>"&0,U236:$AI236),0) -> 1.265504932 | V244: =IFERROR(SUMPRODUCT(V236:$AI236,V242:$AI242)/SUMIF(V242:$AI242,"<>"&0,V236:$AI236),0) -> 1.265504932 | W244: =IFERROR(SUMPRODUCT(W236:$AI236,W242:$AI242)/SUMIF(W242:$AI242,"<>"&0,W236:$AI236),0) -> 1.265504932 | X244: =IFERROR(SUMPRODUCT(X236:$AI236,X242:$AI242)/SUMIF(X242:$AI242,"<>"&0,X236:$AI236),0) -> 1.265504932 | Y244: =IFERROR(SUMPRODUCT(Y236:$AI236,Y242:$AI242)/SUMIF(Y242:$AI242,"<>"&0,Y236:$AI236),0) -> 1.265504932 | Z244: =IFERROR(SUMPRODUCT(Z236:$AI236,Z242:$AI242)/SUMIF(Z242:$AI242,"<>"&0,Z236:$AI236),0) -> 1.265504932 | AA244: =IFERROR(SUMPRODUCT(AA236:$AI236,AA242:$AI242)/SUMIF(AA242:$AI242,"<>"&0,AA236:$AI236),0) -> 1.280785737 | AB244: =IFERROR(SUMPRODUCT(AB236:$AI236,AB242:$AI242)/SUMIF(AB242:$AI242,"<>"&0,AB236:$AI236),0) -> 1.294999871 | AC244: =IFERROR(SUMPRODUCT(AC236:$AI236,AC242:$AI242)/SUMIF(AC242:$AI242,"<>"&0,AC236:$AI236),0) -> 1.31682689 | AD244: =IFERROR(SUMPRODUCT(AD236:$AI236,AD242:$AI242)/SUMIF(AD242:$AI242,"<>"&0,AD236:$AI236),0) -> 1.351507823 | AE244: =IFERROR(SUMPRODUCT(AE236:$AI236,AE242:$AI242)/SUMIF(AE242:$AI242,"<>"&0,AE236:$AI236),0) -> 1.415275288 | AF244: =IFERROR(SUMPRODUCT(AF236:$AI236,AF242:$AI242)/SUMIF(AF242:$AI242,"<>"&0,AF236:$AI236),0) -> 1.55408566 | AG244: =IFERROR(SUMPRODUCT(AG236:$AI236,AG242:$AI242)/SUMIF(AG242:$AI242,"<>"&0,AG236:$AI236),0) -> 2.198639965 | AH244: =IFERROR(SUMPRODUCT(AH236:$AI236,AH242:$AI242)/SUMIF(AH242:$AI242,"<>"&0,AH236:$AI236),0) -> 0 | AI244: =IFERROR(SUMPRODUCT(AI236:$AI236,AI242:$AI242)/SUMIF(AI242:$AI242,"<>"&0,AI236:$AI236),0) -> 0 | AJ244: ut_DSCRavg
C245: DSCR (включая балансирующий долг) | T245: =IFERROR(T239/T236,0)*(T236>T235)*(T$4=0)*(T239>0) -> 0 | U245: 0 | V245: 0 | W245: 0 | X245: 0 | Y245: 0 | Z245: 1.202421799 | AA245: 1.200907747 | AB245: 1.201137834 | AC245: 1.201218115 | AD245: 1.202694371 | AE245: 1.203159192 | AF245: 1.203664597 | AG245: 2.198639965 | AH245: 0 | AI245: 0
C246: DSCR включая остаток денежных средств | T246: =IFERROR(T240/T236,0)*(T236>T235)*(T$4=0)*(T240>0) -> 0 | U246: 0 | V246: 0 | W246: 0 | X246: 0 | Y246: 0 | Z246: 1.203477885 | AA246: 1.527182192 | AB246: 1.698361579 | AC246: 1.904975978 | AD246: 2.107722669 | AE246: 2.403161842 | AF246: 2.621118277 | AG246: 5.180477746 | AH246: 0 | AI246: 0
C248: ICR | T248: =IFERROR(T215/ROUND(SUMIFS(T202:T203,$K202:$K203,1),2),0)*(T238>0) -> 0 | U248: 0 | V248: 0 | W248: 0 | X248: 0 | Y248: 0 | Z248: 3.008015529 | AA248: 1.746578008 | AB248: 1.808699822 | AC248: 1.811351053 | AD248: 5.409964779 | AE248: 7.881535829 | AF248: 14.97669851 | AG248: 56.49535711 | AH248: 0 | AI248: 0 | AJ248: ut_ISCR
C249: ISCR (без дофинансирования) | T249: =IFERROR(T238/T235,0)*(T238>0) -> 0 | U249: =IFERROR(U238/U235,0)*(U238>0) -> 0 | V249: 0 | W249: 0 | X249: 0 | Y249: 0 | Z249: 4.060262593 | AA249: 1.521719463 | AB249: 1.667298644 | AC249: 1.654872806 | AD249: 4.944810462 | AE249: 6.62630467 | AF249: 12.41774817 | AG249: 46.17143927 | AH249: 0 | AI249: 0
C250: ISCR включая остаток денежных средств | T250: =IFERROR(T240/T235,0)*(T240>0) -> 0 | U250: =IFERROR(U240/U235,0)*(U240>0) -> 0 | V250: 0 | W250: 0 | X250: 0 | Y250: 0 | Z250: 4.063828719 | AA250: 1.935155196 | AB250: 2.357494599 | AC250: 2.624413421 | AD250: 8.665783555 | AE250: 13.23522494 | AF250: 27.04107669 | AG250: 108.7900327 | AH250: 0 | AI250: 0
C251: ISCR wavg (ожидаемый) | T251: =IFERROR(SUMPRODUCT(T235:$AI235,T249:$AI249)/SUM(T235:$AI235),0) -> 3.113954097 | U251: =IFERROR(SUMPRODUCT(U235:$AI235,U249:$AI249)/SUM(U235:$AI235),0) -> 3.113954097 | V251: =IFERROR(SUMPRODUCT(V235:$AI235,V249:$AI249)/SUM(V235:$AI235),0) -> 3.113954097 | W251: =IFERROR(SUMPRODUCT(W235:$AI235,W249:$AI249)/SUM(W235:$AI235),0) -> 3.113954097 | X251: =IFERROR(SUMPRODUCT(X235:$AI235,X249:$AI249)/SUM(X235:$AI235),0) -> 3.113954097 | Y251: =IFERROR(SUMPRODUCT(Y235:$AI235,Y249:$AI249)/SUM(Y235:$AI235),0) -> 3.113954097 | Z251: =IFERROR(SUMPRODUCT(Z235:$AI235,Z249:$AI249)/SUM(Z235:$AI235),0) -> 3.113954097 | AA251: =IFERROR(SUMPRODUCT(AA235:$AI235,AA249:$AI249)/SUM(AA235:$AI235),0) -> 2.95721585 | AB251: =IFERROR(SUMPRODUCT(AB235:$AI235,AB249:$AI249)/SUM(AB235:$AI235),0) -> 3.502434547 | AC251: =IFERROR(SUMPRODUCT(AC235:$AI235,AC249:$AI249)/SUM(AC235:$AI235),0) -> 4.569182952 | AD251: =IFERROR(SUMPRODUCT(AD235:$AI235,AD249:$AI249)/SUM(AD235:$AI235),0) -> 8.613656265 | AE251: =IFERROR(SUMPRODUCT(AE235:$AI235,AE249:$AI249)/SUM(AE235:$AI235),0) -> 11.80241842 | AF251: =IFERROR(SUMPRODUCT(AF235:$AI235,AF249:$AI249)/SUM(AF235:$AI235),0) -> 19.53257664 | AG251: =IFERROR(SUMPRODUCT(AG235:$AI235,AG249:$AI249)/SUM(AG235:$AI235),0) -> 46.17143927 | AH251: =IFERROR(SUMPRODUCT(AH235:$AI235,AH249:$AI249)/SUM(AH235:$AI235),0) -> 0 | AI251: =IFERROR(SUMPRODUCT(AI235:$AI235,AI249:$AI249)/SUM(AI235:$AI235),0) -> 0
H253: DSCR min | S253: =T253 -> 1.200907747 | T253: =IFERROR(IF(COUNTIF(T242:$AI242,"<"&0)>0,MIN(T242:$AI242),SMALL(T242:$AI242,COUNTIF(T242:$AI242,0)+1)),0) -> 1.200907747 | U253: =IFERROR(IF(COUNTIF(U242:$AI242,"<"&0)>0,MIN(U242:$AI242),SMALL(U242:$AI242,COUNTIF(U242:$AI242,0)+1)),0) -> 1.200907747 | V253: =IFERROR(IF(COUNTIF(V242:$AI242,"<"&0)>0,MIN(V242:$AI242),SMALL(V242:$AI242,COUNTIF(V242:$AI242,0)+1)),0) -> 1.200907747 | W253: =IFERROR(IF(COUNTIF(W242:$AI242,"<"&0)>0,MIN(W242:$AI242),SMALL(W242:$AI242,COUNTIF(W242:$AI242,0)+1)),0) -> 1.200907747 | X253: =IFERROR(IF(COUNTIF(X242:$AI242,"<"&0)>0,MIN(X242:$AI242),SMALL(X242:$AI242,COUNTIF(X242:$AI242,0)+1)),0) -> 1.200907747 | Y253: =IFERROR(IF(COUNTIF(Y242:$AI242,"<"&0)>0,MIN(Y242:$AI242),SMALL(Y242:$AI242,COUNTIF(Y242:$AI242,0)+1)),0) -> 1.200907747 | Z253: =IFERROR(IF(COUNTIF(Z242:$AI242,"<"&0)>0,MIN(Z242:$AI242),SMALL(Z242:$AI242,COUNTIF(Z242:$AI242,0)+1)),0) -> 1.200907747 | AA253: =IFERROR(IF(COUNTIF(AA242:$AI242,"<"&0)>0,MIN(AA242:$AI242),SMALL(AA242:$AI242,COUNTIF(AA242:$AI242,0)+1)),0) -> 1.200907747 | AB253: =IFERROR(IF(COUNTIF(AB242:$AI242,"<"&0)>0,MIN(AB242:$AI242),SMALL(AB242:$AI242,COUNTIF(AB242:$AI242,0)+1)),0) -> 1.201137834 | AC253: =IFERROR(IF(COUNTIF(AC242:$AI242,"<"&0)>0,MIN(AC242:$AI242),SMALL(AC242:$AI242,COUNTIF(AC242:$AI242,0)+1)),0) -> 1.201218115 | AD253: =IFERROR(IF(COUNTIF(AD242:$AI242,"<"&0)>0,MIN(AD242:$AI242),SMALL(AD242:$AI242,COUNTIF(AD242:$AI242,0)+1)),0) -> 1.202694371 | AE253: =IFERROR(IF(COUNTIF(AE242:$AI242,"<"&0)>0,MIN(AE242:$AI242),SMALL(AE242:$AI242,COUNTIF(AE242:$AI242,0)+1)),0) -> 1.203159192 | AF253: =IFERROR(IF(COUNTIF(AF242:$AI242,"<"&0)>0,MIN(AF242:$AI242),SMALL(AF242:$AI242,COUNTIF(AF242:$AI242,0)+1)),0) -> 1.203664597 | AG253: =IFERROR(IF(COUNTIF(AG242:$AI242,"<"&0)>0,MIN(AG242:$AI242),SMALL(AG242:$AI242,COUNTIF(AG242:$AI242,0)+1)),0) -> 2.198639965 | AH253: =IFERROR(IF(COUNTIF(AH242:$AI242,"<"&0)>0,MIN(AH242:$AI242),SMALL(AH242:$AI242,COUNTIF(AH242:$AI242,0)+1)),0) -> 0 | AI253: =IFERROR(IF(COUNTIF(AI242:$AI242,"<"&0)>0,MIN(AI242:$AI242),SMALL(AI242:$AI242,COUNTIF(AI242:$AI242,0)+1)),0) -> 0 | AJ253: DB_st_DSCRmin
H254: DSCR (+cash) min | S254: =T254 -> 1.203477885 | T254: =IFERROR(IF(COUNTIF(T246:$AI246,"<"&0)>0,MIN(T246:$AI246),SMALL(T246:$AI246,COUNTIF(T246:$AI246,0)+1)),0) -> 1.203477885 | U254: =IFERROR(IF(COUNTIF(U246:$AI246,"<"&0)>0,MIN(U246:$AI246),SMALL(U246:$AI246,COUNTIF(U246:$AI246,0)+1)),0) -> 1.203477885 | V254: =IFERROR(IF(COUNTIF(V246:$AI246,"<"&0)>0,MIN(V246:$AI246),SMALL(V246:$AI246,COUNTIF(V246:$AI246,0)+1)),0) -> 1.203477885 | W254: =IFERROR(IF(COUNTIF(W246:$AI246,"<"&0)>0,MIN(W246:$AI246),SMALL(W246:$AI246,COUNTIF(W246:$AI246,0)+1)),0) -> 1.203477885 | X254: =IFERROR(IF(COUNTIF(X246:$AI246,"<"&0)>0,MIN(X246:$AI246),SMALL(X246:$AI246,COUNTIF(X246:$AI246,0)+1)),0) -> 1.203477885 | Y254: =IFERROR(IF(COUNTIF(Y246:$AI246,"<"&0)>0,MIN(Y246:$AI246),SMALL(Y246:$AI246,COUNTIF(Y246:$AI246,0)+1)),0) -> 1.203477885 | Z254: =IFERROR(IF(COUNTIF(Z246:$AI246,"<"&0)>0,MIN(Z246:$AI246),SMALL(Z246:$AI246,COUNTIF(Z246:$AI246,0)+1)),0) -> 1.203477885 | AA254: =IFERROR(IF(COUNTIF(AA246:$AI246,"<"&0)>0,MIN(AA246:$AI246),SMALL(AA246:$AI246,COUNTIF(AA246:$AI246,0)+1)),0) -> 1.527182192 | AB254: =IFERROR(IF(COUNTIF(AB246:$AI246,"<"&0)>0,MIN(AB246:$AI246),SMALL(AB246:$AI246,COUNTIF(AB246:$AI246,0)+1)),0) -> 1.698361579 | AC254: =IFERROR(IF(COUNTIF(AC246:$AI246,"<"&0)>0,MIN(AC246:$AI246),SMALL(AC246:$AI246,COUNTIF(AC246:$AI246,0)+1)),0) -> 1.904975978 | AD254: =IFERROR(IF(COUNTIF(AD246:$AI246,"<"&0)>0,MIN(AD246:$AI246),SMALL(AD246:$AI246,COUNTIF(AD246:$AI246,0)+1)),0) -> 2.107722669 | AE254: =IFERROR(IF(COUNTIF(AE246:$AI246,"<"&0)>0,MIN(AE246:$AI246),SMALL(AE246:$AI246,COUNTIF(AE246:$AI246,0)+1)),0) -> 2.403161842 | AF254: =IFERROR(IF(COUNTIF(AF246:$AI246,"<"&0)>0,MIN(AF246:$AI246),SMALL(AF246:$AI246,COUNTIF(AF246:$AI246,0)+1)),0) -> 2.621118277 | AG254: =IFERROR(IF(COUNTIF(AG246:$AI246,"<"&0)>0,MIN(AG246:$AI246),SMALL(AG246:$AI246,COUNTIF(AG246:$AI246,0)+1)),0) -> 5.180477746 | AH254: =IFERROR(IF(COUNTIF(AH246:$AI246,"<"&0)>0,MIN(AH246:$AI246),SMALL(AH246:$AI246,COUNTIF(AH246:$AI246,0)+1)),0) -> 0 | AI254: =IFERROR(IF(COUNTIF(AI246:$AI246,"<"&0)>0,MIN(AI246:$AI246),SMALL(AI246:$AI246,COUNTIF(AI246:$AI246,0)+1)),0) -> 0 | AJ254: DB_st_DSCRcashmin
H256: ISCR min | S256: =T256 -> 1.521719463 | T256: =IFERROR(IF(COUNTIF(T249:$AI249,"<"&0)>0,MIN(T249:$AI249),SMALL(T249:$AI249,COUNTIF(T249:$AI249,0)+1)),0) -> 1.521719463 | U256: =IFERROR(IF(COUNTIF(U249:$AI249,"<"&0)>0,MIN(U249:$AI249),SMALL(U249:$AI249,COUNTIF(U249:$AI249,0)+1)),0) -> 1.521719463 | V256: =IFERROR(IF(COUNTIF(V249:$AI249,"<"&0)>0,MIN(V249:$AI249),SMALL(V249:$AI249,COUNTIF(V249:$AI249,0)+1)),0) -> 1.521719463 | W256: =IFERROR(IF(COUNTIF(W249:$AI249,"<"&0)>0,MIN(W249:$AI249),SMALL(W249:$AI249,COUNTIF(W249:$AI249,0)+1)),0) -> 1.521719463 | X256: =IFERROR(IF(COUNTIF(X249:$AI249,"<"&0)>0,MIN(X249:$AI249),SMALL(X249:$AI249,COUNTIF(X249:$AI249,0)+1)),0) -> 1.521719463 | Y256: =IFERROR(IF(COUNTIF(Y249:$AI249,"<"&0)>0,MIN(Y249:$AI249),SMALL(Y249:$AI249,COUNTIF(Y249:$AI249,0)+1)),0) -> 1.521719463 | Z256: =IFERROR(IF(COUNTIF(Z249:$AI249,"<"&0)>0,MIN(Z249:$AI249),SMALL(Z249:$AI249,COUNTIF(Z249:$AI249,0)+1)),0) -> 1.521719463 | AA256: =IFERROR(IF(COUNTIF(AA249:$AI249,"<"&0)>0,MIN(AA249:$AI249),SMALL(AA249:$AI249,COUNTIF(AA249:$AI249,0)+1)),0) -> 1.521719463 | AB256: =IFERROR(IF(COUNTIF(AB249:$AI249,"<"&0)>0,MIN(AB249:$AI249),SMALL(AB249:$AI249,COUNTIF(AB249:$AI249,0)+1)),0) -> 1.654872806 | AC256: =IFERROR(IF(COUNTIF(AC249:$AI249,"<"&0)>0,MIN(AC249:$AI249),SMALL(AC249:$AI249,COUNTIF(AC249:$AI249,0)+1)),0) -> 1.654872806 | AD256: =IFERROR(IF(COUNTIF(AD249:$AI249,"<"&0)>0,MIN(AD249:$AI249),SMALL(AD249:$AI249,COUNTIF(AD249:$AI249,0)+1)),0) -> 4.944810462 | AE256: =IFERROR(IF(COUNTIF(AE249:$AI249,"<"&0)>0,MIN(AE249:$AI249),SMALL(AE249:$AI249,COUNTIF(AE249:$AI249,0)+1)),0) -> 6.62630467 | AF256: =IFERROR(IF(COUNTIF(AF249:$AI249,"<"&0)>0,MIN(AF249:$AI249),SMALL(AF249:$AI249,COUNTIF(AF249:$AI249,0)+1)),0) -> 12.41774817 | AG256: =IFERROR(IF(COUNTIF(AG249:$AI249,"<"&0)>0,MIN(AG249:$AI249),SMALL(AG249:$AI249,COUNTIF(AG249:$AI249,0)+1)),0) -> 46.17143927 | AH256: =IFERROR(IF(COUNTIF(AH249:$AI249,"<"&0)>0,MIN(AH249:$AI249),SMALL(AH249:$AI249,COUNTIF(AH249:$AI249,0)+1)),0) -> 0 | AI256: =IFERROR(IF(COUNTIF(AI249:$AI249,"<"&0)>0,MIN(AI249:$AI249),SMALL(AI249:$AI249,COUNTIF(AI249:$AI249,0)+1)),0) -> 0 | AJ256: DB_st_ISCRmin
S257: =T257 -> 3.113954097 | T257: =IFERROR(SUMPRODUCT(T235:$AI235,T249:$AI249)/SUMIF(T249:$AI249,"<>"&0,T235:$AI235),0) -> 3.113954097 | U257: =IFERROR(SUMPRODUCT(U235:$AI235,U249:$AI249)/SUMIF(U249:$AI249,"<>"&0,U235:$AI235),0) -> 3.113954097 | V257: =IFERROR(SUMPRODUCT(V235:$AI235,V249:$AI249)/SUMIF(V249:$AI249,"<>"&0,V235:$AI235),0) -> 3.113954097 | W257: =IFERROR(SUMPRODUCT(W235:$AI235,W249:$AI249)/SUMIF(W249:$AI249,"<>"&0,W235:$AI235),0) -> 3.113954097 | X257: =IFERROR(SUMPRODUCT(X235:$AI235,X249:$AI249)/SUMIF(X249:$AI249,"<>"&0,X235:$AI235),0) -> 3.113954097 | Y257: =IFERROR(SUMPRODUCT(Y235:$AI235,Y249:$AI249)/SUMIF(Y249:$AI249,"<>"&0,Y235:$AI235),0) -> 3.113954097 | Z257: =IFERROR(SUMPRODUCT(Z235:$AI235,Z249:$AI249)/SUMIF(Z249:$AI249,"<>"&0,Z235:$AI235),0) -> 3.113954097 | AA257: =IFERROR(SUMPRODUCT(AA235:$AI235,AA249:$AI249)/SUMIF(AA249:$AI249,"<>"&0,AA235:$AI235),0) -> 2.95721585 | AB257: =IFERROR(SUMPRODUCT(AB235:$AI235,AB249:$AI249)/SUMIF(AB249:$AI249,"<>"&0,AB235:$AI235),0) -> 3.502434547 | AC257: =IFERROR(SUMPRODUCT(AC235:$AI235,AC249:$AI249)/SUMIF(AC249:$AI249,"<>"&0,AC235:$AI235),0) -> 4.569182952 | AD257: =IFERROR(SUMPRODUCT(AD235:$AI235,AD249:$AI249)/SUMIF(AD249:$AI249,"<>"&0,AD235:$AI235),0) -> 8.613656265 | AE257: =IFERROR(SUMPRODUCT(AE235:$AI235,AE249:$AI249)/SUMIF(AE249:$AI249,"<>"&0,AE235:$AI235),0) -> 11.80241842 | AF257: =IFERROR(SUMPRODUCT(AF235:$AI235,AF249:$AI249)/SUMIF(AF249:$AI249,"<>"&0,AF235:$AI235),0) -> 19.53257664 | AG257: =IFERROR(SUMPRODUCT(AG235:$AI235,AG249:$AI249)/SUMIF(AG249:$AI249,"<>"&0,AG235:$AI235),0) -> 46.17143927 | AH257: =IFERROR(SUMPRODUCT(AH235:$AI235,AH249:$AI249)/SUMIF(AH249:$AI249,"<>"&0,AH235:$AI235),0) -> 0 | AI257: =IFERROR(SUMPRODUCT(AI235:$AI235,AI249:$AI249)/SUMIF(AI249:$AI249,"<>"&0,AI235:$AI235),0) -> 0 | AJ257: DB_st_ISCRavg
C261: Расчет last twelve months (ltm)
C263: EBIT | T263: =SUM(OFFSET(INDEX(ut_EBIT_PL,,T$1),,,,-$G266)) -> -35696.50817 | U263: -37040.96241 | V263: -37910.24055 | W263: -37515.20678 | X263: -42173.15338 | Y263: -41717.25686 | Z263: 3365234.338 | AA263: 3247354.591 | AB263: 3254778.898 | AC263: 3259061.12 | AD263: 3261426.427 | AE263: 3274303.274 | AF263: 3288016.442 | AG263: 3312679.273 | AH263: 3338268.566 | AI263: 3361706.73
C264: EBITDA | T264: =SUM(OFFSET(INDEX(ut_EBITDA_PL,,T$1),,,,-$G266)) -> -35696.50817 | U264: -37040.96241 | V264: -37910.24055 | W264: -37515.20678 | X264: -42173.15338 | Y264: -41717.25686 | Z264: 3365234.338 | AA264: 3314021.258 | AB264: 3321445.565 | AC264: 3325727.786 | AD264: 3330093.093 | AE264: 3344969.941 | AF264: 3360683.109 | AG264: 3387345.94 | AH264: 3412935.233 | AI264: 3436373.396
C266: Debt | F266: step | G266: =12/ut_Months_in_Period -> 1 | T266: =T218 -> 500000 | U266: 1800000 | V266: 2700000 | W266: 3900000 | X266: 7200000 | Y266: 11500000 | Z266: 8841011.684 | AA266: 8344325.248 | AB266: =AB218 -> 7645935.415 | AC266: 6966429.235 | AD266: 5090678.506 | AE266: 3218116.49 | AF266: 1172726.22 | AG266: 0 | AH266: 0 | AI266: 0 | AJ266: DB_Debt_p
C267: Debt (VEB) | T267: =T219 -> 500000 | U267: 1800000 | V267: 2700000 | W267: 3900000 | X267: 7200000 | Y267: 11500000 | Z267: 8841011.684 | AA267: 8344325.248 | AB267: =AB219 -> 7645935.415 | AC267: 6966429.235 | AD267: 5090678.506 | AE267: 3218116.49 | AF267: 1172726.22 | AG267: 0 | AH267: 0 | AI267: 0
C268: Debt (others) | T268: =T220 -> 0 | U268: 0 | V268: 0 | W268: 0 | X268: 0 | Y268: 0 | Z268: 0 | AA268: 0 | AB268: =AB220 -> 0 | AC268: 0 | AD268: 0 | AE268: 0 | AF268: 0 | AG268: 0 | AH268: 0 | AI268: 0
C269: Debt (balancing) | T269: =T221 -> 0 | U269: 0 | V269: 0 | W269: 0 | X269: 0 | Y269: 0 | Z269: 0 | AA269: 0 | AB269: =AB221 -> 0 | AC269: 0 | AD269: 0 | AE269: 0 | AF269: 0 | AG269: 0 | AH269: 0 | AI269: 0
C270: Debt (с учетом балансирующего финансирования) | T270: =T222 -> 500000 | U270: 1800000 | V270: 2700000 | W270: 3900000 | X270: 7200000 | Y270: 11500000 | Z270: 8841011.684 | AA270: 8344325.248 | AB270: =AB222 -> 7645935.415 | AC270: 6966429.235 | AD270: 5090678.506 | AE270: 3218116.49 | AF270: 1172726.22 | AG270: 0 | AH270: 0 | AI270: 0
C271: Net debt | T271: =T223 -> 500000 | U271: 1797301.661 | V271: 2697083.709 | W271: 3897056.868 | X271: 7197004.686 | Y271: 11496010.38 | Z271: 8072324.333 | AA271: 7102308.631 | AB271: =AB223 -> 5901496.025 | AC271: 4723220.56 | AD271: 2345070.323 | AE271: 7679.718668 | AF271: 0 | AG271: 0 | AH271: 0 | AI271: 0 | AJ271: DB_Net_Debt_p
... 55 more rows

Sheet Efficiency
Q1: template | S1: =ut_Date_Model_Start -> 01.01.2020 | T1: start
S2: =ut_Months_in_Period -> 12 | T2: months in period
C3: Текущий период | E3: =IFERROR(MATCH(D3,ut_End_of_Period,1),1) -> 1 | T3: charts_periodicity
C4: Включить в расчеты исторический период? | E4: ="Исторический CF "&(IF(D4="да","","не"))&" учитывается" -> Исторический CF не учитывается | I4: 3 | J4: months | S4: квартал | T4: =IF(ut_Months_in_Period>I4,0,EOMONTH(S$1,I4-1)) -> 00:00:00 | U4: =EOMONTH(T4,$I4) -> 1900-04-30 | V4: 1900-07-31 | W4: 1900-10-31 | X4: 1901-01-31 | Y4: 1901-04-30 | Z4: 1901-07-31 | AA4: 1901-10-31 | AB4: =EOMONTH(AA4,$I4) -> 1902-01-31 | AC4: =EOMONTH(AB4,$I4) -> 1902-04-30 | AD4: =EOMONTH(AC4,$I4) -> 1902-07-31 | AE4: =EOMONTH(AD4,$I4) -> 1902-10-31 | AF4: =EOMONTH(AE4,$I4) -> 1903-01-31 | AG4: =EOMONTH(AF4,$I4) -> 1903-04-30 | AH4: =EOMONTH(AG4,$I4) -> 1903-07-31 | AI4: =EOMONTH(AH4,$I4) -> 1903-10-31
C5: ="Ограничить расчеты сроком финансирования "&C208&"?" -> Ограничить расчеты сроком финансирования ВЭБ.РФ? | I5: 6 | J5: months | S5: полугодие | T5: =IF(ut_Months_in_Period>I5,0,EOMONTH(S$1,I5-1)) -> 00:00:00 | U5: 1900-07-31 | V5: 1901-01-31 | W5: 1901-07-31 | X5: 1902-01-31 | Y5: 1902-07-31 | Z5: 1903-01-31 | AA5: 1903-07-31 | AB5: 1904-01-31 | AC5: 1904-07-31 | AD5: 1905-01-31 | AE5: 1905-07-31 | AF5: 1906-01-31 | AG5: 1906-07-31 | AH5: 1907-01-31 | AI5: 1907-07-31
C6: Учитывать TV в расчете NPV? | D6: нет | E6: =(Efficiency!D6="да")*1 -> 0 | I6: 12 | J6: months | S6: год | T6: =IF(ut_Months_in_Period>I6,0,EOMONTH(S$1,I6-1)) -> 2020-12-31 | U6: 2021-12-31 | V6: 2022-12-31 | W6: 2023-12-31 | X6: 2024-12-31 | Y6: 2025-12-31 | Z6: 2026-12-31 | AA6: 2027-12-31 | AB6: 2028-12-31 | AC6: 2029-12-31 | AD6: 2030-12-31 | AE6: 2031-12-31 | AF6: 2032-12-31 | AG6: 2033-12-31 | AH6: 2034-12-31 | AI6: 2035-12-31
C7: Период расчета TV | E7: =IFERROR(IF(D7="последний операционный период",MATCH(1,T74:AI74,0)-1,ut_Count),ut_Count) -> 16
D11: Эффективность проекта в целом | T11: ef_chart1_data
T12: =IFERROR(MATCH(T13,ut_End_of_Period,0),"") -> 1 | U12: 2 | V12: 3 | W12: 4 | X12: 5 | Y12: 6 | Z12: 7 | AA12: 8 | AB12: 9 | AC12: 10 | AD12: 11 | AE12: 12 | AF12: 13 | AG12: 14 | AH12: 15 | AI12: 16
D13: ef_chart1_names | G13: total | T13: =INDEX(T4:T6,$F22) -> 2020-12-31 | U13: 2021-12-31 | V13: 2022-12-31 | W13: 2023-12-31 | X13: 2024-12-31 | Y13: 2025-12-31 | Z13: 2026-12-31 | AA13: 2027-12-31 | AB13: =INDEX(AB4:AB6,$F22) -> 2028-12-31 | AC13: 2029-12-31 | AD13: 2030-12-31 | AE13: 2031-12-31 | AF13: 2032-12-31 | AG13: 2033-12-31 | AH13: 2034-12-31 | AI13: 2035-12-31
D14: FCFF ltm | F14: FALSE | T14: =IFERROR(INDEX($T128:$AI128,1,T12),0)*$F14*(T13<>0) -> 0 | U14: 0 | V14: 0 | W14: 0 | X14: 0 | Y14: 0 | Z14: 0 | AA14: 0 | AB14: 0 | AC14: 0 | AD14: 0 | AE14: 0 | AF14: 0 | AG14: 0 | AH14: 0 | AI14: 0
D15: NPVproject | F15: TRUE | G15: =IF(D3="",E133,INDEX(T133:AI133,1,E3)) -> 125789.5011 | T15: =IFERROR(INDEX($T133:$AI133,1,T12),0)*$F15*(T13<>0) -> 125789.5011 | U15: 1257342.244 | V15: 3703339.314 | W15: 5595659.106 | X15: 8252549.629 | Y15: 13678992.07 | Z15: 19864274.73 | AA15: 17796004.41 | AB15: 16885269.65 | AC15: 15833087 | AD15: 14641139.46 | AE15: 13037212.77 | AF15: 11156104.84 | AG15: 8955235.331 | AH15: 6385030.264 | AI15: 3413867.71
D16: delta DFCFF | F16: TRUE | G16: =IF(D3="",SUM(DB_DFCFF)+S131,INDEX(T124:AI124,1,E3)/INDEX(T119:AI119,1,E3)+INDEX(T131:AI131,1,E3)) -> 125789.5011 | T16: =IFERROR(INDEX($T124:$AI124,1,T12)/INDEX($T119:$AI119,1,T12)*T118+INDEX($T131:$AI131,1,T12),0)*$F16*(T13<>0) -> 125789.5011 | U16: 1257342.244 | V16: 3703339.314 | W16: 5595659.106 | X16: 8252549.629 | Y16: 13678992.07 | Z16: 19864274.73 | AA16: 17796004.41 | AB16: 16885269.65 | AC16: 15833087 | AD16: 14641139.46 | AE16: 13037212.77 | AF16: 11156104.84 | AG16: 8955235.331 | AH16: 6385030.264 | AI16: 3413867.71
D17: DTVproject | F17: TRUE | G17: =IF(D3="",E130,E130/INDEX(T119:AI119,1,E3)) -> 0 | T17: =IFERROR($E130/INDEX($T119:$AI119,1,T12),0)*$F17*(T13<>0) -> 0 | U17: 0 | V17: 0 | W17: 0 | X17: 0 | Y17: 0 | Z17: 0 | AA17: 0 | AB17: 0 | AC17: 0 | AD17: 0 | AE17: 0 | AF17: 0 | AG17: 0 | AH17: 0 | AI17: 0
D18: IRRproject | F18: TRUE | G18: =IF(D3="",E120,INDEX(T18:AI18,1,E3+1)) -> 0.1422 | T18: =IFERROR(IF(INDEX($T120:$AI120,1,T12)>0,INDEX($T120:$AI120,1,T12),$E120),0)*$F18*(T13<>0)*(T111<=0) -> 0.1422 | U18: 0.1645 | V18: 0.2245 | W18: 0.2755 | X18: 0.3684 | Y18: 0.9671 | Z18: 0 | AA18: 0 | AB18: 0 | AC18: 0 | AD18: 0 | AE18: 0 | AF18: 0 | AG18: 0 | AH18: 0 | AI18: 0
D19: WACC | F19: TRUE | G19: =IFERROR(AVERAGE(ut_WACC_Dynamic),0) -> 0.14 | H19: avg | T19: =IFERROR(INDEX($T117:$AI117,1,T12),0)*$F19*(T13<>0) -> 0.14 | U19: 0.14 | V19: 0.14 | W19: 0.14 | X19: 0.14 | Y19: 0.14 | Z19: 0.14 | AA19: 0.14 | AB19: 0.14 | AC19: 0.14 | AD19: 0.14 | AE19: 0.14 | AF19: 0.14 | AG19: 0.14 | AH19: 0.14 | AI19: 0.14
S20: dates | T20: =IF(T12<>"",T13) -> 2020-12-31 | U20: 2021-12-31 | V20: 2022-12-31 | W20: 2023-12-31 | X20: 2024-12-31 | Y20: 2025-12-31 | Z20: 2026-12-31 | AA20: 2027-12-31 | AB20: =IF(AB12<>"",AB13) -> 2028-12-31 | AC20: 2029-12-31 | AD20: 2030-12-31 | AE20: 2031-12-31 | AF20: 2032-12-31 | AG20: 2033-12-31 | AH20: 2034-12-31 | AI20: 2035-12-31
D22: Размерность графика | F22: =IFERROR(MATCH(E22,S4:S6,0),3) -> 3 | G22: ef_dFCFF_metrics
E23: months | F23: =IF(F22=3,12,F22*3) -> 12 | G23: =IF(E22="год","xlYears","xlMonths") -> xlMonths
D25: начало графика | F25: =IFERROR(MATCH(E25,T13:AI13,0),1) -> 1 | G25: ef_ch1_st
D26: окончание графика | E26: =ut_Date_Model_End -> 31.12.2035 | F26: =ROUNDUP(IFERROR(MATCH(E26,T13:AI13,0),E7)*S2/F23,0) -> 16 | G26: ef_ch1_end
C28: palette | G28: ut_dFCFF
D29: =IFERROR(MATCH(C29,INDEX(um_charts_legend,,2),0),"нет") -> нет | F29: Период
D30: =IFERROR(MATCH(C30,INDEX(um_charts_legend,,2),0),"нет") -> нет | F30: FCFF ltm
D31: =IFERROR(MATCH(C31,INDEX(um_charts_legend,,2),0),"нет") -> нет | F31: NPVproject
D32: =IFERROR(MATCH(C32,INDEX(um_charts_legend,,2),0),"нет") -> нет | F32: delta DFCFF
D33: =IFERROR(MATCH(C33,INDEX(um_charts_legend,,2),0),"нет") -> нет | F33: DTVproject
D34: =IFERROR(MATCH(C34,INDEX(um_charts_legend,,2),0),"нет") -> нет | F34: IRRproject
D35: =IFERROR(MATCH(C35,INDEX(um_charts_legend,,2),0),"нет") -> нет | F35: WACC
D40: Эффективность проекта для акционеров | T40: ef_chart2_data
T41: =IFERROR(MATCH(T42,ut_End_of_Period,0),"") -> 1 | U41: 2 | V41: 3 | W41: 4 | X41: 5 | Y41: 6 | Z41: 7 | AA41: 8 | AB41: 9 | AC41: 10 | AD41: 11 | AE41: 12 | AF41: 13 | AG41: 14 | AH41: 15 | AI41: 16
D42: ef_chart2_names | G42: total | T42: =INDEX(T4:T6,$F51) -> 2020-12-31 | U42: 2021-12-31 | V42: 2022-12-31 | W42: 2023-12-31 | X42: 2024-12-31 | Y42: 2025-12-31 | Z42: 2026-12-31 | AA42: 2027-12-31 | AB42: =INDEX(AB4:AB6,$F51) -> 2028-12-31 | AC42: 2029-12-31 | AD42: 2030-12-31 | AE42: 2031-12-31 | AF42: 2032-12-31 | AG42: 2033-12-31 | AH42: 2034-12-31 | AI42: 2035-12-31
D43: FCFE ltm | F43: FALSE | T43: =IFERROR(INDEX($T188:$AI188,1,T41),0)*$F43*(T42<>0) -> 0 | U43: 0 | V43: 0 | W43: 0 | X43: 0 | Y43: 0 | Z43: 0 | AA43: 0 | AB43: 0 | AC43: 0 | AD43: 0 | AE43: 0 | AF43: 0 | AG43: 0 | AH43: 0 | AI43: 0
D44: NPVequity | F44: TRUE | G44: =IF(D3="",E193,INDEX(T193:AI193,1,E3)) -> 4660804.816 | T44: =IFERROR(INDEX($T193:$AI193,1,T41),0)*$F44*(T42<>0) -> 4660804.816 | U44: 6356060.409 | V44: 9733271.141 | W44: 12820964.22 | X44: 16956025.95 | Y44: 22505228.48 | Z44: 27262539.06 | AA44: 23548013.27 | AB44: 22383747.36 | AC44: 20647180.36 | AD44: 18586237.1 | AE44: 15849039.87 | AF44: 12913289.76 | AG44: 9366162.435 | AH44: 6084675.185 | AI44: 3337491.325
D45: delta DFCFE | F45: TRUE | G45: =IF(D3="",SUM(DB_DFCFE)+S191,INDEX(T184:AI184,1,E3)/INDEX(T179:AI179,1,E3)+INDEX(T191:AI191,1,E3)) -> 4660804.816 | T45: =IFERROR(INDEX($T184:$AI184,1,T41)/INDEX($T179:$AI179,1,T41)*T178+INDEX($T191:$AI191,1,T41),0)*$F45*(T42<>0) -> 4660804.816 | U45: 6356060.409 | V45: 9733271.141 | W45: 12820964.22 | X45: 16956025.95 | Y45: 22505228.48 | Z45: 27262539.06 | AA45: 23548013.27 | AB45: 22383747.36 | AC45: 20647180.36 | AD45: 18586237.1 | AE45: 15849039.87 | AF45: 12913289.76 | AG45: 9366162.435 | AH45: 6084675.185 | AI45: 3337491.325
D46: DTVequity | F46: TRUE | G46: =IF(E3=1,E190,E190/INDEX(T179:AI179,1,E3)) -> 0 | T46: =IFERROR($E190/INDEX($T179:$AI189,1,T41),0)*$F46*(T42<>0) -> 0 | U46: 0 | V46: 0 | W46: 0 | X46: 0 | Y46: 0 | Z46: 0 | AA46: 0 | AB46: 0 | AC46: 0 | AD46: 0 | AE46: 0 | AF46: 0 | AG46: 0 | AH46: 0 | AI46: 0
D47: IRRequity | F47: TRUE | G47: =IF(E3=1,E180,INDEX(DB_IRR_equity,1,E3)) -> 0.3382 | T47: =IFERROR(IF(INDEX(DB_st_IRReq,1,T41)>0,INDEX(DB_st_IRReq,1,T41),$E180),0)*$F47*(T42<>0)*(T171<=0) -> 0.3382 | U47: 0.4124 | V47: 0.6346 | W47: 0.8741 | X47: 1.5849 | Y47: 302.0791 | Z47: 0 | AA47: 0 | AB47: =IFERROR(IF(INDEX(DB_st_IRReq,1,AB41)>0,INDEX(DB_st_IRReq,1,AB41),$E180),0)*$F47*(AB42<>0)*(AB171<=0) -> 0 | AC47: 0 | AD47: 0 | AE47: 0 | AF47: 0 | AG47: 0 | AH47: 0 | AI47: 0
D48: CAPM | F48: TRUE | G48: =IFERROR(AVERAGE(ut_CAPM_Dynamic),0) -> 0.21 | H48: avg | T48: =IFERROR(INDEX($T177:$AI177,1,T41),0)*$F48*(T42<>0) -> 0.21 | U48: 0.21 | V48: 0.21 | W48: 0.21 | X48: 0.21 | Y48: 0.21 | Z48: 0.21 | AA48: 0.21 | AB48: 0.21 | AC48: 0.21 | AD48: 0.21 | AE48: 0.21 | AF48: 0.21 | AG48: 0.21 | AH48: 0.21 | AI48: 0.21
D51: Размерность графика | F51: =IFERROR(MATCH(E51,S4:S6,0),3) -> 3 | G51: ef_dFCFE_metrics
E52: months | F52: =IF(F51=3,12,F51*3) -> 12 | G52: =IF(E51="год","xlYears","xlMonths") -> xlMonths
D54: начало графика | F54: =IFERROR(MATCH(E54,T42:AI42,0),1) -> 1 | G54: ef_ch2_st
D55: окончание графика | E55: =ut_Date_Model_End -> 31.12.2035 | F55: =ROUNDUP(IFERROR(MATCH(E55,T42:AI42,0),E7)*S2/F52,0) -> 16 | G55: ef_ch2_end
C57: palette | G57: ut_dFCFE
D58: =IFERROR(MATCH(C58,INDEX(um_charts_legend,,2),0),"нет") -> нет | F58: Период
D59: =IFERROR(MATCH(C59,INDEX(um_charts_legend,,2),0),"нет") -> нет | F59: FCFE ltm
D60: =IFERROR(MATCH(C60,INDEX(um_charts_legend,,2),0),"нет") -> нет | F60: NPVequity
D61: =IFERROR(MATCH(C61,INDEX(um_charts_legend,,2),0),"нет") -> нет | F61: delta DFCFE
D62: =IFERROR(MATCH(C62,INDEX(um_charts_legend,,2),0),"нет") -> нет | F62: DTVequity
D63: =IFERROR(MATCH(C63,INDEX(um_charts_legend,,2),0),"нет") -> нет | F63: IRRequity
D64: =IFERROR(MATCH(C64,INDEX(um_charts_legend,,2),0),"нет") -> нет | F64: CAPM
C71: Флаги и периоды | S71: =S78 -> 2019-12-31 | T71: 2020-12-31 | U71: 2021-12-31 | V71: 2022-12-31 | W71: 2023-12-31 | X71: 2024-12-31 | Y71: 2025-12-31 | Z71: 2026-12-31 | AA71: 2027-12-31 | AB71: =AB78 -> 2028-12-31 | AC71: 2029-12-31 | AD71: 2030-12-31 | AE71: 2031-12-31 | AF71: 2032-12-31 | AG71: 2033-12-31 | AH71: 2034-12-31 | AI71: 2035-12-31
H72: Номер периода | S72: 0 | T72: =ut_Counter -> 1 | U72: 2 | V72: 3 | W72: 4 | X72: 5 | Y72: 6 | Z72: 7 | AA72: 8 | AB72: 9 | AC72: 10 | AD72: 11 | AE72: 12 | AF72: 13 | AG72: 14 | AH72: 15 | AI72: 16
H73: flag history | S73: =1*(D4<>"да") -> 1 | T73: =IF(T72<$E3,1,0)*($D4<>"да") -> 0 | U73: 0 | V73: 0 | W73: 0 | X73: 0 | Y73: 0 | Z73: 0 | AA73: 0 | AB73: =IF(AB72<$E3,1,0)*($D4<>"да") -> 0 | AC73: 0 | AD73: 0 | AE73: 0 | AF73: 0 | AG73: 0 | AH73: 0 | AI73: 0
H74: flag last op period | T74: =AND(T81=0,S81=1)*1 -> 0 | U74: 0 | V74: 0 | W74: 0 | X74: 0 | Y74: 0 | Z74: 0 | AA74: 0 | AB74: =AND(AB81=0,AA81=1)*1 -> 0 | AC74: =AND(AC81=0,AB81=1)*1 -> 0 | AD74: =AND(AD81=0,AC81=1)*1 -> 0 | AE74: =AND(AE81=0,AD81=1)*1 -> 0 | AF74: =AND(AF81=0,AE81=1)*1 -> 0 | AG74: =AND(AG81=0,AF81=1)*1 -> 0 | AH74: =AND(AH81=0,AG81=1)*1 -> 0 | AI74: =AND(AI81=0,AH81=1)*1 -> 0
H75: flag financing | T75: =Service!T25 -> 0 | U75: =Service!U25 -> 1 | V75: =Service!V25 -> 1 | W75: =Service!W25 -> 1 | X75: =Service!X25 -> 1 | Y75: =Service!Y25 -> 1 | Z75: =Service!Z25 -> 1 | AA75: =Service!AA25 -> 1 | AB75: =Service!AB25 -> 1 | AC75: =Service!AC25 -> 1 | AD75: =Service!AD25 -> 1 | AE75: =Service!AE25 -> 1 | AF75: =Service!AF25 -> 1 | AG75: =Service!AG25 -> 0 | AH75: =Service!AH25 -> 0 | AI75: =Service!AI25 -> 0
H76: chosen flag | S76: =S73 -> 1 | T76: =IF(T72<$E3,IF(T73=1,1,IF(T75<>1,0,1)),T75*($D5="да")) -> 0 | U76: 0 | V76: 0 | W76: 0 | X76: 0 | Y76: 0 | Z76: 0 | AA76: 0 | AB76: =IF(AB72<$E3,IF(AB73=1,1,IF(AB75<>1,0,1)),AB75*($D5="да")) -> 0 | AC76: 0 | AD76: 0 | AE76: 0 | AF76: 0 | AG76: 0 | AH76: 0 | AI76: 0
H77: Начало периода | T77: =ut_Beginning_of_Period -> 2020-01-01 | U77: 2021-01-01 | V77: 2022-01-01 | W77: 2023-01-01 | X77: 2024-01-01 | Y77: 2025-01-01 | Z77: 2026-01-01 | AA77: 2027-01-01 | AB77: 2028-01-01 | AC77: 2029-01-01 | AD77: 2030-01-01 | AE77: 2031-01-01 | AF77: 2032-01-01 | AG77: 2033-01-01 | AH77: 2034-01-01 | AI77: 2035-01-01 | AJ77: ut_Beginning_of_Period
H78: Окончание периода | S78: =T77-1 -> 2019-12-31 | T78: =ut_End_of_Period -> 2020-12-31 | U78: 2021-12-31 | V78: 2022-12-31 | W78: 2023-12-31 | X78: 2024-12-31 | Y78: 2025-12-31 | Z78: 2026-12-31 | AA78: 2027-12-31 | AB78: 2028-12-31 | AC78: 2029-12-31 | AD78: 2030-12-31 | AE78: 2031-12-31 | AF78: 2032-12-31 | AG78: 2033-12-31 | AH78: 2034-12-31 | AI78: 2035-12-31 | AJ78: ut_End_of_Period
H79: Период строительства | T79: =ut_Construction_Period -> 1 | U79: 1 | V79: 1 | W79: 1 | X79: 1 | Y79: 1 | Z79: 0 | AA79: 0 | AB79: 0 | AC79: 0 | AD79: 0 | AE79: 0 | AF79: 0 | AG79: 0 | AH79: 0 | AI79: 0 | AJ79: ut_Construction_Period
H80: Период запуска | T80: =ut_RampUp_Period -> 0 | U80: 0 | V80: 0 | W80: 0 | X80: 0 | Y80: 0 | Z80: 0 | AA80: 0 | AB80: 0 | AC80: 0 | AD80: 0 | AE80: 0 | AF80: 0 | AG80: 0 | AH80: 0 | AI80: 0 | AJ80: ut_RampUp_Period
H81: Операционный период | T81: =ut_Operation_Period -> 0 | U81: 0 | V81: 0 | W81: 0 | X81: 0 | Y81: 0 | Z81: 1 | AA81: 1 | AB81: 1 | AC81: 1 | AD81: 1 | AE81: 1 | AF81: 1 | AG81: 1 | AH81: 1 | AI81: 1 | AJ81: ut_Operation_Period
C83: Расчет FCFF | H83: =SUM(S83:AI83) -> 22598021.63 | S83: =S111 -> 0 | T83: -1123035.81 | U83: -2269969.155 | V83: -1373852.289 | W83: -1873498.248 | X83: -4271085.49 | Y83: -4270223.773 | Z83: 4849268.779 | AA83: 3402175.384 | AB83: =AB111 -> 3416120.394 | AC83: 3408579.718 | AD83: 3653686.217 | AE83: 3706317.723 | AF83: 3762724.185 | AG83: 3823938.014 | AH83: 3865066.791 | AI83: 3891809.189
C85: FCFF бизнеса
C86: Со знаком плюс
C87: EBITDA | D87: не учитывается | G87: ef_FCFF_settings | H87: =SUM(T87:AI87) -> 0 | K87: =(D87="учитывается")*1 -> 0 | T87: =ut_EBITDA_PL*$K87 -> 0 | U87: 0 | V87: 0 | W87: 0 | X87: 0 | Y87: 0 | Z87: 0 | AA87: 0 | AB87: 0 | AC87: 0 | AD87: 0 | AE87: 0 | AF87: 0 | AG87: 0 | AH87: 0 | AI87: 0
C88: EBIT | D88: не учитывается | H88: 0 | K88: 0 | T88: =ut_EBIT_PL*$K88 -> 0 | U88: 0 | V88: 0 | W88: 0 | X88: 0 | Y88: 0 | Z88: 0 | AA88: 0 | AB88: 0 | AC88: 0 | AD88: 0 | AE88: 0 | AF88: 0 | AG88: 0 | AH88: 0 | AI88: 0
C89: Поступления от продаж (без учета НДС) | D89: учитывается | E89: Revenue - OpEX - Others | H89: 33366776.33 | K89: 1 | T89: =('BS, PL, CF+RM'!T10+'BS, PL, CF+RM'!T21)*$K89 -> -35696.50817 | U89: =('BS, PL, CF+RM'!U10+'BS, PL, CF+RM'!U21)*$K89 -> -37040.96241 | V89: =('BS, PL, CF+RM'!V10+'BS, PL, CF+RM'!V21)*$K89 -> -37910.24055 | W89: =('BS, PL, CF+RM'!W10+'BS, PL, CF+RM'!W21)*$K89 -> -37515.20678 | X89: =('BS, PL, CF+RM'!X10+'BS, PL, CF+RM'!X21)*$K89 -> -42173.15338 | Y89: =('BS, PL, CF+RM'!Y10+'BS, PL, CF+RM'!Y21)*$K89 -> -41717.25686 | Z89: =('BS, PL, CF+RM'!Z10+'BS, PL, CF+RM'!Z21)*$K89 -> 3365234.338 | AA89: =('BS, PL, CF+RM'!AA10+'BS, PL, CF+RM'!AA21)*$K89 -> 3314021.258 | AB89: =('BS, PL, CF+RM'!AB10+'BS, PL, CF+RM'!AB21)*$K89 -> 3321445.565 | AC89: =('BS, PL, CF+RM'!AC10+'BS, PL, CF+RM'!AC21)*$K89 -> 3325727.786 | AD89: =('BS, PL, CF+RM'!AD10+'BS, PL, CF+RM'!AD21)*$K89 -> 3330093.093 | AE89: =('BS, PL, CF+RM'!AE10+'BS, PL, CF+RM'!AE21)*$K89 -> 3344969.941 | AF89: =('BS, PL, CF+RM'!AF10+'BS, PL, CF+RM'!AF21)*$K89 -> 3360683.109 | AG89: =('BS, PL, CF+RM'!AG10+'BS, PL, CF+RM'!AG21)*$K89 -> 3387345.94 | AH89: =('BS, PL, CF+RM'!AH10+'BS, PL, CF+RM'!AH21)*$K89 -> 3412935.233 | AI89: =('BS, PL, CF+RM'!AI10+'BS, PL, CF+RM'!AI21)*$K89 -> 3436373.396
C90: Поступления от продаж (с учетом НДС) | D90: не учитывается | E90: (Revenue + VAT) - (OpEX + VAT) - (VAT NonOp) - Others | H90: 0 | K90: 0 | T90: =('BS, PL, CF+RM'!T10+'BS, PL, CF+RM'!T15+'BS, PL, CF+RM'!T21+'BS, PL, CF+RM'!T33+'BS, PL, CF+RM'!T35)*$K90 -> 0 | U90: =('BS, PL, CF+RM'!U10+'BS, PL, CF+RM'!U15+'BS, PL, CF+RM'!U21+'BS, PL, CF+RM'!U33+'BS, PL, CF+RM'!U35)*$K90 -> 0 | V90: =('BS, PL, CF+RM'!V10+'BS, PL, CF+RM'!V15+'BS, PL, CF+RM'!V21+'BS, PL, CF+RM'!V33+'BS, PL, CF+RM'!V35)*$K90 -> 0 | W90: =('BS, PL, CF+RM'!W10+'BS, PL, CF+RM'!W15+'BS, PL, CF+RM'!W21+'BS, PL, CF+RM'!W33+'BS, PL, CF+RM'!W35)*$K90 -> 0 | X90: =('BS, PL, CF+RM'!X10+'BS, PL, CF+RM'!X15+'BS, PL, CF+RM'!X21+'BS, PL, CF+RM'!X33+'BS, PL, CF+RM'!X35)*$K90 -> 0 | Y90: =('BS, PL, CF+RM'!Y10+'BS, PL, CF+RM'!Y15+'BS, PL, CF+RM'!Y21+'BS, PL, CF+RM'!Y33+'BS, PL, CF+RM'!Y35)*$K90 -> 0 | Z90: =('BS, PL, CF+RM'!Z10+'BS, PL, CF+RM'!Z15+'BS, PL, CF+RM'!Z21+'BS, PL, CF+RM'!Z33+'BS, PL, CF+RM'!Z35)*$K90 -> 0 | AA90: =('BS, PL, CF+RM'!AA10+'BS, PL, CF+RM'!AA15+'BS, PL, CF+RM'!AA21+'BS, PL, CF+RM'!AA33+'BS, PL, CF+RM'!AA35)*$K90 -> 0 | AB90: =('BS, PL, CF+RM'!AB10+'BS, PL, CF+RM'!AB15+'BS, PL, CF+RM'!AB21+'BS, PL, CF+RM'!AB33+'BS, PL, CF+RM'!AB35)*$K90 -> 0 | AC90: =('BS, PL, CF+RM'!AC10+'BS, PL, CF+RM'!AC15+'BS, PL, CF+RM'!AC21+'BS, PL, CF+RM'!AC33+'BS, PL, CF+RM'!AC35)*$K90 -> 0 | AD90: =('BS, PL, CF+RM'!AD10+'BS, PL, CF+RM'!AD15+'BS, PL, CF+RM'!AD21+'BS, PL, CF+RM'!AD33+'BS, PL, CF+RM'!AD35)*$K90 -> 0 | AE90: =('BS, PL, CF+RM'!AE10+'BS, PL, CF+RM'!AE15+'BS, PL, CF+RM'!AE21+'BS, PL, CF+RM'!AE33+'BS, PL, CF+RM'!AE35)*$K90 -> 0 | AF90: =('BS, PL, CF+RM'!AF10+'BS, PL, CF+RM'!AF15+'BS, PL, CF+RM'!AF21+'BS, PL, CF+RM'!AF33+'BS, PL, CF+RM'!AF35)*$K90 -> 0 | AG90: =('BS, PL, CF+RM'!AG10+'BS, PL, CF+RM'!AG15+'BS, PL, CF+RM'!AG21+'BS, PL, CF+RM'!AG33+'BS, PL, CF+RM'!AG35)*$K90 -> 0 | AH90: =('BS, PL, CF+RM'!AH10+'BS, PL, CF+RM'!AH15+'BS, PL, CF+RM'!AH21+'BS, PL, CF+RM'!AH33+'BS, PL, CF+RM'!AH35)*$K90 -> 0 | AI90: =('BS, PL, CF+RM'!AI10+'BS, PL, CF+RM'!AI15+'BS, PL, CF+RM'!AI21+'BS, PL, CF+RM'!AI33+'BS, PL, CF+RM'!AI35)*$K90 -> 0
C91: Амортизация | D91: не учитывается | H91: 0 | K91: 0 | T91: =ut_Depreciation_PL*$K91 -> 0 | U91: 0 | V91: 0 | W91: 0 | X91: 0 | Y91: 0 | Z91: 0 | AA91: 0 | AB91: 0 | AC91: 0 | AD91: 0 | AE91: 0 | AF91: 0 | AG91: 0 | AH91: 0 | AI91: 0
C92: Полное сальдо по НДС | D92: учитывается | E92: VAT Revenue - VAT OpEX - VAT NonOp +;- VAT CapEx | H92: -344455.7233 | K92: 1 | T92: =('BS, PL, CF+RM'!T15+'BS, PL, CF+RM'!T33+'BS, PL, CF+RM'!T35+'BS, PL, CF+RM'!T42+'BS, PL, CF+RM'!T44)*$K92 -> -200000 | U92: =('BS, PL, CF+RM'!U15+'BS, PL, CF+RM'!U33+'BS, PL, CF+RM'!U35+'BS, PL, CF+RM'!U42+'BS, PL, CF+RM'!U44)*$K92 -> -400000 | V92: =('BS, PL, CF+RM'!V15+'BS, PL, CF+RM'!V33+'BS, PL, CF+RM'!V35+'BS, PL, CF+RM'!V42+'BS, PL, CF+RM'!V44)*$K92 -> -250000 | W92: =('BS, PL, CF+RM'!W15+'BS, PL, CF+RM'!W33+'BS, PL, CF+RM'!W35+'BS, PL, CF+RM'!W42+'BS, PL, CF+RM'!W44)*$K92 -> -333333.3333 | X92: =('BS, PL, CF+RM'!X15+'BS, PL, CF+RM'!X33+'BS, PL, CF+RM'!X35+'BS, PL, CF+RM'!X42+'BS, PL, CF+RM'!X44)*$K92 -> -501135.4198 | Y92: =('BS, PL, CF+RM'!Y15+'BS, PL, CF+RM'!Y33+'BS, PL, CF+RM'!Y35+'BS, PL, CF+RM'!Y42+'BS, PL, CF+RM'!Y44)*$K92 -> -1180.007123 | Z92: =('BS, PL, CF+RM'!Z15+'BS, PL, CF+RM'!Z33+'BS, PL, CF+RM'!Z35+'BS, PL, CF+RM'!Z42+'BS, PL, CF+RM'!Z44)*$K92 -> 1656441.501 | AA92: =('BS, PL, CF+RM'!AA15+'BS, PL, CF+RM'!AA33+'BS, PL, CF+RM'!AA35+'BS, PL, CF+RM'!AA42+'BS, PL, CF+RM'!AA44)*$K92 -> -28029.19497 | AB92: =('BS, PL, CF+RM'!AB15+'BS, PL, CF+RM'!AB33+'BS, PL, CF+RM'!AB35+'BS, PL, CF+RM'!AB42+'BS, PL, CF+RM'!AB44)*$K92 -> -29582.20661 | AC92: =('BS, PL, CF+RM'!AC15+'BS, PL, CF+RM'!AC33+'BS, PL, CF+RM'!AC35+'BS, PL, CF+RM'!AC42+'BS, PL, CF+RM'!AC44)*$K92 -> -33141.96321 | AD92: =('BS, PL, CF+RM'!AD15+'BS, PL, CF+RM'!AD33+'BS, PL, CF+RM'!AD35+'BS, PL, CF+RM'!AD42+'BS, PL, CF+RM'!AD44)*$K92 -> -32696.14951 | AE92: =('BS, PL, CF+RM'!AE15+'BS, PL, CF+RM'!AE33+'BS, PL, CF+RM'!AE35+'BS, PL, CF+RM'!AE42+'BS, PL, CF+RM'!AE44)*$K92 -> -34454.46624 | AF92: =('BS, PL, CF+RM'!AF15+'BS, PL, CF+RM'!AF33+'BS, PL, CF+RM'!AF35+'BS, PL, CF+RM'!AF42+'BS, PL, CF+RM'!AF44)*$K92 -> -36263.56466 | AG92: =('BS, PL, CF+RM'!AG15+'BS, PL, CF+RM'!AG33+'BS, PL, CF+RM'!AG35+'BS, PL, CF+RM'!AG42+'BS, PL, CF+RM'!AG44)*$K92 -> -38242.6976 | AH92: =('BS, PL, CF+RM'!AH15+'BS, PL, CF+RM'!AH33+'BS, PL, CF+RM'!AH35+'BS, PL, CF+RM'!AH42+'BS, PL, CF+RM'!AH44)*$K92 -> -40282.065 | AI92: =('BS, PL, CF+RM'!AI15+'BS, PL, CF+RM'!AI33+'BS, PL, CF+RM'!AI35+'BS, PL, CF+RM'!AI42+'BS, PL, CF+RM'!AI44)*$K92 -> -42556.1559
C93: Возвращаемый НДС | D93: не учитывается | E93: VAT CapEx | H93: 0 | K93: 0 | T93: ='BS, PL, CF+RM'!T44*$K93 -> 0 | U93: ='BS, PL, CF+RM'!U44*$K93 -> 0 | V93: ='BS, PL, CF+RM'!V44*$K93 -> 0 | W93: ='BS, PL, CF+RM'!W44*$K93 -> 0 | X93: ='BS, PL, CF+RM'!X44*$K93 -> 0 | Y93: ='BS, PL, CF+RM'!Y44*$K93 -> 0 | Z93: ='BS, PL, CF+RM'!Z44*$K93 -> 0 | AA93: ='BS, PL, CF+RM'!AA44*$K93 -> 0 | AB93: ='BS, PL, CF+RM'!AB44*$K93 -> 0 | AC93: ='BS, PL, CF+RM'!AC44*$K93 -> 0 | AD93: ='BS, PL, CF+RM'!AD44*$K93 -> 0 | AE93: ='BS, PL, CF+RM'!AE44*$K93 -> 0 | AF93: ='BS, PL, CF+RM'!AF44*$K93 -> 0 | AG93: ='BS, PL, CF+RM'!AG44*$K93 -> 0 | AH93: ='BS, PL, CF+RM'!AH44*$K93 -> 0 | AI93: ='BS, PL, CF+RM'!AI44*$K93 -> 0
C94: Сальдо оборотного капитала | D94: учитывается | H94: -501661.9125 | K94: 1 | T94: ='BS, PL, CF+RM'!T19*$K94 -> 0 | U94: ='BS, PL, CF+RM'!U19*$K94 -> 0 | V94: ='BS, PL, CF+RM'!V19*$K94 -> 0 | W94: ='BS, PL, CF+RM'!W19*$K94 -> 0 | X94: ='BS, PL, CF+RM'!X19*$K94 -> 0 | Y94: ='BS, PL, CF+RM'!Y19*$K94 -> 0 | Z94: ='BS, PL, CF+RM'!Z19*$K94 -> -457820.5471 | AA94: ='BS, PL, CF+RM'!AA19*$K94 -> 1619.335201 | AB94: ='BS, PL, CF+RM'!AB19*$K94 -> -4561.680982 | AC94: ='BS, PL, CF+RM'!AC19*$K94 -> -4326.390554 | AD94: ='BS, PL, CF+RM'!AD19*$K94 -> -4403.668479 | AE94: ='BS, PL, CF+RM'!AE19*$K94 -> -5607.12422 | AF94: ='BS, PL, CF+RM'!AF19*$K94 -> -5719.554387 | AG94: ='BS, PL, CF+RM'!AG19*$K94 -> -7022.882733 | AH94: ='BS, PL, CF+RM'!AH19*$K94 -> -6995.268437 | AI94: ='BS, PL, CF+RM'!AI19*$K94 -> -6824.130838
C95: Сальдо по финансовым вложениям | D95: учитывается | H95: 213500 | K95: 1 | T95: ='BS, PL, CF+RM'!T58*$K95 -> 0 | U95: ='BS, PL, CF+RM'!U58*$K95 -> 55000 | V95: ='BS, PL, CF+RM'!V58*$K95 -> 52000 | W95: ='BS, PL, CF+RM'!W58*$K95 -> 52000 | X95: ='BS, PL, CF+RM'!X58*$K95 -> 3500 | Y95: ='BS, PL, CF+RM'!Y58*$K95 -> 51000 | Z95: ='BS, PL, CF+RM'!Z58*$K95 -> 0 | AA95: ='BS, PL, CF+RM'!AA58*$K95 -> 0 | AB95: ='BS, PL, CF+RM'!AB58*$K95 -> 0 | AC95: ='BS, PL, CF+RM'!AC58*$K95 -> 0 | AD95: ='BS, PL, CF+RM'!AD58*$K95 -> 0 | AE95: ='BS, PL, CF+RM'!AE58*$K95 -> 0 | AF95: ='BS, PL, CF+RM'!AF58*$K95 -> 0 | AG95: ='BS, PL, CF+RM'!AG58*$K95 -> 0 | AH95: ='BS, PL, CF+RM'!AH58*$K95 -> 0 | AI95: ='BS, PL, CF+RM'!AI58*$K95 -> 0
C96: Субсидии | D96: учитывается | H96: 600000 | K96: 1 | T96: ='BS, PL, CF+RM'!T56*$K96 -> 100000 | U96: ='BS, PL, CF+RM'!U56*$K96 -> 100000 | V96: ='BS, PL, CF+RM'!V56*$K96 -> 100000 | W96: ='BS, PL, CF+RM'!W56*$K96 -> 100000 | X96: ='BS, PL, CF+RM'!X56*$K96 -> 100000 | Y96: ='BS, PL, CF+RM'!Y56*$K96 -> 100000 | Z96: ='BS, PL, CF+RM'!Z56*$K96 -> 0 | AA96: ='BS, PL, CF+RM'!AA56*$K96 -> 0 | AB96: ='BS, PL, CF+RM'!AB56*$K96 -> 0 | AC96: ='BS, PL, CF+RM'!AC56*$K96 -> 0 | AD96: ='BS, PL, CF+RM'!AD56*$K96 -> 0 | AE96: ='BS, PL, CF+RM'!AE56*$K96 -> 0 | AF96: ='BS, PL, CF+RM'!AF56*$K96 -> 0 | AG96: ='BS, PL, CF+RM'!AG56*$K96 -> 0 | AH96: ='BS, PL, CF+RM'!AH56*$K96 -> 0 | AI96: ='BS, PL, CF+RM'!AI56*$K96 -> 0
C97: Прочие доходы | D97: учитывается | H97: 0 | K97: 1 | T97: ='BS, PL, CF+RM'!T16*$K97 -> 0 | U97: ='BS, PL, CF+RM'!U16*$K97 -> 0 | V97: ='BS, PL, CF+RM'!V16*$K97 -> 0 | W97: ='BS, PL, CF+RM'!W16*$K97 -> 0 | X97: ='BS, PL, CF+RM'!X16*$K97 -> 0 | Y97: ='BS, PL, CF+RM'!Y16*$K97 -> 0 | Z97: ='BS, PL, CF+RM'!Z16*$K97 -> 0 | AA97: ='BS, PL, CF+RM'!AA16*$K97 -> 0 | AB97: ='BS, PL, CF+RM'!AB16*$K97 -> 0 | AC97: ='BS, PL, CF+RM'!AC16*$K97 -> 0 | AD97: ='BS, PL, CF+RM'!AD16*$K97 -> 0 | AE97: ='BS, PL, CF+RM'!AE16*$K97 -> 0 | AF97: ='BS, PL, CF+RM'!AF16*$K97 -> 0 | AG97: ='BS, PL, CF+RM'!AG16*$K97 -> 0 | AH97: ='BS, PL, CF+RM'!AH16*$K97 -> 0 | AI97: ='BS, PL, CF+RM'!AI16*$K97 -> 0
C98: Иное, укажите -> | G98: Ввести ссылки или значения со знаком плюс | H98: 0 | K98: 1
C100: Со знаком минус
C101: Капитальные расходы (без учета НДС) | D101: учитывается | E101: CapEx | H101: =SUM(T101:AI101) -> -14216452.01 | K101: =(D101="учитывается")*1 -> 1 | T101: ='BS, PL, CF+RM'!T41*$K101 -> -1000000 | U101: ='BS, PL, CF+RM'!U41*$K101 -> -2000000 | V101: ='BS, PL, CF+RM'!V41*$K101 -> -1250000 | W101: ='BS, PL, CF+RM'!W41*$K101 -> -1666666.667 | X101: ='BS, PL, CF+RM'!X41*$K101 -> -3841522.286 | Y101: ='BS, PL, CF+RM'!Y41*$K101 -> -4388263.058 | Z101: ='BS, PL, CF+RM'!Z41*$K101 -> 0 | AA101: ='BS, PL, CF+RM'!AA41*$K101 -> 0 | AB101: ='BS, PL, CF+RM'!AB41*$K101 -> 0 | AC101: ='BS, PL, CF+RM'!AC41*$K101 -> -10000 | AD101: ='BS, PL, CF+RM'!AD41*$K101 -> -10000 | AE101: ='BS, PL, CF+RM'!AE41*$K101 -> -10000 | AF101: ='BS, PL, CF+RM'!AF41*$K101 -> -10000 | AG101: ='BS, PL, CF+RM'!AG41*$K101 -> -10000 | AH101: ='BS, PL, CF+RM'!AH41*$K101 -> -10000 | AI101: ='BS, PL, CF+RM'!AI41*$K101 -> -10000
C102: Капитальные расходы (с учетом НДС) | D102: не учитывается | E102: CapEx + VAT | H102: 0 | K102: 0 | T102: =('BS, PL, CF+RM'!T41+'BS, PL, CF+RM'!T42)*$K102 -> 0 | U102: =('BS, PL, CF+RM'!U41+'BS, PL, CF+RM'!U42)*$K102 -> 0 | V102: =('BS, PL, CF+RM'!V41+'BS, PL, CF+RM'!V42)*$K102 -> 0 | W102: =('BS, PL, CF+RM'!W41+'BS, PL, CF+RM'!W42)*$K102 -> 0 | X102: =('BS, PL, CF+RM'!X41+'BS, PL, CF+RM'!X42)*$K102 -> 0 | Y102: =('BS, PL, CF+RM'!Y41+'BS, PL, CF+RM'!Y42)*$K102 -> 0 | Z102: =('BS, PL, CF+RM'!Z41+'BS, PL, CF+RM'!Z42)*$K102 -> 0 | AA102: =('BS, PL, CF+RM'!AA41+'BS, PL, CF+RM'!AA42)*$K102 -> 0 | AB102: =('BS, PL, CF+RM'!AB41+'BS, PL, CF+RM'!AB42)*$K102 -> 0 | AC102: =('BS, PL, CF+RM'!AC41+'BS, PL, CF+RM'!AC42)*$K102 -> 0 | AD102: =('BS, PL, CF+RM'!AD41+'BS, PL, CF+RM'!AD42)*$K102 -> 0 | AE102: =('BS, PL, CF+RM'!AE41+'BS, PL, CF+RM'!AE42)*$K102 -> 0 | AF102: =('BS, PL, CF+RM'!AF41+'BS, PL, CF+RM'!AF42)*$K102 -> 0 | AG102: =('BS, PL, CF+RM'!AG41+'BS, PL, CF+RM'!AG42)*$K102 -> 0 | AH102: =('BS, PL, CF+RM'!AH41+'BS, PL, CF+RM'!AH42)*$K102 -> 0 | AI102: =('BS, PL, CF+RM'!AI41+'BS, PL, CF+RM'!AI42)*$K102 -> 0
C103: Налог на имущество | D103: учитывается | H103: -1404538.667 | K103: 1 | T103: =-ut_Property_Tax*$K103 -> 0 | U103: 0 | V103: 0 | W103: 0 | X103: 0 | Y103: 0 | Z103: -146666.6667 | AA103: -145200 | AB103: -143733.3333 | AC103: -142486.6667 | AD103: -141196 | AE103: -139861.3333 | AF103: -138482.6667 | AG103: -137060 | AH103: -135637.3333 | AI103: -134214.6667
C104: Налог на прибыль | D104: учитывается | H104: 5053229.601 | K104: 1 | T104: =-ut_Current_ProfitTax*$K104 -> 12660.69837 | U104: 12071.80752 | V104: 12057.95189 | W104: 12016.95864 | X104: 10245.36932 | Y104: 9936.548627 | Z104: 446426.4749 | AA104: 274641.9552 | AB104: 287969.6525 | AC104: 288770.8066 | AD104: 528409.9968 | AE104: 568355.705 | AF104: 610163.5281 | AG104: 647160.1027 | AH104: 663885.7985 | AI104: 668456.246
C105: Прочие расходы | D105: учитывается | H105: -168375.9882 | K105: 1 | T105: =('BS, PL, CF+RM'!T36)*$K105 -> 0 | U105: =('BS, PL, CF+RM'!U36)*$K105 -> 0 | V105: =('BS, PL, CF+RM'!V36)*$K105 -> 0 | W105: =('BS, PL, CF+RM'!W36)*$K105 -> 0 | X105: =('BS, PL, CF+RM'!X36)*$K105 -> 0 | Y105: =('BS, PL, CF+RM'!Y36)*$K105 -> 0 | Z105: =('BS, PL, CF+RM'!Z36)*$K105 -> -14346.32044 | AA105: =('BS, PL, CF+RM'!AA36)*$K105 -> -14877.96867 | AB105: =('BS, PL, CF+RM'!AB36)*$K105 -> -15417.60225 | AC105: =('BS, PL, CF+RM'!AC36)*$K105 -> -15963.85429 | AD105: =('BS, PL, CF+RM'!AD36)*$K105 -> -16521.05553 | AE105: =('BS, PL, CF+RM'!AE36)*$K105 -> -17084.99962 | AF105: =('BS, PL, CF+RM'!AF36)*$K105 -> -17656.66568 | AG105: =('BS, PL, CF+RM'!AG36)*$K105 -> -18242.44841 | AH105: =('BS, PL, CF+RM'!AH36)*$K105 -> -18839.57359 | AI105: =('BS, PL, CF+RM'!AI36)*$K105 -> -19425.49969
C106: Налог на EBIT | D106: не учитывается | H106: 0 | K106: 0 | T106: =-ut_EBIT_PL*ut_Profit_Tax_Rate_Inputs*$K106 -> 0 | U106: 0 | V106: 0 | W106: 0 | X106: 0 | Y106: 0 | Z106: 0 | AA106: 0 | AB106: 0 | AC106: 0 | AD106: 0 | AE106: 0 | AF106: 0 | AG106: 0 | AH106: 0 | AI106: 0
C107: Иное, укажите -> | G107: Ввести ссылки или значения со знаком минус | H107: 0 | K107: 1
G109: ∑ FCFF | H109: =SUM(S109:AI109) -> 22598021.63 | S109: =(-'BS, PL, CF+RM'!S92-'BS, PL, CF+RM'!S93)*(S76<>1)*($D4="да") -> 0 | T109: =SUM(T87:T98,T101:T107)*(T76<>1) -> -1123035.81 | U109: -2269969.155 | V109: -1373852.289 | W109: -1873498.248 | X109: -4271085.49 | Y109: -4270223.773 | Z109: 4849268.779 | AA109: 3402175.384 | AB109: =SUM(AB87:AB98,AB101:AB107)*(AB76<>1) -> 3416120.394 | AC109: 3408579.718 | AD109: 3653686.217 | AE109: 3706317.723 | AF109: 3762724.185 | AG109: 3823938.014 | AH109: 3865066.791 | AI109: 3891809.189
C111: FCFF | H111: =SUM(S111:AI111) -> 22598021.63 | S111: =S109 -> 0 | T111: -1123035.81 | U111: -2269969.155 | V111: -1373852.289 | W111: -1873498.248 | X111: -4271085.49 | Y111: -4270223.773 | Z111: 4849268.779 | AA111: 3402175.384 | AB111: =AB109 -> 3416120.394 | AC111: 3408579.718 | AD111: 3653686.217 | AE111: 3706317.723 | AF111: 3762724.185 | AG111: 3823938.014 | AH111: 3865066.791 | AI111: 3891809.189 | AJ111: DB_FCFF
C112: Sum_CFF | S112: =S131 -> 0 | T112: =SUM(S112,T111) -> -1123035.81 | U112: -3393004.965 | V112: -4766857.253 | W112: -6640355.502 | X112: -10911440.99 | Y112: -15181664.76 | Z112: -10332395.99 | AA112: -6930220.601 | AB112: =SUM(AA112,AB111) -> -3514100.207 | AC112: =SUM(AB112,AC111) -> -105520.4889 | AD112: =SUM(AC112,AD111) -> 3548165.728 | AE112: =SUM(AD112,AE111) -> 7254483.451 | AF112: =SUM(AE112,AF111) -> 11017207.64 | AG112: =SUM(AF112,AG111) -> 14841145.65 | AH112: =SUM(AG112,AH111) -> 18706212.44 | AI112: =SUM(AH112,AI111) -> 22598021.63 | AJ112: Sum_CFF
C113: PBP project | D113: =IF(COUNTIF(DB_FCFF,"<>"&0)<>0,D114,"нет") -> 11 | H113: flag | T113: =IF(T112>=0,1,0)*(T79=0)*(T76<>1)*1 -> 0 | U113: 0 | V113: 0 | W113: 0 | X113: 0 | Y113: 0 | Z113: 0 | AA113: 0 | AB113: =IF(AB112>=0,1,0)*(AB79=0)*(AB76<>1)*1 -> 0 | AC113: 0 | AD113: 1 | AE113: 1 | AF113: 1 | AG113: 1 | AH113: 1 | AI113: 1
D114: =IFERROR(MATCH(1,T113:AI113,0)*(ut_Months_in_Period/12),"нет") -> 11 | H114: лет | S114: =D114 -> 11 | T114: =IFERROR(IF(AND($D114<>0,S114<>0),IF(S114>0,S114-ut_Months_in_Period/12,0),0),"нет") -> 10 | U114: 9 | V114: 8 | W114: 7 | X114: 6 | Y114: 5 | Z114: 4 | AA114: 3 | AB114: 2 | AC114: 1 | AD114: 0 | AE114: 0 | AF114: 0 | AG114: 0 | AH114: 0 | AI114: 0 | AJ114: DB_st_PBP_project
F115: Ставка ВЭБ.РФ | S115: =ut_Months_in_Period/12 -> 1 | T115: =IF(S115=1,S115/2,ut_Months_in_Period/12) -> 0.5 | U115: =$S115 -> 1 | V115: 1 | W115: 1 | X115: 1 | Y115: 1 | Z115: 1 | AA115: 1 | AB115: 1 | AC115: 1 | AD115: 1 | AE115: 1 | AF115: 1 | AG115: 1 | AH115: 1 | AI115: 1
E116: check | F116: 0.14 | H116: Введите значения ставки дисконтирования ->
C117: Ставка дисконтирования | D117: Ставка ВЭБ.РФ | E117: =IF((F117=1)*OR(SUM(ut_WACC_Dynamic)=0,COUNTIF(ut_WACC_Dynamic,">="&1)),"Ошибка!","ок") -> ок | F117: =IF(D117="Ставка ВЭБ.РФ",2,1) -> 2 | S117: =CHOOSE($F117,S116,$F116) -> 0.14 | T117: 0.14 | U117: 0.14 | V117: 0.14 | W117: 0.14 | X117: 0.14 | Y117: 0.14 | Z117: 0.14 | AA117: 0.14 | AB117: =CHOOSE($F117,AB116,$F116) -> 0.14 | AC117: 0.14 | AD117: 0.14 | AE117: 0.14 | AF117: 0.14 | AG117: 0.14 | AH117: 0.14 | AI117: 0.14 | AJ117: ut_WACC_Dynamic
S118: =1/((1+CHOOSE($F117,S117,$F116)*(S76<>1))^0) -> 1 | T118: =1/((1+T117*(T76<>1))^T115) -> 0.9365858116 | U118: 0.8771929825 | V118: 0.8771929825 | W118: 0.8771929825 | X118: 0.8771929825 | Y118: 0.8771929825 | Z118: 0.8771929825 | AA118: 0.8771929825 | AB118: =1/((1+AB117*(AB76<>1))^AB115) -> 0.8771929825 | AC118: 0.8771929825 | AD118: 0.8771929825 | AE118: 0.8771929825 | AF118: 0.8771929825 | AG118: 0.8771929825 | AH118: 0.8771929825 | AI118: 0.8771929825 | AJ118: discount rate
S119: =PRODUCT(S118:$S118) -> 1 | T119: =PRODUCT($S118:T118) -> 0.9365858116 | U119: =PRODUCT($S118:U118) -> 0.8215665014 | V119: =PRODUCT($S118:V118) -> 0.7206723696 | W119: =PRODUCT($S118:W118) -> 0.6321687453 | X119: =PRODUCT($S118:X118) -> 0.5545339871 | Y119: =PRODUCT($S118:Y118) -> 0.486433322 | Z119: =PRODUCT($S118:Z118) -> 0.4266958965 | AA119: =PRODUCT($S118:AA118) -> 0.3742946461 | AB119: =PRODUCT($S118:AB118) -> 0.3283286369 | AC119: =PRODUCT($S118:AC118) -> 0.2880075762 | AD119: =PRODUCT($S118:AD118) -> 0.2526382248 | AE119: =PRODUCT($S118:AE118) -> 0.2216124779 | AF119: =PRODUCT($S118:AF118) -> 0.1943969104 | AG119: =PRODUCT($S118:AG118) -> 0.1705236056 | AH119: =PRODUCT($S118:AH118) -> 0.1495821102 | AI119: =PRODUCT($S118:AI118) -> 0.1312123774 | AJ119: discount acc
C120: IRR project | E120: =IFERROR(INDEX(DB_st_IRRp,MATCH(1,OFFSET(DB_st_IRRp,1,),0)),0) -> 0.1422 | S120: =E120 -> 0.1422 | T120: =IFERROR(ROUND(XIRR(T111:$AI111,T78:$AI78,0),4),0) -> 0.1422 | U120: =IFERROR(ROUND(XIRR(U111:$AI111,U78:$AI78,0),4),0) -> 0.1645 | V120: =IFERROR(ROUND(XIRR(V111:$AI111,V78:$AI78,0),4),0) -> 0.2245 | W120: =IFERROR(ROUND(XIRR(W111:$AI111,W78:$AI78,0),4),0) -> 0.2755 | X120: =IFERROR(ROUND(XIRR(X111:$AI111,X78:$AI78,0),4),0) -> 0.3684 | Y120: =IFERROR(ROUND(XIRR(Y111:$AI111,Y78:$AI78,0),4),0) -> 0.9671 | Z120: =IFERROR(ROUND(XIRR(Z111:$AI111,Z78:$AI78,0),4),0) -> 0 | AA120: =IFERROR(ROUND(XIRR(AA111:$AI111,AA78:$AI78,0),4),0) -> 0 | AB120: =IFERROR(ROUND(XIRR(AB111:$AI111,AB78:$AI78,0),4),0) -> 0 | AC120: =IFERROR(ROUND(XIRR(AC111:$AI111,AC78:$AI78,0),4),0) -> 0 | AD120: =IFERROR(ROUND(XIRR(AD111:$AI111,AD78:$AI78,0),4),0) -> 0 | AE120: =IFERROR(ROUND(XIRR(AE111:$AI111,AE78:$AI78,0),4),0) -> 0 | AF120: =IFERROR(ROUND(XIRR(AF111:$AI111,AF78:$AI78,0),4),0) -> 0 | AG120: =IFERROR(ROUND(XIRR(AG111:$AI111,AG78:$AI78,0),4),0) -> 0 | AH120: =IFERROR(ROUND(XIRR(AH111:$AI111,AH78:$AI78,0),4),0) -> 0 | AI120: =IFERROR(ROUND(XIRR(AI111:$AI111,AI78:$AI78,0),4),0) -> 0 | AJ120: DB_st_IRRp
H121: flag | T121: =(T120<>0)*1 -> 1 | U121: 1 | V121: 1 | W121: 1 | X121: 1 | Y121: 1 | Z121: 0 | AA121: 0 | AB121: =(AB120<>0)*1 -> 0 | AC121: 0 | AD121: 0 | AE121: 0 | AF121: 0 | AG121: 0 | AH121: 0 | AI121: 0
C122: DFCFF | S122: =S109 -> 0 | T122: =T111*PRODUCT($T118:T118)*(T76<>1) -> -1051819.405 | U122: =U111*PRODUCT($T118:U118)*(U76<>1) -> -1864930.617 | V122: =V111*PRODUCT($T118:V118)*(V76<>1) -> -990097.3844 | W122: =W111*PRODUCT($T118:W118)*(W76<>1) -> -1184367.037 | X122: =X111*PRODUCT($T118:X118)*(X76<>1) -> -2368462.066 | Y122: =Y111*PRODUCT($T118:Y118)*(Y76<>1) -> -2077179.136 | Z122: =Z111*PRODUCT($T118:Z118)*(Z76<>1) -> 2069163.089 | AA122: =AA111*PRODUCT($T118:AA118)*(AA76<>1) -> 1273416.031 | AB122: =AB111*PRODUCT($T118:AB118)*(AB76<>1) -> 1121610.152 | AC122: =AC111*PRODUCT($T118:AC118)*(AC76<>1) -> 981696.783 | AD122: =AD111*PRODUCT($T118:AD118)*(AD76<>1) -> 923060.7996 | AE122: =AE111*PRODUCT($T118:AE118)*(AE76<>1) -> 821366.2542 | AF122: =AF111*PRODUCT($T118:AF118)*(AF76<>1) -> 731461.9563 | AG122: =AG111*PRODUCT($T118:AG118)*(AG76<>1) -> 652071.6978 | AH122: =AH111*PRODUCT($T118:AH118)*(AH76<>1) -> 578144.8466 | AI122: =AI111*PRODUCT($T118:AI118)*(AI76<>1) -> 510653.5359 | AJ122: DB_DFCFF
C123: Sum_acc_DFCFF | T123: =SUM($T122:T122) -> -1051819.405 | U123: =SUM($T122:U122) -> -2916750.022 | V123: =SUM($T122:V122) -> -3906847.407 | W123: =SUM($T122:W122) -> -5091214.443 | X123: =SUM($T122:X122) -> -7459676.51 | Y123: =SUM($T122:Y122) -> -9536855.645 | Z123: =SUM($T122:Z122) -> -7467692.556 | AA123: =SUM($T122:AA122) -> -6194276.525 | AB123: =SUM($T122:AB122) -> -5072666.372 | AC123: =SUM($T122:AC122) -> -4090969.589 | AD123: =SUM($T122:AD122) -> -3167908.79 | AE123: =SUM($T122:AE122) -> -2346542.535 | AF123: =SUM($T122:AF122) -> -1615080.579 | AG123: =SUM($T122:AG122) -> -963008.8814 | AH123: =SUM($T122:AH122) -> -384864.0348 | AI123: =SUM($T122:AI122) -> 125789.5011
C124: Sum_rem_DFCFF | T124: =SUM(T122:$AI122) -> 125789.5011 | U124: =SUM(U122:$AI122) -> 1177608.906 | V124: =SUM(V122:$AI122) -> 3042539.523 | W124: =SUM(W122:$AI122) -> 4032636.908 | X124: =SUM(X122:$AI122) -> 5217003.945 | Y124: =SUM(Y122:$AI122) -> 7585466.011 | Z124: =SUM(Z122:$AI122) -> 9662645.146 | AA124: =SUM(AA122:$AI122) -> 7593482.057 | AB124: =SUM(AB122:$AI122) -> 6320066.026 | AC124: =SUM(AC122:$AI122) -> 5198455.874 | AD124: =SUM(AD122:$AI122) -> 4216759.09 | AE124: =SUM(AE122:$AI122) -> 3293698.291 | AF124: =SUM(AF122:$AI122) -> 2472332.037 | AG124: =SUM(AG122:$AI122) -> 1740870.08 | AH124: =SUM(AH122:$AI122) -> 1088798.383 | AI124: =SUM(AI122:$AI122) -> 510653.5359
C125: DPBP project | D125: =IF(D113<>"нет",D126,"нет") -> 16 | H125: flag | T125: =IF(T123>=0,1,0)*(T79=0)*(T76<>1)*1 -> 0 | U125: 0 | V125: 0 | W125: 0 | X125: 0 | Y125: 0 | Z125: 0 | AA125: 0 | AB125: =IF(AB123>=0,1,0)*(AB79=0)*(AB76<>1)*1 -> 0 | AC125: 0 | AD125: 0 | AE125: 0 | AF125: 0 | AG125: 0 | AH125: 0 | AI125: 1
D126: =IFERROR(MATCH(1,T125:AI125,0)*(ut_Months_in_Period/12),"нет") -> 16 | H126: лет | S126: =D126 -> 16 | T126: =IFERROR(IF(AND($D126<>0,S126<>0),IF(S126>0,S126-ut_Months_in_Period/12,0),0),"нет") -> 15 | U126: 14 | V126: 13 | W126: 12 | X126: 11 | Y126: 10 | Z126: 9 | AA126: 8 | AB126: 7 | AC126: 6 | AD126: 5 | AE126: 4 | AF126: 3 | AG126: 2 | AH126: 1 | AI126: 0 | AJ126: DB_st_DPBP_project
C128: FCFF ltm | G128: period | T128: =SUM(OFFSET(T$111,0,-$D$135+1,1,$D$135)) -> -1123035.81 | U128: -2269969.155 | V128: -1373852.289 | W128: -1873498.248 | X128: -4271085.49 | Y128: -4270223.773 | Z128: 4849268.779 | AA128: 3402175.384 | AB128: 3416120.394 | AC128: 3408579.718 | AD128: 3653686.217 | AE128: 3706317.723 | AF128: 3762724.185 | AG128: 3823938.014 | AH128: 3865066.791 | AI128: 3891809.189
C129: TV project | D129: =IF(D6="да","учитывается","не учитывается") -> не учитывается | E129: =INDEX(T129:AI129,G129) -> 0 | G129: =E7 -> 16 | K129: =(D129="учитывается")*1 -> 0 | T129: =IFERROR(T128*(1+T143)/(T117-T143),0)*($G129=T72)*$K129 -> 0 | U129: 0 | V129: 0 | W129: 0 | X129: 0 | Y129: 0 | Z129: 0 | AA129: 0 | AB129: =IFERROR(AB128*(1+AB143)/(AB117-AB143),0)*($G129=AB72)*$K129 -> 0 | AC129: 0 | AD129: 0 | AE129: 0 | AF129: 0 | AG129: 0 | AH129: 0 | AI129: 0
E130: =INDEX(T130:AI130,G129) -> 0 | F130: DTV project | T130: =T129*PRODUCT($T118:T118) -> 0 | U130: =U129*PRODUCT($T118:U118) -> 0 | V130: =V129*PRODUCT($T118:V118) -> 0 | W130: =W129*PRODUCT($T118:W118) -> 0 | X130: =X129*PRODUCT($T118:X118) -> 0 | Y130: =Y129*PRODUCT($T118:Y118) -> 0 | Z130: =Z129*PRODUCT($T118:Z118) -> 0 | AA130: =AA129*PRODUCT($T118:AA118) -> 0 | AB130: =AB129*PRODUCT($T118:AB118) -> 0 | AC130: =AC129*PRODUCT($T118:AC118) -> 0 | AD130: =AD129*PRODUCT($T118:AD118) -> 0 | AE130: =AE129*PRODUCT($T118:AE118) -> 0 | AF130: =AF129*PRODUCT($T118:AF118) -> 0 | AG130: =AG129*PRODUCT($T118:AG118) -> 0 | AH130: =AH129*PRODUCT($T118:AH118) -> 0 | AI130: =AI129*PRODUCT($T118:AI118) -> 0
C131: Исторический CF | D131: =IF(D4="да","учитывается","не учитывается") -> не учитывается | K131: =(D131="учитывается")*1 -> 0 | S131: =(S109)*(S76<>1)*($D4="да") -> 0 | T131: =SUM(S112)*($D4="да") -> 0 | U131: 0 | V131: 0 | W131: 0 | X131: 0 | Y131: 0 | Z131: 0 | AA131: 0 | AB131: =SUM(AA112)*($D4="да") -> 0 | AC131: =SUM(AB112)*($D4="да") -> 0 | AD131: =SUM(AC112)*($D4="да") -> 0 | AE131: =SUM(AD112)*($D4="да") -> 0 | AF131: =SUM(AE112)*($D4="да") -> 0 | AG131: =SUM(AF112)*($D4="да") -> 0 | AH131: =SUM(AG112)*($D4="да") -> 0 | AI131: =SUM(AH112)*($D4="да") -> 0
C133: NPV project | E133: =SUM(DB_DFCFF)+E130+S131 -> 125789.5011 | S133: =E133 -> 125789.5011 | T133: =(T124+$E130)/PRODUCT($S118:S118)+T131 -> 125789.5011 | U133: =(U124+$E130)/PRODUCT($S118:T118)+U131 -> 1257342.244 | V133: =(V124+$E130)/PRODUCT($S118:U118)+V131 -> 3703339.314 | W133: =(W124+$E130)/PRODUCT($S118:V118)+W131 -> 5595659.106 | X133: =(X124+$E130)/PRODUCT($S118:W118)+X131 -> 8252549.629 | Y133: =(Y124+$E130)/PRODUCT($S118:X118)+Y131 -> 13678992.07 | Z133: =(Z124+$E130)/PRODUCT($S118:Y118)+Z131 -> 19864274.73 | AA133: =(AA124+$E130)/PRODUCT($S118:Z118)+AA131 -> 17796004.41 | AB133: =(AB124+$E130)/PRODUCT($S118:AA118)+AB131 -> 16885269.65 | AC133: =(AC124+$E130)/PRODUCT($S118:AB118)+AC131 -> 15833087 | AD133: =(AD124+$E130)/PRODUCT($S118:AC118)+AD131 -> 14641139.46 | AE133: =(AE124+$E130)/PRODUCT($S118:AD118)+AE131 -> 13037212.77 | AF133: =(AF124+$E130)/PRODUCT($S118:AE118)+AF131 -> 11156104.84 | AG133: =(AG124+$E130)/PRODUCT($S118:AF118)+AG131 -> 8955235.331 | AH133: =(AH124+$E130)/PRODUCT($S118:AG118)+AH131 -> 6385030.264 | AI133: =(AI124+$E130)/PRODUCT($S118:AH118)+AI131 -> 3413867.71 | AJ133: DB_st_NPVp
D134: шаг модели | S134: =$E130 -> 0 | T134: =$E130/T119 -> 0 | U134: 0 | V134: 0 | W134: 0 | X134: 0 | Y134: 0 | Z134: 0 | AA134: 0 | AB134: =$E130/AB119 -> 0 | AC134: 0 | AD134: 0 | AE134: 0 | AF134: 0 | AG134: 0 | AH134: 0 | AI134: 0 | AJ134: DB_DTVp
D135: =12/ut_Months_in_Period -> 1 | E135: ut_Months_in_Period
G136: flag 1 yr | T136: =(T$81=1)*IF(T$72<($D135*2),0,1) -> 0 | U136: =(U$81=1)*IF(U72<($D135*2),0,1) -> 0 | V136: 0 | W136: 0 | X136: 0 | Y136: 0 | Z136: 1 | AA136: 1 | AB136: =(AB$81=1)*IF(AB72<($D135*2),0,1) -> 1 | AC136: 1 | AD136: 1 | AE136: 1 | AF136: 1 | AG136: 1 | AH136: 1 | AI136: 1
G137: flag 2 yr | T137: =(T$81=1)*IF(T$72<($D135*3),0,1) -> 0 | U137: 0 | V137: 0 | W137: 0 | X137: 0 | Y137: 0 | Z137: 1 | AA137: 1 | AB137: =(AB$81=1)*IF(AB$72<($D135*3),0,1) -> 1 | AC137: 1 | AD137: 1 | AE137: 1 | AF137: 1 | AG137: 1 | AH137: 1 | AI137: 1
G138: flag 3 yr | T138: =(T$81=1)*IF(T$72<($D135*4),0,1) -> 0 | U138: 0 | V138: 0 | W138: 0 | X138: 0 | Y138: 0 | Z138: 1 | AA138: 1 | AB138: =(AB$81=1)*IF(AB$72<($D135*4),0,1) -> 1 | AC138: 1 | AD138: 1 | AE138: 1 | AF138: 1 | AG138: 1 | AH138: 1 | AI138: 1
G140: CAGR 1 yr | T140: =IFERROR(SUM(OFFSET(T$111,0,-$D$135+1,1,$D$135))/SUM(OFFSET(T$111,0,-$D$135*2+1,1,$D$135)),0)*T136 -> 0 | U140: =IFERROR(SUM(OFFSET(U111,0,-$D135+1,1,$D135))/SUM(OFFSET(U111,0,-$D135*2+1,1,$D135)),0)*U136 -> 0 | V140: 0 | W140: 0 | X140: 0 | Y140: 0 | Z140: -1.135600624 | AA140: 0.7015852367 | AB140: =IFERROR(SUM(OFFSET(AB111,0,-$D135+1,1,$D135))/SUM(OFFSET(AB111,0,-$D135*2+1,1,$D135)),0)*AB136 -> 1.004098851 | AC140: 0.9977926201 | AD140: 1.071908689 | AE140: 1.014405043 | AF140: 1.015219004 | AG140: 1.016268487 | AH140: 1.010755608 | AI140: 1.006919
G141: CAGR 2 yr | T141: =AVERAGE(IFERROR(SUM(OFFSET(T$111,0,-$D$135*2+1,1,$D$135))/SUM(OFFSET(T$111,0,-$D$135*3+1,1,$D$135)),0),T140)*T137 -> 0 | U141: 0 | V141: 0 | W141: 0 | X141: 0 | Y141: 0 | Z141: -0.06790118976 | AA141: -0.2170076934 | AB141: =AVERAGE(IFERROR(SUM(OFFSET(AB$111,0,-$D$135*2+1,1,$D$135))/SUM(OFFSET(AB$111,0,-$D$135*3+1,1,$D$135)),0),AB140)*AB137 -> 0.8528420438 | AC141: 1.000945735 | AD141: 1.034850654 | AE141: 1.043156866 | AF141: 1.014812023 | AG141: 1.015743745 | AH141: 1.013512047 | AI141: 1.008837304
G142: CAGR 3 yr | T142: =AVERAGE(IFERROR(SUM(OFFSET(T$111,0,-$D$135*2+1,1,$D$135))/SUM(OFFSET(T$111,0,-$D$135*3+1,1,$D$135)),0),T140,T141)*T138 -> 0 | U142: 0 | V142: 0 | W142: 0 | X142: 0 | Y142: 0 | Z142: -0.06790118976 | AA142: -0.2170076934 | AB142: =AVERAGE(IFERROR(SUM(OFFSET(AB$111,0,-$D$135*2+1,1,$D$135))/SUM(OFFSET(AB$111,0,-$D$135*3+1,1,$D$135)),0),AB140,AB141)*AB138 -> 0.8528420438 | AC142: 1.000945735 | AD142: 1.034850654 | AE142: 1.043156866 | AF142: 1.014812023 | AG142: 1.015743745 | AH142: 1.013512047 | AI142: 1.008837304
G143: chosen GR | T143: =(IF(T142<>0,T142,IF(T141<>0,T141,T140))-1)*(SUM(T136:T138)<>0) -> 0 | U143: 0 | V143: 0 | W143: 0 | X143: 0 | Y143: 0 | Z143: -1.06790119 | AA143: -1.217007693 | AB143: =(IF(AB142<>0,AB142,IF(AB141<>0,AB141,AB140))-1)*(SUM(AB136:AB138)<>0) -> -0.1471579562 | AC143: 0.0009457354589 | AD143: 0.03485065448 | AE143: 0.04315686576 | AF143: 0.01481202311 | AG143: 0.01574374516 | AH143: 0.01351204722 | AI143: 0.008837303977
C147: Расчет FCFE | H147: =SUM(DB_FCFE) -> 53080369.74 | T147: =T171 -> -1229175.111 | U147: -2042438.046 | V147: -1043706.144 | W147: -1442659.241 | X147: -1988437.08 | Y147: -31212.59377 | Z147: 9439658.988 | AA147: 6109348.704 | AB147: =AB171 -> 6437153.939 | AC147: 6396851.14 | AD147: 6640307.023 | AE147: 6264048.479 | AF147: 6258918.174 | AG147: 5248381.361 | AH147: 4024965.649 | AI147: 4038364.503
C149: FCFE
C150: Со знаком плюс | T150: =(T147>0)*1 -> 0 | U150: 0 | V150: 0 | W150: 0 | X150: 0 | Y150: 0 | Z150: 1 | AA150: 1 | AB150: =(AB147>0)*1 -> 1 | AC150: 1 | AD150: 1 | AE150: 1 | AF150: 1 | AG150: 1 | AH150: 1 | AI150: 1 | AJ150: repayment
C151: Сальдо OpCF и InvCF | D151: учитывается | E151: с учетом НДС | G151: ef_FCFE_settings | H151: =SUM(T151:AI151) -> 13784732.54 | K151: =(D151="учитывается")*1 -> 1 | T151: =('BS, PL, CF+RM'!T9+'BS, PL, CF+RM'!T40)*$K151 -> -1235696.508 | U151: =('BS, PL, CF+RM'!U9+'BS, PL, CF+RM'!U40)*$K151 -> -2449701.661 | V151: =('BS, PL, CF+RM'!V9+'BS, PL, CF+RM'!V40)*$K151 -> -1549982.048 | W151: =('BS, PL, CF+RM'!W9+'BS, PL, CF+RM'!W40)*$K151 -> -2049573.159 | X151: =('BS, PL, CF+RM'!X9+'BS, PL, CF+RM'!X40)*$K151 -> -4396847.818 | Y151: =('BS, PL, CF+RM'!Y9+'BS, PL, CF+RM'!Y40)*$K151 -> -4441405.691 | Z151: =('BS, PL, CF+RM'!Z9+'BS, PL, CF+RM'!Z40)*$K151 -> 4542441.686 | AA151: =('BS, PL, CF+RM'!AA9+'BS, PL, CF+RM'!AA40)*$K151 -> 2829282.548 | AB151: =('BS, PL, CF+RM'!AB9+'BS, PL, CF+RM'!AB40)*$K151 -> 3000325.64 | AC151: =('BS, PL, CF+RM'!AC9+'BS, PL, CF+RM'!AC40)*$K151 -> 2977518.697 | AD151: =('BS, PL, CF+RM'!AD9+'BS, PL, CF+RM'!AD40)*$K151 -> 2981005.624 | AE151: =('BS, PL, CF+RM'!AE9+'BS, PL, CF+RM'!AE40)*$K151 -> 2752830.354 | AF151: =('BS, PL, CF+RM'!AF9+'BS, PL, CF+RM'!AF40)*$K151 -> 2726218.952 | AG151: =('BS, PL, CF+RM'!AG9+'BS, PL, CF+RM'!AG40)*$K151 -> 2707322.873 | AH151: =('BS, PL, CF+RM'!AH9+'BS, PL, CF+RM'!AH40)*$K151 -> 2693426.138 | AI151: =('BS, PL, CF+RM'!AI9+'BS, PL, CF+RM'!AI40)*$K151 -> 2697566.911
C152: Сальдо OpCF, InvCF и FinCF | D152: не учитывается | H152: 0 | K152: 0 | T152: =('BS, PL, CF+RM'!T73)*$K152 -> 0 | U152: =('BS, PL, CF+RM'!U73)*$K152 -> 0 | V152: =('BS, PL, CF+RM'!V73)*$K152 -> 0 | W152: =('BS, PL, CF+RM'!W73)*$K152 -> 0 | X152: =('BS, PL, CF+RM'!X73)*$K152 -> 0 | Y152: =('BS, PL, CF+RM'!Y73)*$K152 -> 0 | Z152: =('BS, PL, CF+RM'!Z73)*$K152 -> 0 | AA152: =('BS, PL, CF+RM'!AA73)*$K152 -> 0 | AB152: =('BS, PL, CF+RM'!AB73)*$K152 -> 0 | AC152: =('BS, PL, CF+RM'!AC73)*$K152 -> 0 | AD152: =('BS, PL, CF+RM'!AD73)*$K152 -> 0 | AE152: =('BS, PL, CF+RM'!AE73)*$K152 -> 0 | AF152: =('BS, PL, CF+RM'!AF73)*$K152 -> 0 | AG152: =('BS, PL, CF+RM'!AG73)*$K152 -> 0 | AH152: =('BS, PL, CF+RM'!AH73)*$K152 -> 0 | AI152: =('BS, PL, CF+RM'!AI73)*$K152 -> 0
C153: Привлечение кредитов | D153: учитывается | H153: 11500000 | K153: 1 | T153: ='BS, PL, CF+RM'!T48*$K153 -> 500000 | U153: ='BS, PL, CF+RM'!U48*$K153 -> 1300000 | V153: ='BS, PL, CF+RM'!V48*$K153 -> 900000 | W153: ='BS, PL, CF+RM'!W48*$K153 -> 1200000 | X153: ='BS, PL, CF+RM'!X48*$K153 -> 3300000 | Y153: ='BS, PL, CF+RM'!Y48*$K153 -> 4300000 | Z153: ='BS, PL, CF+RM'!Z48*$K153 -> 0 | AA153: ='BS, PL, CF+RM'!AA48*$K153 -> 0 | AB153: ='BS, PL, CF+RM'!AB48*$K153 -> 0 | AC153: ='BS, PL, CF+RM'!AC48*$K153 -> 0 | AD153: ='BS, PL, CF+RM'!AD48*$K153 -> 0 | AE153: ='BS, PL, CF+RM'!AE48*$K153 -> 0 | AF153: ='BS, PL, CF+RM'!AF48*$K153 -> 0 | AG153: ='BS, PL, CF+RM'!AG48*$K153 -> 0 | AH153: ='BS, PL, CF+RM'!AH48*$K153 -> 0 | AI153: ='BS, PL, CF+RM'!AI48*$K153 -> 0
C154: Привлечение средств ВЭБ в капитал | D154: учитывается | H154: 0 | K154: 1 | T154: =ut_Equity_Attraction_VEB*$K154 -> 0 | U154: 0 | V154: 0 | W154: 0 | X154: 0 | Y154: 0 | Z154: 0 | AA154: 0 | AB154: 0 | AC154: 0 | AD154: 0 | AE154: 0 | AF154: 0 | AG154: 0 | AH154: 0 | AI154: 0
C155: Выплата дивидендов акционерам и инвесторам | D155: учитывается | E155: с учетом налога на дивиденды | H155: 0 | K155: 1 | T155: =(ut_Dividends-ut_Dividends_Tax)*$K155 -> 0 | U155: 0 | V155: 0 | W155: 0 | X155: 0 | Y155: 0 | Z155: 0 | AA155: 0 | AB155: 0 | AC155: 0 | AD155: 0 | AE155: 0 | AF155: 0 | AG155: 0 | AH155: 0 | AI155: 0
C156: Субисдии и гранты | D156: учитывается | H156: 600000 | K156: 1 | T156: =(ut_Subsidies+ut_Direct_Budget_Investments)*$K156 -> 100000 | U156: 100000 | V156: 100000 | W156: 100000 | X156: 100000 | Y156: 100000 | Z156: 0 | AA156: 0 | AB156: 0 | AC156: 0 | AD156: 0 | AE156: 0 | AF156: 0 | AG156: 0 | AH156: 0 | AI156: 0
C157: Эффект налогового щита | D157: учитывается | E157: tax on EBIT - Net profit tax | H157: 11599384.87 | K157: 1 | T157: =(ut_EBIT_PL*ut_Profit_Tax_Rate_Inputs-ut_Current_ProfitTax)*$K157 -> 5521.396731 | U157: 4663.615035 | V157: 4475.90378 | W157: 4513.917287 | X157: 1810.738648 | Y157: 1593.097255 | Z157: 1119473.343 | AA157: 924112.8734 | AB157: 938925.4321 | AC157: 940583.0306 | AD157: 1180695.282 | AE157: 1223216.36 | AF157: 1267766.816 | AG157: 1309695.957 | AH157: 1331539.512 | AI157: 1340797.592
C158: Сальдо по финансовым вложениям | D158: учитывается | H158: 0 | K158: 1 | T158: =((ut_Fin_Assets_Eq_Interest+ut_Fin_Assets_Eq_Drawdown)-ut_Fin_Assets_Eq_Increase)*$K158 -> 0 | U158: 0 | V158: 0 | W158: 0 | X158: 0 | Y158: 0 | Z158: 0 | AA158: 0 | AB158: 0 | AC158: 0 | AD158: 0 | AE158: 0 | AF158: 0 | AG158: 0 | AH158: 0 | AI158: 0
C159: Прочее, укажите -> | H159: 0 | K159: 1
C161: Со знаком минус
C162: Привлечение средств акционеров и инвесторов в капитал | D162: учитывается | H162: =SUM(T162:AI162) -> -3800000 | K162: =(D162="учитывается")*1 -> 1 | T162: =-(ut_Equity_Attraction-ut_Equity_Attraction_VEB)*$K162 -> -600000 | U162: -1000000 | V162: -500000 | W162: -700000 | X162: -1000000 | Y162: 0 | Z162: 0 | AA162: 0 | AB162: 0 | AC162: 0 | AD162: 0 | AE162: 0 | AF162: 0 | AG162: 0 | AH162: 0 | AI162: 0
C163: Выплата дивидендов в пользу ВЭБ | D163: учитывается | H163: 0 | K163: 1 | T163: =-(ut_Dividends_VEB)*$K163 -> 0 | U163: 0 | V163: 0 | W163: 0 | X163: 0 | Y163: 0 | Z163: 0 | AA163: 0 | AB163: 0 | AC163: 0 | AD163: 0 | AE163: 0 | AF163: 0 | AG163: 0 | AH163: 0 | AI163: 0
C164: Платежи по кредитам (долг, проценты, комиссии) | D164: учитывается | H164: 19396252.34 | K164: 1 | T164: =(ut_Total_Debt_Repayment+ut_Total_Fees_Repayment+ut_Total_Interest_Repayment)*$K164 -> 1000 | U164: 2600 | V164: 1800 | W164: 2400 | X164: 6600 | Y164: 8600 | Z164: 3777743.959 | AA164: 2355953.282 | AB164: 2497902.867 | AC164: 2478749.412 | AD164: 2478606.116 | AE164: 2288001.765 | AF164: 2264932.406 | AG164: 1231362.531 | AH164: 0 | AI164: 0
C165: Выкуп долей у ВЭБ | D165: учитывается | H165: 0 | K165: 1 | T165: =-(ut_Buyout_VEB)*$K165 -> 0 | U165: 0 | V165: 0 | W165: 0 | X165: 0 | Y165: 0 | Z165: 0 | AA165: 0 | AB165: 0 | AC165: 0 | AD165: 0 | AE165: 0 | AF165: 0 | AG165: 0 | AH165: 0 | AI165: 0
C166: Сальдо балансирующего финансирования | D166: учитывается | H166: 0 | K166: 1 | T166: =('BS, PL, CF+RM'!T79-'BS, PL, CF+RM'!T78)*$K166 -> 0 | U166: =('BS, PL, CF+RM'!U79-'BS, PL, CF+RM'!U78)*$K166 -> 0 | V166: =('BS, PL, CF+RM'!V79-'BS, PL, CF+RM'!V78)*$K166 -> 0 | W166: =('BS, PL, CF+RM'!W79-'BS, PL, CF+RM'!W78)*$K166 -> 0 | X166: =('BS, PL, CF+RM'!X79-'BS, PL, CF+RM'!X78)*$K166 -> 0 | Y166: =('BS, PL, CF+RM'!Y79-'BS, PL, CF+RM'!Y78)*$K166 -> 0 | Z166: =('BS, PL, CF+RM'!Z79-'BS, PL, CF+RM'!Z78)*$K166 -> 0 | AA166: =('BS, PL, CF+RM'!AA79-'BS, PL, CF+RM'!AA78)*$K166 -> 0 | AB166: =('BS, PL, CF+RM'!AB79-'BS, PL, CF+RM'!AB78)*$K166 -> 0 | AC166: =('BS, PL, CF+RM'!AC79-'BS, PL, CF+RM'!AC78)*$K166 -> 0 | AD166: =('BS, PL, CF+RM'!AD79-'BS, PL, CF+RM'!AD78)*$K166 -> 0 | AE166: =('BS, PL, CF+RM'!AE79-'BS, PL, CF+RM'!AE78)*$K166 -> 0 | AF166: =('BS, PL, CF+RM'!AF79-'BS, PL, CF+RM'!AF78)*$K166 -> 0 | AG166: =('BS, PL, CF+RM'!AG79-'BS, PL, CF+RM'!AG78)*$K166 -> 0 | AH166: =('BS, PL, CF+RM'!AH79-'BS, PL, CF+RM'!AH78)*$K166 -> 0 | AI166: =('BS, PL, CF+RM'!AI79-'BS, PL, CF+RM'!AI78)*$K166 -> 0
C167: Прочие вложения акционеров и инвесторов в Проект | D167: учитывается | H167: 0 | K167: 1 | T167: =-(ut_Equity_Other)*$K167 -> 0 | U167: 0 | V167: 0 | W167: 0 | X167: 0 | Y167: 0 | Z167: 0 | AA167: 0 | AB167: 0 | AC167: 0 | AD167: 0 | AE167: 0 | AF167: 0 | AG167: 0 | AH167: 0 | AI167: 0
G169: ∑ FCFE | H169: =SUM(S169:AI169) -> 53080369.74 | S169: =-(Calculations!S293+Calculations!S297+Inputs!S223)*(S76<>1)*($D4="да") -> 0 | T169: =SUM(T151:T159,T162:T167)*(T76<>1) -> -1229175.111 | U169: -2042438.046 | V169: -1043706.144 | W169: -1442659.241 | X169: -1988437.08 | Y169: -31212.59377 | Z169: 9439658.988 | AA169: 6109348.704 | AB169: =SUM(AB151:AB159,AB162:AB167)*(AB76<>1) -> 6437153.939 | AC169: 6396851.14 | AD169: 6640307.023 | AE169: 6264048.479 | AF169: 6258918.174 | AG169: 5248381.361 | AH169: 4024965.649 | AI169: 4038364.503
C171: выбранный FCFE | H171: =SUM(S171:AI171) -> 53080369.74 | S171: =S169 -> 0 | T171: -1229175.111 | U171: -2042438.046 | V171: -1043706.144 | W171: -1442659.241 | X171: -1988437.08 | Y171: -31212.59377 | Z171: 9439658.988 | AA171: 6109348.704 | AB171: =AB169 -> 6437153.939 | AC171: 6396851.14 | AD171: 6640307.023 | AE171: 6264048.479 | AF171: 6258918.174 | AG171: 5248381.361 | AH171: 4024965.649 | AI171: 4038364.503 | AJ171: DB_FCFE
C172: Sum_CFE | T172: =SUM($S171:T171) -> -1229175.111 | U172: =SUM($S171:U171) -> -3271613.157 | V172: =SUM($S171:V171) -> -4315319.301 | W172: =SUM($S171:W171) -> -5757978.543 | X172: =SUM($S171:X171) -> -7746415.622 | Y172: =SUM($S171:Y171) -> -7777628.216 | Z172: =SUM($S171:Z171) -> 1662030.771 | AA172: =SUM($S171:AA171) -> 7771379.475 | AB172: =SUM($S171:AB171) -> 14208533.41 | AC172: =SUM($S171:AC171) -> 20605384.55 | AD172: =SUM($S171:AD171) -> 27245691.58 | AE172: =SUM($S171:AE171) -> 33509740.06 | AF172: =SUM($S171:AF171) -> 39768658.23 | AG172: =SUM($S171:AG171) -> 45017039.59 | AH172: =SUM($S171:AH171) -> 49042005.24 | AI172: =SUM($S171:AI171) -> 53080369.74 | AJ172: Sum_CFE
C173: PBP equity | D173: =IF(COUNTIF(DB_FCFE,"<>"&0)<>0,D174,"нет") -> 7 | T173: =(T172>=0)*(T79=0)*(T76<>1)*1 -> 0 | U173: 0 | V173: 0 | W173: 0 | X173: 0 | Y173: 0 | Z173: 1 | AA173: 1 | AB173: =(AB172>=0)*(AB79=0)*(AB76<>1)*1 -> 1 | AC173: 1 | AD173: 1 | AE173: 1 | AF173: 1 | AG173: 1 | AH173: 1 | AI173: 1
D174: =IFERROR(MATCH(1,T173:AI173,0)*(ut_Months_in_Period/12),"нет") -> 7 | S174: =D174 -> 7 | T174: =IFERROR(IF(AND($D174<>0,S174<>0),IF(S174>0,S174-ut_Months_in_Period/12,0),0),"нет") -> 6 | U174: 5 | V174: 4 | W174: 3 | X174: 2 | Y174: 1 | Z174: 0 | AA174: 0 | AB174: 0 | AC174: 0 | AD174: 0 | AE174: 0 | AF174: 0 | AG174: 0 | AH174: 0 | AI174: 0 | AJ174: DB_st_PBP_equity
F175: Ставка ВЭБ.РФ | S175: =ut_Months_in_Period/12 -> 1 | T175: =IF(S175=1,S175/2,ut_Months_in_Period/12) -> 0.5 | U175: =$S175 -> 1 | V175: 1 | W175: 1 | X175: 1 | Y175: 1 | Z175: 1 | AA175: 1 | AB175: 1 | AC175: 1 | AD175: 1 | AE175: 1 | AF175: 1 | AG175: 1 | AH175: 1 | AI175: 1
E176: check | F176: 0.21
C177: Ставка дисконтирования (CoE) | D177: Ставка ВЭБ.РФ | E177: =IF((F177=1)*OR(SUM(ut_CAPM_Dynamic)=0,COUNTIF(ut_CAPM_Dynamic,">="&1)),"Ошибка!","ок") -> ок | F177: =IF(D177="Ставка ВЭБ.РФ",2,1) -> 2 | T177: =CHOOSE($F177,T176,$F176) -> 0.21 | U177: 0.21 | V177: 0.21 | W177: 0.21 | X177: 0.21 | Y177: 0.21 | Z177: 0.21 | AA177: 0.21 | AB177: =CHOOSE($F177,AB176,$F176) -> 0.21 | AC177: 0.21 | AD177: 0.21 | AE177: 0.21 | AF177: 0.21 | AG177: 0.21 | AH177: 0.21 | AI177: 0.21 | AJ177: ut_CAPM_Dynamic
S178: =1/((1+CHOOSE($F177,S177,$F176))^0) -> 1 | T178: =1/((1+T177)^T175) -> 0.9090909091 | U178: 0.826446281 | V178: 0.826446281 | W178: 0.826446281 | X178: 0.826446281 | Y178: 0.826446281 | Z178: 0.826446281 | AA178: 0.826446281 | AB178: =1/((1+AB177)^AB175) -> 0.826446281 | AC178: 0.826446281 | AD178: 0.826446281 | AE178: 0.826446281 | AF178: 0.826446281 | AG178: 0.826446281 | AH178: 0.826446281 | AI178: 0.826446281 | AJ178: discount rate
S179: =PRODUCT(S178:$S178) -> 1 | T179: =PRODUCT($S178:T178) -> 0.9090909091 | U179: =PRODUCT($S178:U178) -> 0.7513148009 | V179: =PRODUCT($S178:V178) -> 0.6209213231 | W179: =PRODUCT($S178:W178) -> 0.5131581182 | X179: =PRODUCT($S178:X178) -> 0.4240976184 | Y179: =PRODUCT($S178:Y178) -> 0.3504938995 | Z179: =PRODUCT($S178:Z178) -> 0.2896643797 | AA179: =PRODUCT($S178:AA178) -> 0.2393920494 | AB179: =PRODUCT($S178:AB178) -> 0.1978446689 | AC179: =PRODUCT($S178:AC178) -> 0.1635079908 | AD179: =PRODUCT($S178:AD178) -> 0.1351305709 | AE179: =PRODUCT($S178:AE178) -> 0.1116781578 | AF179: =PRODUCT($S178:AF178) -> 0.09229599818 | AG179: =PRODUCT($S178:AG178) -> 0.07627768444 | AH179: =PRODUCT($S178:AH178) -> 0.06303940863 | AI179: =PRODUCT($S178:AI178) -> 0.05209868482 | AJ179: discount acc
C180: IRR equity | E180: =IFERROR(INDEX(DB_st_IRReq,MATCH(1,OFFSET(DB_st_IRReq,1,),0)),0) -> 0.3382 | S180: =E180 -> 0.3382 | T180: =IFERROR(ROUND(XIRR(T171:$AI171,T78:$AI78,0),4),0) -> 0.3382 | U180: =IFERROR(ROUND(XIRR(U171:$AI171,U78:$AI78,0),4),0) -> 0.4124 | V180: =IFERROR(ROUND(XIRR(V171:$AI171,V78:$AI78,0),4),0) -> 0.6346 | W180: =IFERROR(ROUND(XIRR(W171:$AI171,W78:$AI78,0),4),0) -> 0.8741 | X180: =IFERROR(ROUND(XIRR(X171:$AI171,X78:$AI78,0),4),0) -> 1.5849 | Y180: =IFERROR(ROUND(XIRR(Y171:$AI171,Y78:$AI78,0),4),0) -> 302.0791 | Z180: =IFERROR(ROUND(XIRR(Z171:$AI171,Z78:$AI78,0),4),0) -> 0 | AA180: =IFERROR(ROUND(XIRR(AA171:$AI171,AA78:$AI78,0),4),0) -> 0 | AB180: =IFERROR(ROUND(XIRR(AB171:$AI171,AB78:$AI78,0),4),0) -> 0 | AC180: =IFERROR(ROUND(XIRR(AC171:$AI171,AC78:$AI78,0),4),0) -> 0 | AD180: =IFERROR(ROUND(XIRR(AD171:$AI171,AD78:$AI78,0),4),0) -> 0 | AE180: =IFERROR(ROUND(XIRR(AE171:$AI171,AE78:$AI78,0),4),0) -> 0 | AF180: =IFERROR(ROUND(XIRR(AF171:$AI171,AF78:$AI78,0),4),0) -> 0 | AG180: =IFERROR(ROUND(XIRR(AG171:$AI171,AG78:$AI78,0),4),0) -> 0 | AH180: =IFERROR(ROUND(XIRR(AH171:$AI171,AH78:$AI78,0),4),0) -> 0 | AI180: =IFERROR(ROUND(XIRR(AI171:$AI171,AI78:$AI78,0),4),0) -> 0 | AJ180: DB_st_IRReq
T181: =(T180<>0)*1 -> 1 | U181: 1 | V181: 1 | W181: 1 | X181: 1 | Y181: 1 | Z181: 0 | AA181: 0 | AB181: =(AB180<>0)*1 -> 0 | AC181: 0 | AD181: 0 | AE181: 0 | AF181: 0 | AG181: 0 | AH181: 0 | AI181: 0
C182: DFCFE | T182: =T171*PRODUCT($T178:T178)*(T76<>1) -> -1117431.919 | U182: =U171*PRODUCT($T178:U178)*(U76<>1) -> -1534513.934 | V182: =V171*PRODUCT($T178:V178)*(V76<>1) -> -648059.4 | W182: =W171*PRODUCT($T178:W178)*(W76<>1) -> -740312.3016 | X182: =X171*PRODUCT($T178:X178)*(X76<>1) -> -843291.4297 | Y182: =Y171*PRODUCT($T178:Y178)*(Y76<>1) -> -10939.8237 | Z182: =Z171*PRODUCT($T178:Z178)*(Z76<>1) -> 2734332.966 | AA182: =AA171*PRODUCT($T178:AA178)*(AA76<>1) -> 1462529.507 | AB182: =AB171*PRODUCT($T178:AB178)*(AB76<>1) -> 1273556.59 | AC182: =AC171*PRODUCT($T178:AC178)*(AC76<>1) -> 1045936.277 | AD182: =AD171*PRODUCT($T178:AD178)*(AD76<>1) -> 897308.4791 | AE182: =AE171*PRODUCT($T178:AE178)*(AE76<>1) -> 699557.3945 | AF182: =AF171*PRODUCT($T178:AF178)*(AF76<>1) -> 577673.1004 | AG182: =AG171*PRODUCT($T178:AG178)*(AG76<>1) -> 400334.3773 | AH182: =AH171*PRODUCT($T178:AH178)*(AH76<>1) -> 253731.4543 | AI182: =AI171*PRODUCT($T178:AI178)*(AI76<>1) -> 210393.4794 | AJ182: DB_DFCFE
C183: Sum_acc_DFCFE | T183: =SUM($T182:T182) -> -1117431.919 | U183: =SUM($T182:U182) -> -2651945.853 | V183: =SUM($T182:V182) -> -3300005.253 | W183: =SUM($T182:W182) -> -4040317.555 | X183: =SUM($T182:X182) -> -4883608.984 | Y183: =SUM($T182:Y182) -> -4894548.808 | Z183: =SUM($T182:Z182) -> -2160215.843 | AA183: =SUM($T182:AA182) -> -697686.3361 | AB183: =SUM($T182:AB182) -> 575870.2536 | AC183: =SUM($T182:AC182) -> 1621806.531 | AD183: =SUM($T182:AD182) -> 2519115.01 | AE183: =SUM($T182:AE182) -> 3218672.405 | AF183: =SUM($T182:AF182) -> 3796345.505 | AG183: =SUM($T182:AG182) -> 4196679.882 | AH183: =SUM($T182:AH182) -> 4450411.337 | AI183: =SUM($T182:AI182) -> 4660804.816
C184: Sum_rem_DFCFE | T184: =SUM(T182:$AI182) -> 4660804.816 | U184: =SUM(U182:$AI182) -> 5778236.736 | V184: =SUM(V182:$AI182) -> 7312750.669 | W184: =SUM(W182:$AI182) -> 7960810.069 | X184: =SUM(X182:$AI182) -> 8701122.371 | Y184: =SUM(Y182:$AI182) -> 9544413.801 | Z184: =SUM(Z182:$AI182) -> 9555353.624 | AA184: =SUM(AA182:$AI182) -> 6821020.659 | AB184: =SUM(AB182:$AI182) -> 5358491.152 | AC184: =SUM(AC182:$AI182) -> 4084934.563 | AD184: =SUM(AD182:$AI182) -> 3038998.285 | AE184: =SUM(AE182:$AI182) -> 2141689.806 | AF184: =SUM(AF182:$AI182) -> 1442132.411 | AG184: =SUM(AG182:$AI182) -> 864459.311 | AH184: =SUM(AH182:$AI182) -> 464124.9337 | AI184: =SUM(AI182:$AI182) -> 210393.4794
C185: DPBP equity | D185: =IF(D173<>"нет",D186,"нет") -> 9 | H185: flag | T185: =IF(T183>=0,1,0)*(T79=0)*(T76<>1)*1 -> 0 | U185: 0 | V185: 0 | W185: 0 | X185: 0 | Y185: 0 | Z185: 0 | AA185: 0 | AB185: =IF(AB183>=0,1,0)*(AB79=0)*(AB76<>1)*1 -> 1 | AC185: 1 | AD185: 1 | AE185: 1 | AF185: 1 | AG185: 1 | AH185: 1 | AI185: 1
D186: =IFERROR(MATCH(1,T185:AI185,0)*(ut_Months_in_Period/12),"нет") -> 9 | S186: =D186 -> 9 | T186: =IFERROR(IF(AND($D186<>0,S186<>0),IF(S186>0,S186-ut_Months_in_Period/12,0),0),"нет") -> 8 | U186: 7 | V186: 6 | W186: 5 | X186: 4 | Y186: 3 | Z186: 2 | AA186: 1 | AB186: 0 | AC186: 0 | AD186: 0 | AE186: 0 | AF186: 0 | AG186: 0 | AH186: 0 | AI186: 0 | AJ186: DB_st_DPBP_equity
C188: FCFE ltm | G188: period | T188: =SUM(OFFSET(T$171,0,-$D$195+1,1,$D$195)) -> -1229175.111 | U188: -2042438.046 | V188: -1043706.144 | W188: -1442659.241 | X188: -1988437.08 | Y188: -31212.59377 | Z188: 9439658.988 | AA188: 6109348.704 | AB188: 6437153.939 | AC188: 6396851.14 | AD188: 6640307.023 | AE188: 6264048.479 | AF188: 6258918.174 | AG188: 5248381.361 | AH188: 4024965.649 | AI188: 4038364.503
C189: TV equity | D189: =IF(D6="да","учитывается","не учитывается") -> не учитывается | E189: =INDEX(T189:AI189,G189) -> 0 | G189: =E7 -> 16 | K189: =(D189="учитывается")*1 -> 0 | T189: =IFERROR(T188*(1+T203)/(CHOOSE($F177,T177,$F176)-T203),0)*($G189=T72)*$K189 -> 0 | U189: 0 | V189: 0 | W189: 0 | X189: 0 | Y189: 0 | Z189: 0 | AA189: 0 | AB189: =IFERROR(AB188*(1+AB203)/(CHOOSE($F177,AB177,$F176)-AB203),0)*($G189=AB72)*$K189 -> 0 | AC189: 0 | AD189: 0 | AE189: 0 | AF189: 0 | AG189: 0 | AH189: 0 | AI189: 0
E190: =INDEX(T190:AI190,G189) -> 0 | F190: DTV equity | T190: =T189*PRODUCT($T178:T178) -> 0 | U190: =U189*PRODUCT($T178:U178) -> 0 | V190: =V189*PRODUCT($T178:V178) -> 0 | W190: =W189*PRODUCT($T178:W178) -> 0 | X190: =X189*PRODUCT($T178:X178) -> 0 | Y190: =Y189*PRODUCT($T178:Y178) -> 0 | Z190: =Z189*PRODUCT($T178:Z178) -> 0 | AA190: =AA189*PRODUCT($T178:AA178) -> 0 | AB190: =AB189*PRODUCT($T178:AB178) -> 0 | AC190: =AC189*PRODUCT($T178:AC178) -> 0 | AD190: =AD189*PRODUCT($T178:AD178) -> 0 | AE190: =AE189*PRODUCT($T178:AE178) -> 0 | AF190: =AF189*PRODUCT($T178:AF178) -> 0 | AG190: =AG189*PRODUCT($T178:AG178) -> 0 | AH190: =AH189*PRODUCT($T178:AH178) -> 0 | AI190: =AI189*PRODUCT($T178:AI178) -> 0
C191: Исторический CF | D191: =IF(D4="да","учитывается","не учитывается") -> не учитывается | K191: =(D191="учитывается")*1 -> 0 | T191: =S172*($D4="да") -> 0 | U191: 0 | V191: 0 | W191: 0 | X191: 0 | Y191: 0 | Z191: 0 | AA191: 0 | AB191: =AA172*($D4="да") -> 0 | AC191: =AB172*($D4="да") -> 0 | AD191: =AC172*($D4="да") -> 0 | AE191: =AD172*($D4="да") -> 0 | AF191: =AE172*($D4="да") -> 0 | AG191: =AF172*($D4="да") -> 0 | AH191: =AG172*($D4="да") -> 0 | AI191: =AH172*($D4="да") -> 0
C193: NPV equity | E193: =SUM(DB_DFCFE)+E190+S191 -> 4660804.816 | S193: =E193 -> 4660804.816 | T193: =(T184+$E190)/PRODUCT($S178:S178)+T191 -> 4660804.816 | U193: =(U184+$E190)/PRODUCT($S178:T178)+U191 -> 6356060.409 | V193: =(V184+$E190)/PRODUCT($S178:U178)+V191 -> 9733271.141 | W193: =(W184+$E190)/PRODUCT($S178:V178)+W191 -> 12820964.22 | X193: =(X184+$E190)/PRODUCT($S178:W178)+X191 -> 16956025.95 | Y193: =(Y184+$E190)/PRODUCT($S178:X178)+Y191 -> 22505228.48 | Z193: =(Z184+$E190)/PRODUCT($S178:Y178)+Z191 -> 27262539.06 | AA193: =(AA184+$E190)/PRODUCT($S178:Z178)+AA191 -> 23548013.27 | AB193: =(AB184+$E190)/PRODUCT($S178:AA178)+AB191 -> 22383747.36 | AC193: =(AC184+$E190)/PRODUCT($S178:AB178)+AC191 -> 20647180.36 | AD193: =(AD184+$E190)/PRODUCT($S178:AC178)+AD191 -> 18586237.1 | AE193: =(AE184+$E190)/PRODUCT($S178:AD178)+AE191 -> 15849039.87 | AF193: =(AF184+$E190)/PRODUCT($S178:AE178)+AF191 -> 12913289.76 | AG193: =(AG184+$E190)/PRODUCT($S178:AF178)+AG191 -> 9366162.435 | AH193: =(AH184+$E190)/PRODUCT($S178:AG178)+AH191 -> 6084675.185 | AI193: =(AI184+$E190)/PRODUCT($S178:AH178)+AI191 -> 3337491.325 | AJ193: DB_st_NPVeq
D194: шаг модели | S194: =$E190 -> 0 | T194: =$E190/T179 -> 0 | U194: 0 | V194: 0 | W194: 0 | X194: 0 | Y194: 0 | Z194: 0 | AA194: 0 | AB194: =$E190/AB179 -> 0 | AC194: 0 | AD194: 0 | AE194: 0 | AF194: 0 | AG194: 0 | AH194: 0 | AI194: 0 | AJ194: DB_DTVe
D195: =12/ut_Months_in_Period -> 1 | E195: ut_Months_in_Period
G196: flag 1 yr | T196: =(T$81=1)*IF(T$72<($D195*2),0,1) -> 0 | U196: 0 | V196: 0 | W196: 0 | X196: 0 | Y196: 0 | Z196: 1 | AA196: 1 | AB196: =(AB$81=1)*IF(AB$72<($D195*2),0,1) -> 1 | AC196: 1 | AD196: 1 | AE196: 1 | AF196: 1 | AG196: 1 | AH196: 1 | AI196: 1
G197: flag 2 yr | T197: =(T$81=1)*IF(T$72<($D195*3),0,1) -> 0 | U197: 0 | V197: 0 | W197: 0 | X197: 0 | Y197: 0 | Z197: 1 | AA197: 1 | AB197: =(AB$81=1)*IF(AB$72<($D195*3),0,1) -> 1 | AC197: 1 | AD197: 1 | AE197: 1 | AF197: 1 | AG197: 1 | AH197: 1 | AI197: 1
G198: flag 3 yr | T198: =(T$81=1)*IF(T$72<($D195*4),0,1) -> 0 | U198: 0 | V198: 0 | W198: 0 | X198: 0 | Y198: 0 | Z198: 1 | AA198: 1 | AB198: =(AB$81=1)*IF(AB$72<($D195*4),0,1) -> 1 | AC198: 1 | AD198: 1 | AE198: 1 | AF198: 1 | AG198: 1 | AH198: 1 | AI198: 1
G200: CAGR 1 yr | T200: =IFERROR(SUM(OFFSET(T$171,0,-$D$195+1,1,$D$195))/SUM(OFFSET(T$171,0,-$D$195*2+1,1,$D$195)),0)*T196 -> 0 | U200: 0 | V200: 0 | W200: 0 | X200: 0 | Y200: 0 | Z200: -302.4310975 | AA200: 0.6472001491 | AB200: =IFERROR(SUM(OFFSET(AB$171,0,-$D$195+1,1,$D$195))/SUM(OFFSET(AB$171,0,-$D$195*2+1,1,$D$195)),0)*AB196 -> 1.053656331 | AC200: 0.9937390344 | AD200: 1.038058707 | AE200: 0.9433371767 | AF200: 0.9991809922 | AG200: 0.8385444921 | AH200: 0.7668965672 | AI200: 1.003328936
